Workbook

Sheet Cover
C2: Powercor
C3: Revised regulatory proposal 2026-31
C5: Parallel risk model
C6: Model number: | D6: 3.4.09
C8: 2025-12-01
A40: =_xlfn.SHEETS() -> 13

Sheet Live scenario
A1: Powercor
A2: Parallel risk model
B4: Select ZSS, asset type & scenario
B5: Scenario specific auto-populated
B6: All dollars are $ 2023
B8: Redundant System Model - Substations
B9: Input Data - Station Configuration | D9: Constants
B10: Asset Type | C10: Transformer | D10: Major Failure CoC
B11: Substation: | C11: STL | D11: Minor Failure CoC
B12: Option | C12: 1 | D12: Option year | E12: =INDEX(Scen_inputs!$C38:$V38, MATCH($C$12&"_"&ZSS&"_"&LEFT(AssetType,2), Scen_inputs!$C$33:$V$33,0))+1 -> 2057
B13: Scenario # | C13: =INDEX(Scen_inputs!$C39:$V39, MATCH($C$12&"_"&ZSS&"_"&LEFT(AssetType,2), Scen_inputs!$C$33:$V$33,0)) -> No change to existing practices
B14: 2024 VCR ($/kWh) | C14: =VCR -> 33.42142057 | D14: =D10&" - used" -> Major Failure CoC - used | E14: =_xlfn.IFS($E$10<>"",$E$10,_xlfn.IFNA(D32,FALSE),D32*(1+Constants!C5),TRUE,Constants!$L$7) -> 7586248.8
B15: Load Profile (PoE) | C15: 0.5 | D15: =D11&" - used" -> Minor Failure CoC - used | E15: =IF($E$10="",Constants!$L$8,$E$10) -> 164000
B16: Network | C16: =VLOOKUP(ZSS,Load!A3:F61,6,FALSE) -> PAL | D16: ZSS type | E16: =_xlfn.XLOOKUP(ZSS,Load!A3:A61,Load!I3:I61,,0) -> RURAL
B17: POF METHOD | C17: =INDEX(Scen_inputs!$C37:$V37, MATCH($C$12&"_"&ZSS&"_"&LEFT(AssetType,2), Scen_inputs!$C$33:$V$33,0)) -> WEIBULL | D17: Modifier (x) | E17: Comment
B18: PoF (#1) | C18: =Calcs1!AF40 -> 0.00136816958 | D18: =INDEX(Scen_inputs!$C61:$V61, MATCH($C$12&"_"&ZSS&"_"&LEFT(AssetType,2), Scen_inputs!$C$33:$V$33,0)) -> 1
B19: PoF (#2) | C19: =Calcs1!AF41 -> TRUE | D19: =INDEX(Scen_inputs!$C62:$V62, MATCH($C$12&"_"&ZSS&"_"&LEFT(AssetType,2), Scen_inputs!$C$33:$V$33,0)) -> 1
B20: PoF (#3) | C20: =Calcs1!AF42 -> 0.00136816958 | D20: =INDEX(Scen_inputs!$C63:$V63, MATCH($C$12&"_"&ZSS&"_"&LEFT(AssetType,2), Scen_inputs!$C$33:$V$33,0)) -> 1
B21: PoF (#4) | C21: 0 | D21: =INDEX(Scen_inputs!$C64:$V64, MATCH($C$12&"_"&ZSS&"_"&LEFT(AssetType,2), Scen_inputs!$C$33:$V$33,0)) -> 1
B24: Scenario Modifiers | D24: Unit Price | E24: Asset Life | F24: Annual Cost | G24: Comment | H24: Sensitivity
B25: Spare Available | C25: =INDEX(Scen_inputs!$C40:$V40, MATCH($C$12&"_"&ZSS&"_"&LEFT(AssetType,2), Scen_inputs!$C$33:$V$33,0)) -> FALSE | D25: 2000000 | E25: 20 | F25: =-PMT(WACC,E25,D25) -> 140722.1536 | H25: =F25*1.1 -> 154794.3689
B26: Online Monitoring | C26: =INDEX(Scen_inputs!$C41:$V41, MATCH($C$12&"_"&ZSS&"_"&LEFT(AssetType,2), Scen_inputs!$C$33:$V$33,0)) -> FALSE | D26: 50000 | E26: 1 | F26: 51750 | H26: =F26*1.1 -> 56925
B27: Physical Separation | C27: =INDEX(Scen_inputs!$C42:$V42, MATCH($C$12&"_"&ZSS&"_"&LEFT(AssetType,2), Scen_inputs!$C$33:$V$33,0)) -> FALSE | D27: 300000 | E27: 50 | F27: 12790.11287 | H27: 14069.12416
B28: More Frequent Maintenance | C28: =INDEX(Scen_inputs!$C43:$V43, MATCH($C$12&"_"&ZSS&"_"&LEFT(AssetType,2), Scen_inputs!$C$33:$V$33,0)) -> FALSE | D28: 4000 | E28: 1 | F28: 4140 | H28: 4554
B29: Staggered Maintenance | C29: =INDEX(Scen_inputs!$C44:$V44, MATCH($C$12&"_"&ZSS&"_"&LEFT(AssetType,2), Scen_inputs!$C$33:$V$33,0)) -> FALSE | D29: 650 | E29: 1 | F29: 672.75 | H29: 740.025
B30: Bunded | C30: =INDEX(Scen_inputs!$C45:$V45, MATCH($C$12&"_"&ZSS&"_"&LEFT(AssetType,2), Scen_inputs!$C$33:$V$33,0)) -> FALSE | D30: 300000 | E30: 50 | F30: 12790.11287 | H30: 14069.12416
B31: Refurbish Assets | C31: =INDEX(Scen_inputs!$C46:$V46, MATCH($C$12&"_"&ZSS&"_"&LEFT(AssetType,2), Scen_inputs!$C$33:$V$33,0)) -> FALSE | D31: =INDEX(Scen_inputs!$C55:$V55, MATCH($C$12&"_"&ZSS&"_"&LEFT(AssetType,2), Scen_inputs!$C$33:$V$33,0)) -> 639520.0938 | E31: 20 | F31: 44997.32242 | H31: 49497.05466
B32: Replace 1 Asset | C32: =INDEX(Scen_inputs!$C47:$V47, MATCH($C$12&"_"&ZSS&"_"&LEFT(AssetType,2), Scen_inputs!$C$33:$V$33,0)) -> FALSE | D32: =INDEX(Scen_inputs!$C56:$V56, MATCH($C$12&"_"&ZSS&"_"&LEFT(AssetType,2), Scen_inputs!$C$33:$V$33,0)) -> 6321874 | E32: 50 | F32: 269524.94 | H32: 296477.434
B33: Replace 2 Assets | C33: =INDEX(Scen_inputs!$C48:$V48, MATCH($C$12&"_"&ZSS&"_"&LEFT(AssetType,2), Scen_inputs!$C$33:$V$33,0)) -> FALSE | D33: =INDEX(Scen_inputs!$C57:$V57, MATCH($C$12&"_"&ZSS&"_"&LEFT(AssetType,2), Scen_inputs!$C$33:$V$33,0)) -> 0 | E33: 50 | F33: 0 | H33: 0
B34: Replace 3 Assets | C34: =INDEX(Scen_inputs!$C49:$V49, MATCH($C$12&"_"&ZSS&"_"&LEFT(AssetType,2), Scen_inputs!$C$33:$V$33,0)) -> FALSE | D34: =INDEX(Scen_inputs!$C58:$V58, MATCH($C$12&"_"&ZSS&"_"&LEFT(AssetType,2), Scen_inputs!$C$33:$V$33,0)) -> 0 | E34: 50 | F34: 0 | H34: 0
B35: Addiitonal Asset | C35: =INDEX(Scen_inputs!$C50:$V50, MATCH($C$12&"_"&ZSS&"_"&LEFT(AssetType,2), Scen_inputs!$C$33:$V$33,0)) -> FALSE | D35: 0 | E35: 50 | F35: 0 | H35: 0
B36: Enable Load Transfers | C36: =INDEX(Scen_inputs!$C51:$V51, MATCH($C$12&"_"&ZSS&"_"&LEFT(AssetType,2), Scen_inputs!$C$33:$V$33,0)) -> TRUE | D36: 0 | E36: 50 | F36: 0 | H36: 0
B37: Non-Network MW | C37: =INDEX(Scen_inputs!$C52:$V52, MATCH($C$12&"_"&ZSS&"_"&LEFT(AssetType,2), Scen_inputs!$C$33:$V$33,0)) -> 0 | D37: 0 | E37: 50 | F37: 0 | H37: 0
B38: Extended forecast | C38: =INDEX(Scen_inputs!$C53:$V53, MATCH($C$12&"_"&ZSS&"_"&LEFT(AssetType,2), Scen_inputs!$C$33:$V$33,0)) -> FALSE
B40: =B13&C12&": "&ZSS&" - " & AssetType -> Scenario #1: STL - Transformer | C40: Setting | D40: Unit Price | E40: Model Output | F40: 2025 | G40: =F40+1 -> 2026 | H40: =G40+1 -> 2027 | I40: 2028 | J40: 2029 | K40: 2030 | L40: 2031 | M40: 2032 | N40: 2033 | O40: =N40+1 -> 2034 | P40: 2035 | Q40: 2036 | R40: 2037 | S40: 2038 | T40: 2039 | U40: 2040 | V40: 2041 | W40: =V40+1 -> 2042 | X40: 2043 | Y40: 2044 | Z40: 2045 | AA40: 2046 | AB40: 2047 | AC40: 2048 | AD40: 2049 | AE40: 2050 | AF40: 2051 | AG40: 2052 | AH40: 2053 | AI40: 2054 | AJ40: 2055 | AK40: 2056
B41: Spare Available | C41: =ISSPAREREADY -> FALSE | D41: =D25 -> 2000000
B42: Online Monitoring | C42: =ISONLINEMONITOR -> FALSE | D42: =D26 -> 50000 | E42: Energy at Risk (kWh) | F42: =IF(AND(F$40<$E$12,$C$12<>1),0,SUMPRODUCT((Calcs1!$K$4:$K$31)*(Calcs1!$D$4:$D$31=F$40))*Constants!$C$8+SUMPRODUCT((Calcs2!$K$4:$K$31)*(Calcs2!$D$4:$D$31=F$40))*Constants!$C$9) -> 9368.024164 | G42: =IF(AND(G$40<$E$12,$C$12<>1),0,SUMPRODUCT((Calcs1!$K$4:$K$31)*(Calcs1!$D$4:$D$31=G$40))*Constants!$C$8+SUMPRODUCT((Calcs2!$K$4:$K$31)*(Calcs2!$D$4:$D$31=G$40))*Constants!$C$9) -> 13703.65626 | H42: =IF(AND(H$40<$E$12,$C$12<>1),0,SUMPRODUCT((Calcs1!$K$4:$K$31)*(Calcs1!$D$4:$D$31=H$40))*Constants!$C$8+SUMPRODUCT((Calcs2!$K$4:$K$31)*(Calcs2!$D$4:$D$31=H$40))*Constants!$C$9) -> 15099.64091 | I42: =IF(AND(I$40<$E$12,$C$12<>1),0,SUMPRODUCT((Calcs1!$K$4:$K$31)*(Calcs1!$D$4:$D$31=I$40))*Constants!$C$8+SUMPRODUCT((Calcs2!$K$4:$K$31)*(Calcs2!$D$4:$D$31=I$40))*Constants!$C$9) -> 15286.67658 | J42: =IF(AND(J$40<$E$12,$C$12<>1),0,SUMPRODUCT((Calcs1!$K$4:$K$31)*(Calcs1!$D$4:$D$31=J$40))*Constants!$C$8+SUMPRODUCT((Calcs2!$K$4:$K$31)*(Calcs2!$D$4:$D$31=J$40))*Constants!$C$9) -> 15464.18163 | K42: =IF(AND(K$40<$E$12,$C$12<>1),0,SUMPRODUCT((Calcs1!$K$4:$K$31)*(Calcs1!$D$4:$D$31=K$40))*Constants!$C$8+SUMPRODUCT((Calcs2!$K$4:$K$31)*(Calcs2!$D$4:$D$31=K$40))*Constants!$C$9) -> 15543.26142 | L42: =IF(AND(L$40<$E$12,$C$12<>1),0,SUMPRODUCT((Calcs1!$K$4:$K$31)*(Calcs1!$D$4:$D$31=L$40))*Constants!$C$8+SUMPRODUCT((Calcs2!$K$4:$K$31)*(Calcs2!$D$4:$D$31=L$40))*Constants!$C$9) -> 15661.61304 | M42: =IF(AND(M$40<$E$12,$C$12<>1),0,SUMPRODUCT((Calcs1!$K$4:$K$31)*(Calcs1!$D$4:$D$31=M$40))*Constants!$C$8+SUMPRODUCT((Calcs2!$K$4:$K$31)*(Calcs2!$D$4:$D$31=M$40))*Constants!$C$9) -> 15888.73881 | N42: =IF(AND(N$40<$E$12,$C$12<>1),0,SUMPRODUCT((Calcs1!$K$4:$K$31)*(Calcs1!$D$4:$D$31=N$40))*Constants!$C$8+SUMPRODUCT((Calcs2!$K$4:$K$31)*(Calcs2!$D$4:$D$31=N$40))*Constants!$C$9) -> 16177.29856 | O42: =IF(AND(O$40<$E$12,$C$12<>1),0,SUMPRODUCT((Calcs1!$K$4:$K$31)*(Calcs1!$D$4:$D$31=O$40))*Constants!$C$8+SUMPRODUCT((Calcs2!$K$4:$K$31)*(Calcs2!$D$4:$D$31=O$40))*Constants!$C$9) -> 16293.63628 | P42: =IF(AND(P$40<$E$12,$C$12<>1),0,SUMPRODUCT((Calcs1!$K$4:$K$31)*(Calcs1!$D$4:$D$31=P$40))*Constants!$C$8+SUMPRODUCT((Calcs2!$K$4:$K$31)*(Calcs2!$D$4:$D$31=P$40))*Constants!$C$9) -> 16711.57356 | Q42: =IF(AND(Q$40<$E$12,$C$12<>1),0,SUMPRODUCT((Calcs1!$K$4:$K$31)*(Calcs1!$D$4:$D$31=Q$40))*Constants!$C$8+SUMPRODUCT((Calcs2!$K$4:$K$31)*(Calcs2!$D$4:$D$31=Q$40))*Constants!$C$9) -> 17133.95493 | R42: =IF(AND(R$40<$E$12,$C$12<>1),0,SUMPRODUCT((Calcs1!$K$4:$K$31)*(Calcs1!$D$4:$D$31=R$40))*Constants!$C$8+SUMPRODUCT((Calcs2!$K$4:$K$31)*(Calcs2!$D$4:$D$31=R$40))*Constants!$C$9) -> 17560.76477 | S42: =IF(AND(S$40<$E$12,$C$12<>1),0,SUMPRODUCT((Calcs1!$K$4:$K$31)*(Calcs1!$D$4:$D$31=S$40))*Constants!$C$8+SUMPRODUCT((Calcs2!$K$4:$K$31)*(Calcs2!$D$4:$D$31=S$40))*Constants!$C$9) -> 17991.98839 | T42: =IF(AND(T$40<$E$12,$C$12<>1),0,SUMPRODUCT((Calcs1!$K$4:$K$31)*(Calcs1!$D$4:$D$31=T$40))*Constants!$C$8+SUMPRODUCT((Calcs2!$K$4:$K$31)*(Calcs2!$D$4:$D$31=T$40))*Constants!$C$9) -> 18427.61148 | U42: =IF(AND(U$40<$E$12,$C$12<>1),0,SUMPRODUCT((Calcs1!$K$4:$K$31)*(Calcs1!$D$4:$D$31=U$40))*Constants!$C$8+SUMPRODUCT((Calcs2!$K$4:$K$31)*(Calcs2!$D$4:$D$31=U$40))*Constants!$C$9) -> 18867.61941 | V42: =IF(AND(V$40<$E$12,$C$12<>1),0,SUMPRODUCT((Calcs1!$K$4:$K$31)*(Calcs1!$D$4:$D$31=V$40))*Constants!$C$8+SUMPRODUCT((Calcs2!$K$4:$K$31)*(Calcs2!$D$4:$D$31=V$40))*Constants!$C$9) -> 19311.99867 | W42: =IF(AND(W$40<$E$12,$C$12<>1),0,SUMPRODUCT((Calcs1!$K$4:$K$31)*(Calcs1!$D$4:$D$31=W$40))*Constants!$C$8+SUMPRODUCT((Calcs2!$K$4:$K$31)*(Calcs2!$D$4:$D$31=W$40))*Constants!$C$9) -> 19760.73574 | X42: =IF(AND(X$40<$E$12,$C$12<>1),0,SUMPRODUCT((Calcs1!$K$4:$K$31)*(Calcs1!$D$4:$D$31=X$40))*Constants!$C$8+SUMPRODUCT((Calcs2!$K$4:$K$31)*(Calcs2!$D$4:$D$31=X$40))*Constants!$C$9) -> 20213.81754 | Y42: =IF(AND(Y$40<$E$12,$C$12<>1),0,SUMPRODUCT((Calcs1!$K$4:$K$31)*(Calcs1!$D$4:$D$31=Y$40))*Constants!$C$8+SUMPRODUCT((Calcs2!$K$4:$K$31)*(Calcs2!$D$4:$D$31=Y$40))*Constants!$C$9) -> 20671.23097 | Z42: =IF(AND(Z$40<$E$12,$C$12<>1),0,SUMPRODUCT((Calcs1!$K$4:$K$31)*(Calcs1!$D$4:$D$31=Z$40))*Constants!$C$8+SUMPRODUCT((Calcs2!$K$4:$K$31)*(Calcs2!$D$4:$D$31=Z$40))*Constants!$C$9) -> 21132.96352 | AA42: =IF(AND(AA$40<$E$12,$C$12<>1),0,SUMPRODUCT((Calcs1!$K$4:$K$31)*(Calcs1!$D$4:$D$31=AA$40))*Constants!$C$8+SUMPRODUCT((Calcs2!$K$4:$K$31)*(Calcs2!$D$4:$D$31=AA$40))*Constants!$C$9) -> 21599.00289 | AB42: =IF(AND(AB$40<$E$12,$C$12<>1),0,SUMPRODUCT((Calcs1!$K$4:$K$31)*(Calcs1!$D$4:$D$31=AB$40))*Constants!$C$8+SUMPRODUCT((Calcs2!$K$4:$K$31)*(Calcs2!$D$4:$D$31=AB$40))*Constants!$C$9) -> 22069.33734 | AC42: =IF(AND(AC$40<$E$12,$C$12<>1),0,SUMPRODUCT((Calcs1!$K$4:$K$31)*(Calcs1!$D$4:$D$31=AC$40))*Constants!$C$8+SUMPRODUCT((Calcs2!$K$4:$K$31)*(Calcs2!$D$4:$D$31=AC$40))*Constants!$C$9) -> 22543.95479 | AD42: =IF(AND(AD$40<$E$12,$C$12<>1),0,SUMPRODUCT((Calcs1!$K$4:$K$31)*(Calcs1!$D$4:$D$31=AD$40))*Constants!$C$8+SUMPRODUCT((Calcs2!$K$4:$K$31)*(Calcs2!$D$4:$D$31=AD$40))*Constants!$C$9) -> 23022.84391 | AE42: =IF(AND(AE$40<$E$12,$C$12<>1),0,SUMPRODUCT((Calcs1!$K$4:$K$31)*(Calcs1!$D$4:$D$31=AE$40))*Constants!$C$8+SUMPRODUCT((Calcs2!$K$4:$K$31)*(Calcs2!$D$4:$D$31=AE$40))*Constants!$C$9) -> 23505.99339 | AF42: =IF(AND(AF$40<$E$12,$C$12<>1),0,SUMPRODUCT((Calcs1!$K$4:$K$31)*(Calcs1!$D$4:$D$31=AF$40))*Constants!$C$8+SUMPRODUCT((Calcs2!$K$4:$K$31)*(Calcs2!$D$4:$D$31=AF$40))*Constants!$C$9) -> 23993.39252 | AG42: =IF(AND(AG$40<$E$12,$C$12<>1),0,SUMPRODUCT((Calcs1!$K$4:$K$31)*(Calcs1!$D$4:$D$31=AG$40))*Constants!$C$8+SUMPRODUCT((Calcs2!$K$4:$K$31)*(Calcs2!$D$4:$D$31=AG$40))*Constants!$C$9) -> 24485.03056 | AH42: =IF(AND(AH$40<$E$12,$C$12<>1),0,SUMPRODUCT((Calcs1!$K$4:$K$31)*(Calcs1!$D$4:$D$31=AH$40))*Constants!$C$8+SUMPRODUCT((Calcs2!$K$4:$K$31)*(Calcs2!$D$4:$D$31=AH$40))*Constants!$C$9) -> 0 | AI42: =IF(AND(AI$40<$E$12,$C$12<>1),0,SUMPRODUCT((Calcs1!$K$4:$K$31)*(Calcs1!$D$4:$D$31=AI$40))*Constants!$C$8+SUMPRODUCT((Calcs2!$K$4:$K$31)*(Calcs2!$D$4:$D$31=AI$40))*Constants!$C$9) -> 0 | AJ42: =IF(AND(AJ$40<$E$12,$C$12<>1),0,SUMPRODUCT((Calcs1!$K$4:$K$31)*(Calcs1!$D$4:$D$31=AJ$40))*Constants!$C$8+SUMPRODUCT((Calcs2!$K$4:$K$31)*(Calcs2!$D$4:$D$31=AJ$40))*Constants!$C$9) -> 0 | AK42: =IF(AND(AK$40<$E$12,$C$12<>1),0,SUMPRODUCT((Calcs1!$K$4:$K$31)*(Calcs1!$D$4:$D$31=AK$40))*Constants!$C$8+SUMPRODUCT((Calcs2!$K$4:$K$31)*(Calcs2!$D$4:$D$31=AK$40))*Constants!$C$9) -> 0
B43: Physical Separation | C43: =ISSEPARATED -> FALSE | D43: 300000 | E43: Pr (Terminal Failure) | F43: =IF(AND(F$40<$E$12,$C$12<>1),0,VLOOKUP(F$40, Calcs1!$N$2:$AY$26,38,FALSE)) -> 0.00273633916 | G43: =IF(AND(G$40<$E$12,$C$12<>1),0,VLOOKUP(G$40, Calcs1!$N$2:$AY$26,38,FALSE)) -> 0.00281702536 | H43: =IF(AND(H$40<$E$12,$C$12<>1),0,VLOOKUP(H$40, Calcs1!$N$2:$AY$26,38,FALSE)) -> 0.00289867456 | I43: =IF(AND(I$40<$E$12,$C$12<>1),0,VLOOKUP(I$40, Calcs1!$N$2:$AY$26,38,FALSE)) -> 0.002981282 | J43: =IF(AND(J$40<$E$12,$C$12<>1),0,VLOOKUP(J$40, Calcs1!$N$2:$AY$26,38,FALSE)) -> 0.00306484284 | K43: =IF(AND(K$40<$E$12,$C$12<>1),0,VLOOKUP(K$40, Calcs1!$N$2:$AY$26,38,FALSE)) -> 0.00314935248 | L43: =IF(AND(L$40<$E$12,$C$12<>1),0,VLOOKUP(L$40, Calcs1!$N$2:$AY$26,38,FALSE)) -> 0.0032348064 | M43: =IF(AND(M$40<$E$12,$C$12<>1),0,VLOOKUP(M$40, Calcs1!$N$2:$AY$26,38,FALSE)) -> 0.00332120008 | N43: =IF(AND(N$40<$E$12,$C$12<>1),0,VLOOKUP(N$40, Calcs1!$N$2:$AY$26,38,FALSE)) -> 0.00340852924 | O43: =IF(AND(O$40<$E$12,$C$12<>1),0,VLOOKUP(O$40, Calcs1!$N$2:$AY$26,38,FALSE)) -> 0.0034967896 | P43: =IF(AND(P$40<$E$12,$C$12<>1),0,VLOOKUP(P$40, Calcs1!$N$2:$AY$26,38,FALSE)) -> 0.00358597688 | Q43: =IF(AND(Q$40<$E$12,$C$12<>1),0,VLOOKUP(Q$40, Calcs1!$N$2:$AY$26,38,FALSE)) -> 0.00367608708 | R43: =IF(AND(R$40<$E$12,$C$12<>1),0,VLOOKUP(R$40, Calcs1!$N$2:$AY$26,38,FALSE)) -> 0.00376711608 | S43: =IF(AND(S$40<$E$12,$C$12<>1),0,VLOOKUP(S$40, Calcs1!$N$2:$AY$26,38,FALSE)) -> 0.00385905996 | T43: =IF(AND(T$40<$E$12,$C$12<>1),0,VLOOKUP(T$40, Calcs1!$N$2:$AY$26,38,FALSE)) -> 0.00395191488 | U43: =IF(AND(U$40<$E$12,$C$12<>1),0,VLOOKUP(U$40, Calcs1!$N$2:$AY$26,38,FALSE)) -> 0.00404567692 | V43: =IF(AND(V$40<$E$12,$C$12<>1),0,VLOOKUP(V$40, Calcs1!$N$2:$AY$26,38,FALSE)) -> 0.0041403424 | W43: =IF(AND(W$40<$E$12,$C$12<>1),0,VLOOKUP(W$40, Calcs1!$N$2:$AY$26,38,FALSE)) -> 0.00423590764 | X43: =IF(AND(X$40<$E$12,$C$12<>1),0,VLOOKUP(X$40, Calcs1!$N$2:$AY$26,38,FALSE)) -> 0.00433236904 | Y43: =IF(AND(Y$40<$E$12,$C$12<>1),0,VLOOKUP(Y$40, Calcs1!$N$2:$AY$26,38,FALSE)) -> 0.004429723 | Z43: =IF(AND(Z$40<$E$12,$C$12<>1),0,VLOOKUP(Z$40, Calcs1!$N$2:$AY$26,38,FALSE)) -> 0.00452796604 | AA43: =IF(AND(AA$40<$E$12,$C$12<>1),0,VLOOKUP(AA$40, Calcs1!$N$2:$AY$26,38,FALSE)) -> 0.00462709472 | AB43: =IF(AND(AB$40<$E$12,$C$12<>1),0,VLOOKUP(AB$40, Calcs1!$N$2:$AY$26,38,FALSE)) -> 0.00472710572 | AC43: =AB43 -> 0.00472710572 | AD43: =AC43 -> 0.00472710572 | AE43: 0.00472710572 | AF43: 0.00472710572 | AG43: 0.00472710572 | AH43: 0.00472710572 | AI43: 0.00472710572 | AJ43: 0.00472710572 | AK43: 0.00472710572
B44: More Frequent Maintenance | C44: =ISMOREMAINT -> FALSE | D44: 4000 | E44: Pr (Repairable Failure) | F44: =IF(AND(F$40<$E$12,$C$12<>1),0,VLOOKUP(F$40, Calcs1!$N$2:$AY$26,37,FALSE)) -> 0.01094535664 | G44: =IF(AND(G$40<$E$12,$C$12<>1),0,VLOOKUP(G$40, Calcs1!$N$2:$AY$26,37,FALSE)) -> 0.01126810144 | H44: =IF(AND(H$40<$E$12,$C$12<>1),0,VLOOKUP(H$40, Calcs1!$N$2:$AY$26,37,FALSE)) -> 0.01159469824 | I44: =IF(AND(I$40<$E$12,$C$12<>1),0,VLOOKUP(I$40, Calcs1!$N$2:$AY$26,37,FALSE)) -> 0.011925128 | J44: =IF(AND(J$40<$E$12,$C$12<>1),0,VLOOKUP(J$40, Calcs1!$N$2:$AY$26,37,FALSE)) -> 0.01225937136 | K44: =IF(AND(K$40<$E$12,$C$12<>1),0,VLOOKUP(K$40, Calcs1!$N$2:$AY$26,37,FALSE)) -> 0.01259740992 | L44: =IF(AND(L$40<$E$12,$C$12<>1),0,VLOOKUP(L$40, Calcs1!$N$2:$AY$26,37,FALSE)) -> 0.0129392256 | M44: =IF(AND(M$40<$E$12,$C$12<>1),0,VLOOKUP(M$40, Calcs1!$N$2:$AY$26,37,FALSE)) -> 0.01328480032 | N44: =IF(AND(N$40<$E$12,$C$12<>1),0,VLOOKUP(N$40, Calcs1!$N$2:$AY$26,37,FALSE)) -> 0.01363411696 | O44: =IF(AND(O$40<$E$12,$C$12<>1),0,VLOOKUP(O$40, Calcs1!$N$2:$AY$26,37,FALSE)) -> 0.0139871584 | P44: =IF(AND(P$40<$E$12,$C$12<>1),0,VLOOKUP(P$40, Calcs1!$N$2:$AY$26,37,FALSE)) -> 0.01434390752 | Q44: =IF(AND(Q$40<$E$12,$C$12<>1),0,VLOOKUP(Q$40, Calcs1!$N$2:$AY$26,37,FALSE)) -> 0.01470434832 | R44: =IF(AND(R$40<$E$12,$C$12<>1),0,VLOOKUP(R$40, Calcs1!$N$2:$AY$26,37,FALSE)) -> 0.01506846432 | S44: =IF(AND(S$40<$E$12,$C$12<>1),0,VLOOKUP(S$40, Calcs1!$N$2:$AY$26,37,FALSE)) -> 0.01543623984 | T44: =IF(AND(T$40<$E$12,$C$12<>1),0,VLOOKUP(T$40, Calcs1!$N$2:$AY$26,37,FALSE)) -> 0.01580765952 | U44: =IF(AND(U$40<$E$12,$C$12<>1),0,VLOOKUP(U$40, Calcs1!$N$2:$AY$26,37,FALSE)) -> 0.01618270768 | V44: =IF(AND(V$40<$E$12,$C$12<>1),0,VLOOKUP(V$40, Calcs1!$N$2:$AY$26,37,FALSE)) -> 0.0165613696 | W44: =IF(AND(W$40<$E$12,$C$12<>1),0,VLOOKUP(W$40, Calcs1!$N$2:$AY$26,37,FALSE)) -> 0.01694363056 | X44: =IF(AND(X$40<$E$12,$C$12<>1),0,VLOOKUP(X$40, Calcs1!$N$2:$AY$26,37,FALSE)) -> 0.01732947616 | Y44: =IF(AND(Y$40<$E$12,$C$12<>1),0,VLOOKUP(Y$40, Calcs1!$N$2:$AY$26,37,FALSE)) -> 0.017718892 | Z44: =IF(AND(Z$40<$E$12,$C$12<>1),0,VLOOKUP(Z$40, Calcs1!$N$2:$AY$26,37,FALSE)) -> 0.01811186416 | AA44: =IF(AND(AA$40<$E$12,$C$12<>1),0,VLOOKUP(AA$40, Calcs1!$N$2:$AY$26,37,FALSE)) -> 0.01850837888 | AB44: =IF(AND(AB$40<$E$12,$C$12<>1),0,VLOOKUP(AB$40, Calcs1!$N$2:$AY$26,37,FALSE)) -> 0.01890842288 | AC44: =AB44 -> 0.01890842288 | AD44: =AC44 -> 0.01890842288 | AE44: 0.01890842288 | AF44: 0.01890842288 | AG44: 0.01890842288 | AH44: 0.01890842288 | AI44: 0.01890842288 | AJ44: 0.01890842288 | AK44: 0.01890842288
B45: Staggered Maintenance | C45: =ISSTAGGEREDMAINT -> FALSE | D45: 650
B46: Bunded | C46: =ISBUNDED -> FALSE | D46: 300000 | E46: Energy at Risk ($, Weighted) | F46: =F42*VCR -> 313092.6755 | G46: 457995.6592 | H46: 504651.4492 | I46: 510902.4472 | J46: 516834.9181 | K46: 519477.8771 | L46: 523433.3561 | M46: 531024.222 | N46: 540668.299 | O46: 544556.4709 | P46: 558524.5283 | Q46: 572641.1139 | R46: 586905.705 | S46: 601317.8108 | T46: 615876.9536 | U46: 630582.6437 | V46: 645434.4295 | W46: 660431.8601 | X46: 675574.4974 | Y46: 690861.9041 | Z46: 706293.6619 | AA46: 721869.3595 | AB46: 737588.605 | AC46: 753450.9943 | AD46: 769456.1491 | AE46: 785603.6912 | AF46: 801893.2623 | AG46: 818324.5041 | AH46: 0 | AI46: 0 | AJ46: 0 | AK46: 0
B47: Refurbish Assets | C47: =ISREFURB -> FALSE | D47: 639520.0938 | E47: Safety Risk | F47: =(F43+F44)*(VSL*DF_PUBLIC*POC_PUBLIC+VSL*DF_STAFF*POC_STAFF+VLTI*DF_STAFF*POC_LTI) -> 494.7562682 | G47: =(G43+G44)*(VSL*DF_PUBLIC*POC_PUBLIC+VSL*DF_STAFF*POC_STAFF+VLTI*DF_STAFF*POC_LTI) -> 509.3451042 | H47: =(H43+H44)*(VSL*DF_PUBLIC*POC_PUBLIC+VSL*DF_STAFF*POC_STAFF+VLTI*DF_STAFF*POC_LTI) -> 524.1080597 | I47: 539.0442743 | J47: 554.1528727 | K47: 569.4330231 | L47: 584.8839084 | M47: 600.5047114 | N47: 616.294658 | O47: 632.2529745 | P47: 648.378887 | Q47: 664.6716722 | R47: 681.1305853 | S47: 697.7549174 | T47: 714.5439742 | U47: 731.497047 | V47: 748.6134704 | W47: 765.892579 | X47: 783.3337219 | Y47: 800.9362482 | Z47: 818.6995286 | AA47: 836.6229412 | AB47: 854.7058857 | AC47: 854.7058857 | AD47: 854.7058857 | AE47: 854.7058857 | AF47: 854.7058857 | AG47: 854.7058857 | AH47: 854.7058857 | AI47: 854.7058857 | AJ47: 854.7058857 | AK47: 854.7058857
B48: Replace 1 Asset | C48: =C32 -> FALSE | D48: 6321874 | E48: Unplanned Replacement Risk | F48: =$E$14*F43 -> 20758.54967 | G48: =$E$14*G43 -> 21370.65526 | H48: =$E$14*H43 -> 21990.0664 | I48: 22616.74699 | J48: 23250.66032 | K48: 23891.77147 | L48: 24540.04617 | M48: 25195.45012 | N48: 25857.95086 | O48: 26527.51591 | P48: 27204.1128 | Q48: 27887.7112 | R48: 28578.27984 | S48: 29275.78899 | T48: 29980.20952 | U48: 30691.51168 | V48: 31409.66756 | W48: 32134.64925 | X48: 32866.42943 | Y48: 33604.98079 | Z48: 34350.27694 | AA48: 35102.29177 | AB48: 35861.0001 | AC48: 35861.0001 | AD48: 35861.0001 | AE48: 35861.0001 | AF48: 35861.0001 | AG48: 35861.0001 | AH48: 35861.0001 | AI48: 35861.0001 | AJ48: 35861.0001 | AK48: 35861.0001
B49: Replace 2 Assets | C49: =C33 -> FALSE | D49: 0 | E49: Unplanned Fault Risk | F49: =F44*$E$15 -> 1795.038489 | G49: =G44*$E$15 -> 1847.968636 | H49: =H44*$E$15 -> 1901.530511 | I49: 1955.720992 | J49: 2010.536903 | K49: 2065.975227 | L49: 2122.032998 | M49: 2178.707252 | N49: 2235.995181 | O49: 2293.893978 | P49: 2352.400833 | Q49: 2411.513124 | R49: 2471.228148 | S49: 2531.543334 | T49: 2592.456161 | U49: 2653.96406 | V49: 2716.064614 | W49: 2778.755412 | X49: 2842.03409 | Y49: 2905.898288 | Z49: 2970.345722 | AA49: 3035.374136 | AB49: 3100.981352 | AC49: 3100.981352 | AD49: 3100.981352 | AE49: 3100.981352 | AF49: 3100.981352 | AG49: 3100.981352 | AH49: 3100.981352 | AI49: 3100.981352 | AJ49: 3100.981352 | AK49: 3100.981352
B50: Replace 3 Assets | C50: =ISREPLACETHREE -> FALSE | D50: 0 | E50: Unplanned Enviromental Risk | F50: =SUMIFS(Constants!$G$37:$G$238,Constants!$A$37:$A$238,ZSS,Constants!$K$37:$K$238,">="&F40,Constants!$D$37:$D$238,"<>"&9999) -> 116325 | G50: =SUMIFS(Constants!$G$37:$G$238,Constants!$A$37:$A$238,ZSS,Constants!$K$37:$K$238,">="&G40,Constants!$D$37:$D$238,"<>"&9999) -> 116325 | H50: =SUMIFS(Constants!$G$37:$G$238,Constants!$A$37:$A$238,ZSS,Constants!$K$37:$K$238,">="&H40,Constants!$D$37:$D$238,"<>"&9999) -> 116325 | I50: =SUMIFS(Constants!$G$37:$G$238,Constants!$A$37:$A$238,ZSS,Constants!$K$37:$K$238,">="&I40,Constants!$D$37:$D$238,"<>"&9999) -> 116325 | J50: =SUMIFS(Constants!$G$37:$G$238,Constants!$A$37:$A$238,ZSS,Constants!$K$37:$K$238,">="&J40,Constants!$D$37:$D$238,"<>"&9999) -> 116325 | K50: =SUMIFS(Constants!$G$37:$G$238,Constants!$A$37:$A$238,ZSS,Constants!$K$37:$K$238,">="&K40,Constants!$D$37:$D$238,"<>"&9999) -> 116325 | L50: =SUMIFS(Constants!$G$37:$G$238,Constants!$A$37:$A$238,ZSS,Constants!$K$37:$K$238,">="&L40,Constants!$D$37:$D$238,"<>"&9999) -> 116325 | M50: =SUMIFS(Constants!$G$37:$G$238,Constants!$A$37:$A$238,ZSS,Constants!$K$37:$K$238,">="&M40,Constants!$D$37:$D$238,"<>"&9999) -> 116325 | N50: =SUMIFS(Constants!$G$37:$G$238,Constants!$A$37:$A$238,ZSS,Constants!$K$37:$K$238,">="&N40,Constants!$D$37:$D$238,"<>"&9999) -> 116325 | O50: =SUMIFS(Constants!$G$37:$G$238,Constants!$A$37:$A$238,ZSS,Constants!$K$37:$K$238,">="&O40,Constants!$D$37:$D$238,"<>"&9999) -> 116325 | P50: =SUMIFS(Constants!$G$37:$G$238,Constants!$A$37:$A$238,ZSS,Constants!$K$37:$K$238,">="&P40,Constants!$D$37:$D$238,"<>"&9999) -> 116325 | Q50: =SUMIFS(Constants!$G$37:$G$238,Constants!$A$37:$A$238,ZSS,Constants!$K$37:$K$238,">="&Q40,Constants!$D$37:$D$238,"<>"&9999) -> 116325 | R50: =SUMIFS(Constants!$G$37:$G$238,Constants!$A$37:$A$238,ZSS,Constants!$K$37:$K$238,">="&R40,Constants!$D$37:$D$238,"<>"&9999) -> 116325 | S50: =SUMIFS(Constants!$G$37:$G$238,Constants!$A$37:$A$238,ZSS,Constants!$K$37:$K$238,">="&S40,Constants!$D$37:$D$238,"<>"&9999) -> 116325 | T50: =SUMIFS(Constants!$G$37:$G$238,Constants!$A$37:$A$238,ZSS,Constants!$K$37:$K$238,">="&T40,Constants!$D$37:$D$238,"<>"&9999) -> 116325 | U50: =SUMIFS(Constants!$G$37:$G$238,Constants!$A$37:$A$238,ZSS,Constants!$K$37:$K$238,">="&U40,Constants!$D$37:$D$238,"<>"&9999) -> 116325 | V50: =SUMIFS(Constants!$G$37:$G$238,Constants!$A$37:$A$238,ZSS,Constants!$K$37:$K$238,">="&V40,Constants!$D$37:$D$238,"<>"&9999) -> 116325 | W50: =SUMIFS(Constants!$G$37:$G$238,Constants!$A$37:$A$238,ZSS,Constants!$K$37:$K$238,">="&W40,Constants!$D$37:$D$238,"<>"&9999) -> 116325 | X50: =SUMIFS(Constants!$G$37:$G$238,Constants!$A$37:$A$238,ZSS,Constants!$K$37:$K$238,">="&X40,Constants!$D$37:$D$238,"<>"&9999) -> 116325 | Y50: =SUMIFS(Constants!$G$37:$G$238,Constants!$A$37:$A$238,ZSS,Constants!$K$37:$K$238,">="&Y40,Constants!$D$37:$D$238,"<>"&9999) -> 116325 | Z50: =SUMIFS(Constants!$G$37:$G$238,Constants!$A$37:$A$238,ZSS,Constants!$K$37:$K$238,">="&Z40,Constants!$D$37:$D$238,"<>"&9999) -> 116325 | AA50: =SUMIFS(Constants!$G$37:$G$238,Constants!$A$37:$A$238,ZSS,Constants!$K$37:$K$238,">="&AA40,Constants!$D$37:$D$238,"<>"&9999) -> 116325 | AB50: =SUMIFS(Constants!$G$37:$G$238,Constants!$A$37:$A$238,ZSS,Constants!$K$37:$K$238,">="&AB40,Constants!$D$37:$D$238,"<>"&9999) -> 116325 | AC50: =SUMIFS(Constants!$G$37:$G$238,Constants!$A$37:$A$238,ZSS,Constants!$K$37:$K$238,">="&AC40,Constants!$D$37:$D$238,"<>"&9999) -> 116325 | AD50: =SUMIFS(Constants!$G$37:$G$238,Constants!$A$37:$A$238,ZSS,Constants!$K$37:$K$238,">="&AD40,Constants!$D$37:$D$238,"<>"&9999) -> 116325 | AE50: =SUMIFS(Constants!$G$37:$G$238,Constants!$A$37:$A$238,ZSS,Constants!$K$37:$K$238,">="&AE40,Constants!$D$37:$D$238,"<>"&9999) -> 116325 | AF50: =SUMIFS(Constants!$G$37:$G$238,Constants!$A$37:$A$238,ZSS,Constants!$K$37:$K$238,">="&AF40,Constants!$D$37:$D$238,"<>"&9999) -> 116325 | AG50: =SUMIFS(Constants!$G$37:$G$238,Constants!$A$37:$A$238,ZSS,Constants!$K$37:$K$238,">="&AG40,Constants!$D$37:$D$238,"<>"&9999) -> 116325 | AH50: =SUMIFS(Constants!$G$37:$G$238,Constants!$A$37:$A$238,ZSS,Constants!$K$37:$K$238,">="&AH40,Constants!$D$37:$D$238,"<>"&9999) -> 116325 | AI50: =SUMIFS(Constants!$G$37:$G$238,Constants!$A$37:$A$238,ZSS,Constants!$K$37:$K$238,">="&AI40,Constants!$D$37:$D$238,"<>"&9999) -> 116325 | AJ50: =SUMIFS(Constants!$G$37:$G$238,Constants!$A$37:$A$238,ZSS,Constants!$K$37:$K$238,">="&AJ40,Constants!$D$37:$D$238,"<>"&9999) -> 116325 | AK50: =SUMIFS(Constants!$G$37:$G$238,Constants!$A$37:$A$238,ZSS,Constants!$K$37:$K$238,">="&AK40,Constants!$D$37:$D$238,"<>"&9999) -> 116325
B51: Addiitonal Asset | C51: =IS_ADDITIONAL -> FALSE | D51: 0 | E51: Unplanned Fire Risk | F51: =SUMIFS(Constants!$I$37:$I$238,Constants!$A$37:$A$238,ZSS,Constants!$K$37:$K$238,9999,Constants!$D$37:$D$238,"<>"&9999) -> 0 | G51: =SUMIFS(Constants!$I$37:$I$238,Constants!$A$37:$A$238,ZSS,Constants!$K$37:$K$238,9999,Constants!$D$37:$D$238,"<>"&9999) -> 0 | H51: =SUMIFS(Constants!$I$37:$I$238,Constants!$A$37:$A$238,ZSS,Constants!$K$37:$K$238,9999,Constants!$D$37:$D$238,"<>"&9999) -> 0 | I51: =SUMIFS(Constants!$I$37:$I$238,Constants!$A$37:$A$238,ZSS,Constants!$K$37:$K$238,9999,Constants!$D$37:$D$238,"<>"&9999) -> 0 | J51: =SUMIFS(Constants!$I$37:$I$238,Constants!$A$37:$A$238,ZSS,Constants!$K$37:$K$238,9999,Constants!$D$37:$D$238,"<>"&9999) -> 0 | K51: =SUMIFS(Constants!$I$37:$I$238,Constants!$A$37:$A$238,ZSS,Constants!$K$37:$K$238,9999,Constants!$D$37:$D$238,"<>"&9999) -> 0 | L51: =SUMIFS(Constants!$I$37:$I$238,Constants!$A$37:$A$238,ZSS,Constants!$K$37:$K$238,9999,Constants!$D$37:$D$238,"<>"&9999) -> 0 | M51: =SUMIFS(Constants!$I$37:$I$238,Constants!$A$37:$A$238,ZSS,Constants!$K$37:$K$238,9999,Constants!$D$37:$D$238,"<>"&9999) -> 0 | N51: =SUMIFS(Constants!$I$37:$I$238,Constants!$A$37:$A$238,ZSS,Constants!$K$37:$K$238,9999,Constants!$D$37:$D$238,"<>"&9999) -> 0 | O51: =SUMIFS(Constants!$I$37:$I$238,Constants!$A$37:$A$238,ZSS,Constants!$K$37:$K$238,9999,Constants!$D$37:$D$238,"<>"&9999) -> 0 | P51: =SUMIFS(Constants!$I$37:$I$238,Constants!$A$37:$A$238,ZSS,Constants!$K$37:$K$238,9999,Constants!$D$37:$D$238,"<>"&9999) -> 0 | Q51: =SUMIFS(Constants!$I$37:$I$238,Constants!$A$37:$A$238,ZSS,Constants!$K$37:$K$238,9999,Constants!$D$37:$D$238,"<>"&9999) -> 0 | R51: =SUMIFS(Constants!$I$37:$I$238,Constants!$A$37:$A$238,ZSS,Constants!$K$37:$K$238,9999,Constants!$D$37:$D$238,"<>"&9999) -> 0 | S51: =SUMIFS(Constants!$I$37:$I$238,Constants!$A$37:$A$238,ZSS,Constants!$K$37:$K$238,9999,Constants!$D$37:$D$238,"<>"&9999) -> 0 | T51: =SUMIFS(Constants!$I$37:$I$238,Constants!$A$37:$A$238,ZSS,Constants!$K$37:$K$238,9999,Constants!$D$37:$D$238,"<>"&9999) -> 0 | U51: =SUMIFS(Constants!$I$37:$I$238,Constants!$A$37:$A$238,ZSS,Constants!$K$37:$K$238,9999,Constants!$D$37:$D$238,"<>"&9999) -> 0 | V51: =SUMIFS(Constants!$I$37:$I$238,Constants!$A$37:$A$238,ZSS,Constants!$K$37:$K$238,9999,Constants!$D$37:$D$238,"<>"&9999) -> 0 | W51: =SUMIFS(Constants!$I$37:$I$238,Constants!$A$37:$A$238,ZSS,Constants!$K$37:$K$238,9999,Constants!$D$37:$D$238,"<>"&9999) -> 0 | X51: =SUMIFS(Constants!$I$37:$I$238,Constants!$A$37:$A$238,ZSS,Constants!$K$37:$K$238,9999,Constants!$D$37:$D$238,"<>"&9999) -> 0 | Y51: =SUMIFS(Constants!$I$37:$I$238,Constants!$A$37:$A$238,ZSS,Constants!$K$37:$K$238,9999,Constants!$D$37:$D$238,"<>"&9999) -> 0 | Z51: =SUMIFS(Constants!$I$37:$I$238,Constants!$A$37:$A$238,ZSS,Constants!$K$37:$K$238,9999,Constants!$D$37:$D$238,"<>"&9999) -> 0 | AA51: =SUMIFS(Constants!$I$37:$I$238,Constants!$A$37:$A$238,ZSS,Constants!$K$37:$K$238,9999,Constants!$D$37:$D$238,"<>"&9999) -> 0 | AB51: =SUMIFS(Constants!$I$37:$I$238,Constants!$A$37:$A$238,ZSS,Constants!$K$37:$K$238,9999,Constants!$D$37:$D$238,"<>"&9999) -> 0 | AC51: =SUMIFS(Constants!$I$37:$I$238,Constants!$A$37:$A$238,ZSS,Constants!$K$37:$K$238,9999,Constants!$D$37:$D$238,"<>"&9999) -> 0 | AD51: =SUMIFS(Constants!$I$37:$I$238,Constants!$A$37:$A$238,ZSS,Constants!$K$37:$K$238,9999,Constants!$D$37:$D$238,"<>"&9999) -> 0 | AE51: =SUMIFS(Constants!$I$37:$I$238,Constants!$A$37:$A$238,ZSS,Constants!$K$37:$K$238,9999,Constants!$D$37:$D$238,"<>"&9999) -> 0 | AF51: =SUMIFS(Constants!$I$37:$I$238,Constants!$A$37:$A$238,ZSS,Constants!$K$37:$K$238,9999,Constants!$D$37:$D$238,"<>"&9999) -> 0 | AG51: =SUMIFS(Constants!$I$37:$I$238,Constants!$A$37:$A$238,ZSS,Constants!$K$37:$K$238,9999,Constants!$D$37:$D$238,"<>"&9999) -> 0 | AH51: =SUMIFS(Constants!$I$37:$I$238,Constants!$A$37:$A$238,ZSS,Constants!$K$37:$K$238,9999,Constants!$D$37:$D$238,"<>"&9999) -> 0 | AI51: =SUMIFS(Constants!$I$37:$I$238,Constants!$A$37:$A$238,ZSS,Constants!$K$37:$K$238,9999,Constants!$D$37:$D$238,"<>"&9999) -> 0 | AJ51: =SUMIFS(Constants!$I$37:$I$238,Constants!$A$37:$A$238,ZSS,Constants!$K$37:$K$238,9999,Constants!$D$37:$D$238,"<>"&9999) -> 0 | AK51: =SUMIFS(Constants!$I$37:$I$238,Constants!$A$37:$A$238,ZSS,Constants!$K$37:$K$238,9999,Constants!$D$37:$D$238,"<>"&9999) -> 0
B52: Load Transfers | C52: =C36 -> TRUE | D52: 0 | E52: Other | F52: =SUMIFS(Constants!$H$37:$H$238,Constants!$A$37:$A$238,ZSS,Constants!$K$37:$K$238,9999,Constants!$D$37:$D$238,"<>"&9999) -> 0 | G52: =SUMIFS(Constants!$H$37:$H$238,Constants!$A$37:$A$238,ZSS,Constants!$K$37:$K$238,9999,Constants!$D$37:$D$238,"<>"&9999) -> 0 | H52: =SUMIFS(Constants!$H$37:$H$238,Constants!$A$37:$A$238,ZSS,Constants!$K$37:$K$238,9999,Constants!$D$37:$D$238,"<>"&9999) -> 0 | I52: =SUMIFS(Constants!$H$37:$H$238,Constants!$A$37:$A$238,ZSS,Constants!$K$37:$K$238,9999,Constants!$D$37:$D$238,"<>"&9999) -> 0 | J52: =SUMIFS(Constants!$H$37:$H$238,Constants!$A$37:$A$238,ZSS,Constants!$K$37:$K$238,9999,Constants!$D$37:$D$238,"<>"&9999) -> 0 | K52: =SUMIFS(Constants!$H$37:$H$238,Constants!$A$37:$A$238,ZSS,Constants!$K$37:$K$238,9999,Constants!$D$37:$D$238,"<>"&9999) -> 0 | L52: =SUMIFS(Constants!$H$37:$H$238,Constants!$A$37:$A$238,ZSS,Constants!$K$37:$K$238,9999,Constants!$D$37:$D$238,"<>"&9999) -> 0 | M52: =SUMIFS(Constants!$H$37:$H$238,Constants!$A$37:$A$238,ZSS,Constants!$K$37:$K$238,9999,Constants!$D$37:$D$238,"<>"&9999) -> 0 | N52: =SUMIFS(Constants!$H$37:$H$238,Constants!$A$37:$A$238,ZSS,Constants!$K$37:$K$238,9999,Constants!$D$37:$D$238,"<>"&9999) -> 0 | O52: =SUMIFS(Constants!$H$37:$H$238,Constants!$A$37:$A$238,ZSS,Constants!$K$37:$K$238,9999,Constants!$D$37:$D$238,"<>"&9999) -> 0 | P52: =SUMIFS(Constants!$H$37:$H$238,Constants!$A$37:$A$238,ZSS,Constants!$K$37:$K$238,9999,Constants!$D$37:$D$238,"<>"&9999) -> 0 | Q52: =SUMIFS(Constants!$H$37:$H$238,Constants!$A$37:$A$238,ZSS,Constants!$K$37:$K$238,9999,Constants!$D$37:$D$238,"<>"&9999) -> 0 | R52: =SUMIFS(Constants!$H$37:$H$238,Constants!$A$37:$A$238,ZSS,Constants!$K$37:$K$238,9999,Constants!$D$37:$D$238,"<>"&9999) -> 0 | S52: =SUMIFS(Constants!$H$37:$H$238,Constants!$A$37:$A$238,ZSS,Constants!$K$37:$K$238,9999,Constants!$D$37:$D$238,"<>"&9999) -> 0 | T52: =SUMIFS(Constants!$H$37:$H$238,Constants!$A$37:$A$238,ZSS,Constants!$K$37:$K$238,9999,Constants!$D$37:$D$238,"<>"&9999) -> 0 | U52: =SUMIFS(Constants!$H$37:$H$238,Constants!$A$37:$A$238,ZSS,Constants!$K$37:$K$238,9999,Constants!$D$37:$D$238,"<>"&9999) -> 0 | V52: =SUMIFS(Constants!$H$37:$H$238,Constants!$A$37:$A$238,ZSS,Constants!$K$37:$K$238,9999,Constants!$D$37:$D$238,"<>"&9999) -> 0 | W52: =SUMIFS(Constants!$H$37:$H$238,Constants!$A$37:$A$238,ZSS,Constants!$K$37:$K$238,9999,Constants!$D$37:$D$238,"<>"&9999) -> 0 | X52: =SUMIFS(Constants!$H$37:$H$238,Constants!$A$37:$A$238,ZSS,Constants!$K$37:$K$238,9999,Constants!$D$37:$D$238,"<>"&9999) -> 0 | Y52: =SUMIFS(Constants!$H$37:$H$238,Constants!$A$37:$A$238,ZSS,Constants!$K$37:$K$238,9999,Constants!$D$37:$D$238,"<>"&9999) -> 0 | Z52: =SUMIFS(Constants!$H$37:$H$238,Constants!$A$37:$A$238,ZSS,Constants!$K$37:$K$238,9999,Constants!$D$37:$D$238,"<>"&9999) -> 0 | AA52: =SUMIFS(Constants!$H$37:$H$238,Constants!$A$37:$A$238,ZSS,Constants!$K$37:$K$238,9999,Constants!$D$37:$D$238,"<>"&9999) -> 0 | AB52: =SUMIFS(Constants!$H$37:$H$238,Constants!$A$37:$A$238,ZSS,Constants!$K$37:$K$238,9999,Constants!$D$37:$D$238,"<>"&9999) -> 0 | AC52: =SUMIFS(Constants!$H$37:$H$238,Constants!$A$37:$A$238,ZSS,Constants!$K$37:$K$238,9999,Constants!$D$37:$D$238,"<>"&9999) -> 0 | AD52: =SUMIFS(Constants!$H$37:$H$238,Constants!$A$37:$A$238,ZSS,Constants!$K$37:$K$238,9999,Constants!$D$37:$D$238,"<>"&9999) -> 0 | AE52: =SUMIFS(Constants!$H$37:$H$238,Constants!$A$37:$A$238,ZSS,Constants!$K$37:$K$238,9999,Constants!$D$37:$D$238,"<>"&9999) -> 0 | AF52: =SUMIFS(Constants!$H$37:$H$238,Constants!$A$37:$A$238,ZSS,Constants!$K$37:$K$238,9999,Constants!$D$37:$D$238,"<>"&9999) -> 0 | AG52: =SUMIFS(Constants!$H$37:$H$238,Constants!$A$37:$A$238,ZSS,Constants!$K$37:$K$238,9999,Constants!$D$37:$D$238,"<>"&9999) -> 0 | AH52: =SUMIFS(Constants!$H$37:$H$238,Constants!$A$37:$A$238,ZSS,Constants!$K$37:$K$238,9999,Constants!$D$37:$D$238,"<>"&9999) -> 0 | AI52: =SUMIFS(Constants!$H$37:$H$238,Constants!$A$37:$A$238,ZSS,Constants!$K$37:$K$238,9999,Constants!$D$37:$D$238,"<>"&9999) -> 0 | AJ52: =SUMIFS(Constants!$H$37:$H$238,Constants!$A$37:$A$238,ZSS,Constants!$K$37:$K$238,9999,Constants!$D$37:$D$238,"<>"&9999) -> 0 | AK52: =SUMIFS(Constants!$H$37:$H$238,Constants!$A$37:$A$238,ZSS,Constants!$K$37:$K$238,9999,Constants!$D$37:$D$238,"<>"&9999) -> 0
B53: Non-Network MW | C53: =NN_LOAD_TRANSFER -> 0 | D53: 0 | E53: Option Capital Cost | F53: =IF(F40>=$E$12,IF(Constants!$F$28=TRUE,SUMIFS($H$24:$H$37,$C$24:$C$37,TRUE),SUMIFS($F$24:$F$37,$C$24:$C$37,TRUE)),0) -> 0 | G53: =IF(G40>=$E$12,IF(Constants!$F$28=TRUE,SUMIFS($H$24:$H$37,$C$24:$C$37,TRUE),SUMIFS($F$24:$F$37,$C$24:$C$37,TRUE)),0) -> 0 | H53: =IF(H40>=$E$12,IF(Constants!$F$28=TRUE,SUMIFS($H$24:$H$37,$C$24:$C$37,TRUE),SUMIFS($F$24:$F$37,$C$24:$C$37,TRUE)),0) -> 0 | I53: =IF(I40>=$E$12,IF(Constants!$F$28=TRUE,SUMIFS($H$24:$H$37,$C$24:$C$37,TRUE),SUMIFS($F$24:$F$37,$C$24:$C$37,TRUE)),0) -> 0 | J53: =IF(J40>=$E$12,IF(Constants!$F$28=TRUE,SUMIFS($H$24:$H$37,$C$24:$C$37,TRUE),SUMIFS($F$24:$F$37,$C$24:$C$37,TRUE)),0) -> 0 | K53: =IF(K40>=$E$12,IF(Constants!$F$28=TRUE,SUMIFS($H$24:$H$37,$C$24:$C$37,TRUE),SUMIFS($F$24:$F$37,$C$24:$C$37,TRUE)),0) -> 0 | L53: =IF(L40>=$E$12,IF(Constants!$F$28=TRUE,SUMIFS($H$24:$H$37,$C$24:$C$37,TRUE),SUMIFS($F$24:$F$37,$C$24:$C$37,TRUE)),0) -> 0 | M53: =IF(M40>=$E$12,IF(Constants!$F$28=TRUE,SUMIFS($H$24:$H$37,$C$24:$C$37,TRUE),SUMIFS($F$24:$F$37,$C$24:$C$37,TRUE)),0) -> 0 | N53: =IF(N40>=$E$12,IF(Constants!$F$28=TRUE,SUMIFS($H$24:$H$37,$C$24:$C$37,TRUE),SUMIFS($F$24:$F$37,$C$24:$C$37,TRUE)),0) -> 0 | O53: =IF(O40>=$E$12,IF(Constants!$F$28=TRUE,SUMIFS($H$24:$H$37,$C$24:$C$37,TRUE),SUMIFS($F$24:$F$37,$C$24:$C$37,TRUE)),0) -> 0 | P53: =IF(P40>=$E$12,IF(Constants!$F$28=TRUE,SUMIFS($H$24:$H$37,$C$24:$C$37,TRUE),SUMIFS($F$24:$F$37,$C$24:$C$37,TRUE)),0) -> 0 | Q53: =IF(Q40>=$E$12,IF(Constants!$F$28=TRUE,SUMIFS($H$24:$H$37,$C$24:$C$37,TRUE),SUMIFS($F$24:$F$37,$C$24:$C$37,TRUE)),0) -> 0 | R53: =IF(R40>=$E$12,IF(Constants!$F$28=TRUE,SUMIFS($H$24:$H$37,$C$24:$C$37,TRUE),SUMIFS($F$24:$F$37,$C$24:$C$37,TRUE)),0) -> 0 | S53: =IF(S40>=$E$12,IF(Constants!$F$28=TRUE,SUMIFS($H$24:$H$37,$C$24:$C$37,TRUE),SUMIFS($F$24:$F$37,$C$24:$C$37,TRUE)),0) -> 0 | T53: =IF(T40>=$E$12,IF(Constants!$F$28=TRUE,SUMIFS($H$24:$H$37,$C$24:$C$37,TRUE),SUMIFS($F$24:$F$37,$C$24:$C$37,TRUE)),0) -> 0 | U53: =IF(U40>=$E$12,IF(Constants!$F$28=TRUE,SUMIFS($H$24:$H$37,$C$24:$C$37,TRUE),SUMIFS($F$24:$F$37,$C$24:$C$37,TRUE)),0) -> 0 | V53: =IF(V40>=$E$12,IF(Constants!$F$28=TRUE,SUMIFS($H$24:$H$37,$C$24:$C$37,TRUE),SUMIFS($F$24:$F$37,$C$24:$C$37,TRUE)),0) -> 0 | W53: =IF(W40>=$E$12,IF(Constants!$F$28=TRUE,SUMIFS($H$24:$H$37,$C$24:$C$37,TRUE),SUMIFS($F$24:$F$37,$C$24:$C$37,TRUE)),0) -> 0 | X53: =IF(X40>=$E$12,IF(Constants!$F$28=TRUE,SUMIFS($H$24:$H$37,$C$24:$C$37,TRUE),SUMIFS($F$24:$F$37,$C$24:$C$37,TRUE)),0) -> 0 | Y53: =IF(Y40>=$E$12,IF(Constants!$F$28=TRUE,SUMIFS($H$24:$H$37,$C$24:$C$37,TRUE),SUMIFS($F$24:$F$37,$C$24:$C$37,TRUE)),0) -> 0 | Z53: =IF(Z40>=$E$12,IF(Constants!$F$28=TRUE,SUMIFS($H$24:$H$37,$C$24:$C$37,TRUE),SUMIFS($F$24:$F$37,$C$24:$C$37,TRUE)),0) -> 0 | AA53: =IF(AA40>=$E$12,IF(Constants!$F$28=TRUE,SUMIFS($H$24:$H$37,$C$24:$C$37,TRUE),SUMIFS($F$24:$F$37,$C$24:$C$37,TRUE)),0) -> 0 | AB53: =IF(AB40>=$E$12,IF(Constants!$F$28=TRUE,SUMIFS($H$24:$H$37,$C$24:$C$37,TRUE),SUMIFS($F$24:$F$37,$C$24:$C$37,TRUE)),0) -> 0 | AC53: =IF(AC40>=$E$12,IF(Constants!$F$28=TRUE,SUMIFS($H$24:$H$37,$C$24:$C$37,TRUE),SUMIFS($F$24:$F$37,$C$24:$C$37,TRUE)),0) -> 0 | AD53: =IF(AD40>=$E$12,IF(Constants!$F$28=TRUE,SUMIFS($H$24:$H$37,$C$24:$C$37,TRUE),SUMIFS($F$24:$F$37,$C$24:$C$37,TRUE)),0) -> 0 | AE53: =IF(AE40>=$E$12,IF(Constants!$F$28=TRUE,SUMIFS($H$24:$H$37,$C$24:$C$37,TRUE),SUMIFS($F$24:$F$37,$C$24:$C$37,TRUE)),0) -> 0 | AF53: =IF(AF40>=$E$12,IF(Constants!$F$28=TRUE,SUMIFS($H$24:$H$37,$C$24:$C$37,TRUE),SUMIFS($F$24:$F$37,$C$24:$C$37,TRUE)),0) -> 0 | AG53: =IF(AG40>=$E$12,IF(Constants!$F$28=TRUE,SUMIFS($H$24:$H$37,$C$24:$C$37,TRUE),SUMIFS($F$24:$F$37,$C$24:$C$37,TRUE)),0) -> 0 | AH53: =IF(AH40>=$E$12,IF(Constants!$F$28=TRUE,SUMIFS($H$24:$H$37,$C$24:$C$37,TRUE),SUMIFS($F$24:$F$37,$C$24:$C$37,TRUE)),0) -> 0 | AI53: =IF(AI40>=$E$12,IF(Constants!$F$28=TRUE,SUMIFS($H$24:$H$37,$C$24:$C$37,TRUE),SUMIFS($F$24:$F$37,$C$24:$C$37,TRUE)),0) -> 0 | AJ53: =IF(AJ40>=$E$12,IF(Constants!$F$28=TRUE,SUMIFS($H$24:$H$37,$C$24:$C$37,TRUE),SUMIFS($F$24:$F$37,$C$24:$C$37,TRUE)),0) -> 0 | AK53: =IF(AK40>=$E$12,IF(Constants!$F$28=TRUE,SUMIFS($H$24:$H$37,$C$24:$C$37,TRUE),SUMIFS($F$24:$F$37,$C$24:$C$37,TRUE)),0) -> 0
D54: 0 | E54: Total Life Cycle Cost | F54: =SUM(F46:F53) -> 452466.0199 | G54: 598048.6282 | H54: 645392.1542 | I54: 652338.9595 | J54: 658975.2682 | K54: 662330.0568 | L54: 667005.3192 | M54: 675323.8841 | N54: 685703.5397 | O54: 690335.1337 | P54: 705054.4209 | Q54: 719930.0099 | R54: 734961.3436 | S54: 750147.898 | T54: 765489.1632 | U54: 780984.6165 | V54: 796633.7752 | W54: 812436.1573 | X54: 828391.2947 | Y54: 844498.7194 | Z54: 860757.984 | AA54: 877168.6483 | AB54: 893730.2924 | AC54: 909592.6817 | AD54: 925597.8364 | AE54: 941745.3786 | AF54: 958034.9496 | AG54: 974466.1915 | AH54: 156141.6873 | AI54: 156141.6873 | AJ54: 156141.6873 | AK54: 156141.6873

Sheet Calcs1
A1: Substation | C1: =ZSS -> STL | O1: Station Load and Capacity Data | W1: Asset Probability Data | AH1: =_xlfn.SINGLE(BETA_NIL)*_xlfn.SINGLE(SENSITIVITY_BETA) -> 0.05
A2: Load Profile | C2: 0.1 | D2: Risk Summary | N2: Year | O2: Load Forecast | P2: Peak Load | Q2: Base Load Growth | R2: Peak Load Growth | S2: N Rating | T2: N-1 Cyclic | U2: N-1 2Hr | V2: N-2 Cyclic | W2: N-3 Cyclic | X2: N-4 Cyclic | Y2: Load Transfers | Z2: PoF (Tx1) | AA2: PoF (Tx2) | AB2: PoF (Tx3) | AC2: PoF (Tx4) | AD2: # of Tx | AE2: λ (Annual failure rate per asset | AF2: Age (Tx1) | AG2: Age (Tx2) | AH2: Age (Tx3) | AI2: Age (Tx4) | AJ2: B12 | AK2: B23 | AL2: B13 | AM2: B14 | AN2: B24 | AO2: B34 | AP2: Q1 | AQ2: Q2 | AR2: Q3 | AS2: Q4 | AT2: PoF (1 Path) | AU2: PoF (2 Path) | AV2: PoF (3 Path) | AW2: PoF (4 Path) | AX2: PoF (Significant Fault) | AY2: PoF(Major Fault)
D3: Year | E3: N Risk | F3: 1x Failure | G3: 2x Failure | H3: 3x Failure | I3: 4x Failure | J3: Minor Fault | K3: Total kWh | L3: Feeder Fault | N3: 2024 | O3: =MAX($G$36:$G$3338) -> 0 | P3: =MAX($G$36:$G$3338) -> 0 | S3: =S4 -> 35.85413125 | T3: 17.92706562 | U3: 18.246735 | V3: 0 | W3: 0 | X3: 0 | AT3: =AT4 -> 0.002462705244 | AU3: =AU4 -> 0.0002748319243 | AV3: =AV4 -> FALSE | AW3: =AW4 -> FALSE
D4: 2025 | E4: =SUMIFS($T$39:$T$4500,$A$39:$A$4500,$D4) -> 0 | F4: =SUMIFS($U$39:$U$4500,$A$39:$A$4500,$D4) -> 2.396050589 | G4: =SUMIFS($V$39:$V$4500,$A$39:$A$4500,$D4) -> 10435.87386 | H4: =SUMIFS($W$39:$W$4500,$A$39:$A$4500,$D4) -> 0 | I4: =SUMIFS($X$39:$X$4500,$A$39:$A$4500,$D4) -> 0 | J4: =SUMIFS($Y$39:$Y$4500,$A$39:$A$4500,$D4) -> 0.7293913513 | K4: =(SUM(E4:I4,L4)) -> 10438.26991 | L4: =HLOOKUP(D4,$AF$58:$BG$67,10,FALSE) -> 0 | N4: =D4 -> 2025 | O4: =IF($C$2=0.1,VLOOKUP($C$1,Load!$J:$AN,MATCH(Calcs1!$N4,Load!$J$2:$AN$2,0),FALSE),VLOOKUP($C$1,Load!$AP:$BT,MATCH(Calcs1!$N4,Load!$AP$2:$BT$2,0),FALSE)) -> 23.32999992 | P4: =VLOOKUP($C$1,Load!$J:$AN,MATCH(Calcs1!$N4,Load!$J$2:$AN$2,0),FALSE) -> 23.32999992 | Q4: =O4/$O$4-1 -> 0 | R4: =P4/($O$4)-1 -> 0 | S4: =HLOOKUP(N4,$AF$39:$BG$51,11,FALSE) -> 35.85413125 | T4: =HLOOKUP($N4,$AF$39:$BG$55,14,FALSE) -> 17.92706562 | U4: =HLOOKUP($N4,$AF$39:$BG$55,13,FALSE) -> 18.246735 | V4: =HLOOKUP($N4,$AF$39:$BG$55,15,FALSE) -> 0 | W4: =HLOOKUP($N4,$AF$39:$BG$55,16,FALSE) -> 0 | X4: =HLOOKUP($N4,$AF$39:$BG$55,17,FALSE) -> 0 | Y4: =(IF('Live scenario'!$C$36=TRUE,VLOOKUP(ZSS, Load!$A$3:$G$296,3,FALSE)*VLOOKUP(ZSS, Load!$A$3:$G$296,4,FALSE),0)+NN_LOAD_TRANSFER) -> 4.1 | Z4: =HLOOKUP($N4, $AF$39:$BG$48,2,FALSE) -> 0.00136816958 | AA4: =HLOOKUP($N4, $AF$39:$BG$48,3,FALSE) -> TRUE | AB4: =HLOOKUP($N4, $AF$39:$BG$48,4,FALSE) -> 0.00136816958 | AC4: =HLOOKUP($N4, $AF$39:$BG$48,5,FALSE) -> TRUE | AD4: =COUNTIF(Z4:AC4, "<>"&TRUE) -> 2 | AE4: =(Z4*AA4*AB4*AC4)^(1/AD4) -> 0.00136816958 | AF4: =HLOOKUP($N4, $AF$39:$BG$47,6,FALSE) -> 1967 | AG4: =HLOOKUP($N4, $AF$39:$BG$47,7,FALSE) -> 9999 | AH4: =HLOOKUP($N4, $AF$39:$BG$47,8,FALSE) -> 1967 | AI4: =HLOOKUP($N4, $AF$39:$BG$47,9,FALSE) -> 9999 | AJ4: =VLOOKUP(ZSS,Constants!$AT$37:$BO$178,2+Constants!$H$11,FALSE) -> TRUE | AK4: =VLOOKUP(ZSS,Constants!$AT$37:$BO$178,3+Constants!$H$11,FALSE) -> TRUE | AL4: =VLOOKUP(ZSS,Constants!$AT$37:$BO$178,4+Constants!$H$11,FALSE) -> 0.2 | AM4: =VLOOKUP(ZSS,Constants!$AT$37:$BO$178,5+Constants!$H$11,FALSE) -> TRUE | AN4: =VLOOKUP(ZSS,Constants!$AT$37:$BO$178,6+Constants!$H$11,FALSE) -> TRUE | AO4: =VLOOKUP(ZSS,Constants!$AT$37:$BO$178,7+Constants!$H$11,FALSE) -> TRUE | AP4: =IF(AD4=1,AE4,(1-MAX(AJ4:AO4))*AE4) -> 0.001094535664 | AQ4: =IF(AD4=1,0,IF(AD4=2,MAX(AJ4:AO4)*AE4,IF(AD4=3,0.5*MAX(AJ4:AO4)*(1-$AH$1)*AE4, IF(AD4=4,0.33*MAX(AJ4:AO4)*$AH$1*(1-$AH$1)*AE4,FALSE)))) -> 0.000273633916 | AR4: =AQ4*$AH$1 -> 1.36816958e-05 | AS4: =IF(AD4=4,MAX(AJ4:AO4)*$AH$1*$AH$1*AE4,FALSE) -> FALSE | AT4: =IF(AD4=1,AE4,IF(AD4=2,2*AP4+AQ4,IF(AD4=3,3*AP4+3*AQ4+AR4,IF(AD4=4,4*AP4+6*AQ4+4*AR4+AS4)))) -> 0.002462705244 | AU4: =IF(AD4=1,FALSE,IF(AD4=2,AP4^2+AQ4,IF(AD4=3,3*AP4^2+3*AQ4+AR4,IF(AD4=4,6*AP4^2+6*AQ4+4*AR4+AS4)))) -> 0.0002748319243 | AV4: =IF(AD4=3,AP4^3+3*AP4*AQ4+AR4,IF(AD4=4,4*AP4^3+12*AP4*AQ4+3*AQ4^2+4*AR4+AS4,FALSE)) -> FALSE | AW4: =IF(AD4=4,AP4^4+3*AQ4^2+4*AP4*AR4+AS4+6*AP4^2*AQ4,FALSE) -> FALSE | AX4: =(IF(Z4<>TRUE,VLOOKUP(Z4/'Live scenario'!$D$18,MAJORMINORPOF,2,TRUE),0)+IF(AA4<>TRUE,VLOOKUP(AA4/'Live scenario'!$D$19,MAJORMINORPOF,2,TRUE),0)+IF(AB4<>TRUE,VLOOKUP(AB4/'Live scenario'!$D$20,MAJORMINORPOF,2,TRUE),0)+IF(AC4<>TRUE,VLOOKUP(AC4/'Live scenario'!$D$21,MAJORMINORPOF,2,TRUE),0)) -> 0.01094535664 | AY4: =SUM(Z4:AC4) -> 0.00273633916
D5: =D4+1 -> 2026 | E5: =SUMIFS($T$39:$T$4500,$A$39:$A$4500,$D5) -> 0 | F5: =SUMIFS($U$39:$U$4500,$A$39:$A$4500,$D5) -> 160.3392981 | G5: =SUMIFS($V$39:$V$4500,$A$39:$A$4500,$D5) -> 14634.19221 | H5: =SUMIFS($W$39:$W$4500,$A$39:$A$4500,$D5) -> 0 | I5: =SUMIFS($X$39:$X$4500,$A$39:$A$4500,$D5) -> 0 | J5: =SUMIFS($Y$39:$Y$4500,$A$39:$A$4500,$D5) -> 48.80952757 | K5: =(SUM(E5:I5,L5)) -> 14794.53151 | L5: =HLOOKUP(D5,$AF$58:$BG$67,10,FALSE) -> 0 | N5: =D5 -> 2026 | O5: =IF($C$2=0.1,VLOOKUP($C$1,Load!$J:$AN,MATCH(Calcs1!$N5,Load!$J$2:$AN$2,0),FALSE),VLOOKUP($C$1,Load!$AP:$BT,MATCH(Calcs1!$N5,Load!$AP$2:$BT$2,0),FALSE)) -> 27.90999985 | P5: =VLOOKUP($C$1,Load!$J:$AN,MATCH(Calcs1!$N5,Load!$J$2:$AN$2,0),FALSE) -> 27.90999985 | Q5: =O5/$O$4-1 -> 0.1963137565 | R5: 0.1963137565 | S5: =HLOOKUP(N5,$AF$39:$BG$51,11,FALSE) -> 35.85413125 | T5: =HLOOKUP($N5,$AF$39:$BG$55,14,FALSE) -> 17.92706562 | U5: =HLOOKUP($N5,$AF$39:$BG$55,13,FALSE) -> 18.246735 | V5: =HLOOKUP($N5,$AF$39:$BG$55,15,FALSE) -> 0 | W5: =HLOOKUP($N5,$AF$39:$BG$55,16,FALSE) -> 0 | X5: =HLOOKUP($N5,$AF$39:$BG$55,17,FALSE) -> 0 | Y5: =(IF('Live scenario'!$C$36=TRUE,VLOOKUP(ZSS, Load!$A$3:$G$296,3,FALSE)*VLOOKUP(ZSS, Load!$A$3:$G$296,4,FALSE),0)+NN_LOAD_TRANSFER) -> 4.1 | Z5: =HLOOKUP($N5, $AF$39:$BG$48,2,FALSE) -> 0.00140851268 | AA5: =HLOOKUP($N5, $AF$39:$BG$48,3,FALSE) -> TRUE | AB5: =HLOOKUP($N5, $AF$39:$BG$48,4,FALSE) -> 0.00140851268 | AC5: =HLOOKUP($N5, $AF$39:$BG$48,5,FALSE) -> TRUE | AD5: =COUNTIF(Z5:AC5, "<>"&TRUE) -> 2 | AE5: =(Z5*AA5*AB5*AC5)^(1/AD5) -> 0.00140851268 | AF5: =HLOOKUP($N5, $AF$39:$BG$47,6,FALSE) -> 1967 | AG5: =HLOOKUP($N5, $AF$39:$BG$47,7,FALSE) -> 9999 | AH5: =HLOOKUP($N5, $AF$39:$BG$47,8,FALSE) -> 1967 | AI5: =HLOOKUP($N5, $AF$39:$BG$47,9,FALSE) -> 9999 | AJ5: =VLOOKUP(ZSS,Constants!$AT$37:$BO$178,2+Constants!$H$11,FALSE) -> TRUE | AK5: =VLOOKUP(ZSS,Constants!$AT$37:$BO$178,3+Constants!$H$11,FALSE) -> TRUE | AL5: =VLOOKUP(ZSS,Constants!$AT$37:$BO$178,4+Constants!$H$11,FALSE) -> 0.2 | AM5: =VLOOKUP(ZSS,Constants!$AT$37:$BO$178,5+Constants!$H$11,FALSE) -> TRUE | AN5: =VLOOKUP(ZSS,Constants!$AT$37:$BO$178,6+Constants!$H$11,FALSE) -> TRUE | AO5: =VLOOKUP(ZSS,Constants!$AT$37:$BO$178,7+Constants!$H$11,FALSE) -> TRUE | AP5: =IF(AD5=1,AE5,(1-MAX(AJ5:AO5))*AE5) -> 0.001126810144 | AQ5: =IF(AD5=1,0,IF(AD5=2,MAX(AJ5:AO5)*AE5,IF(AD5=3,0.5*MAX(AJ5:AO5)*(1-$AH$1)*AE5, IF(AD5=4,0.33*MAX(AJ5:AO5)*$AH$1*(1-$AH$1)*AE5,FALSE)))) -> 0.000281702536 | AR5: 1.40851268e-05 | AS5: FALSE | AT5: 0.002535322824 | AU5: 0.0002829722371 | AV5: FALSE | AW5: FALSE | AX5: =(IF(Z5<>TRUE,VLOOKUP(Z5/'Live scenario'!$D$18,MAJORMINORPOF,2,TRUE),0)+IF(AA5<>TRUE,VLOOKUP(AA5/'Live scenario'!$D$19,MAJORMINORPOF,2,TRUE),0)+IF(AB5<>TRUE,VLOOKUP(AB5/'Live scenario'!$D$20,MAJORMINORPOF,2,TRUE),0)+IF(AC5<>TRUE,VLOOKUP(AC5/'Live scenario'!$D$21,MAJORMINORPOF,2,TRUE),0)) -> 0.01126810144 | AY5: =SUM(Z5:AC5) -> 0.00281702536
D6: =D5+1 -> 2027 | E6: 0 | F6: =SUMIFS($U$39:$U$4500,$A$39:$A$4500,$D6) -> 265.953381 | G6: 16024.96745 | H6: 0 | I6: 0 | J6: 80.95993333 | K6: 16290.92084 | L6: =HLOOKUP(D6,$AF$58:$BG$67,10,FALSE) -> 0 | N6: 2027 | O6: =IF($C$2=0.1,VLOOKUP($C$1,Load!$J:$AN,MATCH(Calcs1!$N6,Load!$J$2:$AN$2,0),FALSE),VLOOKUP($C$1,Load!$AP:$BT,MATCH(Calcs1!$N6,Load!$AP$2:$BT$2,0),FALSE)) -> 29.02000046 | P6: =VLOOKUP($C$1,Load!$J:$AN,MATCH(Calcs1!$N6,Load!$J$2:$AN$2,0),FALSE) -> 29.02000046 | Q6: 0.2438920083 | R6: 0.2438920083 | S6: 35.85413125 | T6: =HLOOKUP($N6,$AF$39:$BG$55,14,FALSE) -> 17.92706562 | U6: 18.246735 | V6: 0 | W6: 0 | X6: 0 | Y6: =(IF('Live scenario'!$C$36=TRUE,VLOOKUP(ZSS, Load!$A$3:$G$296,3,FALSE)*VLOOKUP(ZSS, Load!$A$3:$G$296,4,FALSE),0)+NN_LOAD_TRANSFER) -> 4.1 | Z6: 0.00144933728 | AA6: TRUE | AB6: 0.00144933728 | AC6: TRUE | AD6: 2 | AE6: 0.00144933728 | AF6: 1967 | AG6: 9999 | AH6: 1967 | AI6: 9999 | AJ6: =VLOOKUP(ZSS,Constants!$AT$37:$BO$178,2+Constants!$H$11,FALSE) -> TRUE | AK6: =VLOOKUP(ZSS,Constants!$AT$37:$BO$178,3+Constants!$H$11,FALSE) -> TRUE | AL6: =VLOOKUP(ZSS,Constants!$AT$37:$BO$178,4+Constants!$H$11,FALSE) -> 0.2 | AM6: =VLOOKUP(ZSS,Constants!$AT$37:$BO$178,5+Constants!$H$11,FALSE) -> TRUE | AN6: =VLOOKUP(ZSS,Constants!$AT$37:$BO$178,6+Constants!$H$11,FALSE) -> TRUE | AO6: =VLOOKUP(ZSS,Constants!$AT$37:$BO$178,7+Constants!$H$11,FALSE) -> TRUE | AP6: 0.001159469824 | AQ6: 0.000289867456 | AR6: 1.44933728e-05 | AS6: FALSE | AT6: 0.002608807104 | AU6: 0.0002912118263 | AV6: FALSE | AW6: FALSE | AX6: =(IF(Z6<>TRUE,VLOOKUP(Z6/'Live scenario'!$D$18,MAJORMINORPOF,2,TRUE),0)+IF(AA6<>TRUE,VLOOKUP(AA6/'Live scenario'!$D$19,MAJORMINORPOF,2,TRUE),0)+IF(AB6<>TRUE,VLOOKUP(AB6/'Live scenario'!$D$20,MAJORMINORPOF,2,TRUE),0)+IF(AC6<>TRUE,VLOOKUP(AC6/'Live scenario'!$D$21,MAJORMINORPOF,2,TRUE),0)) -> 0.01159469824 | AY6: =SUM(Z6:AC6) -> 0.00289867456
D7: 2028 | E7: 0 | F7: 249.5294716 | G7: 16269.15121 | H7: 0 | I7: 0 | J7: 75.96026532 | K7: 16518.68068 | L7: =HLOOKUP(D7,$AF$58:$BG$67,10,FALSE) -> 0 | N7: 2028 | O7: =IF($C$2=0.1,VLOOKUP($C$1,Load!$J:$AN,MATCH(Calcs1!$N7,Load!$J$2:$AN$2,0),FALSE),VLOOKUP($C$1,Load!$AP:$BT,MATCH(Calcs1!$N7,Load!$AP$2:$BT$2,0),FALSE)) -> 28.78000069 | P7: =VLOOKUP($C$1,Load!$J:$AN,MATCH(Calcs1!$N7,Load!$J$2:$AN$2,0),FALSE) -> 28.78000069 | Q7: 0.2336048342 | R7: 0.2336048342 | S7: 35.85413125 | T7: 17.92706562 | U7: 18.246735 | V7: 0 | W7: 0 | X7: 0 | Y7: =(IF('Live scenario'!$C$36=TRUE,VLOOKUP(ZSS, Load!$A$3:$G$296,3,FALSE)*VLOOKUP(ZSS, Load!$A$3:$G$296,4,FALSE),0)+NN_LOAD_TRANSFER) -> 4.1 | Z7: 0.001490641 | AA7: TRUE | AB7: 0.001490641 | AC7: TRUE | AD7: 2 | AE7: 0.001490641 | AF7: 1967 | AG7: 9999 | AH7: 1967 | AI7: 9999 | AJ7: =VLOOKUP(ZSS,Constants!$AT$37:$BO$178,2+Constants!$H$11,FALSE) -> TRUE | AK7: =VLOOKUP(ZSS,Constants!$AT$37:$BO$178,3+Constants!$H$11,FALSE) -> TRUE | AL7: =VLOOKUP(ZSS,Constants!$AT$37:$BO$178,4+Constants!$H$11,FALSE) -> 0.2 | AM7: =VLOOKUP(ZSS,Constants!$AT$37:$BO$178,5+Constants!$H$11,FALSE) -> TRUE | AN7: =VLOOKUP(ZSS,Constants!$AT$37:$BO$178,6+Constants!$H$11,FALSE) -> TRUE | AO7: =VLOOKUP(ZSS,Constants!$AT$37:$BO$178,7+Constants!$H$11,FALSE) -> TRUE | AP7: 0.0011925128 | AQ7: 0.0002981282 | AR7: 1.490641e-05 | AS7: FALSE | AT7: 0.0026831538 | AU7: 0.0002995502868 | AV7: FALSE | AW7: FALSE | AX7: =(IF(Z7<>TRUE,VLOOKUP(Z7/'Live scenario'!$D$18,MAJORMINORPOF,2,TRUE),0)+IF(AA7<>TRUE,VLOOKUP(AA7/'Live scenario'!$D$19,MAJORMINORPOF,2,TRUE),0)+IF(AB7<>TRUE,VLOOKUP(AB7/'Live scenario'!$D$20,MAJORMINORPOF,2,TRUE),0)+IF(AC7<>TRUE,VLOOKUP(AC7/'Live scenario'!$D$21,MAJORMINORPOF,2,TRUE),0)) -> 0.011925128 | AY7: 0.002981282
D8: 2029 | E8: 0 | F8: 231.9221496 | G8: 16479.36055 | H8: 0 | I8: 0 | J8: 70.60034995 | K8: 16711.2827 | L8: 0 | N8: 2029 | O8: =IF($C$2=0.1,VLOOKUP($C$1,Load!$J:$AN,MATCH(Calcs1!$N8,Load!$J$2:$AN$2,0),FALSE),VLOOKUP($C$1,Load!$AP:$BT,MATCH(Calcs1!$N8,Load!$AP$2:$BT$2,0),FALSE)) -> 28.51000023 | P8: =VLOOKUP($C$1,Load!$J:$AN,MATCH(Calcs1!$N8,Load!$J$2:$AN$2,0),FALSE) -> 28.51000023 | Q8: 0.2220317326 | R8: 0.2220317326 | S8: 35.85413125 | T8: 17.92706562 | U8: 18.246735 | V8: 0 | W8: 0 | X8: 0 | Y8: =(IF('Live scenario'!$C$36=TRUE,VLOOKUP(ZSS, Load!$A$3:$G$296,3,FALSE)*VLOOKUP(ZSS, Load!$A$3:$G$296,4,FALSE),0)+NN_LOAD_TRANSFER) -> 4.1 | Z8: 0.00153242142 | AA8: TRUE | AB8: 0.00153242142 | AC8: TRUE | AD8: 2 | AE8: 0.00153242142 | AF8: 1967 | AG8: 9999 | AH8: 1967 | AI8: 9999 | AJ8: =VLOOKUP(ZSS,Constants!$AT$37:$BO$178,2+Constants!$H$11,FALSE) -> TRUE | AK8: =VLOOKUP(ZSS,Constants!$AT$37:$BO$178,3+Constants!$H$11,FALSE) -> TRUE | AL8: =VLOOKUP(ZSS,Constants!$AT$37:$BO$178,4+Constants!$H$11,FALSE) -> 0.2 | AM8: =VLOOKUP(ZSS,Constants!$AT$37:$BO$178,5+Constants!$H$11,FALSE) -> TRUE | AN8: =VLOOKUP(ZSS,Constants!$AT$37:$BO$178,6+Constants!$H$11,FALSE) -> TRUE | AO8: =VLOOKUP(ZSS,Constants!$AT$37:$BO$178,7+Constants!$H$11,FALSE) -> TRUE | AP8: 0.001225937136 | AQ8: 0.000306484284 | AR8: 1.53242142e-05 | AS8: FALSE | AT8: 0.002758358556 | AU8: 0.0003079872059 | AV8: FALSE | AW8: FALSE | AX8: =(IF(Z8<>TRUE,VLOOKUP(Z8/'Live scenario'!$D$18,MAJORMINORPOF,2,TRUE),0)+IF(AA8<>TRUE,VLOOKUP(AA8/'Live scenario'!$D$19,MAJORMINORPOF,2,TRUE),0)+IF(AB8<>TRUE,VLOOKUP(AB8/'Live scenario'!$D$20,MAJORMINORPOF,2,TRUE),0)+IF(AC8<>TRUE,VLOOKUP(AC8/'Live scenario'!$D$21,MAJORMINORPOF,2,TRUE),0)) -> 0.01225937136 | AY8: 0.00306484284
D9: 2030 | E9: 0 | F9: 198.9421653 | G9: 16599.86727 | H9: 0 | I9: 0 | J9: 60.56078092 | K9: 16798.80943 | L9: 0 | N9: 2030 | O9: =IF($C$2=0.1,VLOOKUP($C$1,Load!$J:$AN,MATCH(Calcs1!$N9,Load!$J$2:$AN$2,0),FALSE),VLOOKUP($C$1,Load!$AP:$BT,MATCH(Calcs1!$N9,Load!$AP$2:$BT$2,0),FALSE)) -> 28.14999962 | P9: =VLOOKUP($C$1,Load!$J:$AN,MATCH(Calcs1!$N9,Load!$J$2:$AN$2,0),FALSE) -> 28.14999962 | Q9: 0.2066009306 | R9: 0.2066009306 | S9: 35.85413125 | T9: 17.92706562 | U9: 18.246735 | V9: 0 | W9: 0 | X9: 0 | Y9: =(IF('Live scenario'!$C$36=TRUE,VLOOKUP(ZSS, Load!$A$3:$G$296,3,FALSE)*VLOOKUP(ZSS, Load!$A$3:$G$296,4,FALSE),0)+NN_LOAD_TRANSFER) -> 4.1 | Z9: 0.00157467624 | AA9: TRUE | AB9: 0.00157467624 | AC9: TRUE | AD9: 2 | AE9: 0.00157467624 | AF9: 1967 | AG9: 9999 | AH9: 1967 | AI9: 9999 | AJ9: =VLOOKUP(ZSS,Constants!$AT$37:$BO$178,2+Constants!$H$11,FALSE) -> TRUE | AK9: =VLOOKUP(ZSS,Constants!$AT$37:$BO$178,3+Constants!$H$11,FALSE) -> TRUE | AL9: =VLOOKUP(ZSS,Constants!$AT$37:$BO$178,4+Constants!$H$11,FALSE) -> 0.2 | AM9: =VLOOKUP(ZSS,Constants!$AT$37:$BO$178,5+Constants!$H$11,FALSE) -> TRUE | AN9: =VLOOKUP(ZSS,Constants!$AT$37:$BO$178,6+Constants!$H$11,FALSE) -> TRUE | AO9: =VLOOKUP(ZSS,Constants!$AT$37:$BO$178,7+Constants!$H$11,FALSE) -> TRUE | AP9: 0.001259740992 | AQ9: 0.000314935248 | AR9: 1.57467624e-05 | AS9: FALSE | AT9: 0.002834417232 | AU9: 0.0003165221954 | AV9: FALSE | AW9: FALSE | AX9: =(IF(Z9<>TRUE,VLOOKUP(Z9/'Live scenario'!$D$18,MAJORMINORPOF,2,TRUE),0)+IF(AA9<>TRUE,VLOOKUP(AA9/'Live scenario'!$D$19,MAJORMINORPOF,2,TRUE),0)+IF(AB9<>TRUE,VLOOKUP(AB9/'Live scenario'!$D$20,MAJORMINORPOF,2,TRUE),0)+IF(AC9<>TRUE,VLOOKUP(AC9/'Live scenario'!$D$21,MAJORMINORPOF,2,TRUE),0)) -> 0.01259740992 | AY9: 0.00314935248
D10: 2031 | E10: 0 | F10: 175.4633564 | G10: 16726.77318 | H10: 0 | I10: 0 | J10: 53.41350272 | K10: 16902.23654 | L10: 0 | N10: 2031 | O10: =IF($C$2=0.1,VLOOKUP($C$1,Load!$J:$AN,MATCH(Calcs1!$N10,Load!$J$2:$AN$2,0),FALSE),VLOOKUP($C$1,Load!$AP:$BT,MATCH(Calcs1!$N10,Load!$AP$2:$BT$2,0),FALSE)) -> 27.81999969 | P10: =VLOOKUP($C$1,Load!$J:$AN,MATCH(Calcs1!$N10,Load!$J$2:$AN$2,0),FALSE) -> 27.81999969 | Q10: 0.192456056 | R10: 0.192456056 | S10: 35.85413125 | T10: 17.92706562 | U10: 18.246735 | V10: 0 | W10: 0 | X10: 0 | Y10: =(IF('Live scenario'!$C$36=TRUE,VLOOKUP(ZSS, Load!$A$3:$G$296,3,FALSE)*VLOOKUP(ZSS, Load!$A$3:$G$296,4,FALSE),0)+NN_LOAD_TRANSFER) -> 4.1 | Z10: 0.0016174032 | AA10: TRUE | AB10: 0.0016174032 | AC10: TRUE | AD10: 2 | AE10: 0.0016174032 | AF10: 1967 | AG10: 9999 | AH10: 1967 | AI10: 9999 | AJ10: =VLOOKUP(ZSS,Constants!$AT$37:$BO$178,2+Constants!$H$11,FALSE) -> TRUE | AK10: =VLOOKUP(ZSS,Constants!$AT$37:$BO$178,3+Constants!$H$11,FALSE) -> TRUE | AL10: =VLOOKUP(ZSS,Constants!$AT$37:$BO$178,4+Constants!$H$11,FALSE) -> 0.2 | AM10: =VLOOKUP(ZSS,Constants!$AT$37:$BO$178,5+Constants!$H$11,FALSE) -> TRUE | AN10: =VLOOKUP(ZSS,Constants!$AT$37:$BO$178,6+Constants!$H$11,FALSE) -> TRUE | AO10: =VLOOKUP(ZSS,Constants!$AT$37:$BO$178,7+Constants!$H$11,FALSE) -> TRUE | AP10: 0.00129392256 | AQ10: 0.00032348064 | AR10: 1.6174032e-05 | AS10: FALSE | AT10: 0.00291132576 | AU10: 0.0003251548756 | AV10: FALSE | AW10: FALSE | AX10: =(IF(Z10<>TRUE,VLOOKUP(Z10/'Live scenario'!$D$18,MAJORMINORPOF,2,TRUE),0)+IF(AA10<>TRUE,VLOOKUP(AA10/'Live scenario'!$D$19,MAJORMINORPOF,2,TRUE),0)+IF(AB10<>TRUE,VLOOKUP(AB10/'Live scenario'!$D$20,MAJORMINORPOF,2,TRUE),0)+IF(AC10<>TRUE,VLOOKUP(AC10/'Live scenario'!$D$21,MAJORMINORPOF,2,TRUE),0)) -> 0.0129392256 | AY10: 0.0032348064
D11: 2032 | E11: 0 | F11: 168.2741298 | G11: 16976.41614 | H11: 0 | I11: 0 | J11: 51.22500147 | K11: 17144.69027 | L11: 0 | N11: 2032 | O11: =IF($C$2=0.1,VLOOKUP($C$1,Load!$J:$AN,MATCH(Calcs1!$N11,Load!$J$2:$AN$2,0),FALSE),VLOOKUP($C$1,Load!$AP:$BT,MATCH(Calcs1!$N11,Load!$AP$2:$BT$2,0),FALSE)) -> 27.62000084 | P11: =VLOOKUP($C$1,Load!$J:$AN,MATCH(Calcs1!$N11,Load!$J$2:$AN$2,0),FALSE) -> 27.62000084 | Q11: 0.1838834518 | R11: 0.1838834518 | S11: 35.85413125 | T11: 17.92706562 | U11: 18.246735 | V11: 0 | W11: 0 | X11: 0 | Y11: =(IF('Live scenario'!$C$36=TRUE,VLOOKUP(ZSS, Load!$A$3:$G$296,3,FALSE)*VLOOKUP(ZSS, Load!$A$3:$G$296,4,FALSE),0)+NN_LOAD_TRANSFER) -> 4.1 | Z11: 0.00166060004 | AA11: TRUE | AB11: 0.00166060004 | AC11: TRUE | AD11: 2 | AE11: 0.00166060004 | AF11: 1967 | AG11: 9999 | AH11: 1967 | AI11: 9999 | AJ11: =VLOOKUP(ZSS,Constants!$AT$37:$BO$178,2+Constants!$H$11,FALSE) -> TRUE | AK11: =VLOOKUP(ZSS,Constants!$AT$37:$BO$178,3+Constants!$H$11,FALSE) -> TRUE | AL11: =VLOOKUP(ZSS,Constants!$AT$37:$BO$178,4+Constants!$H$11,FALSE) -> 0.2 | AM11: =VLOOKUP(ZSS,Constants!$AT$37:$BO$178,5+Constants!$H$11,FALSE) -> TRUE | AN11: =VLOOKUP(ZSS,Constants!$AT$37:$BO$178,6+Constants!$H$11,FALSE) -> TRUE | AO11: =VLOOKUP(ZSS,Constants!$AT$37:$BO$178,7+Constants!$H$11,FALSE) -> TRUE | AP11: 0.001328480032 | AQ11: 0.000332120008 | AR11: 1.66060004e-05 | AS11: FALSE | AT11: 0.002989080072 | AU11: 0.0003338848672 | AV11: FALSE | AW11: FALSE | AX11: =(IF(Z11<>TRUE,VLOOKUP(Z11/'Live scenario'!$D$18,MAJORMINORPOF,2,TRUE),0)+IF(AA11<>TRUE,VLOOKUP(AA11/'Live scenario'!$D$19,MAJORMINORPOF,2,TRUE),0)+IF(AB11<>TRUE,VLOOKUP(AB11/'Live scenario'!$D$20,MAJORMINORPOF,2,TRUE),0)+IF(AC11<>TRUE,VLOOKUP(AC11/'Live scenario'!$D$21,MAJORMINORPOF,2,TRUE),0)) -> 0.01328480032 | AY11: 0.00332120008
D12: 2033 | E12: 0 | F12: 160.5111304 | G12: 17291.23677 | H12: 0 | I12: 0 | J12: 48.86183573 | K12: 17451.7479 | L12: 0 | N12: 2033 | O12: =IF($C$2=0.1,VLOOKUP($C$1,Load!$J:$AN,MATCH(Calcs1!$N12,Load!$J$2:$AN$2,0),FALSE),VLOOKUP($C$1,Load!$AP:$BT,MATCH(Calcs1!$N12,Load!$AP$2:$BT$2,0),FALSE)) -> 27.48999977 | P12: =VLOOKUP($C$1,Load!$J:$AN,MATCH(Calcs1!$N12,Load!$J$2:$AN$2,0),FALSE) -> 27.48999977 | Q12: 0.1783111814 | R12: 0.1783111814 | S12: 35.85413125 | T12: 17.92706562 | U12: 18.246735 | V12: 0 | W12: 0 | X12: 0 | Y12: =(IF('Live scenario'!$C$36=TRUE,VLOOKUP(ZSS, Load!$A$3:$G$296,3,FALSE)*VLOOKUP(ZSS, Load!$A$3:$G$296,4,FALSE),0)+NN_LOAD_TRANSFER) -> 4.1 | Z12: 0.00170426462 | AA12: TRUE | AB12: 0.00170426462 | AC12: TRUE | AD12: 2 | AE12: 0.00170426462 | AF12: 1967 | AG12: 9999 | AH12: 1967 | AI12: 9999 | AJ12: =VLOOKUP(ZSS,Constants!$AT$37:$BO$178,2+Constants!$H$11,FALSE) -> TRUE | AK12: =VLOOKUP(ZSS,Constants!$AT$37:$BO$178,3+Constants!$H$11,FALSE) -> TRUE | AL12: =VLOOKUP(ZSS,Constants!$AT$37:$BO$178,4+Constants!$H$11,FALSE) -> 0.2 | AM12: =VLOOKUP(ZSS,Constants!$AT$37:$BO$178,5+Constants!$H$11,FALSE) -> TRUE | AN12: =VLOOKUP(ZSS,Constants!$AT$37:$BO$178,6+Constants!$H$11,FALSE) -> TRUE | AO12: =VLOOKUP(ZSS,Constants!$AT$37:$BO$178,7+Constants!$H$11,FALSE) -> TRUE | AP12: 0.001363411696 | AQ12: 0.000340852924 | AR12: 1.70426462e-05 | AS12: FALSE | AT12: 0.003067676316 | AU12: 0.0003427118155 | AV12: FALSE | AW12: FALSE | AX12: =(IF(Z12<>TRUE,VLOOKUP(Z12/'Live scenario'!$D$18,MAJORMINORPOF,2,TRUE),0)+IF(AA12<>TRUE,VLOOKUP(AA12/'Live scenario'!$D$19,MAJORMINORPOF,2,TRUE),0)+IF(AB12<>TRUE,VLOOKUP(AB12/'Live scenario'!$D$20,MAJORMINORPOF,2,TRUE),0)+IF(AC12<>TRUE,VLOOKUP(AC12/'Live scenario'!$D$21,MAJORMINORPOF,2,TRUE),0)) -> 0.01363411696 | AY12: 0.00340852924
D13: 2034 | E13: 0 | F13: 145.9550942 | G13: 17459.6805 | H13: 0 | I13: 0 | J13: 44.43077451 | K13: 17605.6356 | L13: 0 | N13: 2034 | O13: =IF($C$2=0.1,VLOOKUP($C$1,Load!$J:$AN,MATCH(Calcs1!$N13,Load!$J$2:$AN$2,0),FALSE),VLOOKUP($C$1,Load!$AP:$BT,MATCH(Calcs1!$N13,Load!$AP$2:$BT$2,0),FALSE)) -> 27.22999954 | P13: =VLOOKUP($C$1,Load!$J:$AN,MATCH(Calcs1!$N13,Load!$J$2:$AN$2,0),FALSE) -> 27.22999954 | Q13: 0.1671667223 | R13: 0.1671667223 | S13: 35.85413125 | T13: 17.92706562 | U13: 18.246735 | V13: 0 | W13: 0 | X13: 0 | Y13: =(IF('Live scenario'!$C$36=TRUE,VLOOKUP(ZSS, Load!$A$3:$G$296,3,FALSE)*VLOOKUP(ZSS, Load!$A$3:$G$296,4,FALSE),0)+NN_LOAD_TRANSFER) -> 4.1 | Z13: 0.0017483948 | AA13: TRUE | AB13: 0.0017483948 | AC13: TRUE | AD13: 2 | AE13: 0.0017483948 | AF13: 1967 | AG13: 9999 | AH13: 1967 | AI13: 9999 | AJ13: =VLOOKUP(ZSS,Constants!$AT$37:$BO$178,2+Constants!$H$11,FALSE) -> TRUE | AK13: =VLOOKUP(ZSS,Constants!$AT$37:$BO$178,3+Constants!$H$11,FALSE) -> TRUE | AL13: =VLOOKUP(ZSS,Constants!$AT$37:$BO$178,4+Constants!$H$11,FALSE) -> 0.2 | AM13: =VLOOKUP(ZSS,Constants!$AT$37:$BO$178,5+Constants!$H$11,FALSE) -> TRUE | AN13: =VLOOKUP(ZSS,Constants!$AT$37:$BO$178,6+Constants!$H$11,FALSE) -> TRUE | AO13: =VLOOKUP(ZSS,Constants!$AT$37:$BO$178,7+Constants!$H$11,FALSE) -> TRUE | AP13: 0.00139871584 | AQ13: 0.00034967896 | AR13: 1.7483948e-05 | AS13: FALSE | AT13: 0.00314711064 | AU13: 0.000351635366 | AV13: FALSE | AW13: FALSE | AX13: =(IF(Z13<>TRUE,VLOOKUP(Z13/'Live scenario'!$D$18,MAJORMINORPOF,2,TRUE),0)+IF(AA13<>TRUE,VLOOKUP(AA13/'Live scenario'!$D$19,MAJORMINORPOF,2,TRUE),0)+IF(AB13<>TRUE,VLOOKUP(AB13/'Live scenario'!$D$20,MAJORMINORPOF,2,TRUE),0)+IF(AC13<>TRUE,VLOOKUP(AC13/'Live scenario'!$D$21,MAJORMINORPOF,2,TRUE),0)) -> 0.0139871584 | AY13: 0.0034967896
D14: 2035 | E14: 0 | F14: 149.6777483 | G14: 17907.53877 | H14: 0 | I14: 0 | J14: 45.56400252 | K14: 18057.21652 | L14: 0 | N14: 2035 | O14: =IF($C$2=0.1,VLOOKUP($C$1,Load!$J:$AN,MATCH(Calcs1!$N14,Load!$J$2:$AN$2,0),FALSE),VLOOKUP($C$1,Load!$AP:$BT,MATCH(Calcs1!$N14,Load!$AP$2:$BT$2,0),FALSE)) -> 27.22999954 | P14: =VLOOKUP($C$1,Load!$J:$AN,MATCH(Calcs1!$N14,Load!$J$2:$AN$2,0),FALSE) -> 27.22999954 | Q14: 0.1671667223 | R14: 0.1671667223 | S14: 35.85413125 | T14: 17.92706562 | U14: 18.246735 | V14: 0 | W14: 0 | X14: 0 | Y14: =(IF('Live scenario'!$C$36=TRUE,VLOOKUP(ZSS, Load!$A$3:$G$296,3,FALSE)*VLOOKUP(ZSS, Load!$A$3:$G$296,4,FALSE),0)+NN_LOAD_TRANSFER) -> 4.1 | Z14: 0.00179298844 | AA14: TRUE | AB14: 0.00179298844 | AC14: TRUE | AD14: 2 | AE14: 0.00179298844 | AF14: 1967 | AG14: 9999 | AH14: 1967 | AI14: 9999 | AJ14: =VLOOKUP(ZSS,Constants!$AT$37:$BO$178,2+Constants!$H$11,FALSE) -> TRUE | AK14: =VLOOKUP(ZSS,Constants!$AT$37:$BO$178,3+Constants!$H$11,FALSE) -> TRUE | AL14: =VLOOKUP(ZSS,Constants!$AT$37:$BO$178,4+Constants!$H$11,FALSE) -> 0.2 | AM14: =VLOOKUP(ZSS,Constants!$AT$37:$BO$178,5+Constants!$H$11,FALSE) -> TRUE | AN14: =VLOOKUP(ZSS,Constants!$AT$37:$BO$178,6+Constants!$H$11,FALSE) -> TRUE | AO14: =VLOOKUP(ZSS,Constants!$AT$37:$BO$178,7+Constants!$H$11,FALSE) -> TRUE | AP14: 0.001434390752 | AQ14: 0.000358597688 | AR14: 1.79298844e-05 | AS14: FALSE | AT14: 0.003227379192 | AU14: 0.0003606551648 | AV14: FALSE | AW14: FALSE | AX14: =(IF(Z14<>TRUE,VLOOKUP(Z14/'Live scenario'!$D$18,MAJORMINORPOF,2,TRUE),0)+IF(AA14<>TRUE,VLOOKUP(AA14/'Live scenario'!$D$19,MAJORMINORPOF,2,TRUE),0)+IF(AB14<>TRUE,VLOOKUP(AB14/'Live scenario'!$D$20,MAJORMINORPOF,2,TRUE),0)+IF(AC14<>TRUE,VLOOKUP(AC14/'Live scenario'!$D$21,MAJORMINORPOF,2,TRUE),0)) -> 0.01434390752 | AY14: 0.00358597688
D15: 2036 | E15: 0 | F15: 153.4389247 | G15: 18360.15988 | H15: 0 | I15: 0 | J15: 46.7089573 | K15: 18513.5988 | L15: 0 | N15: 2036 | O15: =IF($C$2=0.1,VLOOKUP($C$1,Load!$J:$AN,MATCH(Calcs1!$N15,Load!$J$2:$AN$2,0),FALSE),VLOOKUP($C$1,Load!$AP:$BT,MATCH(Calcs1!$N15,Load!$AP$2:$BT$2,0),FALSE)) -> 27.22999954 | P15: =VLOOKUP($C$1,Load!$J:$AN,MATCH(Calcs1!$N15,Load!$J$2:$AN$2,0),FALSE) -> 27.22999954 | Q15: 0.1671667223 | R15: 0.1671667223 | S15: 35.85413125 | T15: 17.92706562 | U15: 18.246735 | V15: 0 | W15: 0 | X15: 0 | Y15: =(IF('Live scenario'!$C$36=TRUE,VLOOKUP(ZSS, Load!$A$3:$G$296,3,FALSE)*VLOOKUP(ZSS, Load!$A$3:$G$296,4,FALSE),0)+NN_LOAD_TRANSFER) -> 4.1 | Z15: 0.00183804354 | AA15: TRUE | AB15: 0.00183804354 | AC15: TRUE | AD15: 2 | AE15: 0.00183804354 | AF15: 1967 | AG15: 9999 | AH15: 1967 | AI15: 9999 | AJ15: =VLOOKUP(ZSS,Constants!$AT$37:$BO$178,2+Constants!$H$11,FALSE) -> TRUE | AK15: =VLOOKUP(ZSS,Constants!$AT$37:$BO$178,3+Constants!$H$11,FALSE) -> TRUE | AL15: =VLOOKUP(ZSS,Constants!$AT$37:$BO$178,4+Constants!$H$11,FALSE) -> 0.2 | AM15: =VLOOKUP(ZSS,Constants!$AT$37:$BO$178,5+Constants!$H$11,FALSE) -> TRUE | AN15: =VLOOKUP(ZSS,Constants!$AT$37:$BO$178,6+Constants!$H$11,FALSE) -> TRUE | AO15: =VLOOKUP(ZSS,Constants!$AT$37:$BO$178,7+Constants!$H$11,FALSE) -> TRUE | AP15: 0.001470434832 | AQ15: 0.000367608708 | AR15: 1.83804354e-05 | AS15: FALSE | AT15: 0.003308478372 | AU15: 0.0003697708866 | AV15: FALSE | AW15: FALSE | AX15: =(IF(Z15<>TRUE,VLOOKUP(Z15/'Live scenario'!$D$18,MAJORMINORPOF,2,TRUE),0)+IF(AA15<>TRUE,VLOOKUP(AA15/'Live scenario'!$D$19,MAJORMINORPOF,2,TRUE),0)+IF(AB15<>TRUE,VLOOKUP(AB15/'Live scenario'!$D$20,MAJORMINORPOF,2,TRUE),0)+IF(AC15<>TRUE,VLOOKUP(AC15/'Live scenario'!$D$21,MAJORMINORPOF,2,TRUE),0)) -> 0.01470434832 | AY15: 0.00367608708
D16: 2037 | E16: 0 | F16: 157.2384517 | G16: 18817.52709 | H16: 0 | I16: 0 | J16: 47.8655865 | K16: 18974.76554 | L16: 0 | N16: 2037 | O16: =IF($C$2=0.1,VLOOKUP($C$1,Load!$J:$AN,MATCH(Calcs1!$N16,Load!$J$2:$AN$2,0),FALSE),VLOOKUP($C$1,Load!$AP:$BT,MATCH(Calcs1!$N16,Load!$AP$2:$BT$2,0),FALSE)) -> 27.22999954 | P16: =VLOOKUP($C$1,Load!$J:$AN,MATCH(Calcs1!$N16,Load!$J$2:$AN$2,0),FALSE) -> 27.22999954 | Q16: 0.1671667223 | R16: 0.1671667223 | S16: 35.85413125 | T16: 17.92706562 | U16: 18.246735 | V16: 0 | W16: 0 | X16: 0 | Y16: =(IF('Live scenario'!$C$36=TRUE,VLOOKUP(ZSS, Load!$A$3:$G$296,3,FALSE)*VLOOKUP(ZSS, Load!$A$3:$G$296,4,FALSE),0)+NN_LOAD_TRANSFER) -> 4.1 | Z16: 0.00188355804 | AA16: TRUE | AB16: 0.00188355804 | AC16: TRUE | AD16: 2 | AE16: 0.00188355804 | AF16: 1967 | AG16: 9999 | AH16: 1967 | AI16: 9999 | AJ16: =VLOOKUP(ZSS,Constants!$AT$37:$BO$178,2+Constants!$H$11,FALSE) -> TRUE | AK16: =VLOOKUP(ZSS,Constants!$AT$37:$BO$178,3+Constants!$H$11,FALSE) -> TRUE | AL16: =VLOOKUP(ZSS,Constants!$AT$37:$BO$178,4+Constants!$H$11,FALSE) -> 0.2 | AM16: =VLOOKUP(ZSS,Constants!$AT$37:$BO$178,5+Constants!$H$11,FALSE) -> TRUE | AN16: =VLOOKUP(ZSS,Constants!$AT$37:$BO$178,6+Constants!$H$11,FALSE) -> TRUE | AO16: =VLOOKUP(ZSS,Constants!$AT$37:$BO$178,7+Constants!$H$11,FALSE) -> TRUE | AP16: 0.001506846432 | AQ16: 0.000376711608 | AR16: 1.88355804e-05 | AS16: FALSE | AT16: 0.003390404472 | AU16: 0.0003789821942 | AV16: FALSE | AW16: FALSE | AX16: =(IF(Z16<>TRUE,VLOOKUP(Z16/'Live scenario'!$D$18,MAJORMINORPOF,2,TRUE),0)+IF(AA16<>TRUE,VLOOKUP(AA16/'Live scenario'!$D$19,MAJORMINORPOF,2,TRUE),0)+IF(AB16<>TRUE,VLOOKUP(AB16/'Live scenario'!$D$20,MAJORMINORPOF,2,TRUE),0)+IF(AC16<>TRUE,VLOOKUP(AC16/'Live scenario'!$D$21,MAJORMINORPOF,2,TRUE),0)) -> 0.01506846432 | AY16: 0.00376711608
D17: 2038 | E17: 0 | F17: 161.0761655 | G17: 19279.62469 | H17: 0 | I17: 0 | J17: 49.03384032 | K17: 19440.70085 | L17: 0 | N17: 2038 | O17: =IF($C$2=0.1,VLOOKUP($C$1,Load!$J:$AN,MATCH(Calcs1!$N17,Load!$J$2:$AN$2,0),FALSE),VLOOKUP($C$1,Load!$AP:$BT,MATCH(Calcs1!$N17,Load!$AP$2:$BT$2,0),FALSE)) -> 27.22999954 | P17: =VLOOKUP($C$1,Load!$J:$AN,MATCH(Calcs1!$N17,Load!$J$2:$AN$2,0),FALSE) -> 27.22999954 | Q17: 0.1671667223 | R17: 0.1671667223 | S17: 35.85413125 | T17: 17.92706562 | U17: 18.246735 | V17: 0 | W17: 0 | X17: 0 | Y17: =(IF('Live scenario'!$C$36=TRUE,VLOOKUP(ZSS, Load!$A$3:$G$296,3,FALSE)*VLOOKUP(ZSS, Load!$A$3:$G$296,4,FALSE),0)+NN_LOAD_TRANSFER) -> 4.1 | Z17: 0.00192952998 | AA17: TRUE | AB17: 0.00192952998 | AC17: TRUE | AD17: 2 | AE17: 0.00192952998 | AF17: 1967 | AG17: 9999 | AH17: 1967 | AI17: 9999 | AJ17: =VLOOKUP(ZSS,Constants!$AT$37:$BO$178,2+Constants!$H$11,FALSE) -> TRUE | AK17: =VLOOKUP(ZSS,Constants!$AT$37:$BO$178,3+Constants!$H$11,FALSE) -> TRUE | AL17: =VLOOKUP(ZSS,Constants!$AT$37:$BO$178,4+Constants!$H$11,FALSE) -> 0.2 | AM17: =VLOOKUP(ZSS,Constants!$AT$37:$BO$178,5+Constants!$H$11,FALSE) -> TRUE | AN17: =VLOOKUP(ZSS,Constants!$AT$37:$BO$178,6+Constants!$H$11,FALSE) -> TRUE | AO17: =VLOOKUP(ZSS,Constants!$AT$37:$BO$178,7+Constants!$H$11,FALSE) -> TRUE | AP17: 0.001543623984 | AQ17: 0.000385905996 | AR17: 1.92952998e-05 | AS17: FALSE | AT17: 0.003473153964 | AU17: 0.000388288771 | AV17: FALSE | AW17: FALSE | AX17: =(IF(Z17<>TRUE,VLOOKUP(Z17/'Live scenario'!$D$18,MAJORMINORPOF,2,TRUE),0)+IF(AA17<>TRUE,VLOOKUP(AA17/'Live scenario'!$D$19,MAJORMINORPOF,2,TRUE),0)+IF(AB17<>TRUE,VLOOKUP(AB17/'Live scenario'!$D$20,MAJORMINORPOF,2,TRUE),0)+IF(AC17<>TRUE,VLOOKUP(AC17/'Live scenario'!$D$21,MAJORMINORPOF,2,TRUE),0)) -> 0.01543623984 | AY17: 0.00385905996
D18: 2039 | E18: 0 | F18: 164.9519058 | G18: 19746.43737 | H18: 0 | I18: 0 | J18: 50.21366996 | K18: 19911.38928 | L18: 0 | N18: 2039 | O18: =IF($C$2=0.1,VLOOKUP($C$1,Load!$J:$AN,MATCH(Calcs1!$N18,Load!$J$2:$AN$2,0),FALSE),VLOOKUP($C$1,Load!$AP:$BT,MATCH(Calcs1!$N18,Load!$AP$2:$BT$2,0),FALSE)) -> 27.22999954 | P18: =VLOOKUP($C$1,Load!$J:$AN,MATCH(Calcs1!$N18,Load!$J$2:$AN$2,0),FALSE) -> 27.22999954 | Q18: 0.1671667223 | R18: 0.1671667223 | S18: 35.85413125 | T18: 17.92706562 | U18: 18.246735 | V18: 0 | W18: 0 | X18: 0 | Y18: =(IF('Live scenario'!$C$36=TRUE,VLOOKUP(ZSS, Load!$A$3:$G$296,3,FALSE)*VLOOKUP(ZSS, Load!$A$3:$G$296,4,FALSE),0)+NN_LOAD_TRANSFER) -> 4.1 | Z18: 0.00197595744 | AA18: TRUE | AB18: 0.00197595744 | AC18: TRUE | AD18: 2 | AE18: 0.00197595744 | AF18: 1967 | AG18: 9999 | AH18: 1967 | AI18: 9999 | AJ18: =VLOOKUP(ZSS,Constants!$AT$37:$BO$178,2+Constants!$H$11,FALSE) -> TRUE | AK18: =VLOOKUP(ZSS,Constants!$AT$37:$BO$178,3+Constants!$H$11,FALSE) -> TRUE | AL18: =VLOOKUP(ZSS,Constants!$AT$37:$BO$178,4+Constants!$H$11,FALSE) -> 0.2 | AM18: =VLOOKUP(ZSS,Constants!$AT$37:$BO$178,5+Constants!$H$11,FALSE) -> TRUE | AN18: =VLOOKUP(ZSS,Constants!$AT$37:$BO$178,6+Constants!$H$11,FALSE) -> TRUE | AO18: =VLOOKUP(ZSS,Constants!$AT$37:$BO$178,7+Constants!$H$11,FALSE) -> TRUE | AP18: 0.001580765952 | AQ18: 0.000395191488 | AR18: 1.97595744e-05 | AS18: FALSE | AT18: 0.003556723392 | AU18: =IF(AD18=1,FALSE,IF(AD18=2,AP18^2+AQ18,IF(AD18=3,3*AP18^2+3*AQ18+AR18,IF(AD18=4,6*AP18^2+6*AQ18+4*AR18+AS18)))) -> 0.000397690309 | AV18: FALSE | AW18: FALSE | AX18: =(IF(Z18<>TRUE,VLOOKUP(Z18/'Live scenario'!$D$18,MAJORMINORPOF,2,TRUE),0)+IF(AA18<>TRUE,VLOOKUP(AA18/'Live scenario'!$D$19,MAJORMINORPOF,2,TRUE),0)+IF(AB18<>TRUE,VLOOKUP(AB18/'Live scenario'!$D$20,MAJORMINORPOF,2,TRUE),0)+IF(AC18<>TRUE,VLOOKUP(AC18/'Live scenario'!$D$21,MAJORMINORPOF,2,TRUE),0)) -> 0.01580765952 | AY18: 0.00395191488
D19: 2040 | E19: 0 | F19: 168.8655091 | G19: 20217.94946 | H19: 0 | I19: 0 | J19: 51.40502561 | K19: 20386.81497 | L19: 0 | N19: 2040 | O19: =IF($C$2=0.1,VLOOKUP($C$1,Load!$J:$AN,MATCH(Calcs1!$N19,Load!$J$2:$AN$2,0),FALSE),VLOOKUP($C$1,Load!$AP:$BT,MATCH(Calcs1!$N19,Load!$AP$2:$BT$2,0),FALSE)) -> 27.22999954 | P19: =VLOOKUP($C$1,Load!$J:$AN,MATCH(Calcs1!$N19,Load!$J$2:$AN$2,0),FALSE) -> 27.22999954 | Q19: 0.1671667223 | R19: 0.1671667223 | S19: 35.85413125 | T19: 17.92706562 | U19: 18.246735 | V19: 0 | W19: 0 | X19: 0 | Y19: =(IF('Live scenario'!$C$36=TRUE,VLOOKUP(ZSS, Load!$A$3:$G$296,3,FALSE)*VLOOKUP(ZSS, Load!$A$3:$G$296,4,FALSE),0)+NN_LOAD_TRANSFER) -> 4.1 | Z19: 0.00202283846 | AA19: TRUE | AB19: 0.00202283846 | AC19: TRUE | AD19: 2 | AE19: 0.00202283846 | AF19: 1967 | AG19: 9999 | AH19: 1967 | AI19: 9999 | AJ19: =VLOOKUP(ZSS,Constants!$AT$37:$BO$178,2+Constants!$H$11,FALSE) -> TRUE | AK19: =VLOOKUP(ZSS,Constants!$AT$37:$BO$178,3+Constants!$H$11,FALSE) -> TRUE | AL19: =VLOOKUP(ZSS,Constants!$AT$37:$BO$178,4+Constants!$H$11,FALSE) -> 0.2 | AM19: =VLOOKUP(ZSS,Constants!$AT$37:$BO$178,5+Constants!$H$11,FALSE) -> TRUE | AN19: =VLOOKUP(ZSS,Constants!$AT$37:$BO$178,6+Constants!$H$11,FALSE) -> TRUE | AO19: =VLOOKUP(ZSS,Constants!$AT$37:$BO$178,7+Constants!$H$11,FALSE) -> TRUE | AP19: 0.001618270768 | AQ19: 0.000404567692 | AR19: 2.02283846e-05 | AS19: FALSE | AT19: 0.003641109228 | AU19: 0.0004071864923 | AV19: FALSE | AW19: FALSE | AX19: =(IF(Z19<>TRUE,VLOOKUP(Z19/'Live scenario'!$D$18,MAJORMINORPOF,2,TRUE),0)+IF(AA19<>TRUE,VLOOKUP(AA19/'Live scenario'!$D$19,MAJORMINORPOF,2,TRUE),0)+IF(AB19<>TRUE,VLOOKUP(AB19/'Live scenario'!$D$20,MAJORMINORPOF,2,TRUE),0)+IF(AC19<>TRUE,VLOOKUP(AC19/'Live scenario'!$D$21,MAJORMINORPOF,2,TRUE),0)) -> 0.01618270768 | AY19: 0.00404567692
D20: 2041 | E20: 0 | F20: 172.8168218 | G20: 20694.1465 | H20: 0 | I20: 0 | J20: 52.60786052 | K20: 20866.96332 | L20: 0 | N20: 2041 | O20: =IF($C$2=0.1,VLOOKUP($C$1,Load!$J:$AN,MATCH(Calcs1!$N20,Load!$J$2:$AN$2,0),FALSE),VLOOKUP($C$1,Load!$AP:$BT,MATCH(Calcs1!$N20,Load!$AP$2:$BT$2,0),FALSE)) -> 27.22999954 | P20: =VLOOKUP($C$1,Load!$J:$AN,MATCH(Calcs1!$N20,Load!$J$2:$AN$2,0),FALSE) -> 27.22999954 | Q20: 0.1671667223 | R20: 0.1671667223 | S20: 35.85413125 | T20: 17.92706562 | U20: 18.246735 | V20: 0 | W20: 0 | X20: 0 | Y20: =(IF('Live scenario'!$C$36=TRUE,VLOOKUP(ZSS, Load!$A$3:$G$296,3,FALSE)*VLOOKUP(ZSS, Load!$A$3:$G$296,4,FALSE),0)+NN_LOAD_TRANSFER) -> 4.1 | Z20: 0.0020701712 | AA20: TRUE | AB20: 0.0020701712 | AC20: TRUE | AD20: 2 | AE20: 0.0020701712 | AF20: 1967 | AG20: 9999 | AH20: 1967 | AI20: 9999 | AJ20: =VLOOKUP(ZSS,Constants!$AT$37:$BO$178,2+Constants!$H$11,FALSE) -> TRUE | AK20: =VLOOKUP(ZSS,Constants!$AT$37:$BO$178,3+Constants!$H$11,FALSE) -> TRUE | AL20: =VLOOKUP(ZSS,Constants!$AT$37:$BO$178,4+Constants!$H$11,FALSE) -> 0.2 | AM20: =VLOOKUP(ZSS,Constants!$AT$37:$BO$178,5+Constants!$H$11,FALSE) -> TRUE | AN20: =VLOOKUP(ZSS,Constants!$AT$37:$BO$178,6+Constants!$H$11,FALSE) -> TRUE | AO20: =VLOOKUP(ZSS,Constants!$AT$37:$BO$178,7+Constants!$H$11,FALSE) -> TRUE | AP20: 0.00165613696 | AQ20: 0.00041403424 | AR20: 2.0701712e-05 | AS20: FALSE | AT20: 0.00372630816 | AU20: 0.0004167770296 | AV20: FALSE | AW20: FALSE | AX20: =(IF(Z20<>TRUE,VLOOKUP(Z20/'Live scenario'!$D$18,MAJORMINORPOF,2,TRUE),0)+IF(AA20<>TRUE,VLOOKUP(AA20/'Live scenario'!$D$19,MAJORMINORPOF,2,TRUE),0)+IF(AB20<>TRUE,VLOOKUP(AB20/'Live scenario'!$D$20,MAJORMINORPOF,2,TRUE),0)+IF(AC20<>TRUE,VLOOKUP(AC20/'Live scenario'!$D$21,MAJORMINORPOF,2,TRUE),0)) -> 0.0165613696 | AY20: 0.0041403424
D21: 2042 | E21: 0 | F21: 176.8056902 | G21: 21175.01403 | H21: 0 | I21: 0 | J21: 53.82212792 | K21: =(SUM(E21:I21,L21)) -> 21351.81972 | L21: 0 | N21: 2042 | O21: =IF($C$2=0.1,VLOOKUP($C$1,Load!$J:$AN,MATCH(Calcs1!$N21,Load!$J$2:$AN$2,0),FALSE),VLOOKUP($C$1,Load!$AP:$BT,MATCH(Calcs1!$N21,Load!$AP$2:$BT$2,0),FALSE)) -> 27.22999954 | P21: =VLOOKUP($C$1,Load!$J:$AN,MATCH(Calcs1!$N21,Load!$J$2:$AN$2,0),FALSE) -> 27.22999954 | Q21: 0.1671667223 | R21: 0.1671667223 | S21: 35.85413125 | T21: 17.92706562 | U21: 18.246735 | V21: 0 | W21: 0 | X21: 0 | Y21: =(IF('Live scenario'!$C$36=TRUE,VLOOKUP(ZSS, Load!$A$3:$G$296,3,FALSE)*VLOOKUP(ZSS, Load!$A$3:$G$296,4,FALSE),0)+NN_LOAD_TRANSFER) -> 4.1 | Z21: 0.00211795382 | AA21: TRUE | AB21: 0.00211795382 | AC21: TRUE | AD21: =COUNTIF(Z21:AC21, "<>"&TRUE) -> 2 | AE21: 0.00211795382 | AF21: 1967 | AG21: 9999 | AH21: 1967 | AI21: 9999 | AJ21: =VLOOKUP(ZSS,Constants!$AT$37:$BO$178,2+Constants!$H$11,FALSE) -> TRUE | AK21: =VLOOKUP(ZSS,Constants!$AT$37:$BO$178,3+Constants!$H$11,FALSE) -> TRUE | AL21: =VLOOKUP(ZSS,Constants!$AT$37:$BO$178,4+Constants!$H$11,FALSE) -> 0.2 | AM21: =VLOOKUP(ZSS,Constants!$AT$37:$BO$178,5+Constants!$H$11,FALSE) -> TRUE | AN21: =VLOOKUP(ZSS,Constants!$AT$37:$BO$178,6+Constants!$H$11,FALSE) -> TRUE | AO21: =VLOOKUP(ZSS,Constants!$AT$37:$BO$178,7+Constants!$H$11,FALSE) -> TRUE | AP21: =IF(AD21=1,AE21,(1-MAX(AJ21:AO21))*AE21) -> 0.001694363056 | AQ21: 0.000423590764 | AR21: 2.11795382e-05 | AS21: FALSE | AT21: =IF(AD21=1,AE21,IF(AD21=2,2*AP21+AQ21,IF(AD21=3,3*AP21+3*AQ21+AR21,IF(AD21=4,4*AP21+6*AQ21+4*AR21+AS21)))) -> 0.003812316876 | AU21: =IF(AD21=1,FALSE,IF(AD21=2,AP21^2+AQ21,IF(AD21=3,3*AP21^2+3*AQ21+AR21,IF(AD21=4,6*AP21^2+6*AQ21+4*AR21+AS21)))) -> 0.0004264616302 | AV21: =IF(AD21=3,AP21^3+3*AP21*AQ21+AR21,IF(AD21=4,4*AP21^3+12*AP21*AQ21+3*AQ21^2+4*AR21+AS21,FALSE)) -> FALSE | AW21: =IF(AD21=4,AP21^4+3*AQ21^2+4*AP21*AR21+AS21+6*AP21^2*AQ21,FALSE) -> FALSE | AX21: =(IF(Z21<>TRUE,VLOOKUP(Z21/'Live scenario'!$D$18,MAJORMINORPOF,2,TRUE),0)+IF(AA21<>TRUE,VLOOKUP(AA21/'Live scenario'!$D$19,MAJORMINORPOF,2,TRUE),0)+IF(AB21<>TRUE,VLOOKUP(AB21/'Live scenario'!$D$20,MAJORMINORPOF,2,TRUE),0)+IF(AC21<>TRUE,VLOOKUP(AC21/'Live scenario'!$D$21,MAJORMINORPOF,2,TRUE),0)) -> 0.01694363056 | AY21: =SUM(Z21:AC21) -> 0.00423590764
D22: 2043 | E22: 0 | F22: 180.8319641 | G22: 21660.53804 | H22: 0 | I22: 0 | J22: 55.04778208 | K22: =(SUM(E22:I22,L22)) -> 21841.37 | L22: 0 | N22: 2043 | O22: =IF($C$2=0.1,VLOOKUP($C$1,Load!$J:$AN,MATCH(Calcs1!$N22,Load!$J$2:$AN$2,0),FALSE),VLOOKUP($C$1,Load!$AP:$BT,MATCH(Calcs1!$N22,Load!$AP$2:$BT$2,0),FALSE)) -> 27.22999954 | P22: =VLOOKUP($C$1,Load!$J:$AN,MATCH(Calcs1!$N22,Load!$J$2:$AN$2,0),FALSE) -> 27.22999954 | Q22: 0.1671667223 | R22: 0.1671667223 | S22: 35.85413125 | T22: 17.92706562 | U22: 18.246735 | V22: 0 | W22: 0 | X22: 0 | Y22: =(IF('Live scenario'!$C$36=TRUE,VLOOKUP(ZSS, Load!$A$3:$G$296,3,FALSE)*VLOOKUP(ZSS, Load!$A$3:$G$296,4,FALSE),0)+NN_LOAD_TRANSFER) -> 4.1 | Z22: =HLOOKUP($N22, $AF$39:$BG$48,2,FALSE) -> 0.00216618452 | AA22: TRUE | AB22: 0.00216618452 | AC22: TRUE | AD22: 2 | AE22: =(Z22*AA22*AB22*AC22)^(1/AD22) -> 0.00216618452 | AF22: 1967 | AG22: 9999 | AH22: 1967 | AI22: 9999 | AJ22: =VLOOKUP(ZSS,Constants!$AT$37:$BO$178,2+Constants!$H$11,FALSE) -> TRUE | AK22: =VLOOKUP(ZSS,Constants!$AT$37:$BO$178,3+Constants!$H$11,FALSE) -> TRUE | AL22: =VLOOKUP(ZSS,Constants!$AT$37:$BO$178,4+Constants!$H$11,FALSE) -> 0.2 | AM22: =VLOOKUP(ZSS,Constants!$AT$37:$BO$178,5+Constants!$H$11,FALSE) -> TRUE | AN22: =VLOOKUP(ZSS,Constants!$AT$37:$BO$178,6+Constants!$H$11,FALSE) -> TRUE | AO22: =VLOOKUP(ZSS,Constants!$AT$37:$BO$178,7+Constants!$H$11,FALSE) -> TRUE | AP22: 0.001732947616 | AQ22: 0.000433236904 | AR22: 2.16618452e-05 | AS22: FALSE | AT22: 0.003899132136 | AU22: 0.0004362400114 | AV22: FALSE | AW22: FALSE | AX22: =(IF(Z22<>TRUE,VLOOKUP(Z22/'Live scenario'!$D$18,MAJORMINORPOF,2,TRUE),0)+IF(AA22<>TRUE,VLOOKUP(AA22/'Live scenario'!$D$19,MAJORMINORPOF,2,TRUE),0)+IF(AB22<>TRUE,VLOOKUP(AB22/'Live scenario'!$D$20,MAJORMINORPOF,2,TRUE),0)+IF(AC22<>TRUE,VLOOKUP(AC22/'Live scenario'!$D$21,MAJORMINORPOF,2,TRUE),0)) -> 0.01732947616 | AY22: 0.00433236904
D23: 2044 | E23: 0 | F23: 184.8954933 | G23: 22150.70452 | H23: 0 | I23: 0 | J23: 56.28477725 | K23: =(SUM(E23:I23,L23)) -> 22335.60001 | L23: 0 | N23: 2044 | O23: =IF($C$2=0.1,VLOOKUP($C$1,Load!$J:$AN,MATCH(Calcs1!$N23,Load!$J$2:$AN$2,0),FALSE),VLOOKUP($C$1,Load!$AP:$BT,MATCH(Calcs1!$N23,Load!$AP$2:$BT$2,0),FALSE)) -> 27.22999954 | P23: =VLOOKUP($C$1,Load!$J:$AN,MATCH(Calcs1!$N23,Load!$J$2:$AN$2,0),FALSE) -> 27.22999954 | Q23: 0.1671667223 | R23: 0.1671667223 | S23: 35.85413125 | T23: 17.92706562 | U23: 18.246735 | V23: 0 | W23: 0 | X23: 0 | Y23: =(IF('Live scenario'!$C$36=TRUE,VLOOKUP(ZSS, Load!$A$3:$G$296,3,FALSE)*VLOOKUP(ZSS, Load!$A$3:$G$296,4,FALSE),0)+NN_LOAD_TRANSFER) -> 4.1 | Z23: 0.0022148615 | AA23: TRUE | AB23: 0.0022148615 | AC23: TRUE | AD23: 2 | AE23: 0.0022148615 | AF23: 1967 | AG23: 9999 | AH23: 1967 | AI23: 9999 | AJ23: =VLOOKUP(ZSS,Constants!$AT$37:$BO$178,2+Constants!$H$11,FALSE) -> TRUE | AK23: =VLOOKUP(ZSS,Constants!$AT$37:$BO$178,3+Constants!$H$11,FALSE) -> TRUE | AL23: =VLOOKUP(ZSS,Constants!$AT$37:$BO$178,4+Constants!$H$11,FALSE) -> 0.2 | AM23: =VLOOKUP(ZSS,Constants!$AT$37:$BO$178,5+Constants!$H$11,FALSE) -> TRUE | AN23: =VLOOKUP(ZSS,Constants!$AT$37:$BO$178,6+Constants!$H$11,FALSE) -> TRUE | AO23: =VLOOKUP(ZSS,Constants!$AT$37:$BO$178,7+Constants!$H$11,FALSE) -> TRUE | AP23: 0.0017718892 | AQ23: 0.0004429723 | AR23: 2.2148615e-05 | AS23: FALSE | AT23: 0.0039867507 | AU23: 0.0004461118913 | AV23: FALSE | AW23: FALSE | AX23: =(IF(Z23<>TRUE,VLOOKUP(Z23/'Live scenario'!$D$18,MAJORMINORPOF,2,TRUE),0)+IF(AA23<>TRUE,VLOOKUP(AA23/'Live scenario'!$D$19,MAJORMINORPOF,2,TRUE),0)+IF(AB23<>TRUE,VLOOKUP(AB23/'Live scenario'!$D$20,MAJORMINORPOF,2,TRUE),0)+IF(AC23<>TRUE,VLOOKUP(AC23/'Live scenario'!$D$21,MAJORMINORPOF,2,TRUE),0)) -> 0.017718892 | AY23: 0.004429723
D24: 2045 | E24: 0 | F24: 188.9961324 | G24: 22645.50008 | H24: 0 | I24: 0 | J24: 57.53306922 | K24: =(SUM(E24:I24,L24)) -> 22834.49621 | L24: 0 | N24: 2045 | O24: =IF($C$2=0.1,VLOOKUP($C$1,Load!$J:$AN,MATCH(Calcs1!$N24,Load!$J$2:$AN$2,0),FALSE),VLOOKUP($C$1,Load!$AP:$BT,MATCH(Calcs1!$N24,Load!$AP$2:$BT$2,0),FALSE)) -> 27.22999954 | P24: =VLOOKUP($C$1,Load!$J:$AN,MATCH(Calcs1!$N24,Load!$J$2:$AN$2,0),FALSE) -> 27.22999954 | Q24: 0.1671667223 | R24: 0.1671667223 | S24: 35.85413125 | T24: 17.92706562 | U24: 18.246735 | V24: 0 | W24: 0 | X24: 0 | Y24: =(IF('Live scenario'!$C$36=TRUE,VLOOKUP(ZSS, Load!$A$3:$G$296,3,FALSE)*VLOOKUP(ZSS, Load!$A$3:$G$296,4,FALSE),0)+NN_LOAD_TRANSFER) -> 4.1 | Z24: 0.00226398302 | AA24: TRUE | AB24: 0.00226398302 | AC24: TRUE | AD24: 2 | AE24: 0.00226398302 | AF24: 1967 | AG24: 9999 | AH24: 1967 | AI24: 9999 | AJ24: =VLOOKUP(ZSS,Constants!$AT$37:$BO$178,2+Constants!$H$11,FALSE) -> TRUE | AK24: =VLOOKUP(ZSS,Constants!$AT$37:$BO$178,3+Constants!$H$11,FALSE) -> TRUE | AL24: =VLOOKUP(ZSS,Constants!$AT$37:$BO$178,4+Constants!$H$11,FALSE) -> 0.2 | AM24: =VLOOKUP(ZSS,Constants!$AT$37:$BO$178,5+Constants!$H$11,FALSE) -> TRUE | AN24: =VLOOKUP(ZSS,Constants!$AT$37:$BO$178,6+Constants!$H$11,FALSE) -> TRUE | AO24: =VLOOKUP(ZSS,Constants!$AT$37:$BO$178,7+Constants!$H$11,FALSE) -> TRUE | AP24: 0.001811186416 | AQ24: 0.000452796604 | AR24: 2.26398302e-05 | AS24: FALSE | AT24: 0.004075169436 | AU24: 0.0004560770002 | AV24: FALSE | AW24: FALSE | AX24: =(IF(Z24<>TRUE,VLOOKUP(Z24/'Live scenario'!$D$18,MAJORMINORPOF,2,TRUE),0)+IF(AA24<>TRUE,VLOOKUP(AA24/'Live scenario'!$D$19,MAJORMINORPOF,2,TRUE),0)+IF(AB24<>TRUE,VLOOKUP(AB24/'Live scenario'!$D$20,MAJORMINORPOF,2,TRUE),0)+IF(AC24<>TRUE,VLOOKUP(AC24/'Live scenario'!$D$21,MAJORMINORPOF,2,TRUE),0)) -> 0.01811186416 | AY24: 0.00452796604
D25: 2046 | E25: 0 | F25: 193.1337379 | G25: 23144.91155 | H25: 0 | I25: 0 | J25: 58.79261426 | K25: =(SUM(E25:I25,L25)) -> 23338.04528 | L25: 0 | N25: 2046 | O25: =IF($C$2=0.1,VLOOKUP($C$1,Load!$J:$AN,MATCH(Calcs1!$N25,Load!$J$2:$AN$2,0),FALSE),VLOOKUP($C$1,Load!$AP:$BT,MATCH(Calcs1!$N25,Load!$AP$2:$BT$2,0),FALSE)) -> 27.22999954 | P25: =VLOOKUP($C$1,Load!$J:$AN,MATCH(Calcs1!$N25,Load!$J$2:$AN$2,0),FALSE) -> 27.22999954 | Q25: 0.1671667223 | R25: 0.1671667223 | S25: 35.85413125 | T25: 17.92706562 | U25: 18.246735 | V25: 0 | W25: 0 | X25: 0 | Y25: =(IF('Live scenario'!$C$36=TRUE,VLOOKUP(ZSS, Load!$A$3:$G$296,3,FALSE)*VLOOKUP(ZSS, Load!$A$3:$G$296,4,FALSE),0)+NN_LOAD_TRANSFER) -> 4.1 | Z25: 0.00231354736 | AA25: TRUE | AB25: 0.00231354736 | AC25: TRUE | AD25: 2 | AE25: 0.00231354736 | AF25: 1967 | AG25: 9999 | AH25: 1967 | AI25: 9999 | AJ25: =VLOOKUP(ZSS,Constants!$AT$37:$BO$178,2+Constants!$H$11,FALSE) -> TRUE | AK25: =VLOOKUP(ZSS,Constants!$AT$37:$BO$178,3+Constants!$H$11,FALSE) -> TRUE | AL25: =VLOOKUP(ZSS,Constants!$AT$37:$BO$178,4+Constants!$H$11,FALSE) -> 0.2 | AM25: =VLOOKUP(ZSS,Constants!$AT$37:$BO$178,5+Constants!$H$11,FALSE) -> TRUE | AN25: =VLOOKUP(ZSS,Constants!$AT$37:$BO$178,6+Constants!$H$11,FALSE) -> TRUE | AO25: =VLOOKUP(ZSS,Constants!$AT$37:$BO$178,7+Constants!$H$11,FALSE) -> TRUE | AP25: 0.001850837888 | AQ25: 0.000462709472 | AR25: 2.31354736e-05 | AS25: FALSE | AT25: 0.004164385248 | AU25: 0.0004661350729 | AV25: FALSE | AW25: FALSE | AX25: =(IF(Z25<>TRUE,VLOOKUP(Z25/'Live scenario'!$D$18,MAJORMINORPOF,2,TRUE),0)+IF(AA25<>TRUE,VLOOKUP(AA25/'Live scenario'!$D$19,MAJORMINORPOF,2,TRUE),0)+IF(AB25<>TRUE,VLOOKUP(AB25/'Live scenario'!$D$20,MAJORMINORPOF,2,TRUE),0)+IF(AC25<>TRUE,VLOOKUP(AC25/'Live scenario'!$D$21,MAJORMINORPOF,2,TRUE),0)) -> 0.01850837888 | AY25: 0.00462709472
D26: 2047 | E26: 0 | F26: 197.3081712 | G26: 23648.92638 | H26: 0 | I26: 0 | J26: 60.06337021 | K26: 23846.23455 | L26: 0 | N26: 2047 | O26: =IF($C$2=0.1,VLOOKUP($C$1,Load!$J:$AN,MATCH(Calcs1!$N26,Load!$J$2:$AN$2,0),FALSE),VLOOKUP($C$1,Load!$AP:$BT,MATCH(Calcs1!$N26,Load!$AP$2:$BT$2,0),FALSE)) -> 27.22999954 | P26: =VLOOKUP($C$1,Load!$J:$AN,MATCH(Calcs1!$N26,Load!$J$2:$AN$2,0),FALSE) -> 27.22999954 | Q26: 0.1671667223 | R26: 0.1671667223 | S26: 35.85413125 | T26: 17.92706562 | U26: 18.246735 | V26: 0 | W26: 0 | X26: 0 | Y26: =(IF('Live scenario'!$C$36=TRUE,VLOOKUP(ZSS, Load!$A$3:$G$296,3,FALSE)*VLOOKUP(ZSS, Load!$A$3:$G$296,4,FALSE),0)+NN_LOAD_TRANSFER) -> 4.1 | Z26: 0.00236355286 | AA26: TRUE | AB26: 0.00236355286 | AC26: TRUE | AD26: 2 | AE26: 0.00236355286 | AF26: 1967 | AG26: 9999 | AH26: 1967 | AI26: 9999 | AJ26: =VLOOKUP(ZSS,Constants!$AT$37:$BO$178,2+Constants!$H$11,FALSE) -> TRUE | AK26: =VLOOKUP(ZSS,Constants!$AT$37:$BO$178,3+Constants!$H$11,FALSE) -> TRUE | AL26: =VLOOKUP(ZSS,Constants!$AT$37:$BO$178,4+Constants!$H$11,FALSE) -> 0.2 | AM26: =VLOOKUP(ZSS,Constants!$AT$37:$BO$178,5+Constants!$H$11,FALSE) -> TRUE | AN26: =VLOOKUP(ZSS,Constants!$AT$37:$BO$178,6+Constants!$H$11,FALSE) -> TRUE | AO26: =VLOOKUP(ZSS,Constants!$AT$37:$BO$178,7+Constants!$H$11,FALSE) -> TRUE | AP26: 0.001890842288 | AQ26: 0.000472710572 | AR26: 2.36355286e-05 | AS26: FALSE | AT26: 0.004254395148 | AU26: 0.0004762858566 | AV26: FALSE | AW26: FALSE | AX26: =(IF(Z26<>TRUE,VLOOKUP(Z26/'Live scenario'!$D$18,MAJORMINORPOF,2,TRUE),0)+IF(AA26<>TRUE,VLOOKUP(AA26/'Live scenario'!$D$19,MAJORMINORPOF,2,TRUE),0)+IF(AB26<>TRUE,VLOOKUP(AB26/'Live scenario'!$D$20,MAJORMINORPOF,2,TRUE),0)+IF(AC26<>TRUE,VLOOKUP(AC26/'Live scenario'!$D$21,MAJORMINORPOF,2,TRUE),0)) -> 0.01890842288 | AY26: 0.00472710572
D27: 2048 | E27: 0 | F27: 201.5192903 | G27: 24157.53163 | H27: =SUMIFS($W$39:$W$4500,$A$39:$A$4500,$D27) -> 0 | I27: 0 | J27: 61.34529386 | K27: =(SUM(E27:I27,L27)) -> 24359.05093 | L27: 0 | N27: 2048 | O27: =IF($C$2=0.1,VLOOKUP($C$1,Load!$J:$AN,MATCH(Calcs1!$N27,Load!$J$2:$AN$2,0),FALSE),VLOOKUP($C$1,Load!$AP:$BT,MATCH(Calcs1!$N27,Load!$AP$2:$BT$2,0),FALSE)) -> 27.22999954 | P27: =VLOOKUP($C$1,Load!$J:$AN,MATCH(Calcs1!$N27,Load!$J$2:$AN$2,0),FALSE) -> 27.22999954 | Q27: =O27/$O$4-1 -> 0.1671667223 | R27: =P27/($O$4)-1 -> 0.1671667223 | S27: 35.85413125 | T27: 17.92706562 | U27: 18.246735 | V27: 0 | W27: 0 | X27: 1 | Y27: =(IF('Live scenario'!$C$36=TRUE,VLOOKUP(ZSS, Load!$A$3:$G$296,3,FALSE)*VLOOKUP(ZSS, Load!$A$3:$G$296,4,FALSE),0)+NN_LOAD_TRANSFER) -> 4.1 | Z27: 0.00241399782 | AA27: TRUE | AB27: 0.00241399782 | AC27: TRUE | AD27: =COUNTIF(Z27:AC27, "<>"&TRUE) -> 2 | AE27: =(Z27*AA27*AB27*AC27)^(1/AD27) -> 0.00241399782 | AF27: 1967 | AG27: 9999 | AH27: 1967 | AI27: 9999 | AJ27: =VLOOKUP(ZSS,Constants!$AT$37:$BO$178,2+Constants!$H$11,FALSE) -> TRUE | AK27: =VLOOKUP(ZSS,Constants!$AT$37:$BO$178,3+Constants!$H$11,FALSE) -> TRUE | AL27: =VLOOKUP(ZSS,Constants!$AT$37:$BO$178,4+Constants!$H$11,FALSE) -> 0.2 | AM27: =VLOOKUP(ZSS,Constants!$AT$37:$BO$178,5+Constants!$H$11,FALSE) -> TRUE | AN27: =VLOOKUP(ZSS,Constants!$AT$37:$BO$178,6+Constants!$H$11,FALSE) -> TRUE | AO27: =VLOOKUP(ZSS,Constants!$AT$37:$BO$178,7+Constants!$H$11,FALSE) -> TRUE | AP27: 0.001931198256 | AQ27: =IF(AD27=1,0,IF(AD27=2,MAX(AJ27:AO27)*AE27,IF(AD27=3,0.5*MAX(AJ27:AO27)*(1-$AH$1)*AE27, IF(AD27=4,0.33*MAX(AJ27:AO27)*$AH$1*(1-$AH$1)*AE27,FALSE)))) -> 0.000482799564 | AR27: =AQ27*$AH$1 -> 2.41399782e-05 | AS27: =IF(AD27=4,MAX(AJ27:AO27)*$AH$1*$AH$1*AE27,FALSE) -> FALSE | AT27: 0.004345196076 | AU27: 0.0004865290907 | AV27: FALSE | AW27: FALSE | AX27: =(IF(Z27<>TRUE,VLOOKUP(Z27/'Live scenario'!$D$18,MAJORMINORPOF,2,TRUE),0)+IF(AA27<>TRUE,VLOOKUP(AA27/'Live scenario'!$D$19,MAJORMINORPOF,2,TRUE),0)+IF(AB27<>TRUE,VLOOKUP(AB27/'Live scenario'!$D$20,MAJORMINORPOF,2,TRUE),0)+IF(AC27<>TRUE,VLOOKUP(AC27/'Live scenario'!$D$21,MAJORMINORPOF,2,TRUE),0)) -> 0.01931198256 | AY27: =SUM(Z27:AC27) -> 0.00482799564
D28: 2049 | E28: 0 | F28: 205.7669602 | G28: 24670.7152 | H28: 0 | I28: 0 | J28: 62.63834405 | K28: 24876.48216 | L28: 0 | N28: 2049 | O28: =IF($C$2=0.1,VLOOKUP($C$1,Load!$J:$AN,MATCH(Calcs1!$N28,Load!$J$2:$AN$2,0),FALSE),VLOOKUP($C$1,Load!$AP:$BT,MATCH(Calcs1!$N28,Load!$AP$2:$BT$2,0),FALSE)) -> 27.22999954 | P28: =VLOOKUP($C$1,Load!$J:$AN,MATCH(Calcs1!$N28,Load!$J$2:$AN$2,0),FALSE) -> 27.22999954 | Q28: =O28/$O$4-1 -> 0.1671667223 | R28: =P28/($O$4)-1 -> 0.1671667223 | S28: 35.85413125 | T28: 17.92706562 | U28: 18.246735 | V28: 0 | W28: 0 | X28: 2 | Y28: =(IF('Live scenario'!$C$36=TRUE,VLOOKUP(ZSS, Load!$A$3:$G$296,3,FALSE)*VLOOKUP(ZSS, Load!$A$3:$G$296,4,FALSE),0)+NN_LOAD_TRANSFER) -> 4.1 | Z28: 0.00246488062 | AA28: TRUE | AB28: 0.00246488062 | AC28: TRUE | AD28: =COUNTIF(Z28:AC28, "<>"&TRUE) -> 2 | AE28: =(Z28*AA28*AB28*AC28)^(1/AD28) -> 0.00246488062 | AF28: 1967 | AG28: 9999 | AH28: 1967 | AI28: 9999 | AJ28: =VLOOKUP(ZSS,Constants!$AT$37:$BO$178,2+Constants!$H$11,FALSE) -> TRUE | AK28: =VLOOKUP(ZSS,Constants!$AT$37:$BO$178,3+Constants!$H$11,FALSE) -> TRUE | AL28: =VLOOKUP(ZSS,Constants!$AT$37:$BO$178,4+Constants!$H$11,FALSE) -> 0.2 | AM28: =VLOOKUP(ZSS,Constants!$AT$37:$BO$178,5+Constants!$H$11,FALSE) -> TRUE | AN28: =VLOOKUP(ZSS,Constants!$AT$37:$BO$178,6+Constants!$H$11,FALSE) -> TRUE | AO28: =VLOOKUP(ZSS,Constants!$AT$37:$BO$178,7+Constants!$H$11,FALSE) -> TRUE | AP28: 0.001971904496 | AQ28: =IF(AD28=1,0,IF(AD28=2,MAX(AJ28:AO28)*AE28,IF(AD28=3,0.5*MAX(AJ28:AO28)*(1-$AH$1)*AE28, IF(AD28=4,0.33*MAX(AJ28:AO28)*$AH$1*(1-$AH$1)*AE28,FALSE)))) -> 0.000492976124 | AR28: =AQ28*$AH$1 -> 2.46488062e-05 | AS28: =IF(AD28=4,MAX(AJ28:AO28)*$AH$1*$AH$1*AE28,FALSE) -> FALSE | AT28: 0.004436785116 | AU28: 0.0004968645313 | AV28: FALSE | AW28: FALSE | AX28: =(IF(Z28<>TRUE,VLOOKUP(Z28/'Live scenario'!$D$18,MAJORMINORPOF,2,TRUE),0)+IF(AA28<>TRUE,VLOOKUP(AA28/'Live scenario'!$D$19,MAJORMINORPOF,2,TRUE),0)+IF(AB28<>TRUE,VLOOKUP(AB28/'Live scenario'!$D$20,MAJORMINORPOF,2,TRUE),0)+IF(AC28<>TRUE,VLOOKUP(AC28/'Live scenario'!$D$21,MAJORMINORPOF,2,TRUE),0)) -> 0.01971904496 | AY28: =SUM(Z28:AC28) -> 0.00492976124
D29: 2050 | E29: 0 | F29: 210.0510455 | G29: 25188.46498 | H29: 0 | I29: 0 | J29: 63.94247959 | K29: 25398.51603 | L29: 0 | N29: 2050 | O29: =IF($C$2=0.1,VLOOKUP($C$1,Load!$J:$AN,MATCH(Calcs1!$N29,Load!$J$2:$AN$2,0),FALSE),VLOOKUP($C$1,Load!$AP:$BT,MATCH(Calcs1!$N29,Load!$AP$2:$BT$2,0),FALSE)) -> 27.22999954 | P29: =VLOOKUP($C$1,Load!$J:$AN,MATCH(Calcs1!$N29,Load!$J$2:$AN$2,0),FALSE) -> 27.22999954 | Q29: =O29/$O$4-1 -> 0.1671667223 | R29: =P29/($O$4)-1 -> 0.1671667223 | S29: 35.85413125 | T29: 17.92706562 | U29: 18.246735 | V29: 0 | W29: 0 | X29: 3 | Y29: =(IF('Live scenario'!$C$36=TRUE,VLOOKUP(ZSS, Load!$A$3:$G$296,3,FALSE)*VLOOKUP(ZSS, Load!$A$3:$G$296,4,FALSE),0)+NN_LOAD_TRANSFER) -> 4.1 | Z29: 0.00251619964 | AA29: TRUE | AB29: 0.00251619964 | AC29: TRUE | AD29: =COUNTIF(Z29:AC29, "<>"&TRUE) -> 2 | AE29: =(Z29*AA29*AB29*AC29)^(1/AD29) -> 0.00251619964 | AF29: 1967 | AG29: 9999 | AH29: 1967 | AI29: 9999 | AJ29: =VLOOKUP(ZSS,Constants!$AT$37:$BO$178,2+Constants!$H$11,FALSE) -> TRUE | AK29: =VLOOKUP(ZSS,Constants!$AT$37:$BO$178,3+Constants!$H$11,FALSE) -> TRUE | AL29: =VLOOKUP(ZSS,Constants!$AT$37:$BO$178,4+Constants!$H$11,FALSE) -> 0.2 | AM29: =VLOOKUP(ZSS,Constants!$AT$37:$BO$178,5+Constants!$H$11,FALSE) -> TRUE | AN29: =VLOOKUP(ZSS,Constants!$AT$37:$BO$178,6+Constants!$H$11,FALSE) -> TRUE | AO29: =VLOOKUP(ZSS,Constants!$AT$37:$BO$178,7+Constants!$H$11,FALSE) -> TRUE | AP29: 0.002012959712 | AQ29: =IF(AD29=1,0,IF(AD29=2,MAX(AJ29:AO29)*AE29,IF(AD29=3,0.5*MAX(AJ29:AO29)*(1-$AH$1)*AE29, IF(AD29=4,0.33*MAX(AJ29:AO29)*$AH$1*(1-$AH$1)*AE29,FALSE)))) -> 0.000503239928 | AR29: =AQ29*$AH$1 -> 2.51619964e-05 | AS29: =IF(AD29=4,MAX(AJ29:AO29)*$AH$1*$AH$1*AE29,FALSE) -> FALSE | AT29: 0.004529159352 | AU29: 0.0005072919348 | AV29: FALSE | AW29: FALSE | AX29: =(IF(Z29<>TRUE,VLOOKUP(Z29/'Live scenario'!$D$18,MAJORMINORPOF,2,TRUE),0)+IF(AA29<>TRUE,VLOOKUP(AA29/'Live scenario'!$D$19,MAJORMINORPOF,2,TRUE),0)+IF(AB29<>TRUE,VLOOKUP(AB29/'Live scenario'!$D$20,MAJORMINORPOF,2,TRUE),0)+IF(AC29<>TRUE,VLOOKUP(AC29/'Live scenario'!$D$21,MAJORMINORPOF,2,TRUE),0)) -> 0.02012959712 | AY29: =SUM(Z29:AC29) -> 0.00503239928
D30: 2051 | E30: 0 | F30: 214.3714159 | G30: 25710.76949 | H30: 0 | I30: 0 | J30: 65.25766086 | K30: 25925.14091 | L30: 0 | N30: 2051 | O30: =IF($C$2=0.1,VLOOKUP($C$1,Load!$J:$AN,MATCH(Calcs1!$N30,Load!$J$2:$AN$2,0),FALSE),VLOOKUP($C$1,Load!$AP:$BT,MATCH(Calcs1!$N30,Load!$AP$2:$BT$2,0),FALSE)) -> 27.22999954 | P30: =VLOOKUP($C$1,Load!$J:$AN,MATCH(Calcs1!$N30,Load!$J$2:$AN$2,0),FALSE) -> 27.22999954 | Q30: =O30/$O$4-1 -> 0.1671667223 | R30: =P30/($O$4)-1 -> 0.1671667223 | S30: 35.85413125 | T30: 17.92706562 | U30: 18.246735 | V30: 0 | W30: 0 | X30: 4 | Y30: =(IF('Live scenario'!$C$36=TRUE,VLOOKUP(ZSS, Load!$A$3:$G$296,3,FALSE)*VLOOKUP(ZSS, Load!$A$3:$G$296,4,FALSE),0)+NN_LOAD_TRANSFER) -> 4.1 | Z30: 0.00256795332 | AA30: TRUE | AB30: 0.00256795332 | AC30: TRUE | AD30: =COUNTIF(Z30:AC30, "<>"&TRUE) -> 2 | AE30: =(Z30*AA30*AB30*AC30)^(1/AD30) -> 0.00256795332 | AF30: 1967 | AG30: 9999 | AH30: 1967 | AI30: 9999 | AJ30: =VLOOKUP(ZSS,Constants!$AT$37:$BO$178,2+Constants!$H$11,FALSE) -> TRUE | AK30: =VLOOKUP(ZSS,Constants!$AT$37:$BO$178,3+Constants!$H$11,FALSE) -> TRUE | AL30: =VLOOKUP(ZSS,Constants!$AT$37:$BO$178,4+Constants!$H$11,FALSE) -> 0.2 | AM30: =VLOOKUP(ZSS,Constants!$AT$37:$BO$178,5+Constants!$H$11,FALSE) -> TRUE | AN30: =VLOOKUP(ZSS,Constants!$AT$37:$BO$178,6+Constants!$H$11,FALSE) -> TRUE | AO30: =VLOOKUP(ZSS,Constants!$AT$37:$BO$178,7+Constants!$H$11,FALSE) -> TRUE | AP30: 0.002054362656 | AQ30: =IF(AD30=1,0,IF(AD30=2,MAX(AJ30:AO30)*AE30,IF(AD30=3,0.5*MAX(AJ30:AO30)*(1-$AH$1)*AE30, IF(AD30=4,0.33*MAX(AJ30:AO30)*$AH$1*(1-$AH$1)*AE30,FALSE)))) -> 0.000513590664 | AR30: =AQ30*$AH$1 -> 2.56795332e-05 | AS30: =IF(AD30=4,MAX(AJ30:AO30)*$AH$1*$AH$1*AE30,FALSE) -> FALSE | AT30: 0.004622315976 | AU30: 0.0005178110699 | AV30: FALSE | AW30: FALSE | AX30: =(IF(Z30<>TRUE,VLOOKUP(Z30/'Live scenario'!$D$18,MAJORMINORPOF,2,TRUE),0)+IF(AA30<>TRUE,VLOOKUP(AA30/'Live scenario'!$D$19,MAJORMINORPOF,2,TRUE),0)+IF(AB30<>TRUE,VLOOKUP(AB30/'Live scenario'!$D$20,MAJORMINORPOF,2,TRUE),0)+IF(AC30<>TRUE,VLOOKUP(AC30/'Live scenario'!$D$21,MAJORMINORPOF,2,TRUE),0)) -> 0.02054362656 | AY30: =SUM(Z30:AC30) -> 0.00513590664
D31: 2052 | E31: 0 | F31: 218.7279413 | G31: 26237.61728 | H31: 0 | I31: 0 | J31: 66.5838482 | K31: 26456.34522 | L31: 0 | N31: 2052 | O31: =IF($C$2=0.1,VLOOKUP($C$1,Load!$J:$AN,MATCH(Calcs1!$N31,Load!$J$2:$AN$2,0),FALSE),VLOOKUP($C$1,Load!$AP:$BT,MATCH(Calcs1!$N31,Load!$AP$2:$BT$2,0),FALSE)) -> 27.22999954 | P31: =VLOOKUP($C$1,Load!$J:$AN,MATCH(Calcs1!$N31,Load!$J$2:$AN$2,0),FALSE) -> 27.22999954 | Q31: =O31/$O$4-1 -> 0.1671667223 | R31: =P31/($O$4)-1 -> 0.1671667223 | S31: 35.85413125 | T31: 17.92706562 | U31: 18.246735 | V31: 0 | W31: 0 | X31: 5 | Y31: =(IF('Live scenario'!$C$36=TRUE,VLOOKUP(ZSS, Load!$A$3:$G$296,3,FALSE)*VLOOKUP(ZSS, Load!$A$3:$G$296,4,FALSE),0)+NN_LOAD_TRANSFER) -> 4.1 | Z31: 0.0026201401 | AA31: TRUE | AB31: 0.0026201401 | AC31: TRUE | AD31: =COUNTIF(Z31:AC31, "<>"&TRUE) -> 2 | AE31: =(Z31*AA31*AB31*AC31)^(1/AD31) -> 0.0026201401 | AF31: 1967 | AG31: 9999 | AH31: 1967 | AI31: 9999 | AJ31: =VLOOKUP(ZSS,Constants!$AT$37:$BO$178,2+Constants!$H$11,FALSE) -> TRUE | AK31: =VLOOKUP(ZSS,Constants!$AT$37:$BO$178,3+Constants!$H$11,FALSE) -> TRUE | AL31: =VLOOKUP(ZSS,Constants!$AT$37:$BO$178,4+Constants!$H$11,FALSE) -> 0.2 | AM31: =VLOOKUP(ZSS,Constants!$AT$37:$BO$178,5+Constants!$H$11,FALSE) -> TRUE | AN31: =VLOOKUP(ZSS,Constants!$AT$37:$BO$178,6+Constants!$H$11,FALSE) -> TRUE | AO31: =VLOOKUP(ZSS,Constants!$AT$37:$BO$178,7+Constants!$H$11,FALSE) -> TRUE | AP31: 0.00209611208 | AQ31: =IF(AD31=1,0,IF(AD31=2,MAX(AJ31:AO31)*AE31,IF(AD31=3,0.5*MAX(AJ31:AO31)*(1-$AH$1)*AE31, IF(AD31=4,0.33*MAX(AJ31:AO31)*$AH$1*(1-$AH$1)*AE31,FALSE)))) -> 0.00052402802 | AR31: =AQ31*$AH$1 -> 2.6201401e-05 | AS31: =IF(AD31=4,MAX(AJ31:AO31)*$AH$1*$AH$1*AE31,FALSE) -> FALSE | AT31: 0.00471625218 | AU31: 0.0005284217059 | AV31: FALSE | AW31: FALSE | AX31: =(IF(Z31<>TRUE,VLOOKUP(Z31/'Live scenario'!$D$18,MAJORMINORPOF,2,TRUE),0)+IF(AA31<>TRUE,VLOOKUP(AA31/'Live scenario'!$D$19,MAJORMINORPOF,2,TRUE),0)+IF(AB31<>TRUE,VLOOKUP(AB31/'Live scenario'!$D$20,MAJORMINORPOF,2,TRUE),0)+IF(AC31<>TRUE,VLOOKUP(AC31/'Live scenario'!$D$21,MAJORMINORPOF,2,TRUE),0)) -> 0.0209611208 | AY31: =SUM(Z31:AC31) -> 0.0052402802
A33: 0 | B33: 1 | C33: 2 | D33: 3 | E33: 4 | F33: 5 | G33: 6 | H33: 7 | I33: 8 | J33: 9 | K33: 10 | L33: 11 | M33: 12 | N33: 13 | O33: 14 | P33: 15 | Q33: 16 | R33: 17 | S33: 18 | T33: 19 | U33: 20 | V33: 21 | W33: 22 | X33: 23 | Y33: 24 | Z33: 25 | AA33: 26 | AB33: 27 | AC33: 28 | AD33: 29 | AE33: 30 | AF33: 31 | AG33: 32
D34: Probability of fault:
D35: PI Point: | E35: =C42-C43 -> 112 | G35: =VLOOKUP($C$1,Load!$R$22:$S$61,2,FALSE) -> 
E36: =C41-C42 -> 40
E37: Station Capacity | I37: MWh over Capacity (Inc Xfers | N37: Probability of Outage | S37: kWh at risk
A38: Year | B38: MVA | C38: Hours at or below MVA | D38: N rating (MVA) | E38: N-1 Rating | F38: N-2 | G38: N-3 | H38: N-4 | I38: MVA After Xfers | J38: N | K38: N-1 | L38: N-2 | M38: N-3 | N38: N-4 | O38: 1 Failure | P38: 2 Failures | Q38: 3 Failures | R38: 4 Failures | S38: Significant | T38: N | U38: N-1 | V38: N-2 | W38: N-3 | X38: N-4 | Y38: Significant | AB38: ZSS | AC38: =ZSS -> STL
A39: =D4 -> 2025 | B39: 1 | C39: =IFERROR(IF(B39=1,8760,INDEX(LDCs!$E$4:$E$17568,MATCH(B39/VLOOKUP(A39,$N$4:$P$31,2,FALSE),LDCs!$C$4:$C$17568,1),1)),C38) -> 8760 | D39: =VLOOKUP($A39,$N$4:$Y$31,6,FALSE) -> 35.85413125 | E39: =VLOOKUP($A39,$N$4:$Y$31,7,FALSE) -> 17.92706562 | F39: =VLOOKUP($A39,$N$4:$Y$31,9,FALSE) -> 0 | G39: =VLOOKUP($A39,$N$4:$Y$31,10,FALSE) -> 0 | H39: =VLOOKUP($A39,$N$4:$Y$31,11,FALSE) -> 0 | I39: =IF(B39-VLOOKUP(A39,$N$4:$Y$31,12,FALSE)<0,0,B39-VLOOKUP(A39,$N$4:$Y$31,12,FALSE)) -> 0 | J39: =IF(B39=150,0,IF(IF($I39>D39,($I39-D39)*($C39-$C40),0)<0,0,IF($I39>D39,($I39-D39)*($C39-$C40),0)))*Power_Factor -> 0 | K39: =IF(C39=150,0,IF(IF($I39>E39,($I39-E39)*($C39-$C40),0)<0,0,IF($I39>E39,($I39-E39)*($C39-$C40),0)))*Power_Factor -> 0 | L39: =IF(D39=150,0,IF(IF($I39>F39,($I39-F39)*($C39-$C40),0)<0,0,IF($I39>F39,($I39-F39)*($C39-$C40),0)))*Power_Factor -> 0 | M39: =IF(E39=150,0,IF(IF($I39>G39,($I39-G39)*($C39-$C40),0)<0,0,IF($I39>G39,($I39-G39)*($C39-$C40),0)))*Power_Factor -> 0 | N39: 0 | O39: =VLOOKUP($A39, $N$4:$AY$31,33,FALSE) -> 0.002462705244 | P39: =VLOOKUP($A39, $N$4:$AY$31,34,FALSE) -> 0.0002748319243 | Q39: =VLOOKUP($A39, $N$4:$AY$31,35,FALSE) -> FALSE | R39: =VLOOKUP($A39, $N$4:$AY$31,36,FALSE) -> FALSE | S39: =VLOOKUP($A39, $N$4:$AY$31,37,FALSE) -> 0.01094535664 | T39: =J39*1000*($AC$76/365) -> 0 | U39: =O39*K39*1000*($AC$77/365) -> 0 | V39: =P39*L39*1000*($AC$78/365) -> 0 | W39: =Q39*M39*1000*($AC$79/365) -> 0 | X39: =R39*N39*1000*($AC$80/365) -> 0 | Y39: =S39*K39*1000*(Constants!$L$10/365) -> 0 | AA39: 1 | AB39: Asset Number | AC39: Type | AD39: Starting Year | AE39: Modified Year | AF39: =D4 -> 2025 | AG39: =AF39+1 -> 2026 | AH39: =AG39+1 -> 2027 | AI39: 2028 | AJ39: 2029 | AK39: 2030 | AL39: 2031 | AM39: 2032 | AN39: 2033 | AO39: 2034 | AP39: 2035 | AQ39: 2036 | AR39: 2037 | AS39: 2038 | AT39: 2039 | AU39: 2040 | AV39: 2041 | AW39: 2042 | AX39: 2043 | AY39: 2044 | AZ39: 2045 | BA39: 2046 | BB39: 2047 | BC39: =BB39+1 -> 2048 | BD39: =BC39+1 -> 2049 | BE39: =BD39+1 -> 2050 | BF39: =BE39+1 -> 2051 | BG39: =BF39+1 -> 2052
A40: =IF(B39=150,A39+1,A39) -> 2025 | B40: 2 | C40: =IFERROR(IF(B40=1,8760,INDEX(LDCs!$E$4:$E$17568,MATCH(B40/VLOOKUP(A40,$N$4:$P$31,2,FALSE),LDCs!$C$4:$C$17568,1),1)),C39) -> 8760 | D40: =VLOOKUP($A40,$N$4:$Y$31,6,FALSE) -> 35.85413125 | E40: =VLOOKUP($A40,$N$4:$Y$31,7,FALSE) -> 17.92706562 | F40: =VLOOKUP($A40,$N$4:$Y$31,9,FALSE) -> 0 | G40: =VLOOKUP($A40,$N$4:$Y$31,10,FALSE) -> 0 | H40: =VLOOKUP($A40,$N$4:$Y$31,11,FALSE) -> 0 | I40: =IF(B40-VLOOKUP(A40,$N$4:$Y$31,12,FALSE)<0,0,B40-VLOOKUP(A40,$N$4:$Y$31,12,FALSE)) -> 0 | J40: 0 | K40: 0 | L40: =IF(D40=150,0,IF(IF($I40>F40,($I40-F40)*($C40-$C41),0)<0,0,IF($I40>F40,($I40-F40)*($C40-$C41),0)))*Power_Factor -> 0 | M40: 0 | N40: 0 | O40: =VLOOKUP($A40, $N$4:$AY$31,33,FALSE) -> 0.002462705244 | P40: =VLOOKUP($A40, $N$4:$AY$31,34,FALSE) -> 0.0002748319243 | Q40: =VLOOKUP($A40, $N$4:$AY$31,35,FALSE) -> FALSE | R40: =VLOOKUP($A40, $N$4:$AY$31,36,FALSE) -> FALSE | S40: =VLOOKUP($A40, $N$4:$AY$31,37,FALSE) -> 0.01094535664 | T40: =J40*1000*($AC$76/365) -> 0 | U40: =O40*K40*1000*($AC$77/365) -> 0 | V40: =P40*L40*1000*($AC$78/365) -> 0 | W40: =Q40*M40*1000*($AC$79/365) -> 0 | X40: =R40*N40*1000*($AC$80/365) -> 0 | Y40: =S40*K40*1000*(Constants!$L$10/365) -> 0 | AA40: 2 | AB40: =$AC$38&" #1" -> STL #1 | AC40: ='Live scenario'!$C$10 -> Transformer | AD40: =IFERROR(VLOOKUP($AB40,Constants!$C$36:$K$238,2,FALSE),9999) -> 1967 | AE40: =IFERROR(VLOOKUP($AB40,Constants!$C$36:$K$238,9,FALSE),9999) -> 9999 | AF40: =IF($AE40>=AF$39,IF($AD40=9999,TRUE,VLOOKUP(AF$39-$AD40,Constants!$AL$37:$AO$155,3,FALSE)*'Live scenario'!$D18),VLOOKUP(AF$39-$AE40,Constants!$AL$38:$AO$155,3,FALSE)*'Live scenario'!$D18) -> 0.00136816958 | AG40: =IF($AE40>=AG$39,IF($AD40=9999,TRUE,VLOOKUP(AG$39-$AD40,Constants!$AL$37:$AO$155,3,FALSE)*'Live scenario'!$D18),VLOOKUP(AG$39-$AE40,Constants!$AL$38:$AO$155,3,FALSE)*'Live scenario'!$D18) -> 0.00140851268 | AH40: =IF($AE40>=AH$39,IF($AD40=9999,TRUE,VLOOKUP(AH$39-$AD40,Constants!$AL$37:$AO$155,3,FALSE)*'Live scenario'!$D18),VLOOKUP(AH$39-$AE40,Constants!$AL$38:$AO$155,3,FALSE)*'Live scenario'!$D18) -> 0.00144933728 | AI40: =IF($AE40>=AI$39,IF($AD40=9999,TRUE,VLOOKUP(AI$39-$AD40,Constants!$AL$37:$AO$155,3,FALSE)*'Live scenario'!$D18),VLOOKUP(AI$39-$AE40,Constants!$AL$38:$AO$155,3,FALSE)*'Live scenario'!$D18) -> 0.001490641 | AJ40: =IF($AE40>=AJ$39,IF($AD40=9999,TRUE,VLOOKUP(AJ$39-$AD40,Constants!$AL$37:$AO$155,3,FALSE)*'Live scenario'!$D18),VLOOKUP(AJ$39-$AE40,Constants!$AL$38:$AO$155,3,FALSE)*'Live scenario'!$D18) -> 0.00153242142 | AK40: =IF($AE40>=AK$39,IF($AD40=9999,TRUE,VLOOKUP(AK$39-$AD40,Constants!$AL$37:$AO$155,3,FALSE)*'Live scenario'!$D18),VLOOKUP(AK$39-$AE40,Constants!$AL$38:$AO$155,3,FALSE)*'Live scenario'!$D18) -> 0.00157467624 | AL40: =IF($AE40>=AL$39,IF($AD40=9999,TRUE,VLOOKUP(AL$39-$AD40,Constants!$AL$37:$AO$155,3,FALSE)*'Live scenario'!$D18),VLOOKUP(AL$39-$AE40,Constants!$AL$38:$AO$155,3,FALSE)*'Live scenario'!$D18) -> 0.0016174032 | AM40: =IF($AE40>=AM$39,IF($AD40=9999,TRUE,VLOOKUP(AM$39-$AD40,Constants!$AL$37:$AO$155,3,FALSE)*'Live scenario'!$D18),VLOOKUP(AM$39-$AE40,Constants!$AL$38:$AO$155,3,FALSE)*'Live scenario'!$D18) -> 0.00166060004 | AN40: =IF($AE40>=AN$39,IF($AD40=9999,TRUE,VLOOKUP(AN$39-$AD40,Constants!$AL$37:$AO$155,3,FALSE)*'Live scenario'!$D18),VLOOKUP(AN$39-$AE40,Constants!$AL$38:$AO$155,3,FALSE)*'Live scenario'!$D18) -> 0.00170426462 | AO40: =IF($AE40>=AO$39,IF($AD40=9999,TRUE,VLOOKUP(AO$39-$AD40,Constants!$AL$37:$AO$155,3,FALSE)*'Live scenario'!$D18),VLOOKUP(AO$39-$AE40,Constants!$AL$38:$AO$155,3,FALSE)*'Live scenario'!$D18) -> 0.0017483948 | AP40: =IF($AE40>=AP$39,IF($AD40=9999,TRUE,VLOOKUP(AP$39-$AD40,Constants!$AL$37:$AO$155,3,FALSE)*'Live scenario'!$D18),VLOOKUP(AP$39-$AE40,Constants!$AL$38:$AO$155,3,FALSE)*'Live scenario'!$D18) -> 0.00179298844 | AQ40: =IF($AE40>=AQ$39,IF($AD40=9999,TRUE,VLOOKUP(AQ$39-$AD40,Constants!$AL$37:$AO$155,3,FALSE)*'Live scenario'!$D18),VLOOKUP(AQ$39-$AE40,Constants!$AL$38:$AO$155,3,FALSE)*'Live scenario'!$D18) -> 0.00183804354 | AR40: =IF($AE40>=AR$39,IF($AD40=9999,TRUE,VLOOKUP(AR$39-$AD40,Constants!$AL$37:$AO$155,3,FALSE)*'Live scenario'!$D18),VLOOKUP(AR$39-$AE40,Constants!$AL$38:$AO$155,3,FALSE)*'Live scenario'!$D18) -> 0.00188355804 | AS40: =IF($AE40>=AS$39,IF($AD40=9999,TRUE,VLOOKUP(AS$39-$AD40,Constants!$AL$37:$AO$155,3,FALSE)*'Live scenario'!$D18),VLOOKUP(AS$39-$AE40,Constants!$AL$38:$AO$155,3,FALSE)*'Live scenario'!$D18) -> 0.00192952998 | AT40: =IF($AE40>=AT$39,IF($AD40=9999,TRUE,VLOOKUP(AT$39-$AD40,Constants!$AL$37:$AO$155,3,FALSE)*'Live scenario'!$D18),VLOOKUP(AT$39-$AE40,Constants!$AL$38:$AO$155,3,FALSE)*'Live scenario'!$D18) -> 0.00197595744 | AU40: =IF($AE40>=AU$39,IF($AD40=9999,TRUE,VLOOKUP(AU$39-$AD40,Constants!$AL$37:$AO$155,3,FALSE)*'Live scenario'!$D18),VLOOKUP(AU$39-$AE40,Constants!$AL$38:$AO$155,3,FALSE)*'Live scenario'!$D18) -> 0.00202283846 | AV40: =IF($AE40>=AV$39,IF($AD40=9999,TRUE,VLOOKUP(AV$39-$AD40,Constants!$AL$37:$AO$155,3,FALSE)*'Live scenario'!$D18),VLOOKUP(AV$39-$AE40,Constants!$AL$38:$AO$155,3,FALSE)*'Live scenario'!$D18) -> 0.0020701712 | AW40: =IF($AE40>=AW$39,IF($AD40=9999,TRUE,VLOOKUP(AW$39-$AD40,Constants!$AL$37:$AO$155,3,FALSE)*'Live scenario'!$D18),VLOOKUP(AW$39-$AE40,Constants!$AL$38:$AO$155,3,FALSE)*'Live scenario'!$D18) -> 0.00211795382 | AX40: =IF($AE40>=AX$39,IF($AD40=9999,TRUE,VLOOKUP(AX$39-$AD40,Constants!$AL$37:$AO$155,3,FALSE)*'Live scenario'!$D18),VLOOKUP(AX$39-$AE40,Constants!$AL$38:$AO$155,3,FALSE)*'Live scenario'!$D18) -> 0.00216618452 | AY40: =IF($AE40>=AY$39,IF($AD40=9999,TRUE,VLOOKUP(AY$39-$AD40,Constants!$AL$37:$AO$155,3,FALSE)*'Live scenario'!$D18),VLOOKUP(AY$39-$AE40,Constants!$AL$38:$AO$155,3,FALSE)*'Live scenario'!$D18) -> 0.0022148615 | AZ40: =IF($AE40>=AZ$39,IF($AD40=9999,TRUE,VLOOKUP(AZ$39-$AD40,Constants!$AL$37:$AO$155,3,FALSE)*'Live scenario'!$D18),VLOOKUP(AZ$39-$AE40,Constants!$AL$38:$AO$155,3,FALSE)*'Live scenario'!$D18) -> 0.00226398302 | BA40: =IF($AE40>=BA$39,IF($AD40=9999,TRUE,VLOOKUP(BA$39-$AD40,Constants!$AL$37:$AO$155,3,FALSE)*'Live scenario'!$D18),VLOOKUP(BA$39-$AE40,Constants!$AL$38:$AO$155,3,FALSE)*'Live scenario'!$D18) -> 0.00231354736 | BB40: =IF($AE40>=BB$39,IF($AD40=9999,TRUE,VLOOKUP(BB$39-$AD40,Constants!$AL$37:$AO$155,3,FALSE)*'Live scenario'!$D18),VLOOKUP(BB$39-$AE40,Constants!$AL$38:$AO$155,3,FALSE)*'Live scenario'!$D18) -> 0.00236355286 | BC40: =IF($AE40>=BC$39,IF($AD40=9999,TRUE,VLOOKUP(BC$39-$AD40,Constants!$AL$37:$AO$155,3,FALSE)*'Live scenario'!$D18),VLOOKUP(BC$39-$AE40,Constants!$AL$38:$AO$155,3,FALSE)*'Live scenario'!$D18) -> 0.00241399782 | BD40: =IF($AE40>=BD$39,IF($AD40=9999,TRUE,VLOOKUP(BD$39-$AD40,Constants!$AL$37:$AO$155,3,FALSE)*'Live scenario'!$D18),VLOOKUP(BD$39-$AE40,Constants!$AL$38:$AO$155,3,FALSE)*'Live scenario'!$D18) -> 0.00246488062 | BE40: =IF($AE40>=BE$39,IF($AD40=9999,TRUE,VLOOKUP(BE$39-$AD40,Constants!$AL$37:$AO$155,3,FALSE)*'Live scenario'!$D18),VLOOKUP(BE$39-$AE40,Constants!$AL$38:$AO$155,3,FALSE)*'Live scenario'!$D18) -> 0.00251619964 | BF40: =IF($AE40>=BF$39,IF($AD40=9999,TRUE,VLOOKUP(BF$39-$AD40,Constants!$AL$37:$AO$155,3,FALSE)*'Live scenario'!$D18),VLOOKUP(BF$39-$AE40,Constants!$AL$38:$AO$155,3,FALSE)*'Live scenario'!$D18) -> 0.00256795332 | BG40: =IF($AE40>=BG$39,IF($AD40=9999,TRUE,VLOOKUP(BG$39-$AD40,Constants!$AL$37:$AO$155,3,FALSE)*'Live scenario'!$D18),VLOOKUP(BG$39-$AE40,Constants!$AL$38:$AO$155,3,FALSE)*'Live scenario'!$D18) -> 0.0026201401
A41: =IF(B40=150,A40+1,A40) -> 2025 | B41: 3 | C41: =IFERROR(IF(B41=1,8760,INDEX(LDCs!$E$4:$E$17568,MATCH(B41/VLOOKUP(A41,$N$4:$P$31,2,FALSE),LDCs!$C$4:$C$17568,1),1)),C40) -> 8754 | D41: 35.85413125 | E41: 17.92706562 | F41: 0 | G41: 0 | H41: 0 | I41: 0 | J41: 0 | K41: 0 | L41: 0 | M41: 0 | N41: 0 | O41: =VLOOKUP($A41, $N$4:$AY$31,33,FALSE) -> 0.002462705244 | P41: 0.0002748319243 | Q41: FALSE | R41: FALSE | S41: 0.01094535664 | T41: =J41*1000*($AC$76/365) -> 0 | U41: =O41*K41*1000*($AC$77/365) -> 0 | V41: =P41*L41*1000*($AC$78/365) -> 0 | W41: =Q41*M41*1000*($AC$79/365) -> 0 | X41: =R41*N41*1000*($AC$80/365) -> 0 | Y41: =S41*K41*1000*(Constants!$L$10/365) -> 0 | AA41: =AA40+1 -> 3 | AB41: =$AC$38&" #2" -> STL #2 | AC41: ='Live scenario'!$C$10 -> Transformer | AD41: =IFERROR(VLOOKUP($AB41,Constants!$C$36:$I$238,2,FALSE),9999) -> 9999 | AE41: =IFERROR(VLOOKUP($AB41,Constants!$C$36:$K$238,9,FALSE),9999) -> 9999 | AF41: =IF($AE41>=AF$39,IF($AD41=9999,TRUE,VLOOKUP(AF$39-$AD41,Constants!$AL$37:$AO$155,3,FALSE)*'Live scenario'!$D19),VLOOKUP(AF$39-$AE41,Constants!$AL$38:$AO$155,3,FALSE)*'Live scenario'!$D19) -> TRUE | AG41: =IF($AE41>=AG$39,IF($AD41=9999,TRUE,VLOOKUP(AG$39-$AD41,Constants!$AL$37:$AO$155,3,FALSE)*'Live scenario'!$D19),VLOOKUP(AG$39-$AE41,Constants!$AL$38:$AO$155,3,FALSE)*'Live scenario'!$D19) -> TRUE | AH41: =IF($AE41>=AH$39,IF($AD41=9999,TRUE,VLOOKUP(AH$39-$AD41,Constants!$AL$37:$AO$155,3,FALSE)*'Live scenario'!$D19),VLOOKUP(AH$39-$AE41,Constants!$AL$38:$AO$155,3,FALSE)*'Live scenario'!$D19) -> TRUE | AI41: =IF($AE41>=AI$39,IF($AD41=9999,TRUE,VLOOKUP(AI$39-$AD41,Constants!$AL$37:$AO$155,3,FALSE)*'Live scenario'!$D19),VLOOKUP(AI$39-$AE41,Constants!$AL$38:$AO$155,3,FALSE)*'Live scenario'!$D19) -> TRUE | AJ41: =IF($AE41>=AJ$39,IF($AD41=9999,TRUE,VLOOKUP(AJ$39-$AD41,Constants!$AL$37:$AO$155,3,FALSE)*'Live scenario'!$D19),VLOOKUP(AJ$39-$AE41,Constants!$AL$38:$AO$155,3,FALSE)*'Live scenario'!$D19) -> TRUE | AK41: =IF($AE41>=AK$39,IF($AD41=9999,TRUE,VLOOKUP(AK$39-$AD41,Constants!$AL$37:$AO$155,3,FALSE)*'Live scenario'!$D19),VLOOKUP(AK$39-$AE41,Constants!$AL$38:$AO$155,3,FALSE)*'Live scenario'!$D19) -> TRUE | AL41: =IF($AE41>=AL$39,IF($AD41=9999,TRUE,VLOOKUP(AL$39-$AD41,Constants!$AL$37:$AO$155,3,FALSE)*'Live scenario'!$D19),VLOOKUP(AL$39-$AE41,Constants!$AL$38:$AO$155,3,FALSE)*'Live scenario'!$D19) -> TRUE | AM41: =IF($AE41>=AM$39,IF($AD41=9999,TRUE,VLOOKUP(AM$39-$AD41,Constants!$AL$37:$AO$155,3,FALSE)*'Live scenario'!$D19),VLOOKUP(AM$39-$AE41,Constants!$AL$38:$AO$155,3,FALSE)*'Live scenario'!$D19) -> TRUE | AN41: =IF($AE41>=AN$39,IF($AD41=9999,TRUE,VLOOKUP(AN$39-$AD41,Constants!$AL$37:$AO$155,3,FALSE)*'Live scenario'!$D19),VLOOKUP(AN$39-$AE41,Constants!$AL$38:$AO$155,3,FALSE)*'Live scenario'!$D19) -> TRUE | AO41: =IF($AE41>=AO$39,IF($AD41=9999,TRUE,VLOOKUP(AO$39-$AD41,Constants!$AL$37:$AO$155,3,FALSE)*'Live scenario'!$D19),VLOOKUP(AO$39-$AE41,Constants!$AL$38:$AO$155,3,FALSE)*'Live scenario'!$D19) -> TRUE | AP41: =IF($AE41>=AP$39,IF($AD41=9999,TRUE,VLOOKUP(AP$39-$AD41,Constants!$AL$37:$AO$155,3,FALSE)*'Live scenario'!$D19),VLOOKUP(AP$39-$AE41,Constants!$AL$38:$AO$155,3,FALSE)*'Live scenario'!$D19) -> TRUE | AQ41: =IF($AE41>=AQ$39,IF($AD41=9999,TRUE,VLOOKUP(AQ$39-$AD41,Constants!$AL$37:$AO$155,3,FALSE)*'Live scenario'!$D19),VLOOKUP(AQ$39-$AE41,Constants!$AL$38:$AO$155,3,FALSE)*'Live scenario'!$D19) -> TRUE | AR41: =IF($AE41>=AR$39,IF($AD41=9999,TRUE,VLOOKUP(AR$39-$AD41,Constants!$AL$37:$AO$155,3,FALSE)*'Live scenario'!$D19),VLOOKUP(AR$39-$AE41,Constants!$AL$38:$AO$155,3,FALSE)*'Live scenario'!$D19) -> TRUE | AS41: =IF($AE41>=AS$39,IF($AD41=9999,TRUE,VLOOKUP(AS$39-$AD41,Constants!$AL$37:$AO$155,3,FALSE)*'Live scenario'!$D19),VLOOKUP(AS$39-$AE41,Constants!$AL$38:$AO$155,3,FALSE)*'Live scenario'!$D19) -> TRUE | AT41: =IF($AE41>=AT$39,IF($AD41=9999,TRUE,VLOOKUP(AT$39-$AD41,Constants!$AL$37:$AO$155,3,FALSE)*'Live scenario'!$D19),VLOOKUP(AT$39-$AE41,Constants!$AL$38:$AO$155,3,FALSE)*'Live scenario'!$D19) -> TRUE | AU41: =IF($AE41>=AU$39,IF($AD41=9999,TRUE,VLOOKUP(AU$39-$AD41,Constants!$AL$37:$AO$155,3,FALSE)*'Live scenario'!$D19),VLOOKUP(AU$39-$AE41,Constants!$AL$38:$AO$155,3,FALSE)*'Live scenario'!$D19) -> TRUE | AV41: =IF($AE41>=AV$39,IF($AD41=9999,TRUE,VLOOKUP(AV$39-$AD41,Constants!$AL$37:$AO$155,3,FALSE)*'Live scenario'!$D19),VLOOKUP(AV$39-$AE41,Constants!$AL$38:$AO$155,3,FALSE)*'Live scenario'!$D19) -> TRUE | AW41: =IF($AE41>=AW$39,IF($AD41=9999,TRUE,VLOOKUP(AW$39-$AD41,Constants!$AL$37:$AO$155,3,FALSE)*'Live scenario'!$D19),VLOOKUP(AW$39-$AE41,Constants!$AL$38:$AO$155,3,FALSE)*'Live scenario'!$D19) -> TRUE | AX41: =IF($AE41>=AX$39,IF($AD41=9999,TRUE,VLOOKUP(AX$39-$AD41,Constants!$AL$37:$AO$155,3,FALSE)*'Live scenario'!$D19),VLOOKUP(AX$39-$AE41,Constants!$AL$38:$AO$155,3,FALSE)*'Live scenario'!$D19) -> TRUE | AY41: =IF($AE41>=AY$39,IF($AD41=9999,TRUE,VLOOKUP(AY$39-$AD41,Constants!$AL$37:$AO$155,3,FALSE)*'Live scenario'!$D19),VLOOKUP(AY$39-$AE41,Constants!$AL$38:$AO$155,3,FALSE)*'Live scenario'!$D19) -> TRUE | AZ41: =IF($AE41>=AZ$39,IF($AD41=9999,TRUE,VLOOKUP(AZ$39-$AD41,Constants!$AL$37:$AO$155,3,FALSE)*'Live scenario'!$D19),VLOOKUP(AZ$39-$AE41,Constants!$AL$38:$AO$155,3,FALSE)*'Live scenario'!$D19) -> TRUE | BA41: =IF($AE41>=BA$39,IF($AD41=9999,TRUE,VLOOKUP(BA$39-$AD41,Constants!$AL$37:$AO$155,3,FALSE)*'Live scenario'!$D19),VLOOKUP(BA$39-$AE41,Constants!$AL$38:$AO$155,3,FALSE)*'Live scenario'!$D19) -> TRUE | BB41: =IF($AE41>=BB$39,IF($AD41=9999,TRUE,VLOOKUP(BB$39-$AD41,Constants!$AL$37:$AO$155,3,FALSE)*'Live scenario'!$D19),VLOOKUP(BB$39-$AE41,Constants!$AL$38:$AO$155,3,FALSE)*'Live scenario'!$D19) -> TRUE | BC41: =IF($AE41>=BC$39,IF($AD41=9999,TRUE,VLOOKUP(BC$39-$AD41,Constants!$AL$37:$AO$155,3,FALSE)*'Live scenario'!$D19),VLOOKUP(BC$39-$AE41,Constants!$AL$38:$AO$155,3,FALSE)*'Live scenario'!$D19) -> TRUE | BD41: =IF($AE41>=BD$39,IF($AD41=9999,TRUE,VLOOKUP(BD$39-$AD41,Constants!$AL$37:$AO$155,3,FALSE)*'Live scenario'!$D19),VLOOKUP(BD$39-$AE41,Constants!$AL$38:$AO$155,3,FALSE)*'Live scenario'!$D19) -> TRUE | BE41: =IF($AE41>=BE$39,IF($AD41=9999,TRUE,VLOOKUP(BE$39-$AD41,Constants!$AL$37:$AO$155,3,FALSE)*'Live scenario'!$D19),VLOOKUP(BE$39-$AE41,Constants!$AL$38:$AO$155,3,FALSE)*'Live scenario'!$D19) -> TRUE | BF41: =IF($AE41>=BF$39,IF($AD41=9999,TRUE,VLOOKUP(BF$39-$AD41,Constants!$AL$37:$AO$155,3,FALSE)*'Live scenario'!$D19),VLOOKUP(BF$39-$AE41,Constants!$AL$38:$AO$155,3,FALSE)*'Live scenario'!$D19) -> TRUE | BG41: =IF($AE41>=BG$39,IF($AD41=9999,TRUE,VLOOKUP(BG$39-$AD41,Constants!$AL$37:$AO$155,3,FALSE)*'Live scenario'!$D19),VLOOKUP(BG$39-$AE41,Constants!$AL$38:$AO$155,3,FALSE)*'Live scenario'!$D19) -> TRUE
A42: 2025 | B42: 4 | C42: =IFERROR(IF(B42=1,8760,INDEX(LDCs!$E$4:$E$17568,MATCH(B42/VLOOKUP(A42,$N$4:$P$31,2,FALSE),LDCs!$C$4:$C$17568,1),1)),C41) -> 8714 | D42: 35.85413125 | E42: 17.92706562 | F42: 0 | G42: 0 | H42: 0 | I42: 0 | J42: 0 | K42: 0 | L42: 0 | M42: 0 | N42: 0 | O42: 0.002462705244 | P42: 0.0002748319243 | Q42: FALSE | R42: FALSE | S42: 0.01094535664 | T42: =J42*1000*($AC$76/365) -> 0 | U42: =O42*K42*1000*($AC$77/365) -> 0 | V42: =P42*L42*1000*($AC$78/365) -> 0 | W42: =Q42*M42*1000*($AC$79/365) -> 0 | X42: =R42*N42*1000*($AC$80/365) -> 0 | Y42: =S42*K42*1000*(Constants!$L$10/365) -> 0 | AA42: =AA41+1 -> 4 | AB42: =$AC$38&" #3" -> STL #3 | AC42: ='Live scenario'!$C$10 -> Transformer | AD42: =IFERROR(VLOOKUP($AB42,Constants!$C$36:$I$238,2,FALSE),9999) -> 1967 | AE42: =IFERROR(VLOOKUP($AB42,Constants!$C$36:$K$238,9,FALSE),9999) -> 9999 | AF42: =IF($AE42>=AF$39,IF($AD42=9999,TRUE,VLOOKUP(AF$39-$AD42,Constants!$AL$37:$AO$155,3,FALSE)*'Live scenario'!$D20),VLOOKUP(AF$39-$AE42,Constants!$AL$38:$AO$155,3,FALSE)*'Live scenario'!$D20) -> 0.00136816958 | AG42: =IF($AE42>=AG$39,IF($AD42=9999,TRUE,VLOOKUP(AG$39-$AD42,Constants!$AL$37:$AO$155,3,FALSE)*'Live scenario'!$D20),VLOOKUP(AG$39-$AE42,Constants!$AL$38:$AO$155,3,FALSE)*'Live scenario'!$D20) -> 0.00140851268 | AH42: =IF($AE42>=AH$39,IF($AD42=9999,TRUE,VLOOKUP(AH$39-$AD42,Constants!$AL$37:$AO$155,3,FALSE)*'Live scenario'!$D20),VLOOKUP(AH$39-$AE42,Constants!$AL$38:$AO$155,3,FALSE)*'Live scenario'!$D20) -> 0.00144933728 | AI42: =IF($AE42>=AI$39,IF($AD42=9999,TRUE,VLOOKUP(AI$39-$AD42,Constants!$AL$37:$AO$155,3,FALSE)*'Live scenario'!$D20),VLOOKUP(AI$39-$AE42,Constants!$AL$38:$AO$155,3,FALSE)*'Live scenario'!$D20) -> 0.001490641 | AJ42: =IF($AE42>=AJ$39,IF($AD42=9999,TRUE,VLOOKUP(AJ$39-$AD42,Constants!$AL$37:$AO$155,3,FALSE)*'Live scenario'!$D20),VLOOKUP(AJ$39-$AE42,Constants!$AL$38:$AO$155,3,FALSE)*'Live scenario'!$D20) -> 0.00153242142 | AK42: =IF($AE42>=AK$39,IF($AD42=9999,TRUE,VLOOKUP(AK$39-$AD42,Constants!$AL$37:$AO$155,3,FALSE)*'Live scenario'!$D20),VLOOKUP(AK$39-$AE42,Constants!$AL$38:$AO$155,3,FALSE)*'Live scenario'!$D20) -> 0.00157467624 | AL42: =IF($AE42>=AL$39,IF($AD42=9999,TRUE,VLOOKUP(AL$39-$AD42,Constants!$AL$37:$AO$155,3,FALSE)*'Live scenario'!$D20),VLOOKUP(AL$39-$AE42,Constants!$AL$38:$AO$155,3,FALSE)*'Live scenario'!$D20) -> 0.0016174032 | AM42: =IF($AE42>=AM$39,IF($AD42=9999,TRUE,VLOOKUP(AM$39-$AD42,Constants!$AL$37:$AO$155,3,FALSE)*'Live scenario'!$D20),VLOOKUP(AM$39-$AE42,Constants!$AL$38:$AO$155,3,FALSE)*'Live scenario'!$D20) -> 0.00166060004 | AN42: =IF($AE42>=AN$39,IF($AD42=9999,TRUE,VLOOKUP(AN$39-$AD42,Constants!$AL$37:$AO$155,3,FALSE)*'Live scenario'!$D20),VLOOKUP(AN$39-$AE42,Constants!$AL$38:$AO$155,3,FALSE)*'Live scenario'!$D20) -> 0.00170426462 | AO42: =IF($AE42>=AO$39,IF($AD42=9999,TRUE,VLOOKUP(AO$39-$AD42,Constants!$AL$37:$AO$155,3,FALSE)*'Live scenario'!$D20),VLOOKUP(AO$39-$AE42,Constants!$AL$38:$AO$155,3,FALSE)*'Live scenario'!$D20) -> 0.0017483948 | AP42: =IF($AE42>=AP$39,IF($AD42=9999,TRUE,VLOOKUP(AP$39-$AD42,Constants!$AL$37:$AO$155,3,FALSE)*'Live scenario'!$D20),VLOOKUP(AP$39-$AE42,Constants!$AL$38:$AO$155,3,FALSE)*'Live scenario'!$D20) -> 0.00179298844 | AQ42: =IF($AE42>=AQ$39,IF($AD42=9999,TRUE,VLOOKUP(AQ$39-$AD42,Constants!$AL$37:$AO$155,3,FALSE)*'Live scenario'!$D20),VLOOKUP(AQ$39-$AE42,Constants!$AL$38:$AO$155,3,FALSE)*'Live scenario'!$D20) -> 0.00183804354 | AR42: =IF($AE42>=AR$39,IF($AD42=9999,TRUE,VLOOKUP(AR$39-$AD42,Constants!$AL$37:$AO$155,3,FALSE)*'Live scenario'!$D20),VLOOKUP(AR$39-$AE42,Constants!$AL$38:$AO$155,3,FALSE)*'Live scenario'!$D20) -> 0.00188355804 | AS42: =IF($AE42>=AS$39,IF($AD42=9999,TRUE,VLOOKUP(AS$39-$AD42,Constants!$AL$37:$AO$155,3,FALSE)*'Live scenario'!$D20),VLOOKUP(AS$39-$AE42,Constants!$AL$38:$AO$155,3,FALSE)*'Live scenario'!$D20) -> 0.00192952998 | AT42: =IF($AE42>=AT$39,IF($AD42=9999,TRUE,VLOOKUP(AT$39-$AD42,Constants!$AL$37:$AO$155,3,FALSE)*'Live scenario'!$D20),VLOOKUP(AT$39-$AE42,Constants!$AL$38:$AO$155,3,FALSE)*'Live scenario'!$D20) -> 0.00197595744 | AU42: =IF($AE42>=AU$39,IF($AD42=9999,TRUE,VLOOKUP(AU$39-$AD42,Constants!$AL$37:$AO$155,3,FALSE)*'Live scenario'!$D20),VLOOKUP(AU$39-$AE42,Constants!$AL$38:$AO$155,3,FALSE)*'Live scenario'!$D20) -> 0.00202283846 | AV42: =IF($AE42>=AV$39,IF($AD42=9999,TRUE,VLOOKUP(AV$39-$AD42,Constants!$AL$37:$AO$155,3,FALSE)*'Live scenario'!$D20),VLOOKUP(AV$39-$AE42,Constants!$AL$38:$AO$155,3,FALSE)*'Live scenario'!$D20) -> 0.0020701712 | AW42: =IF($AE42>=AW$39,IF($AD42=9999,TRUE,VLOOKUP(AW$39-$AD42,Constants!$AL$37:$AO$155,3,FALSE)*'Live scenario'!$D20),VLOOKUP(AW$39-$AE42,Constants!$AL$38:$AO$155,3,FALSE)*'Live scenario'!$D20) -> 0.00211795382 | AX42: =IF($AE42>=AX$39,IF($AD42=9999,TRUE,VLOOKUP(AX$39-$AD42,Constants!$AL$37:$AO$155,3,FALSE)*'Live scenario'!$D20),VLOOKUP(AX$39-$AE42,Constants!$AL$38:$AO$155,3,FALSE)*'Live scenario'!$D20) -> 0.00216618452 | AY42: =IF($AE42>=AY$39,IF($AD42=9999,TRUE,VLOOKUP(AY$39-$AD42,Constants!$AL$37:$AO$155,3,FALSE)*'Live scenario'!$D20),VLOOKUP(AY$39-$AE42,Constants!$AL$38:$AO$155,3,FALSE)*'Live scenario'!$D20) -> 0.0022148615 | AZ42: =IF($AE42>=AZ$39,IF($AD42=9999,TRUE,VLOOKUP(AZ$39-$AD42,Constants!$AL$37:$AO$155,3,FALSE)*'Live scenario'!$D20),VLOOKUP(AZ$39-$AE42,Constants!$AL$38:$AO$155,3,FALSE)*'Live scenario'!$D20) -> 0.00226398302 | BA42: =IF($AE42>=BA$39,IF($AD42=9999,TRUE,VLOOKUP(BA$39-$AD42,Constants!$AL$37:$AO$155,3,FALSE)*'Live scenario'!$D20),VLOOKUP(BA$39-$AE42,Constants!$AL$38:$AO$155,3,FALSE)*'Live scenario'!$D20) -> 0.00231354736 | BB42: =IF($AE42>=BB$39,IF($AD42=9999,TRUE,VLOOKUP(BB$39-$AD42,Constants!$AL$37:$AO$155,3,FALSE)*'Live scenario'!$D20),VLOOKUP(BB$39-$AE42,Constants!$AL$38:$AO$155,3,FALSE)*'Live scenario'!$D20) -> 0.00236355286 | BC42: =IF($AE42>=BC$39,IF($AD42=9999,TRUE,VLOOKUP(BC$39-$AD42,Constants!$AL$37:$AO$155,3,FALSE)*'Live scenario'!$D20),VLOOKUP(BC$39-$AE42,Constants!$AL$38:$AO$155,3,FALSE)*'Live scenario'!$D20) -> 0.00241399782 | BD42: =IF($AE42>=BD$39,IF($AD42=9999,TRUE,VLOOKUP(BD$39-$AD42,Constants!$AL$37:$AO$155,3,FALSE)*'Live scenario'!$D20),VLOOKUP(BD$39-$AE42,Constants!$AL$38:$AO$155,3,FALSE)*'Live scenario'!$D20) -> 0.00246488062 | BE42: =IF($AE42>=BE$39,IF($AD42=9999,TRUE,VLOOKUP(BE$39-$AD42,Constants!$AL$37:$AO$155,3,FALSE)*'Live scenario'!$D20),VLOOKUP(BE$39-$AE42,Constants!$AL$38:$AO$155,3,FALSE)*'Live scenario'!$D20) -> 0.00251619964 | BF42: =IF($AE42>=BF$39,IF($AD42=9999,TRUE,VLOOKUP(BF$39-$AD42,Constants!$AL$37:$AO$155,3,FALSE)*'Live scenario'!$D20),VLOOKUP(BF$39-$AE42,Constants!$AL$38:$AO$155,3,FALSE)*'Live scenario'!$D20) -> 0.00256795332 | BG42: =IF($AE42>=BG$39,IF($AD42=9999,TRUE,VLOOKUP(BG$39-$AD42,Constants!$AL$37:$AO$155,3,FALSE)*'Live scenario'!$D20),VLOOKUP(BG$39-$AE42,Constants!$AL$38:$AO$155,3,FALSE)*'Live scenario'!$D20) -> 0.0026201401
A43: 2025 | B43: 5 | C43: =IFERROR(IF(B43=1,8760,INDEX(LDCs!$E$4:$E$17568,MATCH(B43/VLOOKUP(A43,$N$4:$P$31,2,FALSE),LDCs!$C$4:$C$17568,1),1)),C42) -> 8602 | D43: 35.85413125 | E43: 17.92706562 | F43: 0 | G43: 0 | H43: 0 | I43: 0.9 | J43: 0 | K43: 0 | L43: 216 | M43: 216 | N43: 0 | O43: 0.002462705244 | P43: 0.0002748319243 | Q43: FALSE | R43: FALSE | S43: 0.01094535664 | T43: 0 | U43: 0 | V43: 47.49095652 | W43: 0 | X43: 0 | Y43: =S43*K43*1000*(Constants!$L$10/365) -> 0 | AA43: 5 | AB43: =$AC$38&" #4" -> STL #4 | AC43: ='Live scenario'!$C$10 -> Transformer | AD43: =IFERROR(VLOOKUP($AB43,Constants!$C$36:$I$238,2,FALSE),9999) -> 9999 | AE43: =IFERROR(VLOOKUP($AB43,Constants!$C$36:$K$238,9,FALSE),9999) -> 9999 | AF43: =IF($AE43>=AF$39,IF($AD43=9999,TRUE,VLOOKUP(AF$39-$AD43,Constants!$AL$37:$AO$155,3,FALSE)*'Live scenario'!$D21),VLOOKUP(AF$39-$AE43,Constants!$AL$38:$AO$155,3,FALSE)*'Live scenario'!$D21) -> TRUE | AG43: =IF($AE43>=AG$39,IF($AD43=9999,TRUE,VLOOKUP(AG$39-$AD43,Constants!$AL$37:$AO$155,3,FALSE)*'Live scenario'!$D21),VLOOKUP(AG$39-$AE43,Constants!$AL$38:$AO$155,3,FALSE)*'Live scenario'!$D21) -> TRUE | AH43: =IF($AE43>=AH$39,IF($AD43=9999,TRUE,VLOOKUP(AH$39-$AD43,Constants!$AL$37:$AO$155,3,FALSE)*'Live scenario'!$D21),VLOOKUP(AH$39-$AE43,Constants!$AL$38:$AO$155,3,FALSE)*'Live scenario'!$D21) -> TRUE | AI43: =IF($AE43>=AI$39,IF($AD43=9999,TRUE,VLOOKUP(AI$39-$AD43,Constants!$AL$37:$AO$155,3,FALSE)*'Live scenario'!$D21),VLOOKUP(AI$39-$AE43,Constants!$AL$38:$AO$155,3,FALSE)*'Live scenario'!$D21) -> TRUE | AJ43: =IF($AE43>=AJ$39,IF($AD43=9999,TRUE,VLOOKUP(AJ$39-$AD43,Constants!$AL$37:$AO$155,3,FALSE)*'Live scenario'!$D21),VLOOKUP(AJ$39-$AE43,Constants!$AL$38:$AO$155,3,FALSE)*'Live scenario'!$D21) -> TRUE | AK43: =IF($AE43>=AK$39,IF($AD43=9999,TRUE,VLOOKUP(AK$39-$AD43,Constants!$AL$37:$AO$155,3,FALSE)*'Live scenario'!$D21),VLOOKUP(AK$39-$AE43,Constants!$AL$38:$AO$155,3,FALSE)*'Live scenario'!$D21) -> TRUE | AL43: =IF($AE43>=AL$39,IF($AD43=9999,TRUE,VLOOKUP(AL$39-$AD43,Constants!$AL$37:$AO$155,3,FALSE)*'Live scenario'!$D21),VLOOKUP(AL$39-$AE43,Constants!$AL$38:$AO$155,3,FALSE)*'Live scenario'!$D21) -> TRUE | AM43: =IF($AE43>=AM$39,IF($AD43=9999,TRUE,VLOOKUP(AM$39-$AD43,Constants!$AL$37:$AO$155,3,FALSE)*'Live scenario'!$D21),VLOOKUP(AM$39-$AE43,Constants!$AL$38:$AO$155,3,FALSE)*'Live scenario'!$D21) -> TRUE | AN43: =IF($AE43>=AN$39,IF($AD43=9999,TRUE,VLOOKUP(AN$39-$AD43,Constants!$AL$37:$AO$155,3,FALSE)*'Live scenario'!$D21),VLOOKUP(AN$39-$AE43,Constants!$AL$38:$AO$155,3,FALSE)*'Live scenario'!$D21) -> TRUE | AO43: =IF($AE43>=AO$39,IF($AD43=9999,TRUE,VLOOKUP(AO$39-$AD43,Constants!$AL$37:$AO$155,3,FALSE)*'Live scenario'!$D21),VLOOKUP(AO$39-$AE43,Constants!$AL$38:$AO$155,3,FALSE)*'Live scenario'!$D21) -> TRUE | AP43: =IF($AE43>=AP$39,IF($AD43=9999,TRUE,VLOOKUP(AP$39-$AD43,Constants!$AL$37:$AO$155,3,FALSE)*'Live scenario'!$D21),VLOOKUP(AP$39-$AE43,Constants!$AL$38:$AO$155,3,FALSE)*'Live scenario'!$D21) -> TRUE | AQ43: =IF($AE43>=AQ$39,IF($AD43=9999,TRUE,VLOOKUP(AQ$39-$AD43,Constants!$AL$37:$AO$155,3,FALSE)*'Live scenario'!$D21),VLOOKUP(AQ$39-$AE43,Constants!$AL$38:$AO$155,3,FALSE)*'Live scenario'!$D21) -> TRUE | AR43: =IF($AE43>=AR$39,IF($AD43=9999,TRUE,VLOOKUP(AR$39-$AD43,Constants!$AL$37:$AO$155,3,FALSE)*'Live scenario'!$D21),VLOOKUP(AR$39-$AE43,Constants!$AL$38:$AO$155,3,FALSE)*'Live scenario'!$D21) -> TRUE | AS43: =IF($AE43>=AS$39,IF($AD43=9999,TRUE,VLOOKUP(AS$39-$AD43,Constants!$AL$37:$AO$155,3,FALSE)*'Live scenario'!$D21),VLOOKUP(AS$39-$AE43,Constants!$AL$38:$AO$155,3,FALSE)*'Live scenario'!$D21) -> TRUE | AT43: =IF($AE43>=AT$39,IF($AD43=9999,TRUE,VLOOKUP(AT$39-$AD43,Constants!$AL$37:$AO$155,3,FALSE)*'Live scenario'!$D21),VLOOKUP(AT$39-$AE43,Constants!$AL$38:$AO$155,3,FALSE)*'Live scenario'!$D21) -> TRUE | AU43: =IF($AE43>=AU$39,IF($AD43=9999,TRUE,VLOOKUP(AU$39-$AD43,Constants!$AL$37:$AO$155,3,FALSE)*'Live scenario'!$D21),VLOOKUP(AU$39-$AE43,Constants!$AL$38:$AO$155,3,FALSE)*'Live scenario'!$D21) -> TRUE | AV43: =IF($AE43>=AV$39,IF($AD43=9999,TRUE,VLOOKUP(AV$39-$AD43,Constants!$AL$37:$AO$155,3,FALSE)*'Live scenario'!$D21),VLOOKUP(AV$39-$AE43,Constants!$AL$38:$AO$155,3,FALSE)*'Live scenario'!$D21) -> TRUE | AW43: =IF($AE43>=AW$39,IF($AD43=9999,TRUE,VLOOKUP(AW$39-$AD43,Constants!$AL$37:$AO$155,3,FALSE)*'Live scenario'!$D21),VLOOKUP(AW$39-$AE43,Constants!$AL$38:$AO$155,3,FALSE)*'Live scenario'!$D21) -> TRUE | AX43: =IF($AE43>=AX$39,IF($AD43=9999,TRUE,VLOOKUP(AX$39-$AD43,Constants!$AL$37:$AO$155,3,FALSE)*'Live scenario'!$D21),VLOOKUP(AX$39-$AE43,Constants!$AL$38:$AO$155,3,FALSE)*'Live scenario'!$D21) -> TRUE | AY43: =IF($AE43>=AY$39,IF($AD43=9999,TRUE,VLOOKUP(AY$39-$AD43,Constants!$AL$37:$AO$155,3,FALSE)*'Live scenario'!$D21),VLOOKUP(AY$39-$AE43,Constants!$AL$38:$AO$155,3,FALSE)*'Live scenario'!$D21) -> TRUE | AZ43: =IF($AE43>=AZ$39,IF($AD43=9999,TRUE,VLOOKUP(AZ$39-$AD43,Constants!$AL$37:$AO$155,3,FALSE)*'Live scenario'!$D21),VLOOKUP(AZ$39-$AE43,Constants!$AL$38:$AO$155,3,FALSE)*'Live scenario'!$D21) -> TRUE | BA43: =IF($AE43>=BA$39,IF($AD43=9999,TRUE,VLOOKUP(BA$39-$AD43,Constants!$AL$37:$AO$155,3,FALSE)*'Live scenario'!$D21),VLOOKUP(BA$39-$AE43,Constants!$AL$38:$AO$155,3,FALSE)*'Live scenario'!$D21) -> TRUE | BB43: =IF($AE43>=BB$39,IF($AD43=9999,TRUE,VLOOKUP(BB$39-$AD43,Constants!$AL$37:$AO$155,3,FALSE)*'Live scenario'!$D21),VLOOKUP(BB$39-$AE43,Constants!$AL$38:$AO$155,3,FALSE)*'Live scenario'!$D21) -> TRUE | BC43: =IF($AE43>=BC$39,IF($AD43=9999,TRUE,VLOOKUP(BC$39-$AD43,Constants!$AL$37:$AO$155,3,FALSE)*'Live scenario'!$D21),VLOOKUP(BC$39-$AE43,Constants!$AL$38:$AO$155,3,FALSE)*'Live scenario'!$D21) -> TRUE | BD43: =IF($AE43>=BD$39,IF($AD43=9999,TRUE,VLOOKUP(BD$39-$AD43,Constants!$AL$37:$AO$155,3,FALSE)*'Live scenario'!$D21),VLOOKUP(BD$39-$AE43,Constants!$AL$38:$AO$155,3,FALSE)*'Live scenario'!$D21) -> TRUE | BE43: =IF($AE43>=BE$39,IF($AD43=9999,TRUE,VLOOKUP(BE$39-$AD43,Constants!$AL$37:$AO$155,3,FALSE)*'Live scenario'!$D21),VLOOKUP(BE$39-$AE43,Constants!$AL$38:$AO$155,3,FALSE)*'Live scenario'!$D21) -> TRUE | BF43: =IF($AE43>=BF$39,IF($AD43=9999,TRUE,VLOOKUP(BF$39-$AD43,Constants!$AL$37:$AO$155,3,FALSE)*'Live scenario'!$D21),VLOOKUP(BF$39-$AE43,Constants!$AL$38:$AO$155,3,FALSE)*'Live scenario'!$D21) -> TRUE | BG43: =IF($AE43>=BG$39,IF($AD43=9999,TRUE,VLOOKUP(BG$39-$AD43,Constants!$AL$37:$AO$155,3,FALSE)*'Live scenario'!$D21),VLOOKUP(BG$39-$AE43,Constants!$AL$38:$AO$155,3,FALSE)*'Live scenario'!$D21) -> TRUE
A44: 2025 | B44: 6 | C44: =IFERROR(IF(B44=1,8760,INDEX(LDCs!$E$4:$E$17568,MATCH(B44/VLOOKUP(A44,$N$4:$P$31,2,FALSE),LDCs!$C$4:$C$17568,1),1)),C43) -> 8362 | D44: 35.85413125 | E44: 17.92706562 | F44: 0 | G44: 0 | H44: 0 | I44: 1.9 | J44: 0 | K44: 0 | L44: 733.4 | M44: 733.4 | N44: 0 | O44: 0.002462705244 | P44: 0.0002748319243 | Q44: FALSE | R44: FALSE | S44: 0.01094535664 | T44: 0 | U44: 0 | V44: 161.2493866 | W44: 0 | X44: 0 | Y44: =S44*K44*1000*(Constants!$L$10/365) -> 0 | AA44: 6 | AB44: =$AC$38&" #1" -> STL #1 | AD44: =IFERROR(VLOOKUP(AB44,Constants!$C$37:$E$238,3,FALSE),0) -> 17.92706562 | AE44: =IFERROR(VLOOKUP(AB44, Constants!$C$37:$F$238,4,FALSE),0) -> 18.246735 | AF44: =IF(AF40=TRUE,9999, IF($AE40>AF$39, $AD40, $AE40)) -> 1967 | AG44: =IF(AG40=TRUE,9999, IF($AE40>AG$39, $AD40, $AE40)) -> 1967 | AH44: 1967 | AI44: 1967 | AJ44: 1967 | AK44: 1967 | AL44: 1967 | AM44: 1967 | AN44: 1967 | AO44: 1967 | AP44: 1967 | AQ44: 1967 | AR44: 1967 | AS44: 1967 | AT44: 1967 | AU44: 1967 | AV44: 1967 | AW44: 1967 | AX44: 1967 | AY44: 1967 | AZ44: 1967 | BA44: 1967 | BB44: 1967 | BC44: =IF(BC40=TRUE,9999, IF($AE40>BC$39, $AD40, $AE40)) -> 1967 | BD44: 1967 | BE44: 1967 | BF44: 1967 | BG44: 1967
A45: 2025 | B45: 7 | C45: =IFERROR(IF(B45=1,8760,INDEX(LDCs!$E$4:$E$17568,MATCH(B45/VLOOKUP(A45,$N$4:$P$31,2,FALSE),LDCs!$C$4:$C$17568,1),1)),C44) -> 7976 | D45: 35.85413125 | E45: 17.92706562 | F45: 0 | G45: 0 | H45: 0 | I45: 2.9 | J45: 0 | K45: 0 | L45: 2293.9 | M45: 2293.9 | N45: 0 | O45: 0.002462705244 | P45: 0.0002748319243 | Q45: FALSE | R45: FALSE | S45: 0.01094535664 | T45: 0 | U45: 0 | V45: 504.349561 | W45: 0 | X45: 0 | Y45: =S45*K45*1000*(Constants!$L$10/365) -> 0 | AA45: 7 | AB45: =$AC$38&" #2" -> STL #2 | AD45: =IFERROR(VLOOKUP(AB45,Constants!$C$37:$E$238,3,FALSE),0) -> 0 | AE45: =IFERROR(VLOOKUP(AB45, Constants!$C$37:$F$238,4,FALSE),0) -> 0 | AF45: =IF(AF41=TRUE,9999, IF($AE41>AF$39, $AD41, $AE41)) -> 9999 | AG45: 9999 | AH45: 9999 | AI45: 9999 | AJ45: 9999 | AK45: 9999 | AL45: 9999 | AM45: 9999 | AN45: 9999 | AO45: 9999 | AP45: 9999 | AQ45: 9999 | AR45: 9999 | AS45: 9999 | AT45: 9999 | AU45: 9999 | AV45: 9999 | AW45: 9999 | AX45: 9999 | AY45: 9999 | AZ45: 9999 | BA45: 9999 | BB45: 9999 | BC45: 9999 | BD45: 9999 | BE45: 9999 | BF45: 9999 | BG45: 9999
A46: 2025 | B46: 8 | C46: =IFERROR(IF(B46=1,8760,INDEX(LDCs!$E$4:$E$17568,MATCH(B46/VLOOKUP(A46,$N$4:$P$31,2,FALSE),LDCs!$C$4:$C$17568,1),1)),C45) -> 7185 | D46: 35.85413125 | E46: 17.92706562 | F46: 0 | G46: 0 | H46: 0 | I46: 3.9 | J46: 0 | K46: 0 | L46: 5904.6 | M46: 5904.6 | N46: 0 | O46: 0.002462705244 | P46: 0.0002748319243 | Q46: FALSE | R46: FALSE | S46: 0.01094535664 | T46: 0 | U46: 0 | V46: 1298.218064 | W46: 0 | X46: 0 | Y46: =S46*K46*1000*(Constants!$L$10/365) -> 0 | AA46: 8 | AB46: =$AC$38&" #3" -> STL #3 | AD46: =IFERROR(VLOOKUP(AB46,Constants!$C$37:$E$238,3,FALSE),0) -> 17.92706562 | AE46: =IFERROR(VLOOKUP(AB46, Constants!$C$37:$F$238,4,FALSE),0) -> 18.246735 | AF46: 1967 | AG46: 1967 | AH46: 1967 | AI46: 1967 | AJ46: 1967 | AK46: 1967 | AL46: 1967 | AM46: 1967 | AN46: 1967 | AO46: 1967 | AP46: 1967 | AQ46: 1967 | AR46: 1967 | AS46: 1967 | AT46: 1967 | AU46: 1967 | AV46: 1967 | AW46: 1967 | AX46: 1967 | AY46: 1967 | AZ46: 1967 | BA46: 1967 | BB46: 1967 | BC46: 1967 | BD46: 1967 | BE46: 1967 | BF46: 1967 | BG46: 1967
A47: 2025 | B47: 9 | C47: =IFERROR(IF(B47=1,8760,INDEX(LDCs!$E$4:$E$17568,MATCH(B47/VLOOKUP(A47,$N$4:$P$31,2,FALSE),LDCs!$C$4:$C$17568,1),1)),C46) -> 5671 | D47: 35.85413125 | E47: 17.92706562 | F47: 0 | G47: 0 | H47: 0 | I47: 4.9 | J47: 0 | K47: 0 | L47: 7452.9 | M47: 7452.9 | N47: 0 | O47: 0.002462705244 | P47: 0.0002748319243 | Q47: FALSE | R47: FALSE | S47: 0.01094535664 | T47: 0 | U47: 0 | V47: 1638.635879 | W47: 0 | X47: 0 | Y47: =S47*K47*1000*(Constants!$L$10/365) -> 0 | AA47: 9 | AB47: =$AC$38&" #4" -> STL #4 | AD47: =IFERROR(VLOOKUP(AB47,Constants!$C$37:$E$238,3,FALSE),0) -> 0 | AE47: =IFERROR(VLOOKUP(AB47, Constants!$C$37:$F$238,4,FALSE),0) -> 0 | AF47: =IF(AF43=TRUE,9999, IF($AE43>AF$39, $AD43, $AE43)) -> 9999 | AG47: =IF(AG43=TRUE,9999, IF($AE43>AG$39, $AD43, $AE43)) -> 9999 | AH47: 9999 | AI47: 9999 | AJ47: 9999 | AK47: 9999 | AL47: 9999 | AM47: 9999 | AN47: 9999 | AO47: 9999 | AP47: 9999 | AQ47: 9999 | AR47: 9999 | AS47: 9999 | AT47: 9999 | AU47: 9999 | AV47: 9999 | AW47: 9999 | AX47: 9999 | AY47: 9999 | AZ47: 9999 | BA47: 9999 | BB47: 9999 | BC47: 9999 | BD47: 9999 | BE47: 9999 | BF47: 9999 | BG47: 9999
A48: 2025 | B48: 10 | C48: =IFERROR(IF(B48=1,8760,INDEX(LDCs!$E$4:$E$17568,MATCH(B48/VLOOKUP(A48,$N$4:$P$31,2,FALSE),LDCs!$C$4:$C$17568,1),1)),C47) -> 4150 | D48: 35.85413125 | E48: 17.92706562 | F48: 0 | G48: 0 | H48: 0 | I48: 5.9 | J48: 0 | K48: 0 | L48: 7793.9 | M48: 7793.9 | N48: 0 | O48: 0.002462705244 | P48: 0.0002748319243 | Q48: FALSE | R48: FALSE | S48: 0.01094535664 | T48: 0 | U48: 0 | V48: 1713.610028 | W48: 0 | X48: 0 | Y48: =S48*K48*1000*(Constants!$L$10/365) -> 0 | AA48: 10 | AB48: Count of Assets | AE48: Row | AF48: =COUNTIF(AF44:AF47,"<="&AF39) -> 2 | AG48: 2 | AH48: 2 | AI48: 2 | AJ48: 2 | AK48: 2 | AL48: 2 | AM48: 2 | AN48: 2 | AO48: 2 | AP48: 2 | AQ48: 2 | AR48: 2 | AS48: 2 | AT48: 2 | AU48: 2 | AV48: 2 | AW48: 2 | AX48: 2 | AY48: 2 | AZ48: 2 | BA48: 2 | BB48: 2 | BC48: =COUNTIF(BC44:BC47,"<="&BC39) -> 2 | BD48: =COUNTIF(BD44:BD47,"<="&BD39) -> 2 | BE48: =COUNTIF(BE44:BE47,"<="&BE39) -> 2 | BF48: =COUNTIF(BF44:BF47,"<="&BF39) -> 2 | BG48: =COUNTIF(BG44:BG47,"<="&BG39) -> 2
A49: 2025 | B49: 11 | C49: =IFERROR(IF(B49=1,8760,INDEX(LDCs!$E$4:$E$17568,MATCH(B49/VLOOKUP(A49,$N$4:$P$31,2,FALSE),LDCs!$C$4:$C$17568,1),1)),C48) -> 2829 | D49: 35.85413125 | E49: 17.92706562 | F49: 0 | G49: 0 | H49: 0 | I49: 6.9 | J49: 0 | K49: 0 | L49: 7866 | M49: 7866 | N49: 0 | O49: 0.002462705244 | P49: 0.0002748319243 | Q49: FALSE | R49: FALSE | S49: 0.01094535664 | T49: 0 | U49: 0 | V49: 1729.462333 | W49: 0 | X49: 0 | Y49: =S49*K49*1000*(Constants!$L$10/365) -> 0 | AA49: 11 | AB49: N cyclic Rating | AE49: 11 | AF49: =SUMPRODUCT((AF$44:AF$47<=AF$39)*($AD$44:$AD$47)) -> 35.85413125 | AG49: =SUMPRODUCT((AG$44:AG$47<=AG$39)*($AD$44:$AD$47)) -> 35.85413125 | AH49: =SUMPRODUCT((AH$44:AH$47<=AH$39)*($AD$44:$AD$47)) -> 35.85413125 | AI49: =SUMPRODUCT((AI$44:AI$47<=AI$39)*($AD$44:$AD$47)) -> 35.85413125 | AJ49: =SUMPRODUCT((AJ$44:AJ$47<=AJ$39)*($AD$44:$AD$47)) -> 35.85413125 | AK49: =SUMPRODUCT((AK$44:AK$47<=AK$39)*($AD$44:$AD$47)) -> 35.85413125 | AL49: =SUMPRODUCT((AL$44:AL$47<=AL$39)*($AD$44:$AD$47)) -> 35.85413125 | AM49: =SUMPRODUCT((AM$44:AM$47<=AM$39)*($AD$44:$AD$47)) -> 35.85413125 | AN49: =SUMPRODUCT((AN$44:AN$47<=AN$39)*($AD$44:$AD$47)) -> 35.85413125 | AO49: =SUMPRODUCT((AO$44:AO$47<=AO$39)*($AD$44:$AD$47)) -> 35.85413125 | AP49: =SUMPRODUCT((AP$44:AP$47<=AP$39)*($AD$44:$AD$47)) -> 35.85413125 | AQ49: =SUMPRODUCT((AQ$44:AQ$47<=AQ$39)*($AD$44:$AD$47)) -> 35.85413125 | AR49: =SUMPRODUCT((AR$44:AR$47<=AR$39)*($AD$44:$AD$47)) -> 35.85413125 | AS49: =SUMPRODUCT((AS$44:AS$47<=AS$39)*($AD$44:$AD$47)) -> 35.85413125 | AT49: =SUMPRODUCT((AT$44:AT$47<=AT$39)*($AD$44:$AD$47)) -> 35.85413125 | AU49: =SUMPRODUCT((AU$44:AU$47<=AU$39)*($AD$44:$AD$47)) -> 35.85413125 | AV49: =SUMPRODUCT((AV$44:AV$47<=AV$39)*($AD$44:$AD$47)) -> 35.85413125 | AW49: =SUMPRODUCT((AW$44:AW$47<=AW$39)*($AD$44:$AD$47)) -> 35.85413125 | AX49: =SUMPRODUCT((AX$44:AX$47<=AX$39)*($AD$44:$AD$47)) -> 35.85413125 | AY49: =SUMPRODUCT((AY$44:AY$47<=AY$39)*($AD$44:$AD$47)) -> 35.85413125 | AZ49: =SUMPRODUCT((AZ$44:AZ$47<=AZ$39)*($AD$44:$AD$47)) -> 35.85413125 | BA49: =SUMPRODUCT((BA$44:BA$47<=BA$39)*($AD$44:$AD$47)) -> 35.85413125 | BB49: =SUMPRODUCT((BB$44:BB$47<=BB$39)*($AD$44:$AD$47)) -> 35.85413125 | BC49: =SUMPRODUCT((BC$44:BC$47<=BC$39)*($AD$44:$AD$47)) -> 35.85413125 | BD49: =SUMPRODUCT((BD$44:BD$47<=BD$39)*($AD$44:$AD$47)) -> 35.85413125 | BE49: =SUMPRODUCT((BE$44:BE$47<=BE$39)*($AD$44:$AD$47)) -> 35.85413125 | BF49: =SUMPRODUCT((BF$44:BF$47<=BF$39)*($AD$44:$AD$47)) -> 35.85413125 | BG49: =SUMPRODUCT((BG$44:BG$47<=BG$39)*($AD$44:$AD$47)) -> 35.85413125
A50: 2025 | B50: 12 | C50: =IFERROR(IF(B50=1,8760,INDEX(LDCs!$E$4:$E$17568,MATCH(B50/VLOOKUP(A50,$N$4:$P$31,2,FALSE),LDCs!$C$4:$C$17568,1),1)),C49) -> 1689 | D50: 35.85413125 | E50: 17.92706562 | F50: 0 | G50: 0 | H50: 0 | I50: 7.9 | J50: 0 | K50: 0 | L50: 6541.2 | M50: 6541.2 | N50: 0 | O50: 0.002462705244 | P50: 0.0002748319243 | Q50: =VLOOKUP($A50, $N$4:$AY$31,35,FALSE) -> FALSE | R50: FALSE | S50: 0.01094535664 | T50: 0 | U50: 0 | V50: 1438.184467 | W50: 0 | X50: 0 | Y50: =S50*K50*1000*(Constants!$L$10/365) -> 0 | AA50: 12 | AB50: N 2hR Rating | AE50: 12 | AF50: =SUMPRODUCT((AF$44:AF$47<=AF$39)*($AE$44:$AE$47)) -> 36.49347 | AG50: =SUMPRODUCT((AG$44:AG$47<=AG$39)*($AE$44:$AE$47)) -> 36.49347 | AH50: =SUMPRODUCT((AH$44:AH$47<=AH$39)*($AE$44:$AE$47)) -> 36.49347 | AI50: =SUMPRODUCT((AI$44:AI$47<=AI$39)*($AE$44:$AE$47)) -> 36.49347 | AJ50: =SUMPRODUCT((AJ$44:AJ$47<=AJ$39)*($AE$44:$AE$47)) -> 36.49347 | AK50: =SUMPRODUCT((AK$44:AK$47<=AK$39)*($AE$44:$AE$47)) -> 36.49347 | AL50: =SUMPRODUCT((AL$44:AL$47<=AL$39)*($AE$44:$AE$47)) -> 36.49347 | AM50: =SUMPRODUCT((AM$44:AM$47<=AM$39)*($AE$44:$AE$47)) -> 36.49347 | AN50: =SUMPRODUCT((AN$44:AN$47<=AN$39)*($AE$44:$AE$47)) -> 36.49347 | AO50: =SUMPRODUCT((AO$44:AO$47<=AO$39)*($AE$44:$AE$47)) -> 36.49347 | AP50: =SUMPRODUCT((AP$44:AP$47<=AP$39)*($AE$44:$AE$47)) -> 36.49347 | AQ50: =SUMPRODUCT((AQ$44:AQ$47<=AQ$39)*($AE$44:$AE$47)) -> 36.49347 | AR50: =SUMPRODUCT((AR$44:AR$47<=AR$39)*($AE$44:$AE$47)) -> 36.49347 | AS50: =SUMPRODUCT((AS$44:AS$47<=AS$39)*($AE$44:$AE$47)) -> 36.49347 | AT50: =SUMPRODUCT((AT$44:AT$47<=AT$39)*($AE$44:$AE$47)) -> 36.49347 | AU50: =SUMPRODUCT((AU$44:AU$47<=AU$39)*($AE$44:$AE$47)) -> 36.49347 | AV50: =SUMPRODUCT((AV$44:AV$47<=AV$39)*($AE$44:$AE$47)) -> 36.49347 | AW50: =SUMPRODUCT((AW$44:AW$47<=AW$39)*($AE$44:$AE$47)) -> 36.49347 | AX50: =SUMPRODUCT((AX$44:AX$47<=AX$39)*($AE$44:$AE$47)) -> 36.49347 | AY50: =SUMPRODUCT((AY$44:AY$47<=AY$39)*($AE$44:$AE$47)) -> 36.49347 | AZ50: =SUMPRODUCT((AZ$44:AZ$47<=AZ$39)*($AE$44:$AE$47)) -> 36.49347 | BA50: =SUMPRODUCT((BA$44:BA$47<=BA$39)*($AE$44:$AE$47)) -> 36.49347 | BB50: =SUMPRODUCT((BB$44:BB$47<=BB$39)*($AE$44:$AE$47)) -> 36.49347 | BC50: =SUMPRODUCT((BC$44:BC$47<=BC$39)*($AE$44:$AE$47)) -> 36.49347 | BD50: =SUMPRODUCT((BD$44:BD$47<=BD$39)*($AE$44:$AE$47)) -> 36.49347 | BE50: =SUMPRODUCT((BE$44:BE$47<=BE$39)*($AE$44:$AE$47)) -> 36.49347 | BF50: =SUMPRODUCT((BF$44:BF$47<=BF$39)*($AE$44:$AE$47)) -> 36.49347 | BG50: =SUMPRODUCT((BG$44:BG$47<=BG$39)*($AE$44:$AE$47)) -> 36.49347
A51: 2025 | B51: 13 | C51: =IFERROR(IF(B51=1,8760,INDEX(LDCs!$E$4:$E$17568,MATCH(B51/VLOOKUP(A51,$N$4:$P$31,2,FALSE),LDCs!$C$4:$C$17568,1),1)),C50) -> 861 | D51: 35.85413125 | E51: 17.92706562 | F51: 0 | G51: 0 | H51: 0 | I51: 8.9 | J51: 0 | K51: 0 | L51: 3880.4 | M51: 3880.4 | N51: 0 | O51: 0.002462705244 | P51: 0.0002748319243 | Q51: FALSE | R51: FALSE | S51: 0.01094535664 | T51: 0 | U51: 0 | V51: 853.1662393 | W51: 0 | X51: 0 | Y51: =S51*K51*1000*(Constants!$L$10/365) -> 0 | AA51: 13 | AB51: N-1 2Hr Rating (Probability weighted) | AE51: 13 | AF51: =AF50-SUMPRODUCT((AF$40:AF$43<=AF$39)*($AE$44:$AE$47)*(AF40:AF43))/SUMPRODUCT((AF$44:AF$47<=AF$39)*(AF40:AF43)) -> 18.246735 | AG51: =AG50-SUMPRODUCT((AG$40:AG$43<=AG$39)*($AE$44:$AE$47)*(AG40:AG43))/SUMPRODUCT((AG$44:AG$47<=AG$39)*(AG40:AG43)) -> 18.246735 | AH51: =AH50-SUMPRODUCT((AH$40:AH$43<=AH$39)*($AE$44:$AE$47)*(AH40:AH43))/SUMPRODUCT((AH$44:AH$47<=AH$39)*(AH40:AH43)) -> 18.246735 | AI51: =AI50-SUMPRODUCT((AI$40:AI$43<=AI$39)*($AE$44:$AE$47)*(AI40:AI43))/SUMPRODUCT((AI$44:AI$47<=AI$39)*(AI40:AI43)) -> 18.246735 | AJ51: =AJ50-SUMPRODUCT((AJ$40:AJ$43<=AJ$39)*($AE$44:$AE$47)*(AJ40:AJ43))/SUMPRODUCT((AJ$44:AJ$47<=AJ$39)*(AJ40:AJ43)) -> 18.246735 | AK51: =AK50-SUMPRODUCT((AK$40:AK$43<=AK$39)*($AE$44:$AE$47)*(AK40:AK43))/SUMPRODUCT((AK$44:AK$47<=AK$39)*(AK40:AK43)) -> 18.246735 | AL51: =AL50-SUMPRODUCT((AL$40:AL$43<=AL$39)*($AE$44:$AE$47)*(AL40:AL43))/SUMPRODUCT((AL$44:AL$47<=AL$39)*(AL40:AL43)) -> 18.246735 | AM51: =AM50-SUMPRODUCT((AM$40:AM$43<=AM$39)*($AE$44:$AE$47)*(AM40:AM43))/SUMPRODUCT((AM$44:AM$47<=AM$39)*(AM40:AM43)) -> 18.246735 | AN51: =AN50-SUMPRODUCT((AN$40:AN$43<=AN$39)*($AE$44:$AE$47)*(AN40:AN43))/SUMPRODUCT((AN$44:AN$47<=AN$39)*(AN40:AN43)) -> 18.246735 | AO51: =AO50-SUMPRODUCT((AO$40:AO$43<=AO$39)*($AE$44:$AE$47)*(AO40:AO43))/SUMPRODUCT((AO$44:AO$47<=AO$39)*(AO40:AO43)) -> 18.246735 | AP51: =AP50-SUMPRODUCT((AP$40:AP$43<=AP$39)*($AE$44:$AE$47)*(AP40:AP43))/SUMPRODUCT((AP$44:AP$47<=AP$39)*(AP40:AP43)) -> 18.246735 | AQ51: =AQ50-SUMPRODUCT((AQ$40:AQ$43<=AQ$39)*($AE$44:$AE$47)*(AQ40:AQ43))/SUMPRODUCT((AQ$44:AQ$47<=AQ$39)*(AQ40:AQ43)) -> 18.246735 | AR51: =AR50-SUMPRODUCT((AR$40:AR$43<=AR$39)*($AE$44:$AE$47)*(AR40:AR43))/SUMPRODUCT((AR$44:AR$47<=AR$39)*(AR40:AR43)) -> 18.246735 | AS51: =AS50-SUMPRODUCT((AS$40:AS$43<=AS$39)*($AE$44:$AE$47)*(AS40:AS43))/SUMPRODUCT((AS$44:AS$47<=AS$39)*(AS40:AS43)) -> 18.246735 | AT51: =AT50-SUMPRODUCT((AT$40:AT$43<=AT$39)*($AE$44:$AE$47)*(AT40:AT43))/SUMPRODUCT((AT$44:AT$47<=AT$39)*(AT40:AT43)) -> 18.246735 | AU51: =AU50-SUMPRODUCT((AU$40:AU$43<=AU$39)*($AE$44:$AE$47)*(AU40:AU43))/SUMPRODUCT((AU$44:AU$47<=AU$39)*(AU40:AU43)) -> 18.246735 | AV51: =AV50-SUMPRODUCT((AV$40:AV$43<=AV$39)*($AE$44:$AE$47)*(AV40:AV43))/SUMPRODUCT((AV$44:AV$47<=AV$39)*(AV40:AV43)) -> 18.246735 | AW51: =AW50-SUMPRODUCT((AW$40:AW$43<=AW$39)*($AE$44:$AE$47)*(AW40:AW43))/SUMPRODUCT((AW$44:AW$47<=AW$39)*(AW40:AW43)) -> 18.246735 | AX51: =AX50-SUMPRODUCT((AX$40:AX$43<=AX$39)*($AE$44:$AE$47)*(AX40:AX43))/SUMPRODUCT((AX$44:AX$47<=AX$39)*(AX40:AX43)) -> 18.246735 | AY51: =AY50-SUMPRODUCT((AY$40:AY$43<=AY$39)*($AE$44:$AE$47)*(AY40:AY43))/SUMPRODUCT((AY$44:AY$47<=AY$39)*(AY40:AY43)) -> 18.246735 | AZ51: =AZ50-SUMPRODUCT((AZ$40:AZ$43<=AZ$39)*($AE$44:$AE$47)*(AZ40:AZ43))/SUMPRODUCT((AZ$44:AZ$47<=AZ$39)*(AZ40:AZ43)) -> 18.246735 | BA51: =BA50-SUMPRODUCT((BA$40:BA$43<=BA$39)*($AE$44:$AE$47)*(BA40:BA43))/SUMPRODUCT((BA$44:BA$47<=BA$39)*(BA40:BA43)) -> 18.246735 | BB51: =BB50-SUMPRODUCT((BB$40:BB$43<=BB$39)*($AE$44:$AE$47)*(BB40:BB43))/SUMPRODUCT((BB$44:BB$47<=BB$39)*(BB40:BB43)) -> 18.246735 | BC51: =BC50-SUMPRODUCT((BC$40:BC$43<=BC$39)*($AE$44:$AE$47)*(BC40:BC43))/SUMPRODUCT((BC$44:BC$47<=BC$39)*(BC40:BC43)) -> 18.246735 | BD51: =BD50-SUMPRODUCT((BD$40:BD$43<=BD$39)*($AE$44:$AE$47)*(BD40:BD43))/SUMPRODUCT((BD$44:BD$47<=BD$39)*(BD40:BD43)) -> 18.246735 | BE51: =BE50-SUMPRODUCT((BE$40:BE$43<=BE$39)*($AE$44:$AE$47)*(BE40:BE43))/SUMPRODUCT((BE$44:BE$47<=BE$39)*(BE40:BE43)) -> 18.246735 | BF51: =BF50-SUMPRODUCT((BF$40:BF$43<=BF$39)*($AE$44:$AE$47)*(BF40:BF43))/SUMPRODUCT((BF$44:BF$47<=BF$39)*(BF40:BF43)) -> 18.246735 | BG51: =BG50-SUMPRODUCT((BG$40:BG$43<=BG$39)*($AE$44:$AE$47)*(BG40:BG43))/SUMPRODUCT((BG$44:BG$47<=BG$39)*(BG40:BG43)) -> 18.246735
A52: 2025 | B52: 14 | C52: =IFERROR(IF(B52=1,8760,INDEX(LDCs!$E$4:$E$17568,MATCH(B52/VLOOKUP(A52,$N$4:$P$31,2,FALSE),LDCs!$C$4:$C$17568,1),1)),C51) -> 425 | D52: 35.85413125 | E52: 17.92706562 | F52: 0 | G52: 0 | H52: 0 | I52: 9.9 | J52: 0 | K52: 0 | L52: 1861.2 | M52: 1861.2 | N52: 0 | O52: 0.002462705244 | P52: 0.0002748319243 | Q52: FALSE | R52: FALSE | S52: 0.01094535664 | T52: 0 | U52: 0 | V52: 409.213742 | W52: 0 | X52: 0 | Y52: =S52*K52*1000*(Constants!$L$10/365) -> 0 | AA52: 14 | AB52: N-1 Cyclic Rating (Probability weighted) | AE52: 14 | AF52: =AF49-SUMPRODUCT((AF$40:AF$43<=AF$39)*($AD$44:$AD$47)*(AF40:AF43))/SUMPRODUCT((AF$44:AF$47<=AF$39)*(AF40:AF43)) -> 17.92706562 | AG52: =AG49-SUMPRODUCT((AG$40:AG$43<=AG$39)*($AD$44:$AD$47)*(AG40:AG43))/SUMPRODUCT((AG$44:AG$47<=AG$39)*(AG40:AG43)) -> 17.92706562 | AH52: =AH49-SUMPRODUCT((AH$40:AH$43<=AH$39)*($AD$44:$AD$47)*(AH40:AH43))/SUMPRODUCT((AH$44:AH$47<=AH$39)*(AH40:AH43)) -> 17.92706562 | AI52: =AI49-SUMPRODUCT((AI$40:AI$43<=AI$39)*($AD$44:$AD$47)*(AI40:AI43))/SUMPRODUCT((AI$44:AI$47<=AI$39)*(AI40:AI43)) -> 17.92706562 | AJ52: =AJ49-SUMPRODUCT((AJ$40:AJ$43<=AJ$39)*($AD$44:$AD$47)*(AJ40:AJ43))/SUMPRODUCT((AJ$44:AJ$47<=AJ$39)*(AJ40:AJ43)) -> 17.92706562 | AK52: =AK49-SUMPRODUCT((AK$40:AK$43<=AK$39)*($AD$44:$AD$47)*(AK40:AK43))/SUMPRODUCT((AK$44:AK$47<=AK$39)*(AK40:AK43)) -> 17.92706562 | AL52: =AL49-SUMPRODUCT((AL$40:AL$43<=AL$39)*($AD$44:$AD$47)*(AL40:AL43))/SUMPRODUCT((AL$44:AL$47<=AL$39)*(AL40:AL43)) -> 17.92706562 | AM52: =AM49-SUMPRODUCT((AM$40:AM$43<=AM$39)*($AD$44:$AD$47)*(AM40:AM43))/SUMPRODUCT((AM$44:AM$47<=AM$39)*(AM40:AM43)) -> 17.92706562 | AN52: =AN49-SUMPRODUCT((AN$40:AN$43<=AN$39)*($AD$44:$AD$47)*(AN40:AN43))/SUMPRODUCT((AN$44:AN$47<=AN$39)*(AN40:AN43)) -> 17.92706562 | AO52: =AO49-SUMPRODUCT((AO$40:AO$43<=AO$39)*($AD$44:$AD$47)*(AO40:AO43))/SUMPRODUCT((AO$44:AO$47<=AO$39)*(AO40:AO43)) -> 17.92706562 | AP52: =AP49-SUMPRODUCT((AP$40:AP$43<=AP$39)*($AD$44:$AD$47)*(AP40:AP43))/SUMPRODUCT((AP$44:AP$47<=AP$39)*(AP40:AP43)) -> 17.92706562 | AQ52: =AQ49-SUMPRODUCT((AQ$40:AQ$43<=AQ$39)*($AD$44:$AD$47)*(AQ40:AQ43))/SUMPRODUCT((AQ$44:AQ$47<=AQ$39)*(AQ40:AQ43)) -> 17.92706562 | AR52: =AR49-SUMPRODUCT((AR$40:AR$43<=AR$39)*($AD$44:$AD$47)*(AR40:AR43))/SUMPRODUCT((AR$44:AR$47<=AR$39)*(AR40:AR43)) -> 17.92706562 | AS52: =AS49-SUMPRODUCT((AS$40:AS$43<=AS$39)*($AD$44:$AD$47)*(AS40:AS43))/SUMPRODUCT((AS$44:AS$47<=AS$39)*(AS40:AS43)) -> 17.92706562 | AT52: =AT49-SUMPRODUCT((AT$40:AT$43<=AT$39)*($AD$44:$AD$47)*(AT40:AT43))/SUMPRODUCT((AT$44:AT$47<=AT$39)*(AT40:AT43)) -> 17.92706562 | AU52: =AU49-SUMPRODUCT((AU$40:AU$43<=AU$39)*($AD$44:$AD$47)*(AU40:AU43))/SUMPRODUCT((AU$44:AU$47<=AU$39)*(AU40:AU43)) -> 17.92706562 | AV52: =AV49-SUMPRODUCT((AV$40:AV$43<=AV$39)*($AD$44:$AD$47)*(AV40:AV43))/SUMPRODUCT((AV$44:AV$47<=AV$39)*(AV40:AV43)) -> 17.92706562 | AW52: =AW49-SUMPRODUCT((AW$40:AW$43<=AW$39)*($AD$44:$AD$47)*(AW40:AW43))/SUMPRODUCT((AW$44:AW$47<=AW$39)*(AW40:AW43)) -> 17.92706562 | AX52: =AX49-SUMPRODUCT((AX$40:AX$43<=AX$39)*($AD$44:$AD$47)*(AX40:AX43))/SUMPRODUCT((AX$44:AX$47<=AX$39)*(AX40:AX43)) -> 17.92706562 | AY52: =AY49-SUMPRODUCT((AY$40:AY$43<=AY$39)*($AD$44:$AD$47)*(AY40:AY43))/SUMPRODUCT((AY$44:AY$47<=AY$39)*(AY40:AY43)) -> 17.92706562 | AZ52: =AZ49-SUMPRODUCT((AZ$40:AZ$43<=AZ$39)*($AD$44:$AD$47)*(AZ40:AZ43))/SUMPRODUCT((AZ$44:AZ$47<=AZ$39)*(AZ40:AZ43)) -> 17.92706562 | BA52: =BA49-SUMPRODUCT((BA$40:BA$43<=BA$39)*($AD$44:$AD$47)*(BA40:BA43))/SUMPRODUCT((BA$44:BA$47<=BA$39)*(BA40:BA43)) -> 17.92706562 | BB52: =BB49-SUMPRODUCT((BB$40:BB$43<=BB$39)*($AD$44:$AD$47)*(BB40:BB43))/SUMPRODUCT((BB$44:BB$47<=BB$39)*(BB40:BB43)) -> 17.92706562 | BC52: =BC49-SUMPRODUCT((BC$40:BC$43<=BC$39)*($AD$44:$AD$47)*(BC40:BC43))/SUMPRODUCT((BC$44:BC$47<=BC$39)*(BC40:BC43)) -> 17.92706562 | BD52: =BD49-SUMPRODUCT((BD$40:BD$43<=BD$39)*($AD$44:$AD$47)*(BD40:BD43))/SUMPRODUCT((BD$44:BD$47<=BD$39)*(BD40:BD43)) -> 17.92706562 | BE52: =BE49-SUMPRODUCT((BE$40:BE$43<=BE$39)*($AD$44:$AD$47)*(BE40:BE43))/SUMPRODUCT((BE$44:BE$47<=BE$39)*(BE40:BE43)) -> 17.92706562 | BF52: =BF49-SUMPRODUCT((BF$40:BF$43<=BF$39)*($AD$44:$AD$47)*(BF40:BF43))/SUMPRODUCT((BF$44:BF$47<=BF$39)*(BF40:BF43)) -> 17.92706562 | BG52: =BG49-SUMPRODUCT((BG$40:BG$43<=BG$39)*($AD$44:$AD$47)*(BG40:BG43))/SUMPRODUCT((BG$44:BG$47<=BG$39)*(BG40:BG43)) -> 17.92706562
A53: 2025 | B53: 15 | C53: =IFERROR(IF(B53=1,8760,INDEX(LDCs!$E$4:$E$17568,MATCH(B53/VLOOKUP(A53,$N$4:$P$31,2,FALSE),LDCs!$C$4:$C$17568,1),1)),C52) -> 237 | D53: 35.85413125 | E53: 17.92706562 | F53: 0 | G53: 0 | H53: 0 | I53: 10.9 | J53: 0 | K53: 0 | L53: 1013.7 | M53: 1013.7 | N53: 0 | O53: 0.002462705244 | P53: 0.0002748319243 | Q53: FALSE | R53: FALSE | S53: 0.01094535664 | T53: 0 | U53: 0 | V53: 222.8776973 | W53: 0 | X53: 0 | Y53: =S53*K53*1000*(Constants!$L$10/365) -> 0 | AA53: 15 | AB53: N-2 Cyclic (Residual Rating) | AE53: 15 | AF53: =IF(COUNTIF($AD$40:$AD$43,"<>"&9999)>2,IF(AF49-2*SUMPRODUCT((AF$40:AF$43<=AF$39)*($AD$44:$AD$47)*(AF40:AF43))/SUMPRODUCT((AF$44:AF$47<=AF$39)*(AF40:AF43))<0,0,AF49-2*SUMPRODUCT((AF$40:AF$43<=AF$39)*($AD$44:$AD$47)*(AF40:AF43))/SUMPRODUCT((AF$44:AF$47<=AF$39)*(AF40:AF43))),0) -> 0 | AG53: =IF(COUNTIF($AD$40:$AD$43,"<>"&9999)>2,IF(AG49-2*SUMPRODUCT((AG$40:AG$43<=AG$39)*($AD$44:$AD$47)*(AG40:AG43))/SUMPRODUCT((AG$44:AG$47<=AG$39)*(AG40:AG43))<0,0,AG49-2*SUMPRODUCT((AG$40:AG$43<=AG$39)*($AD$44:$AD$47)*(AG40:AG43))/SUMPRODUCT((AG$44:AG$47<=AG$39)*(AG40:AG43))),0) -> 0 | AH53: =IF(COUNTIF($AD$40:$AD$43,"<>"&9999)>2,IF(AH49-2*SUMPRODUCT((AH$40:AH$43<=AH$39)*($AD$44:$AD$47)*(AH40:AH43))/SUMPRODUCT((AH$44:AH$47<=AH$39)*(AH40:AH43))<0,0,AH49-2*SUMPRODUCT((AH$40:AH$43<=AH$39)*($AD$44:$AD$47)*(AH40:AH43))/SUMPRODUCT((AH$44:AH$47<=AH$39)*(AH40:AH43))),0) -> 0 | AI53: =IF(COUNTIF($AD$40:$AD$43,"<>"&9999)>2,IF(AI49-2*SUMPRODUCT((AI$40:AI$43<=AI$39)*($AD$44:$AD$47)*(AI40:AI43))/SUMPRODUCT((AI$44:AI$47<=AI$39)*(AI40:AI43))<0,0,AI49-2*SUMPRODUCT((AI$40:AI$43<=AI$39)*($AD$44:$AD$47)*(AI40:AI43))/SUMPRODUCT((AI$44:AI$47<=AI$39)*(AI40:AI43))),0) -> 0 | AJ53: =IF(COUNTIF($AD$40:$AD$43,"<>"&9999)>2,IF(AJ49-2*SUMPRODUCT((AJ$40:AJ$43<=AJ$39)*($AD$44:$AD$47)*(AJ40:AJ43))/SUMPRODUCT((AJ$44:AJ$47<=AJ$39)*(AJ40:AJ43))<0,0,AJ49-2*SUMPRODUCT((AJ$40:AJ$43<=AJ$39)*($AD$44:$AD$47)*(AJ40:AJ43))/SUMPRODUCT((AJ$44:AJ$47<=AJ$39)*(AJ40:AJ43))),0) -> 0 | AK53: =IF(COUNTIF($AD$40:$AD$43,"<>"&9999)>2,IF(AK49-2*SUMPRODUCT((AK$40:AK$43<=AK$39)*($AD$44:$AD$47)*(AK40:AK43))/SUMPRODUCT((AK$44:AK$47<=AK$39)*(AK40:AK43))<0,0,AK49-2*SUMPRODUCT((AK$40:AK$43<=AK$39)*($AD$44:$AD$47)*(AK40:AK43))/SUMPRODUCT((AK$44:AK$47<=AK$39)*(AK40:AK43))),0) -> 0 | AL53: =IF(COUNTIF($AD$40:$AD$43,"<>"&9999)>2,IF(AL49-2*SUMPRODUCT((AL$40:AL$43<=AL$39)*($AD$44:$AD$47)*(AL40:AL43))/SUMPRODUCT((AL$44:AL$47<=AL$39)*(AL40:AL43))<0,0,AL49-2*SUMPRODUCT((AL$40:AL$43<=AL$39)*($AD$44:$AD$47)*(AL40:AL43))/SUMPRODUCT((AL$44:AL$47<=AL$39)*(AL40:AL43))),0) -> 0 | AM53: =IF(COUNTIF($AD$40:$AD$43,"<>"&9999)>2,IF(AM49-2*SUMPRODUCT((AM$40:AM$43<=AM$39)*($AD$44:$AD$47)*(AM40:AM43))/SUMPRODUCT((AM$44:AM$47<=AM$39)*(AM40:AM43))<0,0,AM49-2*SUMPRODUCT((AM$40:AM$43<=AM$39)*($AD$44:$AD$47)*(AM40:AM43))/SUMPRODUCT((AM$44:AM$47<=AM$39)*(AM40:AM43))),0) -> 0 | AN53: =IF(COUNTIF($AD$40:$AD$43,"<>"&9999)>2,IF(AN49-2*SUMPRODUCT((AN$40:AN$43<=AN$39)*($AD$44:$AD$47)*(AN40:AN43))/SUMPRODUCT((AN$44:AN$47<=AN$39)*(AN40:AN43))<0,0,AN49-2*SUMPRODUCT((AN$40:AN$43<=AN$39)*($AD$44:$AD$47)*(AN40:AN43))/SUMPRODUCT((AN$44:AN$47<=AN$39)*(AN40:AN43))),0) -> 0 | AO53: =IF(COUNTIF($AD$40:$AD$43,"<>"&9999)>2,IF(AO49-2*SUMPRODUCT((AO$40:AO$43<=AO$39)*($AD$44:$AD$47)*(AO40:AO43))/SUMPRODUCT((AO$44:AO$47<=AO$39)*(AO40:AO43))<0,0,AO49-2*SUMPRODUCT((AO$40:AO$43<=AO$39)*($AD$44:$AD$47)*(AO40:AO43))/SUMPRODUCT((AO$44:AO$47<=AO$39)*(AO40:AO43))),0) -> 0 | AP53: =IF(COUNTIF($AD$40:$AD$43,"<>"&9999)>2,IF(AP49-2*SUMPRODUCT((AP$40:AP$43<=AP$39)*($AD$44:$AD$47)*(AP40:AP43))/SUMPRODUCT((AP$44:AP$47<=AP$39)*(AP40:AP43))<0,0,AP49-2*SUMPRODUCT((AP$40:AP$43<=AP$39)*($AD$44:$AD$47)*(AP40:AP43))/SUMPRODUCT((AP$44:AP$47<=AP$39)*(AP40:AP43))),0) -> 0 | AQ53: =IF(COUNTIF($AD$40:$AD$43,"<>"&9999)>2,IF(AQ49-2*SUMPRODUCT((AQ$40:AQ$43<=AQ$39)*($AD$44:$AD$47)*(AQ40:AQ43))/SUMPRODUCT((AQ$44:AQ$47<=AQ$39)*(AQ40:AQ43))<0,0,AQ49-2*SUMPRODUCT((AQ$40:AQ$43<=AQ$39)*($AD$44:$AD$47)*(AQ40:AQ43))/SUMPRODUCT((AQ$44:AQ$47<=AQ$39)*(AQ40:AQ43))),0) -> 0 | AR53: =IF(COUNTIF($AD$40:$AD$43,"<>"&9999)>2,IF(AR49-2*SUMPRODUCT((AR$40:AR$43<=AR$39)*($AD$44:$AD$47)*(AR40:AR43))/SUMPRODUCT((AR$44:AR$47<=AR$39)*(AR40:AR43))<0,0,AR49-2*SUMPRODUCT((AR$40:AR$43<=AR$39)*($AD$44:$AD$47)*(AR40:AR43))/SUMPRODUCT((AR$44:AR$47<=AR$39)*(AR40:AR43))),0) -> 0 | AS53: =IF(COUNTIF($AD$40:$AD$43,"<>"&9999)>2,IF(AS49-2*SUMPRODUCT((AS$40:AS$43<=AS$39)*($AD$44:$AD$47)*(AS40:AS43))/SUMPRODUCT((AS$44:AS$47<=AS$39)*(AS40:AS43))<0,0,AS49-2*SUMPRODUCT((AS$40:AS$43<=AS$39)*($AD$44:$AD$47)*(AS40:AS43))/SUMPRODUCT((AS$44:AS$47<=AS$39)*(AS40:AS43))),0) -> 0 | AT53: =IF(COUNTIF($AD$40:$AD$43,"<>"&9999)>2,IF(AT49-2*SUMPRODUCT((AT$40:AT$43<=AT$39)*($AD$44:$AD$47)*(AT40:AT43))/SUMPRODUCT((AT$44:AT$47<=AT$39)*(AT40:AT43))<0,0,AT49-2*SUMPRODUCT((AT$40:AT$43<=AT$39)*($AD$44:$AD$47)*(AT40:AT43))/SUMPRODUCT((AT$44:AT$47<=AT$39)*(AT40:AT43))),0) -> 0 | AU53: =IF(COUNTIF($AD$40:$AD$43,"<>"&9999)>2,IF(AU49-2*SUMPRODUCT((AU$40:AU$43<=AU$39)*($AD$44:$AD$47)*(AU40:AU43))/SUMPRODUCT((AU$44:AU$47<=AU$39)*(AU40:AU43))<0,0,AU49-2*SUMPRODUCT((AU$40:AU$43<=AU$39)*($AD$44:$AD$47)*(AU40:AU43))/SUMPRODUCT((AU$44:AU$47<=AU$39)*(AU40:AU43))),0) -> 0 | AV53: =IF(COUNTIF($AD$40:$AD$43,"<>"&9999)>2,IF(AV49-2*SUMPRODUCT((AV$40:AV$43<=AV$39)*($AD$44:$AD$47)*(AV40:AV43))/SUMPRODUCT((AV$44:AV$47<=AV$39)*(AV40:AV43))<0,0,AV49-2*SUMPRODUCT((AV$40:AV$43<=AV$39)*($AD$44:$AD$47)*(AV40:AV43))/SUMPRODUCT((AV$44:AV$47<=AV$39)*(AV40:AV43))),0) -> 0 | AW53: =IF(COUNTIF($AD$40:$AD$43,"<>"&9999)>2,IF(AW49-2*SUMPRODUCT((AW$40:AW$43<=AW$39)*($AD$44:$AD$47)*(AW40:AW43))/SUMPRODUCT((AW$44:AW$47<=AW$39)*(AW40:AW43))<0,0,AW49-2*SUMPRODUCT((AW$40:AW$43<=AW$39)*($AD$44:$AD$47)*(AW40:AW43))/SUMPRODUCT((AW$44:AW$47<=AW$39)*(AW40:AW43))),0) -> 0 | AX53: =IF(COUNTIF($AD$40:$AD$43,"<>"&9999)>2,IF(AX49-2*SUMPRODUCT((AX$40:AX$43<=AX$39)*($AD$44:$AD$47)*(AX40:AX43))/SUMPRODUCT((AX$44:AX$47<=AX$39)*(AX40:AX43))<0,0,AX49-2*SUMPRODUCT((AX$40:AX$43<=AX$39)*($AD$44:$AD$47)*(AX40:AX43))/SUMPRODUCT((AX$44:AX$47<=AX$39)*(AX40:AX43))),0) -> 0 | AY53: =IF(COUNTIF($AD$40:$AD$43,"<>"&9999)>2,IF(AY49-2*SUMPRODUCT((AY$40:AY$43<=AY$39)*($AD$44:$AD$47)*(AY40:AY43))/SUMPRODUCT((AY$44:AY$47<=AY$39)*(AY40:AY43))<0,0,AY49-2*SUMPRODUCT((AY$40:AY$43<=AY$39)*($AD$44:$AD$47)*(AY40:AY43))/SUMPRODUCT((AY$44:AY$47<=AY$39)*(AY40:AY43))),0) -> 0 | AZ53: =IF(COUNTIF($AD$40:$AD$43,"<>"&9999)>2,IF(AZ49-2*SUMPRODUCT((AZ$40:AZ$43<=AZ$39)*($AD$44:$AD$47)*(AZ40:AZ43))/SUMPRODUCT((AZ$44:AZ$47<=AZ$39)*(AZ40:AZ43))<0,0,AZ49-2*SUMPRODUCT((AZ$40:AZ$43<=AZ$39)*($AD$44:$AD$47)*(AZ40:AZ43))/SUMPRODUCT((AZ$44:AZ$47<=AZ$39)*(AZ40:AZ43))),0) -> 0 | BA53: =IF(COUNTIF($AD$40:$AD$43,"<>"&9999)>2,IF(BA49-2*SUMPRODUCT((BA$40:BA$43<=BA$39)*($AD$44:$AD$47)*(BA40:BA43))/SUMPRODUCT((BA$44:BA$47<=BA$39)*(BA40:BA43))<0,0,BA49-2*SUMPRODUCT((BA$40:BA$43<=BA$39)*($AD$44:$AD$47)*(BA40:BA43))/SUMPRODUCT((BA$44:BA$47<=BA$39)*(BA40:BA43))),0) -> 0 | BB53: =IF(COUNTIF($AD$40:$AD$43,"<>"&9999)>2,IF(BB49-2*SUMPRODUCT((BB$40:BB$43<=BB$39)*($AD$44:$AD$47)*(BB40:BB43))/SUMPRODUCT((BB$44:BB$47<=BB$39)*(BB40:BB43))<0,0,BB49-2*SUMPRODUCT((BB$40:BB$43<=BB$39)*($AD$44:$AD$47)*(BB40:BB43))/SUMPRODUCT((BB$44:BB$47<=BB$39)*(BB40:BB43))),0) -> 0 | BC53: =IF(COUNTIF($AD$40:$AD$43,"<>"&9999)>2,IF(BC49-2*SUMPRODUCT((BC$40:BC$43<=BC$39)*($AD$44:$AD$47)*(BC40:BC43))/SUMPRODUCT((BC$44:BC$47<=BC$39)*(BC40:BC43))<0,0,BC49-2*SUMPRODUCT((BC$40:BC$43<=BC$39)*($AD$44:$AD$47)*(BC40:BC43))/SUMPRODUCT((BC$44:BC$47<=BC$39)*(BC40:BC43))),0) -> 0 | BD53: =IF(COUNTIF($AD$40:$AD$43,"<>"&9999)>2,IF(BD49-2*SUMPRODUCT((BD$40:BD$43<=BD$39)*($AD$44:$AD$47)*(BD40:BD43))/SUMPRODUCT((BD$44:BD$47<=BD$39)*(BD40:BD43))<0,0,BD49-2*SUMPRODUCT((BD$40:BD$43<=BD$39)*($AD$44:$AD$47)*(BD40:BD43))/SUMPRODUCT((BD$44:BD$47<=BD$39)*(BD40:BD43))),0) -> 0 | BE53: =IF(COUNTIF($AD$40:$AD$43,"<>"&9999)>2,IF(BE49-2*SUMPRODUCT((BE$40:BE$43<=BE$39)*($AD$44:$AD$47)*(BE40:BE43))/SUMPRODUCT((BE$44:BE$47<=BE$39)*(BE40:BE43))<0,0,BE49-2*SUMPRODUCT((BE$40:BE$43<=BE$39)*($AD$44:$AD$47)*(BE40:BE43))/SUMPRODUCT((BE$44:BE$47<=BE$39)*(BE40:BE43))),0) -> 0 | BF53: =IF(COUNTIF($AD$40:$AD$43,"<>"&9999)>2,IF(BF49-2*SUMPRODUCT((BF$40:BF$43<=BF$39)*($AD$44:$AD$47)*(BF40:BF43))/SUMPRODUCT((BF$44:BF$47<=BF$39)*(BF40:BF43))<0,0,BF49-2*SUMPRODUCT((BF$40:BF$43<=BF$39)*($AD$44:$AD$47)*(BF40:BF43))/SUMPRODUCT((BF$44:BF$47<=BF$39)*(BF40:BF43))),0) -> 0 | BG53: =IF(COUNTIF($AD$40:$AD$43,"<>"&9999)>2,IF(BG49-2*SUMPRODUCT((BG$40:BG$43<=BG$39)*($AD$44:$AD$47)*(BG40:BG43))/SUMPRODUCT((BG$44:BG$47<=BG$39)*(BG40:BG43))<0,0,BG49-2*SUMPRODUCT((BG$40:BG$43<=BG$39)*($AD$44:$AD$47)*(BG40:BG43))/SUMPRODUCT((BG$44:BG$47<=BG$39)*(BG40:BG43))),0) -> 0
A54: 2025 | B54: 16 | C54: =IFERROR(IF(B54=1,8760,INDEX(LDCs!$E$4:$E$17568,MATCH(B54/VLOOKUP(A54,$N$4:$P$31,2,FALSE),LDCs!$C$4:$C$17568,1),1)),C53) -> 144 | D54: 35.85413125 | E54: 17.92706562 | F54: 0 | G54: 0 | H54: 0 | I54: 11.9 | J54: 0 | K54: 0 | L54: 714 | M54: 714 | N54: 0 | O54: 0.002462705244 | P54: 0.0002748319243 | Q54: FALSE | R54: FALSE | S54: 0.01094535664 | T54: 0 | U54: 0 | V54: 156.9839952 | W54: 0 | X54: 0 | Y54: =S54*K54*1000*(Constants!$L$10/365) -> 0 | AA54: 16 | AB54: N-3 Cyclic (Residual Rating) | AE54: 16 | AF54: =IF(COUNTIF($AD$40:$AD$43,"<>"&9999)>3,IF(AF49-3*SUMPRODUCT((AF$40:AF$43<=AF$39)*($AD$44:$AD$47)*(AF40:AF43))/SUMPRODUCT((AF$44:AF$47<=AF$39)*(AF40:AF43))<0,0,AF49-3*SUMPRODUCT((AF$40:AF$43<=AF$39)*($AD$44:$AD$47)*(AF40:AF43))/SUMPRODUCT((AF$44:AF$47<=AF$39)*(AF40:AF43))),0) -> 0 | AG54: =IF(COUNTIF($AD$40:$AD$43,"<>"&9999)>3,IF(AG49-3*SUMPRODUCT((AG$40:AG$43<=AG$39)*($AD$44:$AD$47)*(AG40:AG43))/SUMPRODUCT((AG$44:AG$47<=AG$39)*(AG40:AG43))<0,0,AG49-3*SUMPRODUCT((AG$40:AG$43<=AG$39)*($AD$44:$AD$47)*(AG40:AG43))/SUMPRODUCT((AG$44:AG$47<=AG$39)*(AG40:AG43))),0) -> 0 | AH54: =IF(COUNTIF($AD$40:$AD$43,"<>"&9999)>3,IF(AH49-3*SUMPRODUCT((AH$40:AH$43<=AH$39)*($AD$44:$AD$47)*(AH40:AH43))/SUMPRODUCT((AH$44:AH$47<=AH$39)*(AH40:AH43))<0,0,AH49-3*SUMPRODUCT((AH$40:AH$43<=AH$39)*($AD$44:$AD$47)*(AH40:AH43))/SUMPRODUCT((AH$44:AH$47<=AH$39)*(AH40:AH43))),0) -> 0 | AI54: =IF(COUNTIF($AD$40:$AD$43,"<>"&9999)>3,IF(AI49-3*SUMPRODUCT((AI$40:AI$43<=AI$39)*($AD$44:$AD$47)*(AI40:AI43))/SUMPRODUCT((AI$44:AI$47<=AI$39)*(AI40:AI43))<0,0,AI49-3*SUMPRODUCT((AI$40:AI$43<=AI$39)*($AD$44:$AD$47)*(AI40:AI43))/SUMPRODUCT((AI$44:AI$47<=AI$39)*(AI40:AI43))),0) -> 0 | AJ54: =IF(COUNTIF($AD$40:$AD$43,"<>"&9999)>3,IF(AJ49-3*SUMPRODUCT((AJ$40:AJ$43<=AJ$39)*($AD$44:$AD$47)*(AJ40:AJ43))/SUMPRODUCT((AJ$44:AJ$47<=AJ$39)*(AJ40:AJ43))<0,0,AJ49-3*SUMPRODUCT((AJ$40:AJ$43<=AJ$39)*($AD$44:$AD$47)*(AJ40:AJ43))/SUMPRODUCT((AJ$44:AJ$47<=AJ$39)*(AJ40:AJ43))),0) -> 0 | AK54: =IF(COUNTIF($AD$40:$AD$43,"<>"&9999)>3,IF(AK49-3*SUMPRODUCT((AK$40:AK$43<=AK$39)*($AD$44:$AD$47)*(AK40:AK43))/SUMPRODUCT((AK$44:AK$47<=AK$39)*(AK40:AK43))<0,0,AK49-3*SUMPRODUCT((AK$40:AK$43<=AK$39)*($AD$44:$AD$47)*(AK40:AK43))/SUMPRODUCT((AK$44:AK$47<=AK$39)*(AK40:AK43))),0) -> 0 | AL54: =IF(COUNTIF($AD$40:$AD$43,"<>"&9999)>3,IF(AL49-3*SUMPRODUCT((AL$40:AL$43<=AL$39)*($AD$44:$AD$47)*(AL40:AL43))/SUMPRODUCT((AL$44:AL$47<=AL$39)*(AL40:AL43))<0,0,AL49-3*SUMPRODUCT((AL$40:AL$43<=AL$39)*($AD$44:$AD$47)*(AL40:AL43))/SUMPRODUCT((AL$44:AL$47<=AL$39)*(AL40:AL43))),0) -> 0 | AM54: =IF(COUNTIF($AD$40:$AD$43,"<>"&9999)>3,IF(AM49-3*SUMPRODUCT((AM$40:AM$43<=AM$39)*($AD$44:$AD$47)*(AM40:AM43))/SUMPRODUCT((AM$44:AM$47<=AM$39)*(AM40:AM43))<0,0,AM49-3*SUMPRODUCT((AM$40:AM$43<=AM$39)*($AD$44:$AD$47)*(AM40:AM43))/SUMPRODUCT((AM$44:AM$47<=AM$39)*(AM40:AM43))),0) -> 0 | AN54: =IF(COUNTIF($AD$40:$AD$43,"<>"&9999)>3,IF(AN49-3*SUMPRODUCT((AN$40:AN$43<=AN$39)*($AD$44:$AD$47)*(AN40:AN43))/SUMPRODUCT((AN$44:AN$47<=AN$39)*(AN40:AN43))<0,0,AN49-3*SUMPRODUCT((AN$40:AN$43<=AN$39)*($AD$44:$AD$47)*(AN40:AN43))/SUMPRODUCT((AN$44:AN$47<=AN$39)*(AN40:AN43))),0) -> 0 | AO54: =IF(COUNTIF($AD$40:$AD$43,"<>"&9999)>3,IF(AO49-3*SUMPRODUCT((AO$40:AO$43<=AO$39)*($AD$44:$AD$47)*(AO40:AO43))/SUMPRODUCT((AO$44:AO$47<=AO$39)*(AO40:AO43))<0,0,AO49-3*SUMPRODUCT((AO$40:AO$43<=AO$39)*($AD$44:$AD$47)*(AO40:AO43))/SUMPRODUCT((AO$44:AO$47<=AO$39)*(AO40:AO43))),0) -> 0 | AP54: =IF(COUNTIF($AD$40:$AD$43,"<>"&9999)>3,IF(AP49-3*SUMPRODUCT((AP$40:AP$43<=AP$39)*($AD$44:$AD$47)*(AP40:AP43))/SUMPRODUCT((AP$44:AP$47<=AP$39)*(AP40:AP43))<0,0,AP49-3*SUMPRODUCT((AP$40:AP$43<=AP$39)*($AD$44:$AD$47)*(AP40:AP43))/SUMPRODUCT((AP$44:AP$47<=AP$39)*(AP40:AP43))),0) -> 0 | AQ54: =IF(COUNTIF($AD$40:$AD$43,"<>"&9999)>3,IF(AQ49-3*SUMPRODUCT((AQ$40:AQ$43<=AQ$39)*($AD$44:$AD$47)*(AQ40:AQ43))/SUMPRODUCT((AQ$44:AQ$47<=AQ$39)*(AQ40:AQ43))<0,0,AQ49-3*SUMPRODUCT((AQ$40:AQ$43<=AQ$39)*($AD$44:$AD$47)*(AQ40:AQ43))/SUMPRODUCT((AQ$44:AQ$47<=AQ$39)*(AQ40:AQ43))),0) -> 0 | AR54: =IF(COUNTIF($AD$40:$AD$43,"<>"&9999)>3,IF(AR49-3*SUMPRODUCT((AR$40:AR$43<=AR$39)*($AD$44:$AD$47)*(AR40:AR43))/SUMPRODUCT((AR$44:AR$47<=AR$39)*(AR40:AR43))<0,0,AR49-3*SUMPRODUCT((AR$40:AR$43<=AR$39)*($AD$44:$AD$47)*(AR40:AR43))/SUMPRODUCT((AR$44:AR$47<=AR$39)*(AR40:AR43))),0) -> 0 | AS54: =IF(COUNTIF($AD$40:$AD$43,"<>"&9999)>3,IF(AS49-3*SUMPRODUCT((AS$40:AS$43<=AS$39)*($AD$44:$AD$47)*(AS40:AS43))/SUMPRODUCT((AS$44:AS$47<=AS$39)*(AS40:AS43))<0,0,AS49-3*SUMPRODUCT((AS$40:AS$43<=AS$39)*($AD$44:$AD$47)*(AS40:AS43))/SUMPRODUCT((AS$44:AS$47<=AS$39)*(AS40:AS43))),0) -> 0 | AT54: =IF(COUNTIF($AD$40:$AD$43,"<>"&9999)>3,IF(AT49-3*SUMPRODUCT((AT$40:AT$43<=AT$39)*($AD$44:$AD$47)*(AT40:AT43))/SUMPRODUCT((AT$44:AT$47<=AT$39)*(AT40:AT43))<0,0,AT49-3*SUMPRODUCT((AT$40:AT$43<=AT$39)*($AD$44:$AD$47)*(AT40:AT43))/SUMPRODUCT((AT$44:AT$47<=AT$39)*(AT40:AT43))),0) -> 0 | AU54: =IF(COUNTIF($AD$40:$AD$43,"<>"&9999)>3,IF(AU49-3*SUMPRODUCT((AU$40:AU$43<=AU$39)*($AD$44:$AD$47)*(AU40:AU43))/SUMPRODUCT((AU$44:AU$47<=AU$39)*(AU40:AU43))<0,0,AU49-3*SUMPRODUCT((AU$40:AU$43<=AU$39)*($AD$44:$AD$47)*(AU40:AU43))/SUMPRODUCT((AU$44:AU$47<=AU$39)*(AU40:AU43))),0) -> 0 | AV54: =IF(COUNTIF($AD$40:$AD$43,"<>"&9999)>3,IF(AV49-3*SUMPRODUCT((AV$40:AV$43<=AV$39)*($AD$44:$AD$47)*(AV40:AV43))/SUMPRODUCT((AV$44:AV$47<=AV$39)*(AV40:AV43))<0,0,AV49-3*SUMPRODUCT((AV$40:AV$43<=AV$39)*($AD$44:$AD$47)*(AV40:AV43))/SUMPRODUCT((AV$44:AV$47<=AV$39)*(AV40:AV43))),0) -> 0 | AW54: =IF(COUNTIF($AD$40:$AD$43,"<>"&9999)>3,IF(AW49-3*SUMPRODUCT((AW$40:AW$43<=AW$39)*($AD$44:$AD$47)*(AW40:AW43))/SUMPRODUCT((AW$44:AW$47<=AW$39)*(AW40:AW43))<0,0,AW49-3*SUMPRODUCT((AW$40:AW$43<=AW$39)*($AD$44:$AD$47)*(AW40:AW43))/SUMPRODUCT((AW$44:AW$47<=AW$39)*(AW40:AW43))),0) -> 0 | AX54: =IF(COUNTIF($AD$40:$AD$43,"<>"&9999)>3,IF(AX49-3*SUMPRODUCT((AX$40:AX$43<=AX$39)*($AD$44:$AD$47)*(AX40:AX43))/SUMPRODUCT((AX$44:AX$47<=AX$39)*(AX40:AX43))<0,0,AX49-3*SUMPRODUCT((AX$40:AX$43<=AX$39)*($AD$44:$AD$47)*(AX40:AX43))/SUMPRODUCT((AX$44:AX$47<=AX$39)*(AX40:AX43))),0) -> 0 | AY54: =IF(COUNTIF($AD$40:$AD$43,"<>"&9999)>3,IF(AY49-3*SUMPRODUCT((AY$40:AY$43<=AY$39)*($AD$44:$AD$47)*(AY40:AY43))/SUMPRODUCT((AY$44:AY$47<=AY$39)*(AY40:AY43))<0,0,AY49-3*SUMPRODUCT((AY$40:AY$43<=AY$39)*($AD$44:$AD$47)*(AY40:AY43))/SUMPRODUCT((AY$44:AY$47<=AY$39)*(AY40:AY43))),0) -> 0 | AZ54: =IF(COUNTIF($AD$40:$AD$43,"<>"&9999)>3,IF(AZ49-3*SUMPRODUCT((AZ$40:AZ$43<=AZ$39)*($AD$44:$AD$47)*(AZ40:AZ43))/SUMPRODUCT((AZ$44:AZ$47<=AZ$39)*(AZ40:AZ43))<0,0,AZ49-3*SUMPRODUCT((AZ$40:AZ$43<=AZ$39)*($AD$44:$AD$47)*(AZ40:AZ43))/SUMPRODUCT((AZ$44:AZ$47<=AZ$39)*(AZ40:AZ43))),0) -> 0 | BA54: =IF(COUNTIF($AD$40:$AD$43,"<>"&9999)>3,IF(BA49-3*SUMPRODUCT((BA$40:BA$43<=BA$39)*($AD$44:$AD$47)*(BA40:BA43))/SUMPRODUCT((BA$44:BA$47<=BA$39)*(BA40:BA43))<0,0,BA49-3*SUMPRODUCT((BA$40:BA$43<=BA$39)*($AD$44:$AD$47)*(BA40:BA43))/SUMPRODUCT((BA$44:BA$47<=BA$39)*(BA40:BA43))),0) -> 0 | BB54: =IF(COUNTIF($AD$40:$AD$43,"<>"&9999)>3,IF(BB49-3*SUMPRODUCT((BB$40:BB$43<=BB$39)*($AD$44:$AD$47)*(BB40:BB43))/SUMPRODUCT((BB$44:BB$47<=BB$39)*(BB40:BB43))<0,0,BB49-3*SUMPRODUCT((BB$40:BB$43<=BB$39)*($AD$44:$AD$47)*(BB40:BB43))/SUMPRODUCT((BB$44:BB$47<=BB$39)*(BB40:BB43))),0) -> 0 | BC54: =IF(COUNTIF($AD$40:$AD$43,"<>"&9999)>3,IF(BC49-3*SUMPRODUCT((BC$40:BC$43<=BC$39)*($AD$44:$AD$47)*(BC40:BC43))/SUMPRODUCT((BC$44:BC$47<=BC$39)*(BC40:BC43))<0,0,BC49-3*SUMPRODUCT((BC$40:BC$43<=BC$39)*($AD$44:$AD$47)*(BC40:BC43))/SUMPRODUCT((BC$44:BC$47<=BC$39)*(BC40:BC43))),0) -> 0 | BD54: =IF(COUNTIF($AD$40:$AD$43,"<>"&9999)>3,IF(BD49-3*SUMPRODUCT((BD$40:BD$43<=BD$39)*($AD$44:$AD$47)*(BD40:BD43))/SUMPRODUCT((BD$44:BD$47<=BD$39)*(BD40:BD43))<0,0,BD49-3*SUMPRODUCT((BD$40:BD$43<=BD$39)*($AD$44:$AD$47)*(BD40:BD43))/SUMPRODUCT((BD$44:BD$47<=BD$39)*(BD40:BD43))),0) -> 0 | BE54: =IF(COUNTIF($AD$40:$AD$43,"<>"&9999)>3,IF(BE49-3*SUMPRODUCT((BE$40:BE$43<=BE$39)*($AD$44:$AD$47)*(BE40:BE43))/SUMPRODUCT((BE$44:BE$47<=BE$39)*(BE40:BE43))<0,0,BE49-3*SUMPRODUCT((BE$40:BE$43<=BE$39)*($AD$44:$AD$47)*(BE40:BE43))/SUMPRODUCT((BE$44:BE$47<=BE$39)*(BE40:BE43))),0) -> 0 | BF54: =IF(COUNTIF($AD$40:$AD$43,"<>"&9999)>3,IF(BF49-3*SUMPRODUCT((BF$40:BF$43<=BF$39)*($AD$44:$AD$47)*(BF40:BF43))/SUMPRODUCT((BF$44:BF$47<=BF$39)*(BF40:BF43))<0,0,BF49-3*SUMPRODUCT((BF$40:BF$43<=BF$39)*($AD$44:$AD$47)*(BF40:BF43))/SUMPRODUCT((BF$44:BF$47<=BF$39)*(BF40:BF43))),0) -> 0 | BG54: =IF(COUNTIF($AD$40:$AD$43,"<>"&9999)>3,IF(BG49-3*SUMPRODUCT((BG$40:BG$43<=BG$39)*($AD$44:$AD$47)*(BG40:BG43))/SUMPRODUCT((BG$44:BG$47<=BG$39)*(BG40:BG43))<0,0,BG49-3*SUMPRODUCT((BG$40:BG$43<=BG$39)*($AD$44:$AD$47)*(BG40:BG43))/SUMPRODUCT((BG$44:BG$47<=BG$39)*(BG40:BG43))),0) -> 0
A55: 2025 | B55: 17 | C55: =IFERROR(IF(B55=1,8760,INDEX(LDCs!$E$4:$E$17568,MATCH(B55/VLOOKUP(A55,$N$4:$P$31,2,FALSE),LDCs!$C$4:$C$17568,1),1)),C54) -> 84 | D55: 35.85413125 | E55: 17.92706562 | F55: 0 | G55: 0 | H55: 0 | I55: 12.9 | J55: 0 | K55: 0 | L55: 490.2 | M55: 490.2 | N55: 0 | O55: 0.002462705244 | P55: 0.0002748319243 | Q55: FALSE | R55: FALSE | S55: 0.01094535664 | T55: 0 | U55: 0 | V55: 107.7780874 | W55: 0 | X55: 0 | Y55: =S55*K55*1000*(Constants!$L$10/365) -> 0 | AA55: 17 | AB55: N-4 Cyclic (Residual Rating) | AE55: 17 | AF55: 0 | AG55: 0 | AH55: 0 | AI55: 0 | AJ55: 0 | AK55: 0 | AL55: 0 | AM55: 0 | AN55: 0 | AO55: 0 | AP55: 0 | AQ55: 0 | AR55: 0 | AS55: 0 | AT55: 0 | AU55: 0 | AV55: 0 | AW55: 0 | AX55: 0 | AY55: 0 | AZ55: 0 | BA55: 0 | BB55: 0 | BC55: 1 | BD55: 2 | BE55: 3 | BF55: 4 | BG55: 5
A56: 2025 | B56: 18 | C56: =IFERROR(IF(B56=1,8760,INDEX(LDCs!$E$4:$E$17568,MATCH(B56/VLOOKUP(A56,$N$4:$P$31,2,FALSE),LDCs!$C$4:$C$17568,1),1)),C55) -> 46 | D56: 35.85413125 | E56: 17.92706562 | F56: 0 | G56: 0 | H56: 0 | I56: 13.9 | J56: 0 | K56: 0 | L56: 208.5 | M56: 208.5 | N56: 0 | O56: 0.002462705244 | P56: 0.0002748319243 | Q56: FALSE | R56: FALSE | S56: 0.01094535664 | T56: 0 | U56: 0 | V56: 45.84196498 | W56: 0 | X56: 0 | Y56: =S56*K56*1000*(Constants!$L$10/365) -> 0
A57: 2025 | B57: 19 | C57: =IFERROR(IF(B57=1,8760,INDEX(LDCs!$E$4:$E$17568,MATCH(B57/VLOOKUP(A57,$N$4:$P$31,2,FALSE),LDCs!$C$4:$C$17568,1),1)),C56) -> 31 | D57: 35.85413125 | E57: 17.92706562 | F57: 0 | G57: 0 | H57: 0 | I57: 14.9 | J57: 0 | K57: 0 | L57: 178.8 | M57: 178.8 | N57: 0 | O57: 0.002462705244 | P57: 0.0002748319243 | Q57: FALSE | R57: FALSE | S57: 0.01094535664 | T57: 0 | U57: 0 | V57: 39.31195845 | W57: 0 | X57: 0 | Y57: =S57*K57*1000*(Constants!$L$10/365) -> 0 | AB57: Feeder Risk | AC57: Switchgear Only | AE57: Base Load | AF57: =VLOOKUP(AF58, $N$3:$O$26,2,FALSE) -> 23.32999992 | AG57: =VLOOKUP(AG58, $N$3:$O$26,2,FALSE) -> 27.90999985 | AH57: =VLOOKUP(AH58, $N$3:$O$31,2,FALSE) -> 29.02000046 | AI57: =VLOOKUP(AI58, $N$3:$O$31,2,FALSE) -> 28.78000069 | AJ57: 28.51000023 | AK57: 28.14999962 | AL57: 27.81999969 | AM57: 27.62000084 | AN57: 27.48999977 | AO57: 27.22999954 | AP57: 27.22999954 | AQ57: 27.22999954 | AR57: 27.22999954 | AS57: 27.22999954 | AT57: 27.22999954 | AU57: 27.22999954 | AV57: 27.22999954 | AW57: 27.22999954 | AX57: 27.22999954 | AY57: 27.22999954 | AZ57: 27.22999954 | BA57: 27.22999954 | BB57: 27.22999954 | BC57: 27.22999954 | BD57: 27.22999954 | BE57: 27.22999954 | BF57: 27.22999954 | BG57: 27.22999954
A58: 2025 | B58: 20 | C58: =IFERROR(IF(B58=1,8760,INDEX(LDCs!$E$4:$E$17568,MATCH(B58/VLOOKUP(A58,$N$4:$P$31,2,FALSE),LDCs!$C$4:$C$17568,1),1)),C57) -> 19 | D58: 35.85413125 | E58: 17.92706562 | F58: 0 | G58: 0 | H58: 0 | I58: 15.9 | J58: 0 | K58: 0 | L58: 174.9 | M58: 174.9 | N58: 0 | O58: 0.002462705244 | P58: 0.0002748319243 | Q58: FALSE | R58: FALSE | S58: 0.01094535664 | T58: 0 | U58: 0 | V58: 38.45448285 | W58: 0 | X58: 0 | Y58: =S58*K58*1000*(Constants!$L$10/365) -> 0 | AB58: Bus # | AC58: # Feeder Bays | AD58: Average Load' | AF58: =AF39 -> 2025 | AG58: 2026 | AH58: 2027 | AI58: 2028 | AJ58: 2029 | AK58: 2030 | AL58: 2031 | AM58: 2032 | AN58: 2033 | AO58: 2034 | AP58: 2035 | AQ58: 2036 | AR58: 2037 | AS58: 2038 | AT58: 2039 | AU58: 2040 | AV58: 2041 | AW58: 2042 | AX58: 2043 | AY58: 2044 | AZ58: 2045 | BA58: 2046 | BB58: 2047 | BC58: =BC39 -> 2048 | BD58: =BD39 -> 2049 | BE58: =BE39 -> 2050 | BF58: =BF39 -> 2051 | BG58: =BG39 -> 2052
A59: 2025 | B59: 21 | C59: =IFERROR(IF(B59=1,8760,INDEX(LDCs!$E$4:$E$17568,MATCH(B59/VLOOKUP(A59,$N$4:$P$31,2,FALSE),LDCs!$C$4:$C$17568,1),1)),C58) -> 8 | D59: 35.85413125 | E59: 17.92706562 | F59: 0 | G59: 0 | H59: 0 | I59: 16.9 | J59: 0 | K59: 0 | L59: 50.7 | M59: 50.7 | N59: 0 | O59: 0.002462705244 | P59: 0.0002748319243 | Q59: FALSE | R59: FALSE | S59: 0.01094535664 | T59: 0 | U59: 0 | V59: 11.14718285 | W59: 0 | X59: 0 | Y59: =S59*K59*1000*(Constants!$L$10/365) -> 0 | AB59: 1 | AC59: =COUNTIFS(Feeders!$B:$B,ZSS, Feeders!$E:$E,AB59) -> 2 | AD59: =SUMIFS(Feeders!$J:$J,Feeders!$B:$B,ZSS,Feeders!$E:$E,Calcs1!AB59) -> 6.23499999 | AF59: =AD59 -> 6.23499999 | AG59: =AG$57/$AF$57*$AD59 -> 7.45901626 | AH59: =AH$57/$AF$57*$AD59 -> 7.75566666 | AI59: 7.691526129 | AJ59: 7.619367841 | AK59: 7.523156791 | AL59: 7.434963498 | AM59: 7.38151331 | AN59: 7.346770205 | AO59: 7.277284502 | AP59: 7.277284502 | AQ59: 7.277284502 | AR59: 7.277284502 | AS59: 7.277284502 | AT59: 7.277284502 | AU59: 7.277284502 | AV59: 7.277284502 | AW59: 7.277284502 | AX59: 7.277284502 | AY59: 7.277284502 | AZ59: 7.277284502 | BA59: 7.277284502 | BB59: 7.277284502 | BC59: 7.277284502 | BD59: =BD$57/$AF$57*$AD59 -> 7.277284502 | BE59: 7.277284502 | BF59: 7.277284502 | BG59: 7.277284502
A60: 2025 | B60: 22 | C60: =IFERROR(IF(B60=1,8760,INDEX(LDCs!$E$4:$E$17568,MATCH(B60/VLOOKUP(A60,$N$4:$P$31,2,FALSE),LDCs!$C$4:$C$17568,1),1)),C59) -> 5 | D60: 35.85413125 | E60: 17.92706562 | F60: 0 | G60: 0 | H60: 0 | I60: 17.9 | J60: 0 | K60: 0 | L60: 71.6 | M60: 71.6 | N60: 0 | O60: 0.002462705244 | P60: 0.0002748319243 | Q60: FALSE | R60: FALSE | S60: 0.01094535664 | T60: 0 | U60: 0 | V60: 15.74237263 | W60: 0 | X60: 0 | Y60: =S60*K60*1000*(Constants!$L$10/365) -> 0 | AB60: 2 | AC60: =COUNTIFS(Feeders!$B:$B,ZSS, Feeders!$E:$E,AB60) -> 0 | AD60: =SUMIFS(Feeders!$J:$J,Feeders!$B:$B,ZSS,Feeders!$E:$E,Calcs1!AB60) -> 0 | AF60: =AD60 -> 0 | AG60: =AG$57/$AF$57*$AD60 -> 0 | AH60: =AH$57/$AF$57*$AD60 -> 0 | AI60: 0 | AJ60: 0 | AK60: 0 | AL60: 0 | AM60: 0 | AN60: 0 | AO60: 0 | AP60: 0 | AQ60: 0 | AR60: 0 | AS60: 0 | AT60: 0 | AU60: 0 | AV60: 0 | AW60: 0 | AX60: 0 | AY60: 0 | AZ60: 0 | BA60: 0 | BB60: 0 | BC60: 0 | BD60: 0 | BE60: 0 | BF60: 0 | BG60: 0
A61: 2025 | B61: 23 | C61: =IFERROR(IF(B61=1,8760,INDEX(LDCs!$E$4:$E$17568,MATCH(B61/VLOOKUP(A61,$N$4:$P$31,2,FALSE),LDCs!$C$4:$C$17568,1),1)),C60) -> 1 | D61: 35.85413125 | E61: 17.92706562 | F61: 0 | G61: 0 | H61: 0 | I61: 18.9 | J61: 0 | K61: 0.9729343756 | L61: 18.9 | M61: 18.9 | N61: 0 | O61: 0.002462705244 | P61: 0.0002748319243 | Q61: FALSE | R61: FALSE | S61: 0.01094535664 | T61: 0 | U61: 2.396050589 | V61: 4.155458696 | W61: 0 | X61: 0 | Y61: =S61*K61*1000*(Constants!$L$10/365) -> 0.7293913513 | AB61: 3 | AC61: =COUNTIFS(Feeders!$B:$B,ZSS, Feeders!$E:$E,AB61) -> 2 | AD61: =SUMIFS(Feeders!$J:$J,Feeders!$B:$B,ZSS,Feeders!$E:$E,Calcs1!AB61) -> 5.914000058 | AF61: =AD61 -> 5.914000058 | AG61: =AG$57/$AF$57*$AD61 -> 7.074999625 | AH61: 7.356377409 | AI61: 7.295539061 | AJ61: 7.227095738 | AK61: 7.135837974 | AL61: 7.052185184 | AM61: 7.001486803 | AN61: 6.968532395 | AO61: 6.902624064 | AP61: 6.902624064 | AQ61: 6.902624064 | AR61: 6.902624064 | AS61: 6.902624064 | AT61: 6.902624064 | AU61: 6.902624064 | AV61: 6.902624064 | AW61: 6.902624064 | AX61: 6.902624064 | AY61: 6.902624064 | AZ61: 6.902624064 | BA61: 6.902624064 | BB61: 6.902624064 | BC61: 6.902624064 | BD61: 6.902624064 | BE61: 6.902624064 | BF61: 6.902624064 | BG61: 6.902624064
A62: 2025 | B62: 24 | C62: =IFERROR(IF(B62=1,8760,INDEX(LDCs!$E$4:$E$17568,MATCH(B62/VLOOKUP(A62,$N$4:$P$31,2,FALSE),LDCs!$C$4:$C$17568,1),1)),C61) -> 0 | D62: 35.85413125 | E62: 17.92706562 | F62: 0 | G62: 0 | H62: 0 | I62: 19.9 | J62: 0 | K62: 0 | L62: 0 | M62: 0 | N62: 0 | O62: 0.002462705244 | P62: 0.0002748319243 | Q62: FALSE | R62: FALSE | S62: 0.01094535664 | T62: 0 | U62: 0 | V62: 0 | W62: 0 | X62: 0 | Y62: =S62*K62*1000*(Constants!$L$10/365) -> 0 | AB62: 4 | AC62: =COUNTIFS(Feeders!$B:$B,ZSS, Feeders!$E:$E,AB62) -> 0 | AD62: =SUMIFS(Feeders!$J:$J,Feeders!$B:$B,ZSS,Feeders!$E:$E,Calcs1!AB62) -> 0 | AF62: =AD62 -> 0 | AG62: =AG$57/$AF$57*$AD62 -> 0 | AH62: 0 | AI62: 0 | AJ62: 0 | AK62: 0 | AL62: 0 | AM62: 0 | AN62: 0 | AO62: 0 | AP62: 0 | AQ62: 0 | AR62: 0 | AS62: 0 | AT62: 0 | AU62: 0 | AV62: 0 | AW62: 0 | AX62: 0 | AY62: 0 | AZ62: 0 | BA62: 0 | BB62: 0 | BC62: 0 | BD62: 0 | BE62: 0 | BF62: 0 | BG62: 0
A63: 2025 | B63: 25 | C63: =IFERROR(IF(B63=1,8760,INDEX(LDCs!$E$4:$E$17568,MATCH(B63/VLOOKUP(A63,$N$4:$P$31,2,FALSE),LDCs!$C$4:$C$17568,1),1)),C62) -> 0 | D63: 35.85413125 | E63: 17.92706562 | F63: 0 | G63: 0 | H63: 0 | I63: 20.9 | J63: 0 | K63: 0 | L63: 0 | M63: 0 | N63: 0 | O63: 0.002462705244 | P63: 0.0002748319243 | Q63: FALSE | R63: FALSE | S63: 0.01094535664 | T63: 0 | U63: 0 | V63: 0 | W63: 0 | X63: 0 | Y63: =S63*K63*1000*(Constants!$L$10/365) -> 0 | AB63: 1 | AC63: =IF(AssetType="Transformer", FALSE, AC59) -> FALSE | AF63: =AF59*AF40*$AC63*OUTAGE_DUR*1000 -> 0 | AG63: =AG59*AG40*$AC63*OUTAGE_DUR*1000 -> 0 | AH63: 0 | AI63: 0 | AJ63: 0 | AK63: 0 | AL63: 0 | AM63: 0 | AN63: 0 | AO63: 0 | AP63: 0 | AQ63: 0 | AR63: 0 | AS63: 0 | AT63: 0 | AU63: 0 | AV63: 0 | AW63: 0 | AX63: 0 | AY63: 0 | AZ63: 0 | BA63: 0 | BB63: 0 | BC63: =BC59*BC40*$AC63*OUTAGE_DUR*1000 -> 0 | BD63: 0 | BE63: 0 | BF63: 0 | BG63: 0
A64: 2025 | B64: 26 | C64: =IFERROR(IF(B64=1,8760,INDEX(LDCs!$E$4:$E$17568,MATCH(B64/VLOOKUP(A64,$N$4:$P$31,2,FALSE),LDCs!$C$4:$C$17568,1),1)),C63) -> 0 | D64: 35.85413125 | E64: 17.92706562 | F64: 0 | G64: 0 | H64: 0 | I64: 21.9 | J64: 0 | K64: 0 | L64: 0 | M64: 0 | N64: 0 | O64: 0.002462705244 | P64: 0.0002748319243 | Q64: FALSE | R64: FALSE | S64: 0.01094535664 | T64: 0 | U64: 0 | V64: 0 | W64: 0 | X64: 0 | Y64: =S64*K64*1000*(Constants!$L$10/365) -> 0 | AB64: 2 | AC64: =IF(AssetType="Transformer", FALSE, AC60) -> FALSE | AF64: =AF60*AF41*$AC64*OUTAGE_DUR*1000 -> 0 | AG64: 0 | AH64: 0 | AI64: 0 | AJ64: 0 | AK64: 0 | AL64: 0 | AM64: 0 | AN64: 0 | AO64: 0 | AP64: 0 | AQ64: 0 | AR64: 0 | AS64: 0 | AT64: 0 | AU64: 0 | AV64: 0 | AW64: 0 | AX64: 0 | AY64: 0 | AZ64: 0 | BA64: 0 | BB64: 0 | BC64: 0 | BD64: 0 | BE64: 0 | BF64: 0 | BG64: 0
A65: 2025 | B65: 27 | C65: =IFERROR(IF(B65=1,8760,INDEX(LDCs!$E$4:$E$17568,MATCH(B65/VLOOKUP(A65,$N$4:$P$31,2,FALSE),LDCs!$C$4:$C$17568,1),1)),C64) -> 0 | D65: 35.85413125 | E65: 17.92706562 | F65: 0 | G65: 0 | H65: 0 | I65: 22.9 | J65: 0 | K65: 0 | L65: 0 | M65: 0 | N65: 0 | O65: 0.002462705244 | P65: 0.0002748319243 | Q65: FALSE | R65: FALSE | S65: 0.01094535664 | T65: 0 | U65: 0 | V65: 0 | W65: 0 | X65: 0 | Y65: =S65*K65*1000*(Constants!$L$10/365) -> 0 | AB65: 3 | AC65: =IF(AssetType="Transformer", FALSE, AC61) -> FALSE | AF65: =AF61*AF42*$AC65*OUTAGE_DUR*1000 -> 0 | AG65: =AG61*AG42*$AC65*OUTAGE_DUR*1000 -> 0 | AH65: 0 | AI65: 0 | AJ65: 0 | AK65: 0 | AL65: 0 | AM65: 0 | AN65: 0 | AO65: 0 | AP65: 0 | AQ65: 0 | AR65: 0 | AS65: 0 | AT65: 0 | AU65: 0 | AV65: 0 | AW65: 0 | AX65: 0 | AY65: 0 | AZ65: 0 | BA65: 0 | BB65: 0 | BC65: 0 | BD65: 0 | BE65: 0 | BF65: 0 | BG65: 0
A66: 2025 | B66: 28 | C66: =IFERROR(IF(B66=1,8760,INDEX(LDCs!$E$4:$E$17568,MATCH(B66/VLOOKUP(A66,$N$4:$P$31,2,FALSE),LDCs!$C$4:$C$17568,1),1)),C65) -> 0 | D66: 35.85413125 | E66: 17.92706562 | F66: 0 | G66: 0 | H66: 0 | I66: 23.9 | J66: 0 | K66: 0 | L66: 0 | M66: 0 | N66: 0 | O66: 0.002462705244 | P66: 0.0002748319243 | Q66: FALSE | R66: FALSE | S66: 0.01094535664 | T66: 0 | U66: 0 | V66: 0 | W66: 0 | X66: 0 | Y66: =S66*K66*1000*(Constants!$L$10/365) -> 0 | AB66: 4 | AC66: =IF(AssetType="Transformer", FALSE, AC62) -> FALSE | AF66: =AF62*AF43*$AC66*OUTAGE_DUR*1000 -> 0 | AG66: 0 | AH66: 0 | AI66: 0 | AJ66: 0 | AK66: 0 | AL66: 0 | AM66: 0 | AN66: 0 | AO66: 0 | AP66: 0 | AQ66: 0 | AR66: 0 | AS66: 0 | AT66: 0 | AU66: 0 | AV66: 0 | AW66: 0 | AX66: 0 | AY66: 0 | AZ66: 0 | BA66: 0 | BB66: 0 | BC66: 0 | BD66: 0 | BE66: 0 | BF66: 0 | BG66: 0
A67: 2025 | B67: 29 | C67: =IFERROR(IF(B67=1,8760,INDEX(LDCs!$E$4:$E$17568,MATCH(B67/VLOOKUP(A67,$N$4:$P$31,2,FALSE),LDCs!$C$4:$C$17568,1),1)),C66) -> 0 | D67: 35.85413125 | E67: 17.92706562 | F67: 0 | G67: 0 | H67: 0 | I67: 24.9 | J67: 0 | K67: 0 | L67: 0 | M67: 0 | N67: 0 | O67: 0.002462705244 | P67: 0.0002748319243 | Q67: FALSE | R67: FALSE | S67: 0.01094535664 | T67: 0 | U67: 0 | V67: 0 | W67: 0 | X67: 0 | Y67: =S67*K67*1000*(Constants!$L$10/365) -> 0 | AE67: Total kWh | AF67: =SUM(AF63:AF66) -> 0 | AG67: =SUM(AG63:AG66) -> 0 | AH67: 0 | AI67: 0 | AJ67: 0 | AK67: 0 | AL67: 0 | AM67: 0 | AN67: 0 | AO67: 0 | AP67: 0 | AQ67: 0 | AR67: 0 | AS67: 0 | AT67: 0 | AU67: 0 | AV67: 0 | AW67: 0 | AX67: 0 | AY67: 0 | AZ67: 0 | BA67: 0 | BB67: 0 | BC67: =SUM(BC63:BC66) -> 0 | BD67: =SUM(BD63:BD66) -> 0 | BE67: =SUM(BE63:BE66) -> 0 | BF67: =SUM(BF63:BF66) -> 0 | BG67: =SUM(BG63:BG66) -> 0
A68: 2025 | B68: 30 | C68: =IFERROR(IF(B68=1,8760,INDEX(LDCs!$E$4:$E$17568,MATCH(B68/VLOOKUP(A68,$N$4:$P$31,2,FALSE),LDCs!$C$4:$C$17568,1),1)),C67) -> 0 | D68: 35.85413125 | E68: 17.92706562 | F68: 0 | G68: 0 | H68: 0 | I68: 25.9 | J68: 0 | K68: 0 | L68: 0 | M68: 0 | N68: 0 | O68: 0.002462705244 | P68: 0.0002748319243 | Q68: FALSE | R68: FALSE | S68: 0.01094535664 | T68: 0 | U68: 0 | V68: 0 | W68: 0 | X68: 0 | Y68: =S68*K68*1000*(Constants!$L$10/365) -> 0
A69: 2025 | B69: 31 | C69: =IFERROR(IF(B69=1,8760,INDEX(LDCs!$E$4:$E$17568,MATCH(B69/VLOOKUP(A69,$N$4:$P$31,2,FALSE),LDCs!$C$4:$C$17568,1),1)),C68) -> 0 | D69: 35.85413125 | E69: 17.92706562 | F69: 0 | G69: 0 | H69: 0 | I69: 26.9 | J69: 0 | K69: 0 | L69: 0 | M69: 0 | N69: 0 | O69: 0.002462705244 | P69: 0.0002748319243 | Q69: FALSE | R69: FALSE | S69: 0.01094535664 | T69: 0 | U69: 0 | V69: 0 | W69: 0 | X69: 0 | Y69: =S69*K69*1000*(Constants!$L$10/365) -> 0
A70: 2025 | B70: 32 | C70: =IFERROR(IF(B70=1,8760,INDEX(LDCs!$E$4:$E$17568,MATCH(B70/VLOOKUP(A70,$N$4:$P$31,2,FALSE),LDCs!$C$4:$C$17568,1),1)),C69) -> 0 | D70: 35.85413125 | E70: 17.92706562 | F70: 0 | G70: 0 | H70: 0 | I70: 27.9 | J70: 0 | K70: 0 | L70: 0 | M70: 0 | N70: 0 | O70: 0.002462705244 | P70: 0.0002748319243 | Q70: FALSE | R70: FALSE | S70: 0.01094535664 | T70: 0 | U70: 0 | V70: 0 | W70: 0 | X70: 0 | Y70: =S70*K70*1000*(Constants!$L$10/365) -> 0
A71: 2025 | B71: 33 | C71: =IFERROR(IF(B71=1,8760,INDEX(LDCs!$E$4:$E$17568,MATCH(B71/VLOOKUP(A71,$N$4:$P$31,2,FALSE),LDCs!$C$4:$C$17568,1),1)),C70) -> 0 | D71: 35.85413125 | E71: 17.92706562 | F71: 0 | G71: 0 | H71: 0 | I71: 28.9 | J71: 0 | K71: 0 | L71: 0 | M71: 0 | N71: 0 | O71: 0.002462705244 | P71: 0.0002748319243 | Q71: FALSE | R71: FALSE | S71: 0.01094535664 | T71: 0 | U71: 0 | V71: 0 | W71: 0 | X71: 0 | Y71: =S71*K71*1000*(Constants!$L$10/365) -> 0 | AB71: Durations
A72: 2025 | B72: 34 | C72: =IFERROR(IF(B72=1,8760,INDEX(LDCs!$E$4:$E$17568,MATCH(B72/VLOOKUP(A72,$N$4:$P$31,2,FALSE),LDCs!$C$4:$C$17568,1),1)),C71) -> 0 | D72: 35.85413125 | E72: 17.92706562 | F72: 0 | G72: 0 | H72: 0 | I72: 29.9 | J72: 0 | K72: 0 | L72: 0 | M72: 0 | N72: 0 | O72: 0.002462705244 | P72: 0.0002748319243 | Q72: FALSE | R72: FALSE | S72: 0.01094535664 | T72: 0 | U72: 0 | V72: 0 | W72: 0 | X72: 0 | Y72: =S72*K72*1000*(Constants!$L$10/365) -> 0 | AB72: Major Duration | AC72: =Major_Duration -> 365 | AD72: days
A73: 2025 | B73: 35 | C73: =IFERROR(IF(B73=1,8760,INDEX(LDCs!$E$4:$E$17568,MATCH(B73/VLOOKUP(A73,$N$4:$P$31,2,FALSE),LDCs!$C$4:$C$17568,1),1)),C72) -> 0 | D73: 35.85413125 | E73: 17.92706562 | F73: 0 | G73: 0 | H73: 0 | I73: 30.9 | J73: 0 | K73: 0 | L73: 0 | M73: 0 | N73: 0 | O73: 0.002462705244 | P73: 0.0002748319243 | Q73: FALSE | R73: FALSE | S73: 0.01094535664 | T73: 0 | U73: 0 | V73: 0 | W73: 0 | X73: 0 | Y73: =S73*K73*1000*(Constants!$L$10/365) -> 0 | AB73: Signifiant Duration | AC73: =Significant_Duration -> 25 | AD73: days
A74: 2025 | B74: 36 | C74: =IFERROR(IF(B74=1,8760,INDEX(LDCs!$E$4:$E$17568,MATCH(B74/VLOOKUP(A74,$N$4:$P$31,2,FALSE),LDCs!$C$4:$C$17568,1),1)),C73) -> 0 | D74: 35.85413125 | E74: 17.92706562 | F74: 0 | G74: 0 | H74: 0 | I74: 31.9 | J74: 0 | K74: 0 | L74: 0 | M74: 0 | N74: 0 | O74: 0.002462705244 | P74: 0.0002748319243 | Q74: FALSE | R74: FALSE | S74: 0.01094535664 | T74: 0 | U74: 0 | V74: 0 | W74: 0 | X74: 0 | Y74: =S74*K74*1000*(Constants!$L$10/365) -> 0 | AB74: Scaled Duration | AC74: =Major_Duration*SCALER_OUT_DURATION -> 365 | AD74: days
A75: 2025 | B75: 37 | C75: =IFERROR(IF(B75=1,8760,INDEX(LDCs!$E$4:$E$17568,MATCH(B75/VLOOKUP(A75,$N$4:$P$31,2,FALSE),LDCs!$C$4:$C$17568,1),1)),C74) -> 0 | D75: 35.85413125 | E75: 17.92706562 | F75: 0 | G75: 0 | H75: 0 | I75: 32.9 | J75: 0 | K75: 0 | L75: 0 | M75: 0 | N75: 0 | O75: 0.002462705244 | P75: 0.0002748319243 | Q75: FALSE | R75: FALSE | S75: 0.01094535664 | T75: 0 | U75: 0 | V75: 0 | W75: 0 | X75: 0 | Y75: =S75*K75*1000*(Constants!$L$10/365) -> 0
A76: 2025 | B76: 38 | C76: =IFERROR(IF(B76=1,8760,INDEX(LDCs!$E$4:$E$17568,MATCH(B76/VLOOKUP(A76,$N$4:$P$31,2,FALSE),LDCs!$C$4:$C$17568,1),1)),C75) -> 0 | D76: 35.85413125 | E76: 17.92706562 | F76: 0 | G76: 0 | H76: 0 | I76: 33.9 | J76: 0 | K76: 0 | L76: 0 | M76: 0 | N76: 0 | O76: 0.002462705244 | P76: 0.0002748319243 | Q76: FALSE | R76: FALSE | S76: 0.01094535664 | T76: 0 | U76: 0 | V76: 0 | W76: 0 | X76: 0 | Y76: =S76*K76*1000*(Constants!$L$10/365) -> 0 | AB76: N_Duration | AC76: =Major_Duration -> 365
A77: 2025 | B77: 39 | C77: =IFERROR(IF(B77=1,8760,INDEX(LDCs!$E$4:$E$17568,MATCH(B77/VLOOKUP(A77,$N$4:$P$31,2,FALSE),LDCs!$C$4:$C$17568,1),1)),C76) -> 0 | D77: 35.85413125 | E77: 17.92706562 | F77: 0 | G77: 0 | H77: 0 | I77: 34.9 | J77: 0 | K77: 0 | L77: 0 | M77: 0 | N77: 0 | O77: 0.002462705244 | P77: 0.0002748319243 | Q77: FALSE | R77: FALSE | S77: 0.01094535664 | T77: 0 | U77: 0 | V77: 0 | W77: 0 | X77: 0 | Y77: =S77*K77*1000*(Constants!$L$10/365) -> 0 | AB77: N-1_Duration | AC77: =Major_Duration*SCALER_OUT_DURATION -> 365
A78: 2025 | B78: 40 | C78: =IFERROR(IF(B78=1,8760,INDEX(LDCs!$E$4:$E$17568,MATCH(B78/VLOOKUP(A78,$N$4:$P$31,2,FALSE),LDCs!$C$4:$C$17568,1),1)),C77) -> 0 | D78: 35.85413125 | E78: 17.92706562 | F78: 0 | G78: 0 | H78: 0 | I78: 35.9 | J78: 0 | K78: 0 | L78: 0 | M78: 0 | N78: 0 | O78: 0.002462705244 | P78: 0.0002748319243 | Q78: FALSE | R78: FALSE | S78: 0.01094535664 | T78: 0 | U78: 0 | V78: 0 | W78: 0 | X78: 0 | Y78: =S78*K78*1000*(Constants!$L$10/365) -> 0 | AB78: N-2_Duration | AC78: =IF(ISSPAREREADY=TRUE,(152-Major_Duration*SCALER_OUT_DURATION)*(4/5),Major_Duration*(4/5)) -> 292
A79: 2025 | B79: 41 | C79: =IFERROR(IF(B79=1,8760,INDEX(LDCs!$E$4:$E$17568,MATCH(B79/VLOOKUP(A79,$N$4:$P$31,2,FALSE),LDCs!$C$4:$C$17568,1),1)),C78) -> 0 | D79: 35.85413125 | E79: 17.92706562 | F79: 0 | G79: 0 | H79: 0 | I79: 36.9 | J79: 0 | K79: 0 | L79: 0 | M79: 0 | N79: 0 | O79: 0.002462705244 | P79: 0.0002748319243 | Q79: FALSE | R79: FALSE | S79: 0.01094535664 | T79: 0 | U79: 0 | V79: 0 | W79: 0 | X79: 0 | Y79: =S79*K79*1000*(Constants!$L$10/365) -> 0 | AB79: N-3_Duration | AC79: =AC78*(4/5) -> 233.6
A80: 2025 | B80: 42 | C80: =IFERROR(IF(B80=1,8760,INDEX(LDCs!$E$4:$E$17568,MATCH(B80/VLOOKUP(A80,$N$4:$P$31,2,FALSE),LDCs!$C$4:$C$17568,1),1)),C79) -> 0 | D80: 35.85413125 | E80: 17.92706562 | F80: 0 | G80: 0 | H80: 0 | I80: 37.9 | J80: 0 | K80: 0 | L80: 0 | M80: 0 | N80: 0 | O80: 0.002462705244 | P80: 0.0002748319243 | Q80: FALSE | R80: FALSE | S80: 0.01094535664 | T80: 0 | U80: 0 | V80: 0 | W80: 0 | X80: 0 | Y80: =S80*K80*1000*(Constants!$L$10/365) -> 0 | AB80: N-4_Duration | AC80: =AC79*(4/5) -> 186.88
A81: 2025 | B81: 43 | C81: =IFERROR(IF(B81=1,8760,INDEX(LDCs!$E$4:$E$17568,MATCH(B81/VLOOKUP(A81,$N$4:$P$31,2,FALSE),LDCs!$C$4:$C$17568,1),1)),C80) -> 0 | D81: 35.85413125 | E81: 17.92706562 | F81: 0 | G81: 0 | H81: 0 | I81: 38.9 | J81: 0 | K81: 0 | L81: 0 | M81: 0 | N81: 0 | O81: 0.002462705244 | P81: 0.0002748319243 | Q81: FALSE | R81: FALSE | S81: 0.01094535664 | T81: 0 | U81: 0 | V81: 0 | W81: 0 | X81: 0 | Y81: =S81*K81*1000*(Constants!$L$10/365) -> 0
A82: 2025 | B82: 44 | C82: =IFERROR(IF(B82=1,8760,INDEX(LDCs!$E$4:$E$17568,MATCH(B82/VLOOKUP(A82,$N$4:$P$31,2,FALSE),LDCs!$C$4:$C$17568,1),1)),C81) -> 0 | D82: 35.85413125 | E82: 17.92706562 | F82: 0 | G82: 0 | H82: 0 | I82: 39.9 | J82: 0 | K82: 0 | L82: 0 | M82: 0 | N82: 0 | O82: 0.002462705244 | P82: 0.0002748319243 | Q82: FALSE | R82: FALSE | S82: 0.01094535664 | T82: 0 | U82: 0 | V82: 0 | W82: 0 | X82: 0 | Y82: =S82*K82*1000*(Constants!$L$10/365) -> 0
A83: 2025 | B83: 45 | C83: =IFERROR(IF(B83=1,8760,INDEX(LDCs!$E$4:$E$17568,MATCH(B83/VLOOKUP(A83,$N$4:$P$31,2,FALSE),LDCs!$C$4:$C$17568,1),1)),C82) -> 0 | D83: 35.85413125 | E83: 17.92706562 | F83: 0 | G83: 0 | H83: 0 | I83: 40.9 | J83: 0 | K83: 0 | L83: 0 | M83: 0 | N83: 0 | O83: 0.002462705244 | P83: 0.0002748319243 | Q83: FALSE | R83: FALSE | S83: 0.01094535664 | T83: 0 | U83: 0 | V83: 0 | W83: 0 | X83: 0 | Y83: =S83*K83*1000*(Constants!$L$10/365) -> 0
A84: 2025 | B84: 46 | C84: =IFERROR(IF(B84=1,8760,INDEX(LDCs!$E$4:$E$17568,MATCH(B84/VLOOKUP(A84,$N$4:$P$31,2,FALSE),LDCs!$C$4:$C$17568,1),1)),C83) -> 0 | D84: 35.85413125 | E84: 17.92706562 | F84: 0 | G84: 0 | H84: 0 | I84: 41.9 | J84: 0 | K84: 0 | L84: 0 | M84: 0 | N84: 0 | O84: 0.002462705244 | P84: 0.0002748319243 | Q84: FALSE | R84: FALSE | S84: 0.01094535664 | T84: 0 | U84: 0 | V84: 0 | W84: 0 | X84: 0 | Y84: =S84*K84*1000*(Constants!$L$10/365) -> 0
A85: 2025 | B85: 47 | C85: =IFERROR(IF(B85=1,8760,INDEX(LDCs!$E$4:$E$17568,MATCH(B85/VLOOKUP(A85,$N$4:$P$31,2,FALSE),LDCs!$C$4:$C$17568,1),1)),C84) -> 0 | D85: 35.85413125 | E85: 17.92706562 | F85: 0 | G85: 0 | H85: 0 | I85: 42.9 | J85: 0 | K85: 0 | L85: 0 | M85: 0 | N85: 0 | O85: 0.002462705244 | P85: 0.0002748319243 | Q85: FALSE | R85: FALSE | S85: 0.01094535664 | T85: 0 | U85: 0 | V85: 0 | W85: 0 | X85: 0 | Y85: =S85*K85*1000*(Constants!$L$10/365) -> 0
A86: 2025 | B86: 48 | C86: =IFERROR(IF(B86=1,8760,INDEX(LDCs!$E$4:$E$17568,MATCH(B86/VLOOKUP(A86,$N$4:$P$31,2,FALSE),LDCs!$C$4:$C$17568,1),1)),C85) -> 0 | D86: 35.85413125 | E86: 17.92706562 | F86: 0 | G86: 0 | H86: 0 | I86: 43.9 | J86: 0 | K86: 0 | L86: 0 | M86: 0 | N86: 0 | O86: 0.002462705244 | P86: 0.0002748319243 | Q86: FALSE | R86: FALSE | S86: 0.01094535664 | T86: 0 | U86: 0 | V86: 0 | W86: 0 | X86: 0 | Y86: =S86*K86*1000*(Constants!$L$10/365) -> 0
A87: 2025 | B87: 49 | C87: =IFERROR(IF(B87=1,8760,INDEX(LDCs!$E$4:$E$17568,MATCH(B87/VLOOKUP(A87,$N$4:$P$31,2,FALSE),LDCs!$C$4:$C$17568,1),1)),C86) -> 0 | D87: 35.85413125 | E87: 17.92706562 | F87: 0 | G87: 0 | H87: 0 | I87: 44.9 | J87: 0 | K87: 0 | L87: 0 | M87: 0 | N87: 0 | O87: 0.002462705244 | P87: 0.0002748319243 | Q87: FALSE | R87: FALSE | S87: 0.01094535664 | T87: 0 | U87: 0 | V87: 0 | W87: 0 | X87: 0 | Y87: =S87*K87*1000*(Constants!$L$10/365) -> 0
A88: 2025 | B88: 50 | C88: =IFERROR(IF(B88=1,8760,INDEX(LDCs!$E$4:$E$17568,MATCH(B88/VLOOKUP(A88,$N$4:$P$31,2,FALSE),LDCs!$C$4:$C$17568,1),1)),C87) -> 0 | D88: 35.85413125 | E88: 17.92706562 | F88: 0 | G88: 0 | H88: 0 | I88: 45.9 | J88: 0 | K88: 0 | L88: 0 | M88: 0 | N88: 0 | O88: 0.002462705244 | P88: 0.0002748319243 | Q88: FALSE | R88: FALSE | S88: 0.01094535664 | T88: 0 | U88: 0 | V88: 0 | W88: 0 | X88: 0 | Y88: =S88*K88*1000*(Constants!$L$10/365) -> 0
A89: 2025 | B89: 51 | C89: =IFERROR(IF(B89=1,8760,INDEX(LDCs!$E$4:$E$17568,MATCH(B89/VLOOKUP(A89,$N$4:$P$31,2,FALSE),LDCs!$C$4:$C$17568,1),1)),C88) -> 0 | D89: 35.85413125 | E89: 17.92706562 | F89: 0 | G89: 0 | H89: 0 | I89: 46.9 | J89: 0 | K89: 0 | L89: 0 | M89: 0 | N89: 0 | O89: 0.002462705244 | P89: 0.0002748319243 | Q89: FALSE | R89: FALSE | S89: 0.01094535664 | T89: 0 | U89: 0 | V89: 0 | W89: 0 | X89: 0 | Y89: =S89*K89*1000*(Constants!$L$10/365) -> 0
A90: 2025 | B90: 52 | C90: =IFERROR(IF(B90=1,8760,INDEX(LDCs!$E$4:$E$17568,MATCH(B90/VLOOKUP(A90,$N$4:$P$31,2,FALSE),LDCs!$C$4:$C$17568,1),1)),C89) -> 0 | D90: 35.85413125 | E90: 17.92706562 | F90: 0 | G90: 0 | H90: 0 | I90: 47.9 | J90: 0 | K90: 0 | L90: 0 | M90: 0 | N90: 0 | O90: 0.002462705244 | P90: 0.0002748319243 | Q90: FALSE | R90: FALSE | S90: 0.01094535664 | T90: 0 | U90: 0 | V90: 0 | W90: 0 | X90: 0 | Y90: =S90*K90*1000*(Constants!$L$10/365) -> 0
A91: 2025 | B91: 53 | C91: =IFERROR(IF(B91=1,8760,INDEX(LDCs!$E$4:$E$17568,MATCH(B91/VLOOKUP(A91,$N$4:$P$31,2,FALSE),LDCs!$C$4:$C$17568,1),1)),C90) -> 0 | D91: 35.85413125 | E91: 17.92706562 | F91: 0 | G91: 0 | H91: 0 | I91: 48.9 | J91: 0 | K91: 0 | L91: 0 | M91: 0 | N91: 0 | O91: 0.002462705244 | P91: 0.0002748319243 | Q91: FALSE | R91: FALSE | S91: 0.01094535664 | T91: 0 | U91: 0 | V91: 0 | W91: 0 | X91: 0 | Y91: =S91*K91*1000*(Constants!$L$10/365) -> 0
A92: 2025 | B92: 54 | C92: =IFERROR(IF(B92=1,8760,INDEX(LDCs!$E$4:$E$17568,MATCH(B92/VLOOKUP(A92,$N$4:$P$31,2,FALSE),LDCs!$C$4:$C$17568,1),1)),C91) -> 0 | D92: 35.85413125 | E92: 17.92706562 | F92: 0 | G92: 0 | H92: 0 | I92: 49.9 | J92: 0 | K92: 0 | L92: 0 | M92: 0 | N92: 0 | O92: 0.002462705244 | P92: 0.0002748319243 | Q92: FALSE | R92: FALSE | S92: 0.01094535664 | T92: 0 | U92: 0 | V92: 0 | W92: 0 | X92: 0 | Y92: =S92*K92*1000*(Constants!$L$10/365) -> 0
A93: 2025 | B93: 55 | C93: =IFERROR(IF(B93=1,8760,INDEX(LDCs!$E$4:$E$17568,MATCH(B93/VLOOKUP(A93,$N$4:$P$31,2,FALSE),LDCs!$C$4:$C$17568,1),1)),C92) -> 0 | D93: 35.85413125 | E93: 17.92706562 | F93: 0 | G93: 0 | H93: 0 | I93: 50.9 | J93: 0 | K93: 0 | L93: 0 | M93: 0 | N93: 0 | O93: 0.002462705244 | P93: 0.0002748319243 | Q93: FALSE | R93: FALSE | S93: 0.01094535664 | T93: 0 | U93: 0 | V93: 0 | W93: 0 | X93: 0 | Y93: =S93*K93*1000*(Constants!$L$10/365) -> 0
A94: 2025 | B94: 56 | C94: =IFERROR(IF(B94=1,8760,INDEX(LDCs!$E$4:$E$17568,MATCH(B94/VLOOKUP(A94,$N$4:$P$31,2,FALSE),LDCs!$C$4:$C$17568,1),1)),C93) -> 0 | D94: 35.85413125 | E94: 17.92706562 | F94: 0 | G94: 0 | H94: 0 | I94: 51.9 | J94: 0 | K94: 0 | L94: 0 | M94: 0 | N94: 0 | O94: 0.002462705244 | P94: 0.0002748319243 | Q94: FALSE | R94: FALSE | S94: 0.01094535664 | T94: 0 | U94: 0 | V94: 0 | W94: 0 | X94: 0 | Y94: =S94*K94*1000*(Constants!$L$10/365) -> 0
A95: 2025 | B95: 57 | C95: =IFERROR(IF(B95=1,8760,INDEX(LDCs!$E$4:$E$17568,MATCH(B95/VLOOKUP(A95,$N$4:$P$31,2,FALSE),LDCs!$C$4:$C$17568,1),1)),C94) -> 0 | D95: 35.85413125 | E95: 17.92706562 | F95: 0 | G95: 0 | H95: 0 | I95: 52.9 | J95: 0 | K95: 0 | L95: 0 | M95: 0 | N95: 0 | O95: 0.002462705244 | P95: 0.0002748319243 | Q95: FALSE | R95: FALSE | S95: 0.01094535664 | T95: 0 | U95: 0 | V95: 0 | W95: 0 | X95: 0 | Y95: =S95*K95*1000*(Constants!$L$10/365) -> 0
A96: 2025 | B96: 58 | C96: =IFERROR(IF(B96=1,8760,INDEX(LDCs!$E$4:$E$17568,MATCH(B96/VLOOKUP(A96,$N$4:$P$31,2,FALSE),LDCs!$C$4:$C$17568,1),1)),C95) -> 0 | D96: 35.85413125 | E96: 17.92706562 | F96: 0 | G96: 0 | H96: 0 | I96: 53.9 | J96: 0 | K96: 0 | L96: 0 | M96: 0 | N96: 0 | O96: 0.002462705244 | P96: 0.0002748319243 | Q96: FALSE | R96: FALSE | S96: 0.01094535664 | T96: 0 | U96: 0 | V96: 0 | W96: 0 | X96: 0 | Y96: =S96*K96*1000*(Constants!$L$10/365) -> 0
A97: 2025 | B97: 59 | C97: =IFERROR(IF(B97=1,8760,INDEX(LDCs!$E$4:$E$17568,MATCH(B97/VLOOKUP(A97,$N$4:$P$31,2,FALSE),LDCs!$C$4:$C$17568,1),1)),C96) -> 0 | D97: 35.85413125 | E97: 17.92706562 | F97: 0 | G97: 0 | H97: 0 | I97: 54.9 | J97: 0 | K97: 0 | L97: 0 | M97: 0 | N97: 0 | O97: 0.002462705244 | P97: 0.0002748319243 | Q97: FALSE | R97: FALSE | S97: 0.01094535664 | T97: 0 | U97: 0 | V97: 0 | W97: 0 | X97: 0 | Y97: =S97*K97*1000*(Constants!$L$10/365) -> 0
A98: 2025 | B98: 60 | C98: =IFERROR(IF(B98=1,8760,INDEX(LDCs!$E$4:$E$17568,MATCH(B98/VLOOKUP(A98,$N$4:$P$31,2,FALSE),LDCs!$C$4:$C$17568,1),1)),C97) -> 0 | D98: 35.85413125 | E98: 17.92706562 | F98: 0 | G98: 0 | H98: 0 | I98: 55.9 | J98: 0 | K98: 0 | L98: 0 | M98: 0 | N98: 0 | O98: 0.002462705244 | P98: 0.0002748319243 | Q98: FALSE | R98: FALSE | S98: 0.01094535664 | T98: 0 | U98: 0 | V98: 0 | W98: 0 | X98: 0 | Y98: =S98*K98*1000*(Constants!$L$10/365) -> 0
A99: 2025 | B99: 61 | C99: =IFERROR(IF(B99=1,8760,INDEX(LDCs!$E$4:$E$17568,MATCH(B99/VLOOKUP(A99,$N$4:$P$31,2,FALSE),LDCs!$C$4:$C$17568,1),1)),C98) -> 0 | D99: 35.85413125 | E99: 17.92706562 | F99: 0 | G99: 0 | H99: 0 | I99: 56.9 | J99: 0 | K99: 0 | L99: 0 | M99: 0 | N99: 0 | O99: 0.002462705244 | P99: 0.0002748319243 | Q99: FALSE | R99: FALSE | S99: 0.01094535664 | T99: 0 | U99: 0 | V99: 0 | W99: 0 | X99: 0 | Y99: =S99*K99*1000*(Constants!$L$10/365) -> 0
A100: 2025 | B100: 62 | C100: =IFERROR(IF(B100=1,8760,INDEX(LDCs!$E$4:$E$17568,MATCH(B100/VLOOKUP(A100,$N$4:$P$31,2,FALSE),LDCs!$C$4:$C$17568,1),1)),C99) -> 0 | D100: 35.85413125 | E100: 17.92706562 | F100: 0 | G100: 0 | H100: 0 | I100: 57.9 | J100: 0 | K100: 0 | L100: 0 | M100: 0 | N100: 0 | O100: 0.002462705244 | P100: 0.0002748319243 | Q100: FALSE | R100: FALSE | S100: 0.01094535664 | T100: 0 | U100: 0 | V100: 0 | W100: 0 | X100: 0 | Y100: =S100*K100*1000*(Constants!$L$10/365) -> 0
A101: 2025 | B101: 63 | C101: =IFERROR(IF(B101=1,8760,INDEX(LDCs!$E$4:$E$17568,MATCH(B101/VLOOKUP(A101,$N$4:$P$31,2,FALSE),LDCs!$C$4:$C$17568,1),1)),C100) -> 0 | D101: 35.85413125 | E101: 17.92706562 | F101: 0 | G101: 0 | H101: 0 | I101: 58.9 | J101: 0 | K101: 0 | L101: 0 | M101: 0 | N101: 0 | O101: 0.002462705244 | P101: 0.0002748319243 | Q101: FALSE | R101: FALSE | S101: 0.01094535664 | T101: 0 | U101: 0 | V101: 0 | W101: 0 | X101: 0 | Y101: =S101*K101*1000*(Constants!$L$10/365) -> 0
A102: 2025 | B102: 64 | C102: =IFERROR(IF(B102=1,8760,INDEX(LDCs!$E$4:$E$17568,MATCH(B102/VLOOKUP(A102,$N$4:$P$31,2,FALSE),LDCs!$C$4:$C$17568,1),1)),C101) -> 0 | D102: 35.85413125 | E102: 17.92706562 | F102: 0 | G102: 0 | H102: 0 | I102: 59.9 | J102: 0 | K102: 0 | L102: 0 | M102: 0 | N102: 0 | O102: 0.002462705244 | P102: 0.0002748319243 | Q102: FALSE | R102: FALSE | S102: 0.01094535664 | T102: 0 | U102: 0 | V102: 0 | W102: 0 | X102: 0 | Y102: =S102*K102*1000*(Constants!$L$10/365) -> 0
A103: 2025 | B103: 65 | C103: =IFERROR(IF(B103=1,8760,INDEX(LDCs!$E$4:$E$17568,MATCH(B103/VLOOKUP(A103,$N$4:$P$31,2,FALSE),LDCs!$C$4:$C$17568,1),1)),C102) -> 0 | D103: 35.85413125 | E103: 17.92706562 | F103: 0 | G103: 0 | H103: 0 | I103: 60.9 | J103: =IF(B103=150,0,IF(IF($I103>D103,($I103-D103)*($C103-$C104),0)<0,0,IF($I103>D103,($I103-D103)*($C103-$C104),0)))*Power_Factor -> 0 | K103: =IF(C103=150,0,IF(IF($I103>E103,($I103-E103)*($C103-$C104),0)<0,0,IF($I103>E103,($I103-E103)*($C103-$C104),0)))*Power_Factor -> 0 | L103: =IF(D103=150,0,IF(IF($I103>F103,($I103-F103)*($C103-$C104),0)<0,0,IF($I103>F103,($I103-F103)*($C103-$C104),0)))*Power_Factor -> 0 | M103: =IF(E103=150,0,IF(IF($I103>G103,($I103-G103)*($C103-$C104),0)<0,0,IF($I103>G103,($I103-G103)*($C103-$C104),0)))*Power_Factor -> 0 | N103: 0 | O103: 0.002462705244 | P103: 0.0002748319243 | Q103: FALSE | R103: FALSE | S103: 0.01094535664 | T103: 0 | U103: 0 | V103: 0 | W103: 0 | X103: 0 | Y103: =S103*K103*1000*(Constants!$L$10/365) -> 0
A104: 2025 | B104: 66 | C104: =IFERROR(IF(B104=1,8760,INDEX(LDCs!$E$4:$E$17568,MATCH(B104/VLOOKUP(A104,$N$4:$P$31,2,FALSE),LDCs!$C$4:$C$17568,1),1)),C103) -> 0 | D104: =VLOOKUP($A104,$N$4:$Y$31,6,FALSE) -> 35.85413125 | E104: =VLOOKUP($A104,$N$4:$Y$31,7,FALSE) -> 17.92706562 | F104: =VLOOKUP($A104,$N$4:$Y$31,9,FALSE) -> 0 | G104: =VLOOKUP($A104,$N$4:$Y$31,10,FALSE) -> 0 | H104: =VLOOKUP($A104,$N$4:$Y$31,11,FALSE) -> 0 | I104: =IF(B104-VLOOKUP(A104,$N$4:$Y$31,12,FALSE)<0,0,B104-VLOOKUP(A104,$N$4:$Y$31,12,FALSE)) -> 61.9 | J104: 0 | K104: 0 | L104: 0 | M104: 0 | N104: 0 | O104: =VLOOKUP($A104, $N$4:$AY$31,33,FALSE) -> 0.002462705244 | P104: =VLOOKUP($A104, $N$4:$AY$31,34,FALSE) -> 0.0002748319243 | Q104: =VLOOKUP($A104, $N$4:$AY$31,35,FALSE) -> FALSE | R104: =VLOOKUP($A104, $N$4:$AY$31,36,FALSE) -> FALSE | S104: =VLOOKUP($A104, $N$4:$AY$31,37,FALSE) -> 0.01094535664 | T104: 0 | U104: 0 | V104: 0 | W104: 0 | X104: 0 | Y104: =S104*K104*1000*(Constants!$L$10/365) -> 0
A105: =IF(B104=150,A104+1,A104) -> 2025 | B105: 67 | C105: =IFERROR(IF(B105=1,8760,INDEX(LDCs!$E$4:$E$17568,MATCH(B105/VLOOKUP(A105,$N$4:$P$31,2,FALSE),LDCs!$C$4:$C$17568,1),1)),C104) -> 0 | D105: 35.85413125 | E105: 17.92706562 | F105: 0 | G105: 0 | H105: 0 | I105: 62.9 | J105: 0 | K105: 0 | L105: 0 | M105: 0 | N105: 0 | O105: 0.002462705244 | P105: 0.0002748319243 | Q105: FALSE | R105: FALSE | S105: 0.01094535664 | T105: 0 | U105: 0 | V105: 0 | W105: 0 | X105: 0 | Y105: =S105*K105*1000*(Constants!$L$10/365) -> 0
A106: 2025 | B106: 68 | C106: =IFERROR(IF(B106=1,8760,INDEX(LDCs!$E$4:$E$17568,MATCH(B106/VLOOKUP(A106,$N$4:$P$31,2,FALSE),LDCs!$C$4:$C$17568,1),1)),C105) -> 0 | D106: 35.85413125 | E106: 17.92706562 | F106: 0 | G106: 0 | H106: 0 | I106: 63.9 | J106: 0 | K106: 0 | L106: 0 | M106: 0 | N106: 0 | O106: 0.002462705244 | P106: 0.0002748319243 | Q106: FALSE | R106: FALSE | S106: 0.01094535664 | T106: =J106*1000*($AC$76/365) -> 0 | U106: =O106*K106*1000*($AC$77/365) -> 0 | V106: =P106*L106*1000*($AC$78/365) -> 0 | W106: =Q106*M106*1000*($AC$79/365) -> 0 | X106: =R106*N106*1000*($AC$80/365) -> 0 | Y106: =S106*K106*1000*(Constants!$L$10/365) -> 0
A107: 2025 | B107: 69 | C107: =IFERROR(IF(B107=1,8760,INDEX(LDCs!$E$4:$E$17568,MATCH(B107/VLOOKUP(A107,$N$4:$P$31,2,FALSE),LDCs!$C$4:$C$17568,1),1)),C106) -> 0 | D107: 35.85413125 | E107: 17.92706562 | F107: 0 | G107: 0 | H107: 0 | I107: 64.9 | J107: 0 | K107: 0 | L107: 0 | M107: 0 | N107: 0 | O107: 0.002462705244 | P107: 0.0002748319243 | Q107: FALSE | R107: FALSE | S107: 0.01094535664 | T107: 0 | U107: 0 | V107: 0 | W107: 0 | X107: 0 | Y107: =S107*K107*1000*(Constants!$L$10/365) -> 0
A108: 2025 | B108: 70 | C108: =IFERROR(IF(B108=1,8760,INDEX(LDCs!$E$4:$E$17568,MATCH(B108/VLOOKUP(A108,$N$4:$P$31,2,FALSE),LDCs!$C$4:$C$17568,1),1)),C107) -> 0 | D108: 35.85413125 | E108: 17.92706562 | F108: 0 | G108: 0 | H108: 0 | I108: 65.9 | J108: 0 | K108: 0 | L108: 0 | M108: 0 | N108: 0 | O108: 0.002462705244 | P108: 0.0002748319243 | Q108: FALSE | R108: FALSE | S108: 0.01094535664 | T108: 0 | U108: 0 | V108: 0 | W108: 0 | X108: 0 | Y108: =S108*K108*1000*(Constants!$L$10/365) -> 0
A109: 2025 | B109: 71 | C109: =IFERROR(IF(B109=1,8760,INDEX(LDCs!$E$4:$E$17568,MATCH(B109/VLOOKUP(A109,$N$4:$P$31,2,FALSE),LDCs!$C$4:$C$17568,1),1)),C108) -> 0 | D109: 35.85413125 | E109: 17.92706562 | F109: 0 | G109: 0 | H109: 0 | I109: 66.9 | J109: 0 | K109: 0 | L109: 0 | M109: 0 | N109: 0 | O109: 0.002462705244 | P109: 0.0002748319243 | Q109: FALSE | R109: FALSE | S109: 0.01094535664 | T109: 0 | U109: 0 | V109: 0 | W109: 0 | X109: 0 | Y109: =S109*K109*1000*(Constants!$L$10/365) -> 0
A110: 2025 | B110: 72 | C110: =IFERROR(IF(B110=1,8760,INDEX(LDCs!$E$4:$E$17568,MATCH(B110/VLOOKUP(A110,$N$4:$P$31,2,FALSE),LDCs!$C$4:$C$17568,1),1)),C109) -> 0 | D110: 35.85413125 | E110: 17.92706562 | F110: 0 | G110: 0 | H110: 0 | I110: 67.9 | J110: 0 | K110: 0 | L110: 0 | M110: 0 | N110: 0 | O110: 0.002462705244 | P110: 0.0002748319243 | Q110: FALSE | R110: FALSE | S110: 0.01094535664 | T110: 0 | U110: 0 | V110: 0 | W110: 0 | X110: 0 | Y110: =S110*K110*1000*(Constants!$L$10/365) -> 0
A111: 2025 | B111: 73 | C111: =IFERROR(IF(B111=1,8760,INDEX(LDCs!$E$4:$E$17568,MATCH(B111/VLOOKUP(A111,$N$4:$P$31,2,FALSE),LDCs!$C$4:$C$17568,1),1)),C110) -> 0 | D111: 35.85413125 | E111: 17.92706562 | F111: 0 | G111: 0 | H111: 0 | I111: 68.9 | J111: 0 | K111: 0 | L111: 0 | M111: 0 | N111: 0 | O111: 0.002462705244 | P111: 0.0002748319243 | Q111: FALSE | R111: FALSE | S111: 0.01094535664 | T111: 0 | U111: 0 | V111: 0 | W111: 0 | X111: 0 | Y111: =S111*K111*1000*(Constants!$L$10/365) -> 0
A112: 2025 | B112: 74 | C112: =IFERROR(IF(B112=1,8760,INDEX(LDCs!$E$4:$E$17568,MATCH(B112/VLOOKUP(A112,$N$4:$P$31,2,FALSE),LDCs!$C$4:$C$17568,1),1)),C111) -> 0 | D112: 35.85413125 | E112: 17.92706562 | F112: 0 | G112: 0 | H112: 0 | I112: 69.9 | J112: 0 | K112: 0 | L112: 0 | M112: 0 | N112: 0 | O112: 0.002462705244 | P112: 0.0002748319243 | Q112: FALSE | R112: FALSE | S112: 0.01094535664 | T112: 0 | U112: 0 | V112: 0 | W112: 0 | X112: 0 | Y112: =S112*K112*1000*(Constants!$L$10/365) -> 0
A113: 2025 | B113: 75 | C113: =IFERROR(IF(B113=1,8760,INDEX(LDCs!$E$4:$E$17568,MATCH(B113/VLOOKUP(A113,$N$4:$P$31,2,FALSE),LDCs!$C$4:$C$17568,1),1)),C112) -> 0 | D113: 35.85413125 | E113: 17.92706562 | F113: 0 | G113: 0 | H113: 0 | I113: 70.9 | J113: 0 | K113: 0 | L113: 0 | M113: 0 | N113: 0 | O113: 0.002462705244 | P113: 0.0002748319243 | Q113: FALSE | R113: FALSE | S113: 0.01094535664 | T113: 0 | U113: 0 | V113: 0 | W113: 0 | X113: 0 | Y113: =S113*K113*1000*(Constants!$L$10/365) -> 0
A114: 2025 | B114: 76 | C114: =IFERROR(IF(B114=1,8760,INDEX(LDCs!$E$4:$E$17568,MATCH(B114/VLOOKUP(A114,$N$4:$P$31,2,FALSE),LDCs!$C$4:$C$17568,1),1)),C113) -> 0 | D114: 35.85413125 | E114: 17.92706562 | F114: 0 | G114: 0 | H114: 0 | I114: 71.9 | J114: 0 | K114: 0 | L114: 0 | M114: 0 | N114: 0 | O114: 0.002462705244 | P114: 0.0002748319243 | Q114: FALSE | R114: FALSE | S114: 0.01094535664 | T114: 0 | U114: 0 | V114: 0 | W114: 0 | X114: 0 | Y114: =S114*K114*1000*(Constants!$L$10/365) -> 0
A115: 2025 | B115: 77 | C115: =IFERROR(IF(B115=1,8760,INDEX(LDCs!$E$4:$E$17568,MATCH(B115/VLOOKUP(A115,$N$4:$P$31,2,FALSE),LDCs!$C$4:$C$17568,1),1)),C114) -> 0 | D115: 35.85413125 | E115: 17.92706562 | F115: 0 | G115: 0 | H115: 0 | I115: 72.9 | J115: 0 | K115: 0 | L115: 0 | M115: 0 | N115: 0 | O115: 0.002462705244 | P115: 0.0002748319243 | Q115: FALSE | R115: FALSE | S115: 0.01094535664 | T115: 0 | U115: 0 | V115: 0 | W115: 0 | X115: 0 | Y115: =S115*K115*1000*(Constants!$L$10/365) -> 0
A116: 2025 | B116: 78 | C116: =IFERROR(IF(B116=1,8760,INDEX(LDCs!$E$4:$E$17568,MATCH(B116/VLOOKUP(A116,$N$4:$P$31,2,FALSE),LDCs!$C$4:$C$17568,1),1)),C115) -> 0 | D116: 35.85413125 | E116: 17.92706562 | F116: 0 | G116: 0 | H116: 0 | I116: 73.9 | J116: 0 | K116: 0 | L116: 0 | M116: 0 | N116: 0 | O116: 0.002462705244 | P116: 0.0002748319243 | Q116: FALSE | R116: FALSE | S116: 0.01094535664 | T116: 0 | U116: 0 | V116: 0 | W116: 0 | X116: 0 | Y116: =S116*K116*1000*(Constants!$L$10/365) -> 0
A117: 2025 | B117: 79 | C117: =IFERROR(IF(B117=1,8760,INDEX(LDCs!$E$4:$E$17568,MATCH(B117/VLOOKUP(A117,$N$4:$P$31,2,FALSE),LDCs!$C$4:$C$17568,1),1)),C116) -> 0 | D117: 35.85413125 | E117: 17.92706562 | F117: 0 | G117: 0 | H117: 0 | I117: 74.9 | J117: 0 | K117: 0 | L117: 0 | M117: 0 | N117: 0 | O117: 0.002462705244 | P117: 0.0002748319243 | Q117: FALSE | R117: FALSE | S117: 0.01094535664 | T117: 0 | U117: 0 | V117: 0 | W117: 0 | X117: 0 | Y117: =S117*K117*1000*(Constants!$L$10/365) -> 0
A118: 2025 | B118: 80 | C118: =IFERROR(IF(B118=1,8760,INDEX(LDCs!$E$4:$E$17568,MATCH(B118/VLOOKUP(A118,$N$4:$P$31,2,FALSE),LDCs!$C$4:$C$17568,1),1)),C117) -> 0 | D118: 35.85413125 | E118: 17.92706562 | F118: 0 | G118: 0 | H118: 0 | I118: 75.9 | J118: 0 | K118: 0 | L118: 0 | M118: 0 | N118: 0 | O118: 0.002462705244 | P118: 0.0002748319243 | Q118: FALSE | R118: FALSE | S118: 0.01094535664 | T118: 0 | U118: 0 | V118: 0 | W118: 0 | X118: 0 | Y118: =S118*K118*1000*(Constants!$L$10/365) -> 0
A119: 2025 | B119: 81 | C119: =IFERROR(IF(B119=1,8760,INDEX(LDCs!$E$4:$E$17568,MATCH(B119/VLOOKUP(A119,$N$4:$P$31,2,FALSE),LDCs!$C$4:$C$17568,1),1)),C118) -> 0 | D119: 35.85413125 | E119: 17.92706562 | F119: 0 | G119: 0 | H119: 0 | I119: 76.9 | J119: 0 | K119: 0 | L119: 0 | M119: 0 | N119: 0 | O119: 0.002462705244 | P119: 0.0002748319243 | Q119: FALSE | R119: FALSE | S119: 0.01094535664 | T119: 0 | U119: 0 | V119: 0 | W119: 0 | X119: 0 | Y119: =S119*K119*1000*(Constants!$L$10/365) -> 0
A120: 2025 | B120: 82 | C120: =IFERROR(IF(B120=1,8760,INDEX(LDCs!$E$4:$E$17568,MATCH(B120/VLOOKUP(A120,$N$4:$P$31,2,FALSE),LDCs!$C$4:$C$17568,1),1)),C119) -> 0 | D120: 35.85413125 | E120: 17.92706562 | F120: 0 | G120: 0 | H120: 0 | I120: 77.9 | J120: 0 | K120: 0 | L120: 0 | M120: 0 | N120: 0 | O120: 0.002462705244 | P120: 0.0002748319243 | Q120: FALSE | R120: FALSE | S120: 0.01094535664 | T120: 0 | U120: 0 | V120: 0 | W120: 0 | X120: 0 | Y120: =S120*K120*1000*(Constants!$L$10/365) -> 0
A121: 2025 | B121: 83 | C121: =IFERROR(IF(B121=1,8760,INDEX(LDCs!$E$4:$E$17568,MATCH(B121/VLOOKUP(A121,$N$4:$P$31,2,FALSE),LDCs!$C$4:$C$17568,1),1)),C120) -> 0 | D121: 35.85413125 | E121: 17.92706562 | F121: 0 | G121: 0 | H121: 0 | I121: 78.9 | J121: 0 | K121: 0 | L121: 0 | M121: 0 | N121: 0 | O121: 0.002462705244 | P121: 0.0002748319243 | Q121: FALSE | R121: FALSE | S121: 0.01094535664 | T121: 0 | U121: 0 | V121: 0 | W121: 0 | X121: 0 | Y121: =S121*K121*1000*(Constants!$L$10/365) -> 0
A122: 2025 | B122: 84 | C122: =IFERROR(IF(B122=1,8760,INDEX(LDCs!$E$4:$E$17568,MATCH(B122/VLOOKUP(A122,$N$4:$P$31,2,FALSE),LDCs!$C$4:$C$17568,1),1)),C121) -> 0 | D122: 35.85413125 | E122: 17.92706562 | F122: 0 | G122: 0 | H122: 0 | I122: 79.9 | J122: 0 | K122: 0 | L122: 0 | M122: 0 | N122: 0 | O122: 0.002462705244 | P122: 0.0002748319243 | Q122: FALSE | R122: FALSE | S122: 0.01094535664 | T122: 0 | U122: 0 | V122: 0 | W122: 0 | X122: 0 | Y122: =S122*K122*1000*(Constants!$L$10/365) -> 0
A123: 2025 | B123: 85 | C123: =IFERROR(IF(B123=1,8760,INDEX(LDCs!$E$4:$E$17568,MATCH(B123/VLOOKUP(A123,$N$4:$P$31,2,FALSE),LDCs!$C$4:$C$17568,1),1)),C122) -> 0 | D123: 35.85413125 | E123: 17.92706562 | F123: 0 | G123: 0 | H123: 0 | I123: 80.9 | J123: 0 | K123: 0 | L123: 0 | M123: 0 | N123: 0 | O123: 0.002462705244 | P123: 0.0002748319243 | Q123: FALSE | R123: FALSE | S123: 0.01094535664 | T123: 0 | U123: 0 | V123: 0 | W123: 0 | X123: 0 | Y123: =S123*K123*1000*(Constants!$L$10/365) -> 0
A124: 2025 | B124: 86 | C124: =IFERROR(IF(B124=1,8760,INDEX(LDCs!$E$4:$E$17568,MATCH(B124/VLOOKUP(A124,$N$4:$P$31,2,FALSE),LDCs!$C$4:$C$17568,1),1)),C123) -> 0 | D124: 35.85413125 | E124: 17.92706562 | F124: 0 | G124: 0 | H124: 0 | I124: 81.9 | J124: 0 | K124: 0 | L124: 0 | M124: 0 | N124: 0 | O124: 0.002462705244 | P124: 0.0002748319243 | Q124: FALSE | R124: FALSE | S124: 0.01094535664 | T124: 0 | U124: 0 | V124: 0 | W124: 0 | X124: 0 | Y124: =S124*K124*1000*(Constants!$L$10/365) -> 0
A125: 2025 | B125: 87 | C125: =IFERROR(IF(B125=1,8760,INDEX(LDCs!$E$4:$E$17568,MATCH(B125/VLOOKUP(A125,$N$4:$P$31,2,FALSE),LDCs!$C$4:$C$17568,1),1)),C124) -> 0 | D125: 35.85413125 | E125: 17.92706562 | F125: 0 | G125: 0 | H125: 0 | I125: 82.9 | J125: 0 | K125: 0 | L125: 0 | M125: 0 | N125: 0 | O125: 0.002462705244 | P125: 0.0002748319243 | Q125: FALSE | R125: FALSE | S125: 0.01094535664 | T125: 0 | U125: 0 | V125: 0 | W125: 0 | X125: 0 | Y125: =S125*K125*1000*(Constants!$L$10/365) -> 0
A126: 2025 | B126: 88 | C126: =IFERROR(IF(B126=1,8760,INDEX(LDCs!$E$4:$E$17568,MATCH(B126/VLOOKUP(A126,$N$4:$P$31,2,FALSE),LDCs!$C$4:$C$17568,1),1)),C125) -> 0 | D126: 35.85413125 | E126: 17.92706562 | F126: 0 | G126: 0 | H126: 0 | I126: 83.9 | J126: 0 | K126: 0 | L126: 0 | M126: 0 | N126: 0 | O126: 0.002462705244 | P126: 0.0002748319243 | Q126: FALSE | R126: FALSE | S126: 0.01094535664 | T126: 0 | U126: 0 | V126: 0 | W126: 0 | X126: 0 | Y126: =S126*K126*1000*(Constants!$L$10/365) -> 0
A127: 2025 | B127: 89 | C127: =IFERROR(IF(B127=1,8760,INDEX(LDCs!$E$4:$E$17568,MATCH(B127/VLOOKUP(A127,$N$4:$P$31,2,FALSE),LDCs!$C$4:$C$17568,1),1)),C126) -> 0 | D127: 35.85413125 | E127: 17.92706562 | F127: 0 | G127: 0 | H127: 0 | I127: 84.9 | J127: 0 | K127: 0 | L127: 0 | M127: 0 | N127: 0 | O127: 0.002462705244 | P127: 0.0002748319243 | Q127: FALSE | R127: FALSE | S127: 0.01094535664 | T127: 0 | U127: 0 | V127: 0 | W127: 0 | X127: 0 | Y127: =S127*K127*1000*(Constants!$L$10/365) -> 0
A128: 2025 | B128: 90 | C128: =IFERROR(IF(B128=1,8760,INDEX(LDCs!$E$4:$E$17568,MATCH(B128/VLOOKUP(A128,$N$4:$P$31,2,FALSE),LDCs!$C$4:$C$17568,1),1)),C127) -> 0 | D128: 35.85413125 | E128: 17.92706562 | F128: 0 | G128: 0 | H128: 0 | I128: 85.9 | J128: 0 | K128: 0 | L128: 0 | M128: 0 | N128: 0 | O128: 0.002462705244 | P128: 0.0002748319243 | Q128: FALSE | R128: FALSE | S128: 0.01094535664 | T128: 0 | U128: 0 | V128: 0 | W128: 0 | X128: 0 | Y128: =S128*K128*1000*(Constants!$L$10/365) -> 0
A129: 2025 | B129: 91 | C129: =IFERROR(IF(B129=1,8760,INDEX(LDCs!$E$4:$E$17568,MATCH(B129/VLOOKUP(A129,$N$4:$P$31,2,FALSE),LDCs!$C$4:$C$17568,1),1)),C128) -> 0 | D129: 35.85413125 | E129: 17.92706562 | F129: 0 | G129: 0 | H129: 0 | I129: 86.9 | J129: 0 | K129: 0 | L129: 0 | M129: 0 | N129: 0 | O129: 0.002462705244 | P129: 0.0002748319243 | Q129: FALSE | R129: FALSE | S129: 0.01094535664 | T129: 0 | U129: 0 | V129: 0 | W129: 0 | X129: 0 | Y129: =S129*K129*1000*(Constants!$L$10/365) -> 0
A130: 2025 | B130: 92 | C130: =IFERROR(IF(B130=1,8760,INDEX(LDCs!$E$4:$E$17568,MATCH(B130/VLOOKUP(A130,$N$4:$P$31,2,FALSE),LDCs!$C$4:$C$17568,1),1)),C129) -> 0 | D130: 35.85413125 | E130: 17.92706562 | F130: 0 | G130: 0 | H130: 0 | I130: 87.9 | J130: 0 | K130: 0 | L130: 0 | M130: 0 | N130: 0 | O130: 0.002462705244 | P130: 0.0002748319243 | Q130: FALSE | R130: FALSE | S130: 0.01094535664 | T130: 0 | U130: 0 | V130: 0 | W130: 0 | X130: 0 | Y130: =S130*K130*1000*(Constants!$L$10/365) -> 0
A131: 2025 | B131: 93 | C131: =IFERROR(IF(B131=1,8760,INDEX(LDCs!$E$4:$E$17568,MATCH(B131/VLOOKUP(A131,$N$4:$P$31,2,FALSE),LDCs!$C$4:$C$17568,1),1)),C130) -> 0 | D131: 35.85413125 | E131: 17.92706562 | F131: 0 | G131: 0 | H131: 0 | I131: 88.9 | J131: 0 | K131: 0 | L131: 0 | M131: 0 | N131: 0 | O131: 0.002462705244 | P131: 0.0002748319243 | Q131: FALSE | R131: FALSE | S131: 0.01094535664 | T131: 0 | U131: 0 | V131: 0 | W131: 0 | X131: 0 | Y131: =S131*K131*1000*(Constants!$L$10/365) -> 0
A132: 2025 | B132: 94 | C132: =IFERROR(IF(B132=1,8760,INDEX(LDCs!$E$4:$E$17568,MATCH(B132/VLOOKUP(A132,$N$4:$P$31,2,FALSE),LDCs!$C$4:$C$17568,1),1)),C131) -> 0 | D132: 35.85413125 | E132: 17.92706562 | F132: 0 | G132: 0 | H132: 0 | I132: 89.9 | J132: 0 | K132: 0 | L132: 0 | M132: 0 | N132: 0 | O132: 0.002462705244 | P132: 0.0002748319243 | Q132: FALSE | R132: FALSE | S132: 0.01094535664 | T132: 0 | U132: 0 | V132: 0 | W132: 0 | X132: 0 | Y132: =S132*K132*1000*(Constants!$L$10/365) -> 0
A133: 2025 | B133: 95 | C133: =IFERROR(IF(B133=1,8760,INDEX(LDCs!$E$4:$E$17568,MATCH(B133/VLOOKUP(A133,$N$4:$P$31,2,FALSE),LDCs!$C$4:$C$17568,1),1)),C132) -> 0 | D133: 35.85413125 | E133: 17.92706562 | F133: 0 | G133: 0 | H133: 0 | I133: 90.9 | J133: 0 | K133: 0 | L133: 0 | M133: 0 | N133: 0 | O133: 0.002462705244 | P133: 0.0002748319243 | Q133: FALSE | R133: FALSE | S133: 0.01094535664 | T133: 0 | U133: 0 | V133: 0 | W133: 0 | X133: 0 | Y133: =S133*K133*1000*(Constants!$L$10/365) -> 0
A134: 2025 | B134: 96 | C134: =IFERROR(IF(B134=1,8760,INDEX(LDCs!$E$4:$E$17568,MATCH(B134/VLOOKUP(A134,$N$4:$P$31,2,FALSE),LDCs!$C$4:$C$17568,1),1)),C133) -> 0 | D134: 35.85413125 | E134: 17.92706562 | F134: 0 | G134: 0 | H134: 0 | I134: 91.9 | J134: 0 | K134: 0 | L134: 0 | M134: 0 | N134: 0 | O134: 0.002462705244 | P134: 0.0002748319243 | Q134: FALSE | R134: FALSE | S134: 0.01094535664 | T134: 0 | U134: 0 | V134: 0 | W134: 0 | X134: 0 | Y134: =S134*K134*1000*(Constants!$L$10/365) -> 0
A135: 2025 | B135: 97 | C135: =IFERROR(IF(B135=1,8760,INDEX(LDCs!$E$4:$E$17568,MATCH(B135/VLOOKUP(A135,$N$4:$P$31,2,FALSE),LDCs!$C$4:$C$17568,1),1)),C134) -> 0 | D135: 35.85413125 | E135: 17.92706562 | F135: 0 | G135: 0 | H135: 0 | I135: 92.9 | J135: 0 | K135: 0 | L135: 0 | M135: 0 | N135: 0 | O135: 0.002462705244 | P135: 0.0002748319243 | Q135: FALSE | R135: FALSE | S135: 0.01094535664 | T135: 0 | U135: 0 | V135: 0 | W135: 0 | X135: 0 | Y135: =S135*K135*1000*(Constants!$L$10/365) -> 0
A136: 2025 | B136: 98 | C136: =IFERROR(IF(B136=1,8760,INDEX(LDCs!$E$4:$E$17568,MATCH(B136/VLOOKUP(A136,$N$4:$P$31,2,FALSE),LDCs!$C$4:$C$17568,1),1)),C135) -> 0 | D136: 35.85413125 | E136: 17.92706562 | F136: 0 | G136: 0 | H136: 0 | I136: 93.9 | J136: 0 | K136: 0 | L136: 0 | M136: 0 | N136: 0 | O136: 0.002462705244 | P136: 0.0002748319243 | Q136: FALSE | R136: FALSE | S136: 0.01094535664 | T136: 0 | U136: 0 | V136: 0 | W136: 0 | X136: 0 | Y136: =S136*K136*1000*(Constants!$L$10/365) -> 0
A137: 2025 | B137: 99 | C137: =IFERROR(IF(B137=1,8760,INDEX(LDCs!$E$4:$E$17568,MATCH(B137/VLOOKUP(A137,$N$4:$P$31,2,FALSE),LDCs!$C$4:$C$17568,1),1)),C136) -> 0 | D137: 35.85413125 | E137: 17.92706562 | F137: 0 | G137: 0 | H137: 0 | I137: 94.9 | J137: 0 | K137: 0 | L137: 0 | M137: 0 | N137: 0 | O137: 0.002462705244 | P137: 0.0002748319243 | Q137: FALSE | R137: FALSE | S137: 0.01094535664 | T137: 0 | U137: 0 | V137: 0 | W137: 0 | X137: 0 | Y137: =S137*K137*1000*(Constants!$L$10/365) -> 0
A138: 2025 | B138: 100 | C138: =IFERROR(IF(B138=1,8760,INDEX(LDCs!$E$4:$E$17568,MATCH(B138/VLOOKUP(A138,$N$4:$P$31,2,FALSE),LDCs!$C$4:$C$17568,1),1)),C137) -> 0 | D138: 35.85413125 | E138: 17.92706562 | F138: 0 | G138: 0 | H138: 0 | I138: 95.9 | J138: 0 | K138: 0 | L138: 0 | M138: 0 | N138: 0 | O138: 0.002462705244 | P138: 0.0002748319243 | Q138: FALSE | R138: FALSE | S138: 0.01094535664 | T138: 0 | U138: 0 | V138: 0 | W138: 0 | X138: 0 | Y138: =S138*K138*1000*(Constants!$L$10/365) -> 0
A139: 2025 | B139: 101 | C139: =IFERROR(IF(B139=1,8760,INDEX(LDCs!$E$4:$E$17568,MATCH(B139/VLOOKUP(A139,$N$4:$P$31,2,FALSE),LDCs!$C$4:$C$17568,1),1)),C138) -> 0 | D139: 35.85413125 | E139: 17.92706562 | F139: 0 | G139: 0 | H139: 0 | I139: 96.9 | J139: 0 | K139: 0 | L139: 0 | M139: 0 | N139: 0 | O139: 0.002462705244 | P139: 0.0002748319243 | Q139: FALSE | R139: FALSE | S139: 0.01094535664 | T139: 0 | U139: 0 | V139: 0 | W139: 0 | X139: 0 | Y139: =S139*K139*1000*(Constants!$L$10/365) -> 0
A140: 2025 | B140: 102 | C140: =IFERROR(IF(B140=1,8760,INDEX(LDCs!$E$4:$E$17568,MATCH(B140/VLOOKUP(A140,$N$4:$P$31,2,FALSE),LDCs!$C$4:$C$17568,1),1)),C139) -> 0 | D140: 35.85413125 | E140: 17.92706562 | F140: 0 | G140: 0 | H140: 0 | I140: 97.9 | J140: 0 | K140: 0 | L140: 0 | M140: 0 | N140: 0 | O140: 0.002462705244 | P140: 0.0002748319243 | Q140: FALSE | R140: FALSE | S140: 0.01094535664 | T140: 0 | U140: 0 | V140: 0 | W140: 0 | X140: 0 | Y140: =S140*K140*1000*(Constants!$L$10/365) -> 0
A141: 2025 | B141: 103 | C141: =IFERROR(IF(B141=1,8760,INDEX(LDCs!$E$4:$E$17568,MATCH(B141/VLOOKUP(A141,$N$4:$P$31,2,FALSE),LDCs!$C$4:$C$17568,1),1)),C140) -> 0 | D141: 35.85413125 | E141: 17.92706562 | F141: 0 | G141: 0 | H141: 0 | I141: 98.9 | J141: 0 | K141: 0 | L141: 0 | M141: 0 | N141: 0 | O141: 0.002462705244 | P141: 0.0002748319243 | Q141: FALSE | R141: FALSE | S141: 0.01094535664 | T141: 0 | U141: 0 | V141: 0 | W141: 0 | X141: 0 | Y141: =S141*K141*1000*(Constants!$L$10/365) -> 0
A142: 2025 | B142: 104 | C142: =IFERROR(IF(B142=1,8760,INDEX(LDCs!$E$4:$E$17568,MATCH(B142/VLOOKUP(A142,$N$4:$P$31,2,FALSE),LDCs!$C$4:$C$17568,1),1)),C141) -> 0 | D142: 35.85413125 | E142: 17.92706562 | F142: 0 | G142: 0 | H142: 0 | I142: 99.9 | J142: 0 | K142: 0 | L142: 0 | M142: 0 | N142: 0 | O142: 0.002462705244 | P142: 0.0002748319243 | Q142: FALSE | R142: FALSE | S142: 0.01094535664 | T142: 0 | U142: 0 | V142: 0 | W142: 0 | X142: 0 | Y142: =S142*K142*1000*(Constants!$L$10/365) -> 0
A143: 2025 | B143: 105 | C143: =IFERROR(IF(B143=1,8760,INDEX(LDCs!$E$4:$E$17568,MATCH(B143/VLOOKUP(A143,$N$4:$P$31,2,FALSE),LDCs!$C$4:$C$17568,1),1)),C142) -> 0 | D143: 35.85413125 | E143: 17.92706562 | F143: 0 | G143: 0 | H143: 0 | I143: 100.9 | J143: 0 | K143: 0 | L143: 0 | M143: 0 | N143: 0 | O143: 0.002462705244 | P143: 0.0002748319243 | Q143: FALSE | R143: FALSE | S143: 0.01094535664 | T143: 0 | U143: 0 | V143: 0 | W143: 0 | X143: 0 | Y143: =S143*K143*1000*(Constants!$L$10/365) -> 0
A144: 2025 | B144: 106 | C144: =IFERROR(IF(B144=1,8760,INDEX(LDCs!$E$4:$E$17568,MATCH(B144/VLOOKUP(A144,$N$4:$P$31,2,FALSE),LDCs!$C$4:$C$17568,1),1)),C143) -> 0 | D144: 35.85413125 | E144: 17.92706562 | F144: 0 | G144: 0 | H144: 0 | I144: 101.9 | J144: 0 | K144: 0 | L144: 0 | M144: 0 | N144: 0 | O144: 0.002462705244 | P144: 0.0002748319243 | Q144: FALSE | R144: FALSE | S144: 0.01094535664 | T144: 0 | U144: 0 | V144: 0 | W144: 0 | X144: 0 | Y144: =S144*K144*1000*(Constants!$L$10/365) -> 0
A145: 2025 | B145: 107 | C145: =IFERROR(IF(B145=1,8760,INDEX(LDCs!$E$4:$E$17568,MATCH(B145/VLOOKUP(A145,$N$4:$P$31,2,FALSE),LDCs!$C$4:$C$17568,1),1)),C144) -> 0 | D145: 35.85413125 | E145: 17.92706562 | F145: 0 | G145: 0 | H145: 0 | I145: 102.9 | J145: 0 | K145: 0 | L145: 0 | M145: 0 | N145: 0 | O145: 0.002462705244 | P145: 0.0002748319243 | Q145: FALSE | R145: FALSE | S145: 0.01094535664 | T145: 0 | U145: 0 | V145: 0 | W145: 0 | X145: 0 | Y145: =S145*K145*1000*(Constants!$L$10/365) -> 0
A146: 2025 | B146: 108 | C146: =IFERROR(IF(B146=1,8760,INDEX(LDCs!$E$4:$E$17568,MATCH(B146/VLOOKUP(A146,$N$4:$P$31,2,FALSE),LDCs!$C$4:$C$17568,1),1)),C145) -> 0 | D146: 35.85413125 | E146: 17.92706562 | F146: 0 | G146: 0 | H146: 0 | I146: 103.9 | J146: 0 | K146: 0 | L146: 0 | M146: 0 | N146: 0 | O146: 0.002462705244 | P146: 0.0002748319243 | Q146: FALSE | R146: FALSE | S146: 0.01094535664 | T146: 0 | U146: 0 | V146: 0 | W146: 0 | X146: 0 | Y146: =S146*K146*1000*(Constants!$L$10/365) -> 0
A147: 2025 | B147: 109 | C147: =IFERROR(IF(B147=1,8760,INDEX(LDCs!$E$4:$E$17568,MATCH(B147/VLOOKUP(A147,$N$4:$P$31,2,FALSE),LDCs!$C$4:$C$17568,1),1)),C146) -> 0 | D147: 35.85413125 | E147: 17.92706562 | F147: 0 | G147: 0 | H147: 0 | I147: 104.9 | J147: 0 | K147: 0 | L147: 0 | M147: 0 | N147: 0 | O147: 0.002462705244 | P147: 0.0002748319243 | Q147: FALSE | R147: FALSE | S147: 0.01094535664 | T147: 0 | U147: 0 | V147: 0 | W147: 0 | X147: 0 | Y147: =S147*K147*1000*(Constants!$L$10/365) -> 0
A148: 2025 | B148: 110 | C148: =IFERROR(IF(B148=1,8760,INDEX(LDCs!$E$4:$E$17568,MATCH(B148/VLOOKUP(A148,$N$4:$P$31,2,FALSE),LDCs!$C$4:$C$17568,1),1)),C147) -> 0 | D148: 35.85413125 | E148: 17.92706562 | F148: 0 | G148: 0 | H148: 0 | I148: 105.9 | J148: 0 | K148: 0 | L148: 0 | M148: 0 | N148: 0 | O148: 0.002462705244 | P148: 0.0002748319243 | Q148: FALSE | R148: FALSE | S148: 0.01094535664 | T148: 0 | U148: 0 | V148: 0 | W148: 0 | X148: 0 | Y148: =S148*K148*1000*(Constants!$L$10/365) -> 0
A149: 2025 | B149: 111 | C149: =IFERROR(IF(B149=1,8760,INDEX(LDCs!$E$4:$E$17568,MATCH(B149/VLOOKUP(A149,$N$4:$P$31,2,FALSE),LDCs!$C$4:$C$17568,1),1)),C148) -> 0 | D149: 35.85413125 | E149: 17.92706562 | F149: 0 | G149: 0 | H149: 0 | I149: 106.9 | J149: 0 | K149: 0 | L149: 0 | M149: 0 | N149: 0 | O149: 0.002462705244 | P149: 0.0002748319243 | Q149: FALSE | R149: FALSE | S149: 0.01094535664 | T149: 0 | U149: 0 | V149: 0 | W149: 0 | X149: 0 | Y149: =S149*K149*1000*(Constants!$L$10/365) -> 0
A150: 2025 | B150: 112 | C150: =IFERROR(IF(B150=1,8760,INDEX(LDCs!$E$4:$E$17568,MATCH(B150/VLOOKUP(A150,$N$4:$P$31,2,FALSE),LDCs!$C$4:$C$17568,1),1)),C149) -> 0 | D150: 35.85413125 | E150: 17.92706562 | F150: 0 | G150: 0 | H150: 0 | I150: 107.9 | J150: 0 | K150: 0 | L150: 0 | M150: 0 | N150: 0 | O150: 0.002462705244 | P150: 0.0002748319243 | Q150: FALSE | R150: FALSE | S150: 0.01094535664 | T150: 0 | U150: 0 | V150: 0 | W150: 0 | X150: 0 | Y150: =S150*K150*1000*(Constants!$L$10/365) -> 0
A151: 2025 | B151: 113 | C151: =IFERROR(IF(B151=1,8760,INDEX(LDCs!$E$4:$E$17568,MATCH(B151/VLOOKUP(A151,$N$4:$P$31,2,FALSE),LDCs!$C$4:$C$17568,1),1)),C150) -> 0 | D151: 35.85413125 | E151: 17.92706562 | F151: 0 | G151: 0 | H151: 0 | I151: 108.9 | J151: 0 | K151: 0 | L151: 0 | M151: 0 | N151: 0 | O151: 0.002462705244 | P151: 0.0002748319243 | Q151: FALSE | R151: FALSE | S151: 0.01094535664 | T151: 0 | U151: 0 | V151: 0 | W151: 0 | X151: 0 | Y151: =S151*K151*1000*(Constants!$L$10/365) -> 0
A152: 2025 | B152: 114 | C152: =IFERROR(IF(B152=1,8760,INDEX(LDCs!$E$4:$E$17568,MATCH(B152/VLOOKUP(A152,$N$4:$P$31,2,FALSE),LDCs!$C$4:$C$17568,1),1)),C151) -> 0 | D152: 35.85413125 | E152: 17.92706562 | F152: 0 | G152: 0 | H152: 0 | I152: 109.9 | J152: 0 | K152: 0 | L152: 0 | M152: 0 | N152: 0 | O152: 0.002462705244 | P152: 0.0002748319243 | Q152: FALSE | R152: FALSE | S152: 0.01094535664 | T152: 0 | U152: 0 | V152: 0 | W152: 0 | X152: 0 | Y152: =S152*K152*1000*(Constants!$L$10/365) -> 0
A153: 2025 | B153: 115 | C153: =IFERROR(IF(B153=1,8760,INDEX(LDCs!$E$4:$E$17568,MATCH(B153/VLOOKUP(A153,$N$4:$P$31,2,FALSE),LDCs!$C$4:$C$17568,1),1)),C152) -> 0 | D153: 35.85413125 | E153: 17.92706562 | F153: 0 | G153: 0 | H153: 0 | I153: 110.9 | J153: 0 | K153: 0 | L153: 0 | M153: 0 | N153: 0 | O153: 0.002462705244 | P153: 0.0002748319243 | Q153: FALSE | R153: FALSE | S153: 0.01094535664 | T153: 0 | U153: 0 | V153: 0 | W153: 0 | X153: 0 | Y153: =S153*K153*1000*(Constants!$L$10/365) -> 0
A154: 2025 | B154: 116 | C154: =IFERROR(IF(B154=1,8760,INDEX(LDCs!$E$4:$E$17568,MATCH(B154/VLOOKUP(A154,$N$4:$P$31,2,FALSE),LDCs!$C$4:$C$17568,1),1)),C153) -> 0 | D154: 35.85413125 | E154: 17.92706562 | F154: 0 | G154: 0 | H154: 0 | I154: 111.9 | J154: 0 | K154: 0 | L154: 0 | M154: 0 | N154: 0 | O154: 0.002462705244 | P154: 0.0002748319243 | Q154: FALSE | R154: FALSE | S154: 0.01094535664 | T154: 0 | U154: 0 | V154: 0 | W154: 0 | X154: 0 | Y154: =S154*K154*1000*(Constants!$L$10/365) -> 0
A155: 2025 | B155: 117 | C155: =IFERROR(IF(B155=1,8760,INDEX(LDCs!$E$4:$E$17568,MATCH(B155/VLOOKUP(A155,$N$4:$P$31,2,FALSE),LDCs!$C$4:$C$17568,1),1)),C154) -> 0 | D155: 35.85413125 | E155: 17.92706562 | F155: 0 | G155: 0 | H155: 0 | I155: 112.9 | J155: 0 | K155: 0 | L155: 0 | M155: 0 | N155: 0 | O155: 0.002462705244 | P155: 0.0002748319243 | Q155: FALSE | R155: FALSE | S155: 0.01094535664 | T155: 0 | U155: 0 | V155: 0 | W155: 0 | X155: 0 | Y155: =S155*K155*1000*(Constants!$L$10/365) -> 0
A156: 2025 | B156: 118 | C156: =IFERROR(IF(B156=1,8760,INDEX(LDCs!$E$4:$E$17568,MATCH(B156/VLOOKUP(A156,$N$4:$P$31,2,FALSE),LDCs!$C$4:$C$17568,1),1)),C155) -> 0 | D156: 35.85413125 | E156: 17.92706562 | F156: 0 | G156: 0 | H156: 0 | I156: 113.9 | J156: 0 | K156: 0 | L156: 0 | M156: 0 | N156: 0 | O156: 0.002462705244 | P156: 0.0002748319243 | Q156: FALSE | R156: FALSE | S156: 0.01094535664 | T156: 0 | U156: 0 | V156: 0 | W156: 0 | X156: 0 | Y156: =S156*K156*1000*(Constants!$L$10/365) -> 0
A157: 2025 | B157: 119 | C157: =IFERROR(IF(B157=1,8760,INDEX(LDCs!$E$4:$E$17568,MATCH(B157/VLOOKUP(A157,$N$4:$P$31,2,FALSE),LDCs!$C$4:$C$17568,1),1)),C156) -> 0 | D157: 35.85413125 | E157: 17.92706562 | F157: 0 | G157: 0 | H157: 0 | I157: 114.9 | J157: 0 | K157: 0 | L157: 0 | M157: 0 | N157: 0 | O157: 0.002462705244 | P157: 0.0002748319243 | Q157: FALSE | R157: FALSE | S157: 0.01094535664 | T157: 0 | U157: 0 | V157: 0 | W157: 0 | X157: 0 | Y157: =S157*K157*1000*(Constants!$L$10/365) -> 0
A158: 2025 | B158: 120 | C158: =IFERROR(IF(B158=1,8760,INDEX(LDCs!$E$4:$E$17568,MATCH(B158/VLOOKUP(A158,$N$4:$P$31,2,FALSE),LDCs!$C$4:$C$17568,1),1)),C157) -> 0 | D158: 35.85413125 | E158: 17.92706562 | F158: 0 | G158: 0 | H158: 0 | I158: 115.9 | J158: 0 | K158: 0 | L158: 0 | M158: 0 | N158: 0 | O158: 0.002462705244 | P158: 0.0002748319243 | Q158: FALSE | R158: FALSE | S158: 0.01094535664 | T158: 0 | U158: 0 | V158: 0 | W158: 0 | X158: 0 | Y158: =S158*K158*1000*(Constants!$L$10/365) -> 0
A159: 2025 | B159: 121 | C159: =IFERROR(IF(B159=1,8760,INDEX(LDCs!$E$4:$E$17568,MATCH(B159/VLOOKUP(A159,$N$4:$P$31,2,FALSE),LDCs!$C$4:$C$17568,1),1)),C158) -> 0 | D159: 35.85413125 | E159: 17.92706562 | F159: 0 | G159: 0 | H159: 0 | I159: 116.9 | J159: 0 | K159: 0 | L159: 0 | M159: 0 | N159: 0 | O159: 0.002462705244 | P159: 0.0002748319243 | Q159: FALSE | R159: FALSE | S159: 0.01094535664 | T159: 0 | U159: 0 | V159: 0 | W159: 0 | X159: 0 | Y159: =S159*K159*1000*(Constants!$L$10/365) -> 0
A160: 2025 | B160: 122 | C160: =IFERROR(IF(B160=1,8760,INDEX(LDCs!$E$4:$E$17568,MATCH(B160/VLOOKUP(A160,$N$4:$P$31,2,FALSE),LDCs!$C$4:$C$17568,1),1)),C159) -> 0 | D160: 35.85413125 | E160: 17.92706562 | F160: 0 | G160: 0 | H160: 0 | I160: 117.9 | J160: 0 | K160: 0 | L160: 0 | M160: 0 | N160: 0 | O160: 0.002462705244 | P160: 0.0002748319243 | Q160: FALSE | R160: FALSE | S160: 0.01094535664 | T160: 0 | U160: 0 | V160: 0 | W160: 0 | X160: 0 | Y160: =S160*K160*1000*(Constants!$L$10/365) -> 0
A161: 2025 | B161: 123 | C161: =IFERROR(IF(B161=1,8760,INDEX(LDCs!$E$4:$E$17568,MATCH(B161/VLOOKUP(A161,$N$4:$P$31,2,FALSE),LDCs!$C$4:$C$17568,1),1)),C160) -> 0 | D161: 35.85413125 | E161: 17.92706562 | F161: 0 | G161: 0 | H161: 0 | I161: 118.9 | J161: 0 | K161: 0 | L161: 0 | M161: 0 | N161: 0 | O161: 0.002462705244 | P161: 0.0002748319243 | Q161: FALSE | R161: FALSE | S161: 0.01094535664 | T161: 0 | U161: 0 | V161: 0 | W161: 0 | X161: 0 | Y161: =S161*K161*1000*(Constants!$L$10/365) -> 0
A162: 2025 | B162: 124 | C162: =IFERROR(IF(B162=1,8760,INDEX(LDCs!$E$4:$E$17568,MATCH(B162/VLOOKUP(A162,$N$4:$P$31,2,FALSE),LDCs!$C$4:$C$17568,1),1)),C161) -> 0 | D162: 35.85413125 | E162: 17.92706562 | F162: 0 | G162: 0 | H162: 0 | I162: 119.9 | J162: 0 | K162: 0 | L162: 0 | M162: 0 | N162: 0 | O162: 0.002462705244 | P162: 0.0002748319243 | Q162: FALSE | R162: FALSE | S162: 0.01094535664 | T162: 0 | U162: 0 | V162: 0 | W162: 0 | X162: 0 | Y162: =S162*K162*1000*(Constants!$L$10/365) -> 0
A163: 2025 | B163: 125 | C163: =IFERROR(IF(B163=1,8760,INDEX(LDCs!$E$4:$E$17568,MATCH(B163/VLOOKUP(A163,$N$4:$P$31,2,FALSE),LDCs!$C$4:$C$17568,1),1)),C162) -> 0 | D163: 35.85413125 | E163: 17.92706562 | F163: 0 | G163: 0 | H163: 0 | I163: 120.9 | J163: 0 | K163: 0 | L163: 0 | M163: 0 | N163: 0 | O163: 0.002462705244 | P163: 0.0002748319243 | Q163: FALSE | R163: FALSE | S163: 0.01094535664 | T163: 0 | U163: 0 | V163: 0 | W163: 0 | X163: 0 | Y163: =S163*K163*1000*(Constants!$L$10/365) -> 0
A164: 2025 | B164: 126 | C164: =IFERROR(IF(B164=1,8760,INDEX(LDCs!$E$4:$E$17568,MATCH(B164/VLOOKUP(A164,$N$4:$P$31,2,FALSE),LDCs!$C$4:$C$17568,1),1)),C163) -> 0 | D164: 35.85413125 | E164: 17.92706562 | F164: 0 | G164: 0 | H164: 0 | I164: 121.9 | J164: 0 | K164: 0 | L164: 0 | M164: 0 | N164: 0 | O164: 0.002462705244 | P164: 0.0002748319243 | Q164: FALSE | R164: FALSE | S164: 0.01094535664 | T164: 0 | U164: 0 | V164: 0 | W164: 0 | X164: 0 | Y164: =S164*K164*1000*(Constants!$L$10/365) -> 0
A165: 2025 | B165: 127 | C165: =IFERROR(IF(B165=1,8760,INDEX(LDCs!$E$4:$E$17568,MATCH(B165/VLOOKUP(A165,$N$4:$P$31,2,FALSE),LDCs!$C$4:$C$17568,1),1)),C164) -> 0 | D165: 35.85413125 | E165: 17.92706562 | F165: 0 | G165: 0 | H165: 0 | I165: 122.9 | J165: 0 | K165: 0 | L165: 0 | M165: 0 | N165: 0 | O165: 0.002462705244 | P165: 0.0002748319243 | Q165: FALSE | R165: FALSE | S165: 0.01094535664 | T165: 0 | U165: 0 | V165: 0 | W165: 0 | X165: 0 | Y165: =S165*K165*1000*(Constants!$L$10/365) -> 0
A166: 2025 | B166: 128 | C166: =IFERROR(IF(B166=1,8760,INDEX(LDCs!$E$4:$E$17568,MATCH(B166/VLOOKUP(A166,$N$4:$P$31,2,FALSE),LDCs!$C$4:$C$17568,1),1)),C165) -> 0 | D166: 35.85413125 | E166: 17.92706562 | F166: 0 | G166: 0 | H166: 0 | I166: 123.9 | J166: 0 | K166: 0 | L166: 0 | M166: 0 | N166: 0 | O166: 0.002462705244 | P166: 0.0002748319243 | Q166: FALSE | R166: FALSE | S166: 0.01094535664 | T166: 0 | U166: 0 | V166: 0 | W166: 0 | X166: 0 | Y166: =S166*K166*1000*(Constants!$L$10/365) -> 0
A167: 2025 | B167: 129 | C167: =IFERROR(IF(B167=1,8760,INDEX(LDCs!$E$4:$E$17568,MATCH(B167/VLOOKUP(A167,$N$4:$P$31,2,FALSE),LDCs!$C$4:$C$17568,1),1)),C166) -> 0 | D167: 35.85413125 | E167: 17.92706562 | F167: 0 | G167: 0 | H167: 0 | I167: 124.9 | J167: =IF(B167=150,0,IF(IF($I167>D167,($I167-D167)*($C167-$C168),0)<0,0,IF($I167>D167,($I167-D167)*($C167-$C168),0)))*Power_Factor -> 0 | K167: =IF(C167=150,0,IF(IF($I167>E167,($I167-E167)*($C167-$C168),0)<0,0,IF($I167>E167,($I167-E167)*($C167-$C168),0)))*Power_Factor -> 0 | L167: =IF(D167=150,0,IF(IF($I167>F167,($I167-F167)*($C167-$C168),0)<0,0,IF($I167>F167,($I167-F167)*($C167-$C168),0)))*Power_Factor -> 0 | M167: =IF(E167=150,0,IF(IF($I167>G167,($I167-G167)*($C167-$C168),0)<0,0,IF($I167>G167,($I167-G167)*($C167-$C168),0)))*Power_Factor -> 0 | N167: 0 | O167: 0.002462705244 | P167: 0.0002748319243 | Q167: FALSE | R167: FALSE | S167: 0.01094535664 | T167: 0 | U167: 0 | V167: 0 | W167: 0 | X167: 0 | Y167: =S167*K167*1000*(Constants!$L$10/365) -> 0
A168: 2025 | B168: 130 | C168: =IFERROR(IF(B168=1,8760,INDEX(LDCs!$E$4:$E$17568,MATCH(B168/VLOOKUP(A168,$N$4:$P$31,2,FALSE),LDCs!$C$4:$C$17568,1),1)),C167) -> 0 | D168: =VLOOKUP($A168,$N$4:$Y$31,6,FALSE) -> 35.85413125 | E168: =VLOOKUP($A168,$N$4:$Y$31,7,FALSE) -> 17.92706562 | F168: =VLOOKUP($A168,$N$4:$Y$31,9,FALSE) -> 0 | G168: =VLOOKUP($A168,$N$4:$Y$31,10,FALSE) -> 0 | H168: =VLOOKUP($A168,$N$4:$Y$31,11,FALSE) -> 0 | I168: =IF(B168-VLOOKUP(A168,$N$4:$Y$31,12,FALSE)<0,0,B168-VLOOKUP(A168,$N$4:$Y$31,12,FALSE)) -> 125.9 | J168: 0 | K168: 0 | L168: 0 | M168: 0 | N168: 0 | O168: =VLOOKUP($A168, $N$4:$AY$31,33,FALSE) -> 0.002462705244 | P168: =VLOOKUP($A168, $N$4:$AY$31,34,FALSE) -> 0.0002748319243 | Q168: =VLOOKUP($A168, $N$4:$AY$31,35,FALSE) -> FALSE | R168: =VLOOKUP($A168, $N$4:$AY$31,36,FALSE) -> FALSE | S168: =VLOOKUP($A168, $N$4:$AY$31,37,FALSE) -> 0.01094535664 | T168: 0 | U168: 0 | V168: 0 | W168: 0 | X168: 0 | Y168: =S168*K168*1000*(Constants!$L$10/365) -> 0
A169: =IF(B168=150,A168+1,A168) -> 2025 | B169: 131 | C169: =IFERROR(IF(B169=1,8760,INDEX(LDCs!$E$4:$E$17568,MATCH(B169/VLOOKUP(A169,$N$4:$P$31,2,FALSE),LDCs!$C$4:$C$17568,1),1)),C168) -> 0 | D169: 35.85413125 | E169: 17.92706562 | F169: 0 | G169: 0 | H169: 0 | I169: 126.9 | J169: 0 | K169: 0 | L169: 0 | M169: 0 | N169: 0 | O169: 0.002462705244 | P169: 0.0002748319243 | Q169: FALSE | R169: FALSE | S169: 0.01094535664 | T169: 0 | U169: 0 | V169: 0 | W169: 0 | X169: 0 | Y169: =S169*K169*1000*(Constants!$L$10/365) -> 0
A170: 2025 | B170: 132 | C170: =IFERROR(IF(B170=1,8760,INDEX(LDCs!$E$4:$E$17568,MATCH(B170/VLOOKUP(A170,$N$4:$P$31,2,FALSE),LDCs!$C$4:$C$17568,1),1)),C169) -> 0 | D170: 35.85413125 | E170: 17.92706562 | F170: 0 | G170: 0 | H170: 0 | I170: 127.9 | J170: 0 | K170: 0 | L170: 0 | M170: 0 | N170: 0 | O170: 0.002462705244 | P170: 0.0002748319243 | Q170: FALSE | R170: FALSE | S170: 0.01094535664 | T170: =J170*1000*($AC$76/365) -> 0 | U170: =O170*K170*1000*($AC$77/365) -> 0 | V170: =P170*L170*1000*($AC$78/365) -> 0 | W170: =Q170*M170*1000*($AC$79/365) -> 0 | X170: =R170*N170*1000*($AC$80/365) -> 0 | Y170: =S170*K170*1000*(Constants!$L$10/365) -> 0
A171: 2025 | B171: 133 | C171: =IFERROR(IF(B171=1,8760,INDEX(LDCs!$E$4:$E$17568,MATCH(B171/VLOOKUP(A171,$N$4:$P$31,2,FALSE),LDCs!$C$4:$C$17568,1),1)),C170) -> 0 | D171: 35.85413125 | E171: 17.92706562 | F171: 0 | G171: 0 | H171: 0 | I171: 128.9 | J171: 0 | K171: 0 | L171: 0 | M171: 0 | N171: 0 | O171: 0.002462705244 | P171: 0.0002748319243 | Q171: FALSE | R171: FALSE | S171: 0.01094535664 | T171: 0 | U171: 0 | V171: 0 | W171: 0 | X171: 0 | Y171: =S171*K171*1000*(Constants!$L$10/365) -> 0
A172: 2025 | B172: 134 | C172: =IFERROR(IF(B172=1,8760,INDEX(LDCs!$E$4:$E$17568,MATCH(B172/VLOOKUP(A172,$N$4:$P$31,2,FALSE),LDCs!$C$4:$C$17568,1),1)),C171) -> 0 | D172: 35.85413125 | E172: 17.92706562 | F172: 0 | G172: 0 | H172: 0 | I172: 129.9 | J172: 0 | K172: 0 | L172: 0 | M172: 0 | N172: 0 | O172: 0.002462705244 | P172: 0.0002748319243 | Q172: FALSE | R172: FALSE | S172: 0.01094535664 | T172: 0 | U172: 0 | V172: 0 | W172: 0 | X172: 0 | Y172: =S172*K172*1000*(Constants!$L$10/365) -> 0
A173: 2025 | B173: 135 | C173: =IFERROR(IF(B173=1,8760,INDEX(LDCs!$E$4:$E$17568,MATCH(B173/VLOOKUP(A173,$N$4:$P$31,2,FALSE),LDCs!$C$4:$C$17568,1),1)),C172) -> 0 | D173: 35.85413125 | E173: 17.92706562 | F173: 0 | G173: 0 | H173: 0 | I173: 130.9 | J173: 0 | K173: 0 | L173: 0 | M173: 0 | N173: 0 | O173: 0.002462705244 | P173: 0.0002748319243 | Q173: FALSE | R173: FALSE | S173: 0.01094535664 | T173: 0 | U173: 0 | V173: 0 | W173: 0 | X173: 0 | Y173: =S173*K173*1000*(Constants!$L$10/365) -> 0
A174: 2025 | B174: 136 | C174: =IFERROR(IF(B174=1,8760,INDEX(LDCs!$E$4:$E$17568,MATCH(B174/VLOOKUP(A174,$N$4:$P$31,2,FALSE),LDCs!$C$4:$C$17568,1),1)),C173) -> 0 | D174: 35.85413125 | E174: 17.92706562 | F174: 0 | G174: 0 | H174: 0 | I174: 131.9 | J174: 0 | K174: 0 | L174: 0 | M174: 0 | N174: 0 | O174: 0.002462705244 | P174: 0.0002748319243 | Q174: FALSE | R174: FALSE | S174: 0.01094535664 | T174: 0 | U174: 0 | V174: 0 | W174: 0 | X174: 0 | Y174: =S174*K174*1000*(Constants!$L$10/365) -> 0
A175: 2025 | B175: 137 | C175: =IFERROR(IF(B175=1,8760,INDEX(LDCs!$E$4:$E$17568,MATCH(B175/VLOOKUP(A175,$N$4:$P$31,2,FALSE),LDCs!$C$4:$C$17568,1),1)),C174) -> 0 | D175: 35.85413125 | E175: 17.92706562 | F175: 0 | G175: 0 | H175: 0 | I175: 132.9 | J175: 0 | K175: 0 | L175: 0 | M175: 0 | N175: 0 | O175: 0.002462705244 | P175: 0.0002748319243 | Q175: FALSE | R175: FALSE | S175: 0.01094535664 | T175: 0 | U175: 0 | V175: 0 | W175: 0 | X175: 0 | Y175: =S175*K175*1000*(Constants!$L$10/365) -> 0
A176: 2025 | B176: 138 | C176: =IFERROR(IF(B176=1,8760,INDEX(LDCs!$E$4:$E$17568,MATCH(B176/VLOOKUP(A176,$N$4:$P$31,2,FALSE),LDCs!$C$4:$C$17568,1),1)),C175) -> 0 | D176: 35.85413125 | E176: 17.92706562 | F176: 0 | G176: 0 | H176: 0 | I176: 133.9 | J176: 0 | K176: 0 | L176: 0 | M176: 0 | N176: 0 | O176: 0.002462705244 | P176: 0.0002748319243 | Q176: FALSE | R176: FALSE | S176: 0.01094535664 | T176: 0 | U176: 0 | V176: 0 | W176: 0 | X176: 0 | Y176: =S176*K176*1000*(Constants!$L$10/365) -> 0
A177: 2025 | B177: 139 | C177: =IFERROR(IF(B177=1,8760,INDEX(LDCs!$E$4:$E$17568,MATCH(B177/VLOOKUP(A177,$N$4:$P$31,2,FALSE),LDCs!$C$4:$C$17568,1),1)),C176) -> 0 | D177: 35.85413125 | E177: 17.92706562 | F177: 0 | G177: 0 | H177: 0 | I177: 134.9 | J177: 0 | K177: 0 | L177: 0 | M177: 0 | N177: 0 | O177: 0.002462705244 | P177: 0.0002748319243 | Q177: FALSE | R177: FALSE | S177: 0.01094535664 | T177: 0 | U177: 0 | V177: 0 | W177: 0 | X177: 0 | Y177: =S177*K177*1000*(Constants!$L$10/365) -> 0
A178: 2025 | B178: 140 | C178: =IFERROR(IF(B178=1,8760,INDEX(LDCs!$E$4:$E$17568,MATCH(B178/VLOOKUP(A178,$N$4:$P$31,2,FALSE),LDCs!$C$4:$C$17568,1),1)),C177) -> 0 | D178: 35.85413125 | E178: 17.92706562 | F178: 0 | G178: 0 | H178: 0 | I178: 135.9 | J178: 0 | K178: 0 | L178: 0 | M178: 0 | N178: 0 | O178: 0.002462705244 | P178: 0.0002748319243 | Q178: FALSE | R178: FALSE | S178: 0.01094535664 | T178: 0 | U178: 0 | V178: 0 | W178: 0 | X178: 0 | Y178: =S178*K178*1000*(Constants!$L$10/365) -> 0
A179: 2025 | B179: 141 | C179: =IFERROR(IF(B179=1,8760,INDEX(LDCs!$E$4:$E$17568,MATCH(B179/VLOOKUP(A179,$N$4:$P$31,2,FALSE),LDCs!$C$4:$C$17568,1),1)),C178) -> 0 | D179: 35.85413125 | E179: 17.92706562 | F179: 0 | G179: 0 | H179: 0 | I179: 136.9 | J179: 0 | K179: 0 | L179: 0 | M179: 0 | N179: 0 | O179: 0.002462705244 | P179: 0.0002748319243 | Q179: FALSE | R179: FALSE | S179: 0.01094535664 | T179: 0 | U179: 0 | V179: 0 | W179: 0 | X179: 0 | Y179: =S179*K179*1000*(Constants!$L$10/365) -> 0
A180: 2025 | B180: 142 | C180: =IFERROR(IF(B180=1,8760,INDEX(LDCs!$E$4:$E$17568,MATCH(B180/VLOOKUP(A180,$N$4:$P$31,2,FALSE),LDCs!$C$4:$C$17568,1),1)),C179) -> 0 | D180: 35.85413125 | E180: 17.92706562 | F180: 0 | G180: 0 | H180: 0 | I180: 137.9 | J180: 0 | K180: 0 | L180: 0 | M180: 0 | N180: 0 | O180: 0.002462705244 | P180: 0.0002748319243 | Q180: FALSE | R180: FALSE | S180: 0.01094535664 | T180: 0 | U180: 0 | V180: 0 | W180: 0 | X180: 0 | Y180: =S180*K180*1000*(Constants!$L$10/365) -> 0
A181: 2025 | B181: 143 | C181: =IFERROR(IF(B181=1,8760,INDEX(LDCs!$E$4:$E$17568,MATCH(B181/VLOOKUP(A181,$N$4:$P$31,2,FALSE),LDCs!$C$4:$C$17568,1),1)),C180) -> 0 | D181: 35.85413125 | E181: 17.92706562 | F181: 0 | G181: 0 | H181: 0 | I181: 138.9 | J181: 0 | K181: 0 | L181: 0 | M181: 0 | N181: 0 | O181: 0.002462705244 | P181: 0.0002748319243 | Q181: FALSE | R181: FALSE | S181: 0.01094535664 | T181: 0 | U181: 0 | V181: 0 | W181: 0 | X181: 0 | Y181: =S181*K181*1000*(Constants!$L$10/365) -> 0
A182: 2025 | B182: 144 | C182: =IFERROR(IF(B182=1,8760,INDEX(LDCs!$E$4:$E$17568,MATCH(B182/VLOOKUP(A182,$N$4:$P$31,2,FALSE),LDCs!$C$4:$C$17568,1),1)),C181) -> 0 | D182: 35.85413125 | E182: 17.92706562 | F182: 0 | G182: 0 | H182: 0 | I182: 139.9 | J182: 0 | K182: 0 | L182: 0 | M182: 0 | N182: 0 | O182: 0.002462705244 | P182: 0.0002748319243 | Q182: FALSE | R182: FALSE | S182: 0.01094535664 | T182: 0 | U182: 0 | V182: 0 | W182: 0 | X182: 0 | Y182: =S182*K182*1000*(Constants!$L$10/365) -> 0
A183: 2025 | B183: 145 | C183: =IFERROR(IF(B183=1,8760,INDEX(LDCs!$E$4:$E$17568,MATCH(B183/VLOOKUP(A183,$N$4:$P$31,2,FALSE),LDCs!$C$4:$C$17568,1),1)),C182) -> 0 | D183: 35.85413125 | E183: 17.92706562 | F183: 0 | G183: 0 | H183: 0 | I183: 140.9 | J183: 0 | K183: 0 | L183: 0 | M183: 0 | N183: 0 | O183: 0.002462705244 | P183: 0.0002748319243 | Q183: FALSE | R183: FALSE | S183: 0.01094535664 | T183: 0 | U183: 0 | V183: 0 | W183: 0 | X183: 0 | Y183: =S183*K183*1000*(Constants!$L$10/365) -> 0
A184: 2025 | B184: 146 | C184: =IFERROR(IF(B184=1,8760,INDEX(LDCs!$E$4:$E$17568,MATCH(B184/VLOOKUP(A184,$N$4:$P$31,2,FALSE),LDCs!$C$4:$C$17568,1),1)),C183) -> 0 | D184: 35.85413125 | E184: 17.92706562 | F184: 0 | G184: 0 | H184: 0 | I184: 141.9 | J184: 0 | K184: 0 | L184: 0 | M184: 0 | N184: 0 | O184: 0.002462705244 | P184: 0.0002748319243 | Q184: FALSE | R184: FALSE | S184: 0.01094535664 | T184: 0 | U184: 0 | V184: 0 | W184: 0 | X184: 0 | Y184: =S184*K184*1000*(Constants!$L$10/365) -> 0
A185: 2025 | B185: 147 | C185: =IFERROR(IF(B185=1,8760,INDEX(LDCs!$E$4:$E$17568,MATCH(B185/VLOOKUP(A185,$N$4:$P$31,2,FALSE),LDCs!$C$4:$C$17568,1),1)),C184) -> 0 | D185: 35.85413125 | E185: 17.92706562 | F185: 0 | G185: 0 | H185: 0 | I185: 142.9 | J185: 0 | K185: 0 | L185: 0 | M185: 0 | N185: 0 | O185: 0.002462705244 | P185: 0.0002748319243 | Q185: FALSE | R185: FALSE | S185: 0.01094535664 | T185: 0 | U185: 0 | V185: 0 | W185: 0 | X185: 0 | Y185: =S185*K185*1000*(Constants!$L$10/365) -> 0
A186: 2025 | B186: 148 | C186: =IFERROR(IF(B186=1,8760,INDEX(LDCs!$E$4:$E$17568,MATCH(B186/VLOOKUP(A186,$N$4:$P$31,2,FALSE),LDCs!$C$4:$C$17568,1),1)),C185) -> 0 | D186: 35.85413125 | E186: 17.92706562 | F186: 0 | G186: 0 | H186: 0 | I186: 143.9 | J186: 0 | K186: 0 | L186: 0 | M186: 0 | N186: 0 | O186: 0.002462705244 | P186: 0.0002748319243 | Q186: FALSE | R186: FALSE | S186: 0.01094535664 | T186: 0 | U186: 0 | V186: 0 | W186: 0 | X186: 0 | Y186: =S186*K186*1000*(Constants!$L$10/365) -> 0
A187: 2025 | B187: 149 | C187: =IFERROR(IF(B187=1,8760,INDEX(LDCs!$E$4:$E$17568,MATCH(B187/VLOOKUP(A187,$N$4:$P$31,2,FALSE),LDCs!$C$4:$C$17568,1),1)),C186) -> 0 | D187: 35.85413125 | E187: 17.92706562 | F187: 0 | G187: 0 | H187: 0 | I187: 144.9 | J187: 0 | K187: 0 | L187: 0 | M187: 0 | N187: 0 | O187: 0.002462705244 | P187: 0.0002748319243 | Q187: FALSE | R187: FALSE | S187: 0.01094535664 | T187: 0 | U187: 0 | V187: 0 | W187: 0 | X187: 0 | Y187: =S187*K187*1000*(Constants!$L$10/365) -> 0
A188: 2025 | B188: 150 | C188: =IFERROR(IF(B188=1,8760,INDEX(LDCs!$E$4:$E$17568,MATCH(B188/VLOOKUP(A188,$N$4:$P$31,2,FALSE),LDCs!$C$4:$C$17568,1),1)),C187) -> 0 | D188: 35.85413125 | E188: 17.92706562 | F188: 0 | G188: 0 | H188: 0 | I188: 145.9 | J188: 0 | K188: 0 | L188: 0 | M188: 0 | N188: 0 | O188: 0.002462705244 | P188: 0.0002748319243 | Q188: FALSE | R188: FALSE | S188: 0.01094535664 | T188: 0 | U188: 0 | V188: 0 | W188: 0 | X188: 0 | Y188: =S188*K188*1000*(Constants!$L$10/365) -> 0
A189: 2026 | B189: 1 | C189: =IFERROR(IF(B189=1,8760,INDEX(LDCs!$E$4:$E$17568,MATCH(B189/VLOOKUP(A189,$N$4:$P$31,2,FALSE),LDCs!$C$4:$C$17568,1),1)),C188) -> 8760 | D189: 35.85413125 | E189: 17.92706562 | F189: 0 | G189: 0 | H189: 0 | I189: 0 | J189: 0 | K189: 0 | L189: 0 | M189: 0 | N189: 0 | O189: 0.002535322824 | P189: 0.0002829722371 | Q189: FALSE | R189: FALSE | S189: 0.01126810144 | T189: 0 | U189: 0 | V189: 0 | W189: 0 | X189: 0 | Y189: =S189*K189*1000*(Constants!$L$10/365) -> 0
A190: 2026 | B190: 2 | C190: =IFERROR(IF(B190=1,8760,INDEX(LDCs!$E$4:$E$17568,MATCH(B190/VLOOKUP(A190,$N$4:$P$31,2,FALSE),LDCs!$C$4:$C$17568,1),1)),C189) -> 8760 | D190: 35.85413125 | E190: 17.92706562 | F190: 0 | G190: 0 | H190: 0 | I190: 0 | J190: 0 | K190: 0 | L190: 0 | M190: 0 | N190: 0 | O190: 0.002535322824 | P190: 0.0002829722371 | Q190: FALSE | R190: FALSE | S190: 0.01126810144 | T190: 0 | U190: 0 | V190: 0 | W190: 0 | X190: 0 | Y190: =S190*K190*1000*(Constants!$L$10/365) -> 0
A191: 2026 | B191: 3 | C191: =IFERROR(IF(B191=1,8760,INDEX(LDCs!$E$4:$E$17568,MATCH(B191/VLOOKUP(A191,$N$4:$P$31,2,FALSE),LDCs!$C$4:$C$17568,1),1)),C190) -> 8759 | D191: 35.85413125 | E191: 17.92706562 | F191: 0 | G191: 0 | H191: 0 | I191: 0 | J191: 0 | K191: 0 | L191: 0 | M191: 0 | N191: 0 | O191: 0.002535322824 | P191: 0.0002829722371 | Q191: FALSE | R191: FALSE | S191: 0.01126810144 | T191: 0 | U191: 0 | V191: 0 | W191: 0 | X191: 0 | Y191: =S191*K191*1000*(Constants!$L$10/365) -> 0
A192: 2026 | B192: 4 | C192: =IFERROR(IF(B192=1,8760,INDEX(LDCs!$E$4:$E$17568,MATCH(B192/VLOOKUP(A192,$N$4:$P$31,2,FALSE),LDCs!$C$4:$C$17568,1),1)),C191) -> 8747 | D192: 35.85413125 | E192: 17.92706562 | F192: 0 | G192: 0 | H192: 0 | I192: 0 | J192: 0 | K192: 0 | L192: 0 | M192: 0 | N192: 0 | O192: 0.002535322824 | P192: 0.0002829722371 | Q192: FALSE | R192: FALSE | S192: 0.01126810144 | T192: 0 | U192: 0 | V192: 0 | W192: 0 | X192: 0 | Y192: =S192*K192*1000*(Constants!$L$10/365) -> 0
A193: 2026 | B193: 5 | C193: =IFERROR(IF(B193=1,8760,INDEX(LDCs!$E$4:$E$17568,MATCH(B193/VLOOKUP(A193,$N$4:$P$31,2,FALSE),LDCs!$C$4:$C$17568,1),1)),C192) -> 8700 | D193: 35.85413125 | E193: 17.92706562 | F193: 0 | G193: 0 | H193: 0 | I193: 0.9 | J193: 0 | K193: 0 | L193: 91.8 | M193: 91.8 | N193: 0 | O193: 0.002535322824 | P193: 0.0002829722371 | Q193: FALSE | R193: FALSE | S193: 0.01126810144 | T193: 0 | U193: 0 | V193: 20.78148109 | W193: 0 | X193: 0 | Y193: =S193*K193*1000*(Constants!$L$10/365) -> 0
A194: 2026 | B194: 6 | C194: =IFERROR(IF(B194=1,8760,INDEX(LDCs!$E$4:$E$17568,MATCH(B194/VLOOKUP(A194,$N$4:$P$31,2,FALSE),LDCs!$C$4:$C$17568,1),1)),C193) -> 8598 | D194: 35.85413125 | E194: 17.92706562 | F194: 0 | G194: 0 | H194: 0 | I194: 1.9 | J194: 0 | K194: 0 | L194: 387.6 | M194: 387.6 | N194: 0 | O194: 0.002535322824 | P194: 0.0002829722371 | Q194: FALSE | R194: FALSE | S194: 0.01126810144 | T194: 0 | U194: 0 | V194: 87.74403128 | W194: 0 | X194: 0 | Y194: =S194*K194*1000*(Constants!$L$10/365) -> 0
A195: 2026 | B195: 7 | C195: =IFERROR(IF(B195=1,8760,INDEX(LDCs!$E$4:$E$17568,MATCH(B195/VLOOKUP(A195,$N$4:$P$31,2,FALSE),LDCs!$C$4:$C$17568,1),1)),C194) -> 8394 | D195: 35.85413125 | E195: 17.92706562 | F195: 0 | G195: 0 | H195: 0 | I195: 2.9 | J195: 0 | K195: 0 | L195: 701.8 | M195: 701.8 | N195: 0 | O195: 0.002535322824 | P195: 0.0002829722371 | Q195: FALSE | R195: FALSE | S195: 0.01126810144 | T195: 0 | U195: 0 | V195: 158.8719328 | W195: 0 | X195: 0 | Y195: =S195*K195*1000*(Constants!$L$10/365) -> 0
A196: 2026 | B196: 8 | C196: =IFERROR(IF(B196=1,8760,INDEX(LDCs!$E$4:$E$17568,MATCH(B196/VLOOKUP(A196,$N$4:$P$31,2,FALSE),LDCs!$C$4:$C$17568,1),1)),C195) -> 8152 | D196: 35.85413125 | E196: 17.92706562 | F196: 0 | G196: 0 | H196: 0 | I196: 3.9 | J196: 0 | K196: 0 | L196: 2125.5 | M196: 2125.5 | N196: 0 | O196: 0.002535322824 | P196: 0.0002829722371 | Q196: FALSE | R196: FALSE | S196: 0.01126810144 | T196: 0 | U196: 0 | V196: 481.165992 | W196: 0 | X196: 0 | Y196: =S196*K196*1000*(Constants!$L$10/365) -> 0
A197: 2026 | B197: 9 | C197: =IFERROR(IF(B197=1,8760,INDEX(LDCs!$E$4:$E$17568,MATCH(B197/VLOOKUP(A197,$N$4:$P$31,2,FALSE),LDCs!$C$4:$C$17568,1),1)),C196) -> 7607 | D197: 35.85413125 | E197: 17.92706562 | F197: 0 | G197: 0 | H197: 0 | I197: 4.9 | J197: 0 | K197: 0 | L197: 4287.5 | M197: 4287.5 | N197: 0 | O197: 0.002535322824 | P197: 0.0002829722371 | Q197: FALSE | R197: FALSE | S197: 0.01126810144 | T197: 0 | U197: 0 | V197: 970.5947733 | W197: 0 | X197: 0 | Y197: =S197*K197*1000*(Constants!$L$10/365) -> 0
A198: 2026 | B198: 10 | C198: =IFERROR(IF(B198=1,8760,INDEX(LDCs!$E$4:$E$17568,MATCH(B198/VLOOKUP(A198,$N$4:$P$31,2,FALSE),LDCs!$C$4:$C$17568,1),1)),C197) -> 6732 | D198: 35.85413125 | E198: 17.92706562 | F198: 0 | G198: 0 | H198: 0 | I198: 5.9 | J198: 0 | K198: 0 | L198: 8124.3 | M198: 8124.3 | N198: 0 | O198: 0.002535322824 | P198: 0.0002829722371 | Q198: FALSE | R198: FALSE | S198: 0.01126810144 | T198: 0 | U198: 0 | V198: 1839.161077 | W198: 0 | X198: 0 | Y198: =S198*K198*1000*(Constants!$L$10/365) -> 0
A199: 2026 | B199: 11 | C199: =IFERROR(IF(B199=1,8760,INDEX(LDCs!$E$4:$E$17568,MATCH(B199/VLOOKUP(A199,$N$4:$P$31,2,FALSE),LDCs!$C$4:$C$17568,1),1)),C198) -> 5355 | D199: 35.85413125 | E199: 17.92706562 | F199: 0 | G199: 0 | H199: 0 | I199: 6.9 | J199: 0 | K199: 0 | L199: 8645.7 | M199: 8645.7 | N199: 0 | O199: 0.002535322824 | P199: 0.0002829722371 | Q199: FALSE | R199: FALSE | S199: 0.01126810144 | T199: 0 | U199: 0 | V199: 1957.194456 | W199: 0 | X199: 0 | Y199: =S199*K199*1000*(Constants!$L$10/365) -> 0
A200: 2026 | B200: 12 | C200: =IFERROR(IF(B200=1,8760,INDEX(LDCs!$E$4:$E$17568,MATCH(B200/VLOOKUP(A200,$N$4:$P$31,2,FALSE),LDCs!$C$4:$C$17568,1),1)),C199) -> 4102 | D200: 35.85413125 | E200: 17.92706562 | F200: 0 | G200: 0 | H200: 0 | I200: 7.9 | J200: 0 | K200: 0 | L200: 8729.5 | M200: 8729.5 | N200: 0 | O200: 0.002535322824 | P200: 0.0002829722371 | Q200: FALSE | R200: FALSE | S200: 0.01126810144 | T200: 0 | U200: 0 | V200: 1976.164915 | W200: 0 | X200: 0 | Y200: =S200*K200*1000*(Constants!$L$10/365) -> 0
A201: 2026 | B201: 13 | C201: =IFERROR(IF(B201=1,8760,INDEX(LDCs!$E$4:$E$17568,MATCH(B201/VLOOKUP(A201,$N$4:$P$31,2,FALSE),LDCs!$C$4:$C$17568,1),1)),C200) -> 2997 | D201: 35.85413125 | E201: 17.92706562 | F201: 0 | G201: 0 | H201: 0 | I201: 8.9 | J201: 0 | K201: 0 | L201: 8793.2 | M201: 8793.2 | N201: 0 | O201: 0.002535322824 | P201: 0.0002829722371 | Q201: FALSE | R201: FALSE | S201: 0.01126810144 | T201: 0 | U201: 0 | V201: 1990.58518 | W201: 0 | X201: 0 | Y201: =S201*K201*1000*(Constants!$L$10/365) -> 0
... 2049 more rows

Sheet Calcs2
A1: Substation | C1: =ZSS -> STL | O1: Station Load and Capacity Data | W1: Asset Probability Data | AH1: =_xlfn.SINGLE(BETA_NIL)*_xlfn.SINGLE(SENSITIVITY_BETA) -> 0.05
A2: Load Profile | C2: 0.5 | D2: Risk Summary | N2: Year | O2: Load Forecast | P2: Peak Load | Q2: Base Load Growth | R2: Peak Load Growth | S2: N Rating | T2: N-1 Cyclic | U2: N-1 2Hr | V2: N-2 Cyclic | W2: N-3 Cyclic | X2: N-4 Cyclic | Y2: Load Transfers | Z2: PoF (Tx1) | AA2: PoF (Tx2) | AB2: PoF (Tx3) | AC2: PoF (Tx4) | AD2: # of Tx | AE2: λ (Annual failure rate per asset | AF2: Age (Tx1) | AG2: Age (Tx2) | AH2: Age (Tx3) | AI2: Age (Tx4) | AJ2: B12 | AK2: B23 | AL2: B13 | AM2: B14 | AN2: B24 | AO2: B34 | AP2: Q1 | AQ2: Q2 | AR2: Q3 | AS2: Q4 | AT2: PoF (1 Path) | AU2: PoF (2 Path) | AV2: PoF (3 Path) | AW2: PoF (4 Path) | AX2: PoF (Significant Fault) | AY2: PoF(Major Fault)
D3: Year | E3: N Risk | F3: 1x Failure | G3: 2x Failure | H3: 3x Failure | I3: 4x Failure | J3: Minor Fault | K3: Total kWh | L3: Feeder Fault | N3: 2024 | O3: =MAX($G$36:$G$3338) -> 0 | P3: =MAX($G$36:$G$3338) -> 0 | S3: =S4 -> 35.85413125 | T3: 17.92706562 | U3: 18.246735 | V3: 0 | W3: 0 | X3: 0 | AT3: =AT4 -> 0.002462705244 | AU3: =AU4 -> 0.0002748319243 | AV3: =AV4 -> FALSE | AW3: =AW4 -> FALSE
D4: 2025 | E4: =SUMIFS($T$39:$T$4500,$A$39:$A$4500,$D4) -> 0 | F4: =SUMIFS($U$39:$U$4500,$A$39:$A$4500,$D4) -> 0 | G4: =SUMIFS($V$39:$V$4500,$A$39:$A$4500,$D4) -> 8909.347417 | H4: =SUMIFS($W$39:$W$4500,$A$39:$A$4500,$D4) -> 0 | I4: =SUMIFS($X$39:$X$4500,$A$39:$A$4500,$D4) -> 0 | J4: =SUMIFS($Y$39:$Y$4500,$A$39:$A$4500,$D4) -> 0 | K4: =(SUM(E4:I4,L4)) -> 8909.347417 | L4: =HLOOKUP(D4,$AF$58:$BG$67,10,FALSE) -> 0 | N4: =D4 -> 2025 | O4: =IF($C$2=0.1,VLOOKUP($C$1,Load!$J:$AN,MATCH(Calcs2!$N4,Load!$J$2:$AN$2,0),FALSE),VLOOKUP($C$1,Load!$AP:$BT,MATCH(Calcs2!$N4,Load!$AP$2:$BT$2,0),FALSE)) -> 21.46999931 | P4: =VLOOKUP($C$1,Load!$J:$AN,MATCH(Calcs2!$N4,Load!$J$2:$AN$2,0),FALSE) -> 23.32999992 | Q4: =O4/$O$4-1 -> 0 | R4: =P4/($O$4)-1 -> 0.08663254168 | S4: =HLOOKUP(N4,$AF$39:$BG$51,11,FALSE) -> 35.85413125 | T4: =HLOOKUP($N4,$AF$39:$BG$55,14,FALSE) -> 17.92706562 | U4: =HLOOKUP($N4,$AF$39:$BG$55,13,FALSE) -> 18.246735 | V4: =HLOOKUP($N4,$AF$39:$BG$55,15,FALSE) -> 0 | W4: =HLOOKUP($N4,$AF$39:$BG$55,16,FALSE) -> 0 | X4: =HLOOKUP($N4,$AF$39:$BG$55,17,FALSE) -> 0 | Y4: =(IF('Live scenario'!$C$36=TRUE,VLOOKUP(ZSS, Load!$A$3:$G$296,3,FALSE)*VLOOKUP(ZSS, Load!$A$3:$G$296,4,FALSE),0)+NN_LOAD_TRANSFER) -> 4.1 | Z4: =HLOOKUP($N4, $AF$39:$BG$48,2,FALSE) -> 0.00136816958 | AA4: =HLOOKUP($N4, $AF$39:$BG$48,3,FALSE) -> TRUE | AB4: =HLOOKUP($N4, $AF$39:$BG$48,4,FALSE) -> 0.00136816958 | AC4: =HLOOKUP($N4, $AF$39:$BG$48,5,FALSE) -> TRUE | AD4: =COUNTIF(Z4:AC4, "<>"&TRUE) -> 2 | AE4: =(Z4*AA4*AB4*AC4)^(1/AD4) -> 0.00136816958 | AF4: =HLOOKUP($N4, $AF$39:$BG$47,6,FALSE) -> 1967 | AG4: =HLOOKUP($N4, $AF$39:$BG$47,7,FALSE) -> 9999 | AH4: =HLOOKUP($N4, $AF$39:$BG$47,8,FALSE) -> 1967 | AI4: =HLOOKUP($N4, $AF$39:$BG$47,9,FALSE) -> 9999 | AJ4: =VLOOKUP(ZSS,Constants!$AT$37:$BO$178,2+Constants!$H$11,FALSE) -> TRUE | AK4: =VLOOKUP(ZSS,Constants!$AT$37:$BO$178,3+Constants!$H$11,FALSE) -> TRUE | AL4: =VLOOKUP(ZSS,Constants!$AT$37:$BO$178,4+Constants!$H$11,FALSE) -> 0.2 | AM4: =VLOOKUP(ZSS,Constants!$AT$37:$BO$178,5+Constants!$H$11,FALSE) -> TRUE | AN4: =VLOOKUP(ZSS,Constants!$AT$37:$BO$178,6+Constants!$H$11,FALSE) -> TRUE | AO4: =VLOOKUP(ZSS,Constants!$AT$37:$BO$178,7+Constants!$H$11,FALSE) -> TRUE | AP4: =IF(AD4=1,AE4,(1-MAX(AJ4:AO4))*AE4) -> 0.001094535664 | AQ4: =IF(AD4=1,0,IF(AD4=2,MAX(AJ4:AO4)*AE4,IF(AD4=3,0.5*MAX(AJ4:AO4)*(1-$AH$1)*AE4, IF(AD4=4,0.33*MAX(AJ4:AO4)*$AH$1*(1-$AH$1)*AE4,FALSE)))) -> 0.000273633916 | AR4: =AQ4*$AH$1 -> 1.36816958e-05 | AS4: =IF(AD4=4,MAX(AJ4:AO4)*$AH$1*$AH$1*AE4,FALSE) -> FALSE | AT4: =IF(AD4=1,AE4,IF(AD4=2,2*AP4+AQ4,IF(AD4=3,3*AP4+3*AQ4+AR4,IF(AD4=4,4*AP4+6*AQ4+4*AR4+AS4)))) -> 0.002462705244 | AU4: =IF(AD4=1,FALSE,IF(AD4=2,AP4^2+AQ4,IF(AD4=3,3*AP4^2+3*AQ4+AR4,IF(AD4=4,6*AP4^2+6*AQ4+4*AR4+AS4)))) -> 0.0002748319243 | AV4: =IF(AD4=3,AP4^3+3*AP4*AQ4+AR4,IF(AD4=4,4*AP4^3+12*AP4*AQ4+3*AQ4^2+4*AR4+AS4,FALSE)) -> FALSE | AW4: =IF(AD4=4,AP4^4+3*AQ4^2+4*AP4*AR4+AS4+6*AP4^2*AQ4,FALSE) -> FALSE | AX4: =(IF(Z4<>TRUE,VLOOKUP(Z4/'Live scenario'!$D$18,MAJORMINORPOF,2,TRUE),0)+IF(AA4<>TRUE,VLOOKUP(AA4/'Live scenario'!$D$19,MAJORMINORPOF,2,TRUE),0)+IF(AB4<>TRUE,VLOOKUP(AB4/'Live scenario'!$D$20,MAJORMINORPOF,2,TRUE),0)+IF(AC4<>TRUE,VLOOKUP(AC4/'Live scenario'!$D$21,MAJORMINORPOF,2,TRUE),0)) -> 0.01094535664 | AY4: =SUM(Z4:AC4) -> 0.00273633916
D5: =D4+1 -> 2026 | E5: =SUMIFS($T$39:$T$4500,$A$39:$A$4500,$D5) -> 0 | F5: =SUMIFS($U$39:$U$4500,$A$39:$A$4500,$D5) -> 62.42238927 | G5: =SUMIFS($V$39:$V$4500,$A$39:$A$4500,$D5) -> 13173.7159 | H5: =SUMIFS($W$39:$W$4500,$A$39:$A$4500,$D5) -> 0 | I5: =SUMIFS($X$39:$X$4500,$A$39:$A$4500,$D5) -> 0 | J5: =SUMIFS($Y$39:$Y$4500,$A$39:$A$4500,$D5) -> 19.0022494 | K5: =(SUM(E5:I5,L5)) -> 13236.13829 | L5: =HLOOKUP(D5,$AF$58:$BG$67,10,FALSE) -> 0 | N5: =D5 -> 2026 | O5: =IF($C$2=0.1,VLOOKUP($C$1,Load!$J:$AN,MATCH(Calcs2!$N5,Load!$J$2:$AN$2,0),FALSE),VLOOKUP($C$1,Load!$AP:$BT,MATCH(Calcs2!$N5,Load!$AP$2:$BT$2,0),FALSE)) -> 26.19000053 | P5: =VLOOKUP($C$1,Load!$J:$AN,MATCH(Calcs2!$N5,Load!$J$2:$AN$2,0),FALSE) -> 27.90999985 | Q5: =O5/$O$4-1 -> 0.2198417034 | R5: 0.2999534578 | S5: =HLOOKUP(N5,$AF$39:$BG$51,11,FALSE) -> 35.85413125 | T5: =HLOOKUP($N5,$AF$39:$BG$55,14,FALSE) -> 17.92706562 | U5: =HLOOKUP($N5,$AF$39:$BG$55,13,FALSE) -> 18.246735 | V5: =HLOOKUP($N5,$AF$39:$BG$55,15,FALSE) -> 0 | W5: =HLOOKUP($N5,$AF$39:$BG$55,16,FALSE) -> 0 | X5: =HLOOKUP($N5,$AF$39:$BG$55,17,FALSE) -> 0 | Y5: =(IF('Live scenario'!$C$36=TRUE,VLOOKUP(ZSS, Load!$A$3:$G$296,3,FALSE)*VLOOKUP(ZSS, Load!$A$3:$G$296,4,FALSE),0)+NN_LOAD_TRANSFER) -> 4.1 | Z5: =HLOOKUP($N5, $AF$39:$BG$48,2,FALSE) -> 0.00140851268 | AA5: =HLOOKUP($N5, $AF$39:$BG$48,3,FALSE) -> TRUE | AB5: =HLOOKUP($N5, $AF$39:$BG$48,4,FALSE) -> 0.00140851268 | AC5: =HLOOKUP($N5, $AF$39:$BG$48,5,FALSE) -> TRUE | AD5: =COUNTIF(Z5:AC5, "<>"&TRUE) -> 2 | AE5: =(Z5*AA5*AB5*AC5)^(1/AD5) -> 0.00140851268 | AF5: =HLOOKUP($N5, $AF$39:$BG$47,6,FALSE) -> 1967 | AG5: =HLOOKUP($N5, $AF$39:$BG$47,7,FALSE) -> 9999 | AH5: =HLOOKUP($N5, $AF$39:$BG$47,8,FALSE) -> 1967 | AI5: =HLOOKUP($N5, $AF$39:$BG$47,9,FALSE) -> 9999 | AJ5: =VLOOKUP(ZSS,Constants!$AT$37:$BO$178,2+Constants!$H$11,FALSE) -> TRUE | AK5: =VLOOKUP(ZSS,Constants!$AT$37:$BO$178,3+Constants!$H$11,FALSE) -> TRUE | AL5: =VLOOKUP(ZSS,Constants!$AT$37:$BO$178,4+Constants!$H$11,FALSE) -> 0.2 | AM5: =VLOOKUP(ZSS,Constants!$AT$37:$BO$178,5+Constants!$H$11,FALSE) -> TRUE | AN5: =VLOOKUP(ZSS,Constants!$AT$37:$BO$178,6+Constants!$H$11,FALSE) -> TRUE | AO5: =VLOOKUP(ZSS,Constants!$AT$37:$BO$178,7+Constants!$H$11,FALSE) -> TRUE | AP5: =IF(AD5=1,AE5,(1-MAX(AJ5:AO5))*AE5) -> 0.001126810144 | AQ5: =IF(AD5=1,0,IF(AD5=2,MAX(AJ5:AO5)*AE5,IF(AD5=3,0.5*MAX(AJ5:AO5)*(1-$AH$1)*AE5, IF(AD5=4,0.33*MAX(AJ5:AO5)*$AH$1*(1-$AH$1)*AE5,FALSE)))) -> 0.000281702536 | AR5: 1.40851268e-05 | AS5: FALSE | AT5: 0.002535322824 | AU5: 0.0002829722371 | AV5: FALSE | AW5: FALSE | AX5: =(IF(Z5<>TRUE,VLOOKUP(Z5/'Live scenario'!$D$18,MAJORMINORPOF,2,TRUE),0)+IF(AA5<>TRUE,VLOOKUP(AA5/'Live scenario'!$D$19,MAJORMINORPOF,2,TRUE),0)+IF(AB5<>TRUE,VLOOKUP(AB5/'Live scenario'!$D$20,MAJORMINORPOF,2,TRUE),0)+IF(AC5<>TRUE,VLOOKUP(AC5/'Live scenario'!$D$21,MAJORMINORPOF,2,TRUE),0)) -> 0.01126810144 | AY5: =SUM(Z5:AC5) -> 0.00281702536
D6: =D5+1 -> 2027 | E6: 0 | F6: =SUMIFS($U$39:$U$4500,$A$39:$A$4500,$D6) -> 120.989927 | G6: 14468.10244 | H6: 0 | I6: 0 | J6: 36.83102802 | K6: 14589.09236 | L6: =HLOOKUP(D6,$AF$58:$BG$67,10,FALSE) -> 0 | N6: 2027 | O6: =IF($C$2=0.1,VLOOKUP($C$1,Load!$J:$AN,MATCH(Calcs2!$N6,Load!$J$2:$AN$2,0),FALSE),VLOOKUP($C$1,Load!$AP:$BT,MATCH(Calcs2!$N6,Load!$AP$2:$BT$2,0),FALSE)) -> 27.23999977 | P6: =VLOOKUP($C$1,Load!$J:$AN,MATCH(Calcs2!$N6,Load!$J$2:$AN$2,0),FALSE) -> 29.02000046 | Q6: 0.2687471189 | R6: 0.3516535345 | S6: 35.85413125 | T6: =HLOOKUP($N6,$AF$39:$BG$55,14,FALSE) -> 17.92706562 | U6: 18.246735 | V6: 0 | W6: 0 | X6: 0 | Y6: =(IF('Live scenario'!$C$36=TRUE,VLOOKUP(ZSS, Load!$A$3:$G$296,3,FALSE)*VLOOKUP(ZSS, Load!$A$3:$G$296,4,FALSE),0)+NN_LOAD_TRANSFER) -> 4.1 | Z6: 0.00144933728 | AA6: TRUE | AB6: 0.00144933728 | AC6: TRUE | AD6: 2 | AE6: 0.00144933728 | AF6: 1967 | AG6: 9999 | AH6: 1967 | AI6: 9999 | AJ6: =VLOOKUP(ZSS,Constants!$AT$37:$BO$178,2+Constants!$H$11,FALSE) -> TRUE | AK6: =VLOOKUP(ZSS,Constants!$AT$37:$BO$178,3+Constants!$H$11,FALSE) -> TRUE | AL6: =VLOOKUP(ZSS,Constants!$AT$37:$BO$178,4+Constants!$H$11,FALSE) -> 0.2 | AM6: =VLOOKUP(ZSS,Constants!$AT$37:$BO$178,5+Constants!$H$11,FALSE) -> TRUE | AN6: =VLOOKUP(ZSS,Constants!$AT$37:$BO$178,6+Constants!$H$11,FALSE) -> TRUE | AO6: =VLOOKUP(ZSS,Constants!$AT$37:$BO$178,7+Constants!$H$11,FALSE) -> TRUE | AP6: 0.001159469824 | AQ6: 0.000289867456 | AR6: 1.44933728e-05 | AS6: FALSE | AT6: 0.002608807104 | AU6: 0.0002912118263 | AV6: FALSE | AW6: FALSE | AX6: =(IF(Z6<>TRUE,VLOOKUP(Z6/'Live scenario'!$D$18,MAJORMINORPOF,2,TRUE),0)+IF(AA6<>TRUE,VLOOKUP(AA6/'Live scenario'!$D$19,MAJORMINORPOF,2,TRUE),0)+IF(AB6<>TRUE,VLOOKUP(AB6/'Live scenario'!$D$20,MAJORMINORPOF,2,TRUE),0)+IF(AC6<>TRUE,VLOOKUP(AC6/'Live scenario'!$D$21,MAJORMINORPOF,2,TRUE),0)) -> 0.01159469824 | AY6: =SUM(Z6:AC6) -> 0.00289867456
D7: 2028 | E7: 0 | F7: 105.8011061 | G7: 14652.87372 | H7: 0 | I7: 0 | J7: 32.20733824 | K7: 14758.67483 | L7: =HLOOKUP(D7,$AF$58:$BG$67,10,FALSE) -> 0 | N7: 2028 | O7: =IF($C$2=0.1,VLOOKUP($C$1,Load!$J:$AN,MATCH(Calcs2!$N7,Load!$J$2:$AN$2,0),FALSE),VLOOKUP($C$1,Load!$AP:$BT,MATCH(Calcs2!$N7,Load!$AP$2:$BT$2,0),FALSE)) -> 26.97999954 | P7: =VLOOKUP($C$1,Load!$J:$AN,MATCH(Calcs2!$N7,Load!$J$2:$AN$2,0),FALSE) -> 28.78000069 | Q7: 0.256637187 | R7: 0.3404751564 | S7: 35.85413125 | T7: 17.92706562 | U7: 18.246735 | V7: 0 | W7: 0 | X7: 0 | Y7: =(IF('Live scenario'!$C$36=TRUE,VLOOKUP(ZSS, Load!$A$3:$G$296,3,FALSE)*VLOOKUP(ZSS, Load!$A$3:$G$296,4,FALSE),0)+NN_LOAD_TRANSFER) -> 4.1 | Z7: 0.001490641 | AA7: TRUE | AB7: 0.001490641 | AC7: TRUE | AD7: 2 | AE7: 0.001490641 | AF7: 1967 | AG7: 9999 | AH7: 1967 | AI7: 9999 | AJ7: =VLOOKUP(ZSS,Constants!$AT$37:$BO$178,2+Constants!$H$11,FALSE) -> TRUE | AK7: =VLOOKUP(ZSS,Constants!$AT$37:$BO$178,3+Constants!$H$11,FALSE) -> TRUE | AL7: =VLOOKUP(ZSS,Constants!$AT$37:$BO$178,4+Constants!$H$11,FALSE) -> 0.2 | AM7: =VLOOKUP(ZSS,Constants!$AT$37:$BO$178,5+Constants!$H$11,FALSE) -> TRUE | AN7: =VLOOKUP(ZSS,Constants!$AT$37:$BO$178,6+Constants!$H$11,FALSE) -> TRUE | AO7: =VLOOKUP(ZSS,Constants!$AT$37:$BO$178,7+Constants!$H$11,FALSE) -> TRUE | AP7: 0.0011925128 | AQ7: 0.0002981282 | AR7: 1.490641e-05 | AS7: FALSE | AT7: 0.0026831538 | AU7: 0.0002995502868 | AV7: FALSE | AW7: FALSE | AX7: =(IF(Z7<>TRUE,VLOOKUP(Z7/'Live scenario'!$D$18,MAJORMINORPOF,2,TRUE),0)+IF(AA7<>TRUE,VLOOKUP(AA7/'Live scenario'!$D$19,MAJORMINORPOF,2,TRUE),0)+IF(AB7<>TRUE,VLOOKUP(AB7/'Live scenario'!$D$20,MAJORMINORPOF,2,TRUE),0)+IF(AC7<>TRUE,VLOOKUP(AC7/'Live scenario'!$D$21,MAJORMINORPOF,2,TRUE),0)) -> 0.011925128 | AY7: 0.002981282
D8: 2029 | E8: 0 | F8: 95.12407223 | G8: 14834.58567 | H8: 0 | I8: 0 | J8: 28.95709961 | K8: 14929.70975 | L8: 0 | N8: 2029 | O8: =IF($C$2=0.1,VLOOKUP($C$1,Load!$J:$AN,MATCH(Calcs2!$N8,Load!$J$2:$AN$2,0),FALSE),VLOOKUP($C$1,Load!$AP:$BT,MATCH(Calcs2!$N8,Load!$AP$2:$BT$2,0),FALSE)) -> 26.72999954 | P8: =VLOOKUP($C$1,Load!$J:$AN,MATCH(Calcs2!$N8,Load!$J$2:$AN$2,0),FALSE) -> 28.51000023 | Q8: 0.244993032 | R8: 0.3278994476 | S8: 35.85413125 | T8: 17.92706562 | U8: 18.246735 | V8: 0 | W8: 0 | X8: 0 | Y8: =(IF('Live scenario'!$C$36=TRUE,VLOOKUP(ZSS, Load!$A$3:$G$296,3,FALSE)*VLOOKUP(ZSS, Load!$A$3:$G$296,4,FALSE),0)+NN_LOAD_TRANSFER) -> 4.1 | Z8: 0.00153242142 | AA8: TRUE | AB8: 0.00153242142 | AC8: TRUE | AD8: 2 | AE8: 0.00153242142 | AF8: 1967 | AG8: 9999 | AH8: 1967 | AI8: 9999 | AJ8: =VLOOKUP(ZSS,Constants!$AT$37:$BO$178,2+Constants!$H$11,FALSE) -> TRUE | AK8: =VLOOKUP(ZSS,Constants!$AT$37:$BO$178,3+Constants!$H$11,FALSE) -> TRUE | AL8: =VLOOKUP(ZSS,Constants!$AT$37:$BO$178,4+Constants!$H$11,FALSE) -> 0.2 | AM8: =VLOOKUP(ZSS,Constants!$AT$37:$BO$178,5+Constants!$H$11,FALSE) -> TRUE | AN8: =VLOOKUP(ZSS,Constants!$AT$37:$BO$178,6+Constants!$H$11,FALSE) -> TRUE | AO8: =VLOOKUP(ZSS,Constants!$AT$37:$BO$178,7+Constants!$H$11,FALSE) -> TRUE | AP8: 0.001225937136 | AQ8: 0.000306484284 | AR8: 1.53242142e-05 | AS8: FALSE | AT8: 0.002758358556 | AU8: 0.0003079872059 | AV8: FALSE | AW8: FALSE | AX8: =(IF(Z8<>TRUE,VLOOKUP(Z8/'Live scenario'!$D$18,MAJORMINORPOF,2,TRUE),0)+IF(AA8<>TRUE,VLOOKUP(AA8/'Live scenario'!$D$19,MAJORMINORPOF,2,TRUE),0)+IF(AB8<>TRUE,VLOOKUP(AB8/'Live scenario'!$D$20,MAJORMINORPOF,2,TRUE),0)+IF(AC8<>TRUE,VLOOKUP(AC8/'Live scenario'!$D$21,MAJORMINORPOF,2,TRUE),0)) -> 0.01225937136 | AY8: 0.00306484284
D9: 2030 | E9: 0 | F9: 80.97065538 | G9: 14924.19876 | H9: 0 | I9: 0 | J9: 24.64860133 | K9: 15005.16942 | L9: 0 | N9: 2030 | O9: =IF($C$2=0.1,VLOOKUP($C$1,Load!$J:$AN,MATCH(Calcs2!$N9,Load!$J$2:$AN$2,0),FALSE),VLOOKUP($C$1,Load!$AP:$BT,MATCH(Calcs2!$N9,Load!$AP$2:$BT$2,0),FALSE)) -> 26.38999939 | P9: =VLOOKUP($C$1,Load!$J:$AN,MATCH(Calcs2!$N9,Load!$J$2:$AN$2,0),FALSE) -> 28.14999962 | Q9: 0.2291569741 | R9: 0.311131836 | S9: 35.85413125 | T9: 17.92706562 | U9: 18.246735 | V9: 0 | W9: 0 | X9: 0 | Y9: =(IF('Live scenario'!$C$36=TRUE,VLOOKUP(ZSS, Load!$A$3:$G$296,3,FALSE)*VLOOKUP(ZSS, Load!$A$3:$G$296,4,FALSE),0)+NN_LOAD_TRANSFER) -> 4.1 | Z9: 0.00157467624 | AA9: TRUE | AB9: 0.00157467624 | AC9: TRUE | AD9: 2 | AE9: 0.00157467624 | AF9: 1967 | AG9: 9999 | AH9: 1967 | AI9: 9999 | AJ9: =VLOOKUP(ZSS,Constants!$AT$37:$BO$178,2+Constants!$H$11,FALSE) -> TRUE | AK9: =VLOOKUP(ZSS,Constants!$AT$37:$BO$178,3+Constants!$H$11,FALSE) -> TRUE | AL9: =VLOOKUP(ZSS,Constants!$AT$37:$BO$178,4+Constants!$H$11,FALSE) -> 0.2 | AM9: =VLOOKUP(ZSS,Constants!$AT$37:$BO$178,5+Constants!$H$11,FALSE) -> TRUE | AN9: =VLOOKUP(ZSS,Constants!$AT$37:$BO$178,6+Constants!$H$11,FALSE) -> TRUE | AO9: =VLOOKUP(ZSS,Constants!$AT$37:$BO$178,7+Constants!$H$11,FALSE) -> TRUE | AP9: 0.001259740992 | AQ9: 0.000314935248 | AR9: 1.57467624e-05 | AS9: FALSE | AT9: 0.002834417232 | AU9: 0.0003165221954 | AV9: FALSE | AW9: FALSE | AX9: =(IF(Z9<>TRUE,VLOOKUP(Z9/'Live scenario'!$D$18,MAJORMINORPOF,2,TRUE),0)+IF(AA9<>TRUE,VLOOKUP(AA9/'Live scenario'!$D$19,MAJORMINORPOF,2,TRUE),0)+IF(AB9<>TRUE,VLOOKUP(AB9/'Live scenario'!$D$20,MAJORMINORPOF,2,TRUE),0)+IF(AC9<>TRUE,VLOOKUP(AC9/'Live scenario'!$D$21,MAJORMINORPOF,2,TRUE),0)) -> 0.01259740992 | AY9: 0.00314935248
D10: 2031 | E10: 0 | F10: 68.8474592 | G10: 15061.06979 | H10: 0 | I10: 0 | J10: 20.95813065 | K10: 15129.91725 | L10: 0 | N10: 2031 | O10: =IF($C$2=0.1,VLOOKUP($C$1,Load!$J:$AN,MATCH(Calcs2!$N10,Load!$J$2:$AN$2,0),FALSE),VLOOKUP($C$1,Load!$AP:$BT,MATCH(Calcs2!$N10,Load!$AP$2:$BT$2,0),FALSE)) -> 26.11000061 | P10: =VLOOKUP($C$1,Load!$J:$AN,MATCH(Calcs2!$N10,Load!$J$2:$AN$2,0),FALSE) -> 27.81999969 | Q10: 0.2161155773 | R10: 0.2957615549 | S10: 35.85413125 | T10: 17.92706562 | U10: 18.246735 | V10: 0 | W10: 0 | X10: 0 | Y10: =(IF('Live scenario'!$C$36=TRUE,VLOOKUP(ZSS, Load!$A$3:$G$296,3,FALSE)*VLOOKUP(ZSS, Load!$A$3:$G$296,4,FALSE),0)+NN_LOAD_TRANSFER) -> 4.1 | Z10: 0.0016174032 | AA10: TRUE | AB10: 0.0016174032 | AC10: TRUE | AD10: 2 | AE10: 0.0016174032 | AF10: 1967 | AG10: 9999 | AH10: 1967 | AI10: 9999 | AJ10: =VLOOKUP(ZSS,Constants!$AT$37:$BO$178,2+Constants!$H$11,FALSE) -> TRUE | AK10: =VLOOKUP(ZSS,Constants!$AT$37:$BO$178,3+Constants!$H$11,FALSE) -> TRUE | AL10: =VLOOKUP(ZSS,Constants!$AT$37:$BO$178,4+Constants!$H$11,FALSE) -> 0.2 | AM10: =VLOOKUP(ZSS,Constants!$AT$37:$BO$178,5+Constants!$H$11,FALSE) -> TRUE | AN10: =VLOOKUP(ZSS,Constants!$AT$37:$BO$178,6+Constants!$H$11,FALSE) -> TRUE | AO10: =VLOOKUP(ZSS,Constants!$AT$37:$BO$178,7+Constants!$H$11,FALSE) -> TRUE | AP10: 0.00129392256 | AQ10: 0.00032348064 | AR10: 1.6174032e-05 | AS10: FALSE | AT10: 0.00291132576 | AU10: 0.0003251548756 | AV10: FALSE | AW10: FALSE | AX10: =(IF(Z10<>TRUE,VLOOKUP(Z10/'Live scenario'!$D$18,MAJORMINORPOF,2,TRUE),0)+IF(AA10<>TRUE,VLOOKUP(AA10/'Live scenario'!$D$19,MAJORMINORPOF,2,TRUE),0)+IF(AB10<>TRUE,VLOOKUP(AB10/'Live scenario'!$D$20,MAJORMINORPOF,2,TRUE),0)+IF(AC10<>TRUE,VLOOKUP(AC10/'Live scenario'!$D$21,MAJORMINORPOF,2,TRUE),0)) -> 0.0129392256 | AY10: 0.0032348064
D11: 2032 | E11: 0 | F11: 55.90260687 | G11: 15294.57129 | H11: 0 | I11: 0 | J11: 17.01753634 | K11: 15350.47389 | L11: 0 | N11: 2032 | O11: =IF($C$2=0.1,VLOOKUP($C$1,Load!$J:$AN,MATCH(Calcs2!$N11,Load!$J$2:$AN$2,0),FALSE),VLOOKUP($C$1,Load!$AP:$BT,MATCH(Calcs2!$N11,Load!$AP$2:$BT$2,0),FALSE)) -> 25.94000053 | P11: =VLOOKUP($C$1,Load!$J:$AN,MATCH(Calcs2!$N11,Load!$J$2:$AN$2,0),FALSE) -> 27.62000084 | Q11: 0.2081975484 | R11: 0.2864462842 | S11: 35.85413125 | T11: 17.92706562 | U11: 18.246735 | V11: 0 | W11: 0 | X11: 0 | Y11: =(IF('Live scenario'!$C$36=TRUE,VLOOKUP(ZSS, Load!$A$3:$G$296,3,FALSE)*VLOOKUP(ZSS, Load!$A$3:$G$296,4,FALSE),0)+NN_LOAD_TRANSFER) -> 4.1 | Z11: 0.00166060004 | AA11: TRUE | AB11: 0.00166060004 | AC11: TRUE | AD11: 2 | AE11: 0.00166060004 | AF11: 1967 | AG11: 9999 | AH11: 1967 | AI11: 9999 | AJ11: =VLOOKUP(ZSS,Constants!$AT$37:$BO$178,2+Constants!$H$11,FALSE) -> TRUE | AK11: =VLOOKUP(ZSS,Constants!$AT$37:$BO$178,3+Constants!$H$11,FALSE) -> TRUE | AL11: =VLOOKUP(ZSS,Constants!$AT$37:$BO$178,4+Constants!$H$11,FALSE) -> 0.2 | AM11: =VLOOKUP(ZSS,Constants!$AT$37:$BO$178,5+Constants!$H$11,FALSE) -> TRUE | AN11: =VLOOKUP(ZSS,Constants!$AT$37:$BO$178,6+Constants!$H$11,FALSE) -> TRUE | AO11: =VLOOKUP(ZSS,Constants!$AT$37:$BO$178,7+Constants!$H$11,FALSE) -> TRUE | AP11: 0.001328480032 | AQ11: 0.000332120008 | AR11: 1.66060004e-05 | AS11: FALSE | AT11: 0.002989080072 | AU11: 0.0003338848672 | AV11: FALSE | AW11: FALSE | AX11: =(IF(Z11<>TRUE,VLOOKUP(Z11/'Live scenario'!$D$18,MAJORMINORPOF,2,TRUE),0)+IF(AA11<>TRUE,VLOOKUP(AA11/'Live scenario'!$D$19,MAJORMINORPOF,2,TRUE),0)+IF(AB11<>TRUE,VLOOKUP(AB11/'Live scenario'!$D$20,MAJORMINORPOF,2,TRUE),0)+IF(AC11<>TRUE,VLOOKUP(AC11/'Live scenario'!$D$21,MAJORMINORPOF,2,TRUE),0)) -> 0.01328480032 | AY11: 0.00332120008
D12: 2033 | E12: 0 | F12: 54.38788794 | G12: 15576.7181 | H12: 0 | I12: 0 | J12: 16.55643468 | K12: 15631.10599 | L12: 0 | N12: 2033 | O12: =IF($C$2=0.1,VLOOKUP($C$1,Load!$J:$AN,MATCH(Calcs2!$N12,Load!$J$2:$AN$2,0),FALSE),VLOOKUP($C$1,Load!$AP:$BT,MATCH(Calcs2!$N12,Load!$AP$2:$BT$2,0),FALSE)) -> 25.81999969 | P12: =VLOOKUP($C$1,Load!$J:$AN,MATCH(Calcs2!$N12,Load!$J$2:$AN$2,0),FALSE) -> 27.48999977 | Q12: 0.2026083149 | R12: 0.2803912739 | S12: 35.85413125 | T12: 17.92706562 | U12: 18.246735 | V12: 0 | W12: 0 | X12: 0 | Y12: =(IF('Live scenario'!$C$36=TRUE,VLOOKUP(ZSS, Load!$A$3:$G$296,3,FALSE)*VLOOKUP(ZSS, Load!$A$3:$G$296,4,FALSE),0)+NN_LOAD_TRANSFER) -> 4.1 | Z12: 0.00170426462 | AA12: TRUE | AB12: 0.00170426462 | AC12: TRUE | AD12: 2 | AE12: 0.00170426462 | AF12: 1967 | AG12: 9999 | AH12: 1967 | AI12: 9999 | AJ12: =VLOOKUP(ZSS,Constants!$AT$37:$BO$178,2+Constants!$H$11,FALSE) -> TRUE | AK12: =VLOOKUP(ZSS,Constants!$AT$37:$BO$178,3+Constants!$H$11,FALSE) -> TRUE | AL12: =VLOOKUP(ZSS,Constants!$AT$37:$BO$178,4+Constants!$H$11,FALSE) -> 0.2 | AM12: =VLOOKUP(ZSS,Constants!$AT$37:$BO$178,5+Constants!$H$11,FALSE) -> TRUE | AN12: =VLOOKUP(ZSS,Constants!$AT$37:$BO$178,6+Constants!$H$11,FALSE) -> TRUE | AO12: =VLOOKUP(ZSS,Constants!$AT$37:$BO$178,7+Constants!$H$11,FALSE) -> TRUE | AP12: 0.001363411696 | AQ12: 0.000340852924 | AR12: 1.70426462e-05 | AS12: FALSE | AT12: 0.003067676316 | AU12: 0.0003427118155 | AV12: FALSE | AW12: FALSE | AX12: =(IF(Z12<>TRUE,VLOOKUP(Z12/'Live scenario'!$D$18,MAJORMINORPOF,2,TRUE),0)+IF(AA12<>TRUE,VLOOKUP(AA12/'Live scenario'!$D$19,MAJORMINORPOF,2,TRUE),0)+IF(AB12<>TRUE,VLOOKUP(AB12/'Live scenario'!$D$20,MAJORMINORPOF,2,TRUE),0)+IF(AC12<>TRUE,VLOOKUP(AC12/'Live scenario'!$D$21,MAJORMINORPOF,2,TRUE),0)) -> 0.01363411696 | AY12: 0.00340852924
D13: 2034 | E13: 0 | F13: 43.37812084 | G13: 15687.97274 | H13: 0 | I13: 0 | J13: 13.20490741 | K13: 15731.35086 | L13: 0 | N13: 2034 | O13: =IF($C$2=0.1,VLOOKUP($C$1,Load!$J:$AN,MATCH(Calcs2!$N13,Load!$J$2:$AN$2,0),FALSE),VLOOKUP($C$1,Load!$AP:$BT,MATCH(Calcs2!$N13,Load!$AP$2:$BT$2,0),FALSE)) -> 25.54000092 | P13: =VLOOKUP($C$1,Load!$J:$AN,MATCH(Calcs2!$N13,Load!$J$2:$AN$2,0),FALSE) -> 27.22999954 | Q13: 0.1895669181 | R13: 0.268281342 | S13: 35.85413125 | T13: 17.92706562 | U13: 18.246735 | V13: 0 | W13: 0 | X13: 0 | Y13: =(IF('Live scenario'!$C$36=TRUE,VLOOKUP(ZSS, Load!$A$3:$G$296,3,FALSE)*VLOOKUP(ZSS, Load!$A$3:$G$296,4,FALSE),0)+NN_LOAD_TRANSFER) -> 4.1 | Z13: 0.0017483948 | AA13: TRUE | AB13: 0.0017483948 | AC13: TRUE | AD13: 2 | AE13: 0.0017483948 | AF13: 1967 | AG13: 9999 | AH13: 1967 | AI13: 9999 | AJ13: =VLOOKUP(ZSS,Constants!$AT$37:$BO$178,2+Constants!$H$11,FALSE) -> TRUE | AK13: =VLOOKUP(ZSS,Constants!$AT$37:$BO$178,3+Constants!$H$11,FALSE) -> TRUE | AL13: =VLOOKUP(ZSS,Constants!$AT$37:$BO$178,4+Constants!$H$11,FALSE) -> 0.2 | AM13: =VLOOKUP(ZSS,Constants!$AT$37:$BO$178,5+Constants!$H$11,FALSE) -> TRUE | AN13: =VLOOKUP(ZSS,Constants!$AT$37:$BO$178,6+Constants!$H$11,FALSE) -> TRUE | AO13: =VLOOKUP(ZSS,Constants!$AT$37:$BO$178,7+Constants!$H$11,FALSE) -> TRUE | AP13: 0.00139871584 | AQ13: 0.00034967896 | AR13: 1.7483948e-05 | AS13: FALSE | AT13: 0.00314711064 | AU13: 0.000351635366 | AV13: FALSE | AW13: FALSE | AX13: =(IF(Z13<>TRUE,VLOOKUP(Z13/'Live scenario'!$D$18,MAJORMINORPOF,2,TRUE),0)+IF(AA13<>TRUE,VLOOKUP(AA13/'Live scenario'!$D$19,MAJORMINORPOF,2,TRUE),0)+IF(AB13<>TRUE,VLOOKUP(AB13/'Live scenario'!$D$20,MAJORMINORPOF,2,TRUE),0)+IF(AC13<>TRUE,VLOOKUP(AC13/'Live scenario'!$D$21,MAJORMINORPOF,2,TRUE),0)) -> 0.0139871584 | AY13: 0.0034967896
D14: 2035 | E14: 0 | F14: 44.48450043 | G14: 16090.38493 | H14: 0 | I14: 0 | J14: 13.54170485 | K14: 16134.86943 | L14: 0 | N14: 2035 | O14: =IF($C$2=0.1,VLOOKUP($C$1,Load!$J:$AN,MATCH(Calcs2!$N14,Load!$J$2:$AN$2,0),FALSE),VLOOKUP($C$1,Load!$AP:$BT,MATCH(Calcs2!$N14,Load!$AP$2:$BT$2,0),FALSE)) -> 25.54000092 | P14: =VLOOKUP($C$1,Load!$J:$AN,MATCH(Calcs2!$N14,Load!$J$2:$AN$2,0),FALSE) -> 27.22999954 | Q14: 0.1895669181 | R14: 0.268281342 | S14: 35.85413125 | T14: 17.92706562 | U14: 18.246735 | V14: 0 | W14: 0 | X14: 0 | Y14: =(IF('Live scenario'!$C$36=TRUE,VLOOKUP(ZSS, Load!$A$3:$G$296,3,FALSE)*VLOOKUP(ZSS, Load!$A$3:$G$296,4,FALSE),0)+NN_LOAD_TRANSFER) -> 4.1 | Z14: 0.00179298844 | AA14: TRUE | AB14: 0.00179298844 | AC14: TRUE | AD14: 2 | AE14: 0.00179298844 | AF14: 1967 | AG14: 9999 | AH14: 1967 | AI14: 9999 | AJ14: =VLOOKUP(ZSS,Constants!$AT$37:$BO$178,2+Constants!$H$11,FALSE) -> TRUE | AK14: =VLOOKUP(ZSS,Constants!$AT$37:$BO$178,3+Constants!$H$11,FALSE) -> TRUE | AL14: =VLOOKUP(ZSS,Constants!$AT$37:$BO$178,4+Constants!$H$11,FALSE) -> 0.2 | AM14: =VLOOKUP(ZSS,Constants!$AT$37:$BO$178,5+Constants!$H$11,FALSE) -> TRUE | AN14: =VLOOKUP(ZSS,Constants!$AT$37:$BO$178,6+Constants!$H$11,FALSE) -> TRUE | AO14: =VLOOKUP(ZSS,Constants!$AT$37:$BO$178,7+Constants!$H$11,FALSE) -> TRUE | AP14: 0.001434390752 | AQ14: 0.000358597688 | AR14: 1.79298844e-05 | AS14: FALSE | AT14: 0.003227379192 | AU14: 0.0003606551648 | AV14: FALSE | AW14: FALSE | AX14: =(IF(Z14<>TRUE,VLOOKUP(Z14/'Live scenario'!$D$18,MAJORMINORPOF,2,TRUE),0)+IF(AA14<>TRUE,VLOOKUP(AA14/'Live scenario'!$D$19,MAJORMINORPOF,2,TRUE),0)+IF(AB14<>TRUE,VLOOKUP(AB14/'Live scenario'!$D$20,MAJORMINORPOF,2,TRUE),0)+IF(AC14<>TRUE,VLOOKUP(AC14/'Live scenario'!$D$21,MAJORMINORPOF,2,TRUE),0)) -> 0.01434390752 | AY14: 0.00358597688
D15: 2036 | E15: 0 | F15: 45.60232895 | G15: 16497.07666 | H15: 0 | I15: 0 | J15: 13.8819875 | K15: 16542.67899 | L15: 0 | N15: 2036 | O15: =IF($C$2=0.1,VLOOKUP($C$1,Load!$J:$AN,MATCH(Calcs2!$N15,Load!$J$2:$AN$2,0),FALSE),VLOOKUP($C$1,Load!$AP:$BT,MATCH(Calcs2!$N15,Load!$AP$2:$BT$2,0),FALSE)) -> 25.54000092 | P15: =VLOOKUP($C$1,Load!$J:$AN,MATCH(Calcs2!$N15,Load!$J$2:$AN$2,0),FALSE) -> 27.22999954 | Q15: 0.1895669181 | R15: 0.268281342 | S15: 35.85413125 | T15: 17.92706562 | U15: 18.246735 | V15: 0 | W15: 0 | X15: 0 | Y15: =(IF('Live scenario'!$C$36=TRUE,VLOOKUP(ZSS, Load!$A$3:$G$296,3,FALSE)*VLOOKUP(ZSS, Load!$A$3:$G$296,4,FALSE),0)+NN_LOAD_TRANSFER) -> 4.1 | Z15: 0.00183804354 | AA15: TRUE | AB15: 0.00183804354 | AC15: TRUE | AD15: 2 | AE15: 0.00183804354 | AF15: 1967 | AG15: 9999 | AH15: 1967 | AI15: 9999 | AJ15: =VLOOKUP(ZSS,Constants!$AT$37:$BO$178,2+Constants!$H$11,FALSE) -> TRUE | AK15: =VLOOKUP(ZSS,Constants!$AT$37:$BO$178,3+Constants!$H$11,FALSE) -> TRUE | AL15: =VLOOKUP(ZSS,Constants!$AT$37:$BO$178,4+Constants!$H$11,FALSE) -> 0.2 | AM15: =VLOOKUP(ZSS,Constants!$AT$37:$BO$178,5+Constants!$H$11,FALSE) -> TRUE | AN15: =VLOOKUP(ZSS,Constants!$AT$37:$BO$178,6+Constants!$H$11,FALSE) -> TRUE | AO15: =VLOOKUP(ZSS,Constants!$AT$37:$BO$178,7+Constants!$H$11,FALSE) -> TRUE | AP15: 0.001470434832 | AQ15: 0.000367608708 | AR15: 1.83804354e-05 | AS15: FALSE | AT15: 0.003308478372 | AU15: 0.0003697708866 | AV15: FALSE | AW15: FALSE | AX15: =(IF(Z15<>TRUE,VLOOKUP(Z15/'Live scenario'!$D$18,MAJORMINORPOF,2,TRUE),0)+IF(AA15<>TRUE,VLOOKUP(AA15/'Live scenario'!$D$19,MAJORMINORPOF,2,TRUE),0)+IF(AB15<>TRUE,VLOOKUP(AB15/'Live scenario'!$D$20,MAJORMINORPOF,2,TRUE),0)+IF(AC15<>TRUE,VLOOKUP(AC15/'Live scenario'!$D$21,MAJORMINORPOF,2,TRUE),0)) -> 0.01470434832 | AY15: 0.00367608708
D16: 2037 | E16: 0 | F16: 46.7315553 | G16: 16908.03288 | H16: 0 | I16: 0 | J16: 14.22573982 | K16: 16954.76444 | L16: 0 | N16: 2037 | O16: =IF($C$2=0.1,VLOOKUP($C$1,Load!$J:$AN,MATCH(Calcs2!$N16,Load!$J$2:$AN$2,0),FALSE),VLOOKUP($C$1,Load!$AP:$BT,MATCH(Calcs2!$N16,Load!$AP$2:$BT$2,0),FALSE)) -> 25.54000092 | P16: =VLOOKUP($C$1,Load!$J:$AN,MATCH(Calcs2!$N16,Load!$J$2:$AN$2,0),FALSE) -> 27.22999954 | Q16: 0.1895669181 | R16: 0.268281342 | S16: 35.85413125 | T16: 17.92706562 | U16: 18.246735 | V16: 0 | W16: 0 | X16: 0 | Y16: =(IF('Live scenario'!$C$36=TRUE,VLOOKUP(ZSS, Load!$A$3:$G$296,3,FALSE)*VLOOKUP(ZSS, Load!$A$3:$G$296,4,FALSE),0)+NN_LOAD_TRANSFER) -> 4.1 | Z16: 0.00188355804 | AA16: TRUE | AB16: 0.00188355804 | AC16: TRUE | AD16: 2 | AE16: 0.00188355804 | AF16: 1967 | AG16: 9999 | AH16: 1967 | AI16: 9999 | AJ16: =VLOOKUP(ZSS,Constants!$AT$37:$BO$178,2+Constants!$H$11,FALSE) -> TRUE | AK16: =VLOOKUP(ZSS,Constants!$AT$37:$BO$178,3+Constants!$H$11,FALSE) -> TRUE | AL16: =VLOOKUP(ZSS,Constants!$AT$37:$BO$178,4+Constants!$H$11,FALSE) -> 0.2 | AM16: =VLOOKUP(ZSS,Constants!$AT$37:$BO$178,5+Constants!$H$11,FALSE) -> TRUE | AN16: =VLOOKUP(ZSS,Constants!$AT$37:$BO$178,6+Constants!$H$11,FALSE) -> TRUE | AO16: =VLOOKUP(ZSS,Constants!$AT$37:$BO$178,7+Constants!$H$11,FALSE) -> TRUE | AP16: 0.001506846432 | AQ16: 0.000376711608 | AR16: 1.88355804e-05 | AS16: FALSE | AT16: 0.003390404472 | AU16: 0.0003789821942 | AV16: FALSE | AW16: FALSE | AX16: =(IF(Z16<>TRUE,VLOOKUP(Z16/'Live scenario'!$D$18,MAJORMINORPOF,2,TRUE),0)+IF(AA16<>TRUE,VLOOKUP(AA16/'Live scenario'!$D$19,MAJORMINORPOF,2,TRUE),0)+IF(AB16<>TRUE,VLOOKUP(AB16/'Live scenario'!$D$20,MAJORMINORPOF,2,TRUE),0)+IF(AC16<>TRUE,VLOOKUP(AC16/'Live scenario'!$D$21,MAJORMINORPOF,2,TRUE),0)) -> 0.01506846432 | AY16: 0.00376711608
D17: 2038 | E17: 0 | F17: 47.87213085 | G17: 17323.23948 | H17: 0 | I17: 0 | J17: 14.57294699 | K17: 17371.11161 | L17: 0 | N17: 2038 | O17: =IF($C$2=0.1,VLOOKUP($C$1,Load!$J:$AN,MATCH(Calcs2!$N17,Load!$J$2:$AN$2,0),FALSE),VLOOKUP($C$1,Load!$AP:$BT,MATCH(Calcs2!$N17,Load!$AP$2:$BT$2,0),FALSE)) -> 25.54000092 | P17: =VLOOKUP($C$1,Load!$J:$AN,MATCH(Calcs2!$N17,Load!$J$2:$AN$2,0),FALSE) -> 27.22999954 | Q17: 0.1895669181 | R17: 0.268281342 | S17: 35.85413125 | T17: 17.92706562 | U17: 18.246735 | V17: 0 | W17: 0 | X17: 0 | Y17: =(IF('Live scenario'!$C$36=TRUE,VLOOKUP(ZSS, Load!$A$3:$G$296,3,FALSE)*VLOOKUP(ZSS, Load!$A$3:$G$296,4,FALSE),0)+NN_LOAD_TRANSFER) -> 4.1 | Z17: 0.00192952998 | AA17: TRUE | AB17: 0.00192952998 | AC17: TRUE | AD17: 2 | AE17: 0.00192952998 | AF17: 1967 | AG17: 9999 | AH17: 1967 | AI17: 9999 | AJ17: =VLOOKUP(ZSS,Constants!$AT$37:$BO$178,2+Constants!$H$11,FALSE) -> TRUE | AK17: =VLOOKUP(ZSS,Constants!$AT$37:$BO$178,3+Constants!$H$11,FALSE) -> TRUE | AL17: =VLOOKUP(ZSS,Constants!$AT$37:$BO$178,4+Constants!$H$11,FALSE) -> 0.2 | AM17: =VLOOKUP(ZSS,Constants!$AT$37:$BO$178,5+Constants!$H$11,FALSE) -> TRUE | AN17: =VLOOKUP(ZSS,Constants!$AT$37:$BO$178,6+Constants!$H$11,FALSE) -> TRUE | AO17: =VLOOKUP(ZSS,Constants!$AT$37:$BO$178,7+Constants!$H$11,FALSE) -> TRUE | AP17: 0.001543623984 | AQ17: 0.000385905996 | AR17: 1.92952998e-05 | AS17: FALSE | AT17: 0.003473153964 | AU17: 0.000388288771 | AV17: FALSE | AW17: FALSE | AX17: =(IF(Z17<>TRUE,VLOOKUP(Z17/'Live scenario'!$D$18,MAJORMINORPOF,2,TRUE),0)+IF(AA17<>TRUE,VLOOKUP(AA17/'Live scenario'!$D$19,MAJORMINORPOF,2,TRUE),0)+IF(AB17<>TRUE,VLOOKUP(AB17/'Live scenario'!$D$20,MAJORMINORPOF,2,TRUE),0)+IF(AC17<>TRUE,VLOOKUP(AC17/'Live scenario'!$D$21,MAJORMINORPOF,2,TRUE),0)) -> 0.01543623984 | AY17: 0.00385905996
D18: 2039 | E18: 0 | F18: 49.02400797 | G18: 17742.68271 | H18: 0 | I18: 0 | J18: 14.92359451 | K18: 17791.70671 | L18: 0 | N18: 2039 | O18: =IF($C$2=0.1,VLOOKUP($C$1,Load!$J:$AN,MATCH(Calcs2!$N18,Load!$J$2:$AN$2,0),FALSE),VLOOKUP($C$1,Load!$AP:$BT,MATCH(Calcs2!$N18,Load!$AP$2:$BT$2,0),FALSE)) -> 25.54000092 | P18: =VLOOKUP($C$1,Load!$J:$AN,MATCH(Calcs2!$N18,Load!$J$2:$AN$2,0),FALSE) -> 27.22999954 | Q18: 0.1895669181 | R18: 0.268281342 | S18: 35.85413125 | T18: 17.92706562 | U18: 18.246735 | V18: 0 | W18: 0 | X18: 0 | Y18: =(IF('Live scenario'!$C$36=TRUE,VLOOKUP(ZSS, Load!$A$3:$G$296,3,FALSE)*VLOOKUP(ZSS, Load!$A$3:$G$296,4,FALSE),0)+NN_LOAD_TRANSFER) -> 4.1 | Z18: 0.00197595744 | AA18: TRUE | AB18: 0.00197595744 | AC18: TRUE | AD18: 2 | AE18: 0.00197595744 | AF18: 1967 | AG18: 9999 | AH18: 1967 | AI18: 9999 | AJ18: =VLOOKUP(ZSS,Constants!$AT$37:$BO$178,2+Constants!$H$11,FALSE) -> TRUE | AK18: =VLOOKUP(ZSS,Constants!$AT$37:$BO$178,3+Constants!$H$11,FALSE) -> TRUE | AL18: =VLOOKUP(ZSS,Constants!$AT$37:$BO$178,4+Constants!$H$11,FALSE) -> 0.2 | AM18: =VLOOKUP(ZSS,Constants!$AT$37:$BO$178,5+Constants!$H$11,FALSE) -> TRUE | AN18: =VLOOKUP(ZSS,Constants!$AT$37:$BO$178,6+Constants!$H$11,FALSE) -> TRUE | AO18: =VLOOKUP(ZSS,Constants!$AT$37:$BO$178,7+Constants!$H$11,FALSE) -> TRUE | AP18: 0.001580765952 | AQ18: 0.000395191488 | AR18: 1.97595744e-05 | AS18: FALSE | AT18: 0.003556723392 | AU18: =IF(AD18=1,FALSE,IF(AD18=2,AP18^2+AQ18,IF(AD18=3,3*AP18^2+3*AQ18+AR18,IF(AD18=4,6*AP18^2+6*AQ18+4*AR18+AS18)))) -> 0.000397690309 | AV18: FALSE | AW18: FALSE | AX18: =(IF(Z18<>TRUE,VLOOKUP(Z18/'Live scenario'!$D$18,MAJORMINORPOF,2,TRUE),0)+IF(AA18<>TRUE,VLOOKUP(AA18/'Live scenario'!$D$19,MAJORMINORPOF,2,TRUE),0)+IF(AB18<>TRUE,VLOOKUP(AB18/'Live scenario'!$D$20,MAJORMINORPOF,2,TRUE),0)+IF(AC18<>TRUE,VLOOKUP(AC18/'Live scenario'!$D$21,MAJORMINORPOF,2,TRUE),0)) -> 0.01580765952 | AY18: 0.00395191488
D19: 2040 | E19: 0 | F19: 50.18713804 | G19: 18166.34847 | H19: 0 | I19: 0 | J19: 15.27766759 | K19: 18216.5356 | L19: 0 | N19: 2040 | O19: =IF($C$2=0.1,VLOOKUP($C$1,Load!$J:$AN,MATCH(Calcs2!$N19,Load!$J$2:$AN$2,0),FALSE),VLOOKUP($C$1,Load!$AP:$BT,MATCH(Calcs2!$N19,Load!$AP$2:$BT$2,0),FALSE)) -> 25.54000092 | P19: =VLOOKUP($C$1,Load!$J:$AN,MATCH(Calcs2!$N19,Load!$J$2:$AN$2,0),FALSE) -> 27.22999954 | Q19: 0.1895669181 | R19: 0.268281342 | S19: 35.85413125 | T19: 17.92706562 | U19: 18.246735 | V19: 0 | W19: 0 | X19: 0 | Y19: =(IF('Live scenario'!$C$36=TRUE,VLOOKUP(ZSS, Load!$A$3:$G$296,3,FALSE)*VLOOKUP(ZSS, Load!$A$3:$G$296,4,FALSE),0)+NN_LOAD_TRANSFER) -> 4.1 | Z19: 0.00202283846 | AA19: TRUE | AB19: 0.00202283846 | AC19: TRUE | AD19: 2 | AE19: 0.00202283846 | AF19: 1967 | AG19: 9999 | AH19: 1967 | AI19: 9999 | AJ19: =VLOOKUP(ZSS,Constants!$AT$37:$BO$178,2+Constants!$H$11,FALSE) -> TRUE | AK19: =VLOOKUP(ZSS,Constants!$AT$37:$BO$178,3+Constants!$H$11,FALSE) -> TRUE | AL19: =VLOOKUP(ZSS,Constants!$AT$37:$BO$178,4+Constants!$H$11,FALSE) -> 0.2 | AM19: =VLOOKUP(ZSS,Constants!$AT$37:$BO$178,5+Constants!$H$11,FALSE) -> TRUE | AN19: =VLOOKUP(ZSS,Constants!$AT$37:$BO$178,6+Constants!$H$11,FALSE) -> TRUE | AO19: =VLOOKUP(ZSS,Constants!$AT$37:$BO$178,7+Constants!$H$11,FALSE) -> TRUE | AP19: 0.001618270768 | AQ19: 0.000404567692 | AR19: 2.02283846e-05 | AS19: FALSE | AT19: 0.003641109228 | AU19: 0.0004071864923 | AV19: FALSE | AW19: FALSE | AX19: =(IF(Z19<>TRUE,VLOOKUP(Z19/'Live scenario'!$D$18,MAJORMINORPOF,2,TRUE),0)+IF(AA19<>TRUE,VLOOKUP(AA19/'Live scenario'!$D$19,MAJORMINORPOF,2,TRUE),0)+IF(AB19<>TRUE,VLOOKUP(AB19/'Live scenario'!$D$20,MAJORMINORPOF,2,TRUE),0)+IF(AC19<>TRUE,VLOOKUP(AC19/'Live scenario'!$D$21,MAJORMINORPOF,2,TRUE),0)) -> 0.01618270768 | AY19: 0.00404567692
D20: 2041 | E20: 0 | F20: 51.36147538 | G20: 18594.22377 | H20: 0 | I20: 0 | J20: 15.63515232 | K20: 18645.58524 | L20: 0 | N20: 2041 | O20: =IF($C$2=0.1,VLOOKUP($C$1,Load!$J:$AN,MATCH(Calcs2!$N20,Load!$J$2:$AN$2,0),FALSE),VLOOKUP($C$1,Load!$AP:$BT,MATCH(Calcs2!$N20,Load!$AP$2:$BT$2,0),FALSE)) -> 25.54000092 | P20: =VLOOKUP($C$1,Load!$J:$AN,MATCH(Calcs2!$N20,Load!$J$2:$AN$2,0),FALSE) -> 27.22999954 | Q20: 0.1895669181 | R20: 0.268281342 | S20: 35.85413125 | T20: 17.92706562 | U20: 18.246735 | V20: 0 | W20: 0 | X20: 0 | Y20: =(IF('Live scenario'!$C$36=TRUE,VLOOKUP(ZSS, Load!$A$3:$G$296,3,FALSE)*VLOOKUP(ZSS, Load!$A$3:$G$296,4,FALSE),0)+NN_LOAD_TRANSFER) -> 4.1 | Z20: 0.0020701712 | AA20: TRUE | AB20: 0.0020701712 | AC20: TRUE | AD20: 2 | AE20: 0.0020701712 | AF20: 1967 | AG20: 9999 | AH20: 1967 | AI20: 9999 | AJ20: =VLOOKUP(ZSS,Constants!$AT$37:$BO$178,2+Constants!$H$11,FALSE) -> TRUE | AK20: =VLOOKUP(ZSS,Constants!$AT$37:$BO$178,3+Constants!$H$11,FALSE) -> TRUE | AL20: =VLOOKUP(ZSS,Constants!$AT$37:$BO$178,4+Constants!$H$11,FALSE) -> 0.2 | AM20: =VLOOKUP(ZSS,Constants!$AT$37:$BO$178,5+Constants!$H$11,FALSE) -> TRUE | AN20: =VLOOKUP(ZSS,Constants!$AT$37:$BO$178,6+Constants!$H$11,FALSE) -> TRUE | AO20: =VLOOKUP(ZSS,Constants!$AT$37:$BO$178,7+Constants!$H$11,FALSE) -> TRUE | AP20: 0.00165613696 | AQ20: 0.00041403424 | AR20: 2.0701712e-05 | AS20: FALSE | AT20: 0.00372630816 | AU20: 0.0004167770296 | AV20: FALSE | AW20: FALSE | AX20: =(IF(Z20<>TRUE,VLOOKUP(Z20/'Live scenario'!$D$18,MAJORMINORPOF,2,TRUE),0)+IF(AA20<>TRUE,VLOOKUP(AA20/'Live scenario'!$D$19,MAJORMINORPOF,2,TRUE),0)+IF(AB20<>TRUE,VLOOKUP(AB20/'Live scenario'!$D$20,MAJORMINORPOF,2,TRUE),0)+IF(AC20<>TRUE,VLOOKUP(AC20/'Live scenario'!$D$21,MAJORMINORPOF,2,TRUE),0)) -> 0.0165613696 | AY20: 0.0041403424
D21: 2042 | E21: 0 | F21: 52.54697437 | G21: 19026.29564 | H21: 0 | I21: 0 | J21: 15.99603482 | K21: =(SUM(E21:I21,L21)) -> 19078.84261 | L21: 0 | N21: 2042 | O21: =IF($C$2=0.1,VLOOKUP($C$1,Load!$J:$AN,MATCH(Calcs2!$N21,Load!$J$2:$AN$2,0),FALSE),VLOOKUP($C$1,Load!$AP:$BT,MATCH(Calcs2!$N21,Load!$AP$2:$BT$2,0),FALSE)) -> 25.54000092 | P21: =VLOOKUP($C$1,Load!$J:$AN,MATCH(Calcs2!$N21,Load!$J$2:$AN$2,0),FALSE) -> 27.22999954 | Q21: 0.1895669181 | R21: 0.268281342 | S21: 35.85413125 | T21: 17.92706562 | U21: 18.246735 | V21: 0 | W21: 0 | X21: 0 | Y21: =(IF('Live scenario'!$C$36=TRUE,VLOOKUP(ZSS, Load!$A$3:$G$296,3,FALSE)*VLOOKUP(ZSS, Load!$A$3:$G$296,4,FALSE),0)+NN_LOAD_TRANSFER) -> 4.1 | Z21: 0.00211795382 | AA21: TRUE | AB21: 0.00211795382 | AC21: TRUE | AD21: 2 | AE21: 0.00211795382 | AF21: 1967 | AG21: 9999 | AH21: 1967 | AI21: 9999 | AJ21: =VLOOKUP(ZSS,Constants!$AT$37:$BO$178,2+Constants!$H$11,FALSE) -> TRUE | AK21: =VLOOKUP(ZSS,Constants!$AT$37:$BO$178,3+Constants!$H$11,FALSE) -> TRUE | AL21: =VLOOKUP(ZSS,Constants!$AT$37:$BO$178,4+Constants!$H$11,FALSE) -> 0.2 | AM21: =VLOOKUP(ZSS,Constants!$AT$37:$BO$178,5+Constants!$H$11,FALSE) -> TRUE | AN21: =VLOOKUP(ZSS,Constants!$AT$37:$BO$178,6+Constants!$H$11,FALSE) -> TRUE | AO21: =VLOOKUP(ZSS,Constants!$AT$37:$BO$178,7+Constants!$H$11,FALSE) -> TRUE | AP21: 0.001694363056 | AQ21: 0.000423590764 | AR21: 2.11795382e-05 | AS21: FALSE | AT21: 0.003812316876 | AU21: 0.0004264616302 | AV21: FALSE | AW21: FALSE | AX21: =(IF(Z21<>TRUE,VLOOKUP(Z21/'Live scenario'!$D$18,MAJORMINORPOF,2,TRUE),0)+IF(AA21<>TRUE,VLOOKUP(AA21/'Live scenario'!$D$19,MAJORMINORPOF,2,TRUE),0)+IF(AB21<>TRUE,VLOOKUP(AB21/'Live scenario'!$D$20,MAJORMINORPOF,2,TRUE),0)+IF(AC21<>TRUE,VLOOKUP(AC21/'Live scenario'!$D$21,MAJORMINORPOF,2,TRUE),0)) -> 0.01694363056 | AY21: 0.00423590764
D22: 2043 | E22: 0 | F22: 53.74359034 | G22: 19462.55147 | H22: 0 | I22: 0 | J22: 16.36030147 | K22: =(SUM(E22:I22,L22)) -> 19516.29506 | L22: 0 | N22: 2043 | O22: =IF($C$2=0.1,VLOOKUP($C$1,Load!$J:$AN,MATCH(Calcs2!$N22,Load!$J$2:$AN$2,0),FALSE),VLOOKUP($C$1,Load!$AP:$BT,MATCH(Calcs2!$N22,Load!$AP$2:$BT$2,0),FALSE)) -> 25.54000092 | P22: =VLOOKUP($C$1,Load!$J:$AN,MATCH(Calcs2!$N22,Load!$J$2:$AN$2,0),FALSE) -> 27.22999954 | Q22: 0.1895669181 | R22: 0.268281342 | S22: 35.85413125 | T22: 17.92706562 | U22: 18.246735 | V22: 0 | W22: 0 | X22: 0 | Y22: =(IF('Live scenario'!$C$36=TRUE,VLOOKUP(ZSS, Load!$A$3:$G$296,3,FALSE)*VLOOKUP(ZSS, Load!$A$3:$G$296,4,FALSE),0)+NN_LOAD_TRANSFER) -> 4.1 | Z22: =HLOOKUP($N22, $AF$39:$BG$48,2,FALSE) -> 0.00216618452 | AA22: TRUE | AB22: 0.00216618452 | AC22: TRUE | AD22: 2 | AE22: =(Z22*AA22*AB22*AC22)^(1/AD22) -> 0.00216618452 | AF22: 1967 | AG22: 9999 | AH22: 1967 | AI22: 9999 | AJ22: =VLOOKUP(ZSS,Constants!$AT$37:$BO$178,2+Constants!$H$11,FALSE) -> TRUE | AK22: =VLOOKUP(ZSS,Constants!$AT$37:$BO$178,3+Constants!$H$11,FALSE) -> TRUE | AL22: =VLOOKUP(ZSS,Constants!$AT$37:$BO$178,4+Constants!$H$11,FALSE) -> 0.2 | AM22: =VLOOKUP(ZSS,Constants!$AT$37:$BO$178,5+Constants!$H$11,FALSE) -> TRUE | AN22: =VLOOKUP(ZSS,Constants!$AT$37:$BO$178,6+Constants!$H$11,FALSE) -> TRUE | AO22: =VLOOKUP(ZSS,Constants!$AT$37:$BO$178,7+Constants!$H$11,FALSE) -> TRUE | AP22: 0.001732947616 | AQ22: 0.000433236904 | AR22: 2.16618452e-05 | AS22: FALSE | AT22: 0.003899132136 | AU22: 0.0004362400114 | AV22: FALSE | AW22: FALSE | AX22: =(IF(Z22<>TRUE,VLOOKUP(Z22/'Live scenario'!$D$18,MAJORMINORPOF,2,TRUE),0)+IF(AA22<>TRUE,VLOOKUP(AA22/'Live scenario'!$D$19,MAJORMINORPOF,2,TRUE),0)+IF(AB22<>TRUE,VLOOKUP(AB22/'Live scenario'!$D$20,MAJORMINORPOF,2,TRUE),0)+IF(AC22<>TRUE,VLOOKUP(AC22/'Live scenario'!$D$21,MAJORMINORPOF,2,TRUE),0)) -> 0.01732947616 | AY22: 0.00433236904
D23: 2044 | E23: 0 | F23: 54.95127863 | G23: 19902.97868 | H23: 0 | I23: 0 | J23: 16.7279387 | K23: =(SUM(E23:I23,L23)) -> 19957.92995 | L23: 0 | N23: 2044 | O23: =IF($C$2=0.1,VLOOKUP($C$1,Load!$J:$AN,MATCH(Calcs2!$N23,Load!$J$2:$AN$2,0),FALSE),VLOOKUP($C$1,Load!$AP:$BT,MATCH(Calcs2!$N23,Load!$AP$2:$BT$2,0),FALSE)) -> 25.54000092 | P23: =VLOOKUP($C$1,Load!$J:$AN,MATCH(Calcs2!$N23,Load!$J$2:$AN$2,0),FALSE) -> 27.22999954 | Q23: 0.1895669181 | R23: 0.268281342 | S23: 35.85413125 | T23: 17.92706562 | U23: 18.246735 | V23: 0 | W23: 0 | X23: 0 | Y23: =(IF('Live scenario'!$C$36=TRUE,VLOOKUP(ZSS, Load!$A$3:$G$296,3,FALSE)*VLOOKUP(ZSS, Load!$A$3:$G$296,4,FALSE),0)+NN_LOAD_TRANSFER) -> 4.1 | Z23: 0.0022148615 | AA23: TRUE | AB23: 0.0022148615 | AC23: TRUE | AD23: 2 | AE23: 0.0022148615 | AF23: 1967 | AG23: 9999 | AH23: 1967 | AI23: 9999 | AJ23: =VLOOKUP(ZSS,Constants!$AT$37:$BO$178,2+Constants!$H$11,FALSE) -> TRUE | AK23: =VLOOKUP(ZSS,Constants!$AT$37:$BO$178,3+Constants!$H$11,FALSE) -> TRUE | AL23: =VLOOKUP(ZSS,Constants!$AT$37:$BO$178,4+Constants!$H$11,FALSE) -> 0.2 | AM23: =VLOOKUP(ZSS,Constants!$AT$37:$BO$178,5+Constants!$H$11,FALSE) -> TRUE | AN23: =VLOOKUP(ZSS,Constants!$AT$37:$BO$178,6+Constants!$H$11,FALSE) -> TRUE | AO23: =VLOOKUP(ZSS,Constants!$AT$37:$BO$178,7+Constants!$H$11,FALSE) -> TRUE | AP23: 0.0017718892 | AQ23: 0.0004429723 | AR23: 2.2148615e-05 | AS23: FALSE | AT23: 0.0039867507 | AU23: 0.0004461118913 | AV23: FALSE | AW23: FALSE | AX23: =(IF(Z23<>TRUE,VLOOKUP(Z23/'Live scenario'!$D$18,MAJORMINORPOF,2,TRUE),0)+IF(AA23<>TRUE,VLOOKUP(AA23/'Live scenario'!$D$19,MAJORMINORPOF,2,TRUE),0)+IF(AB23<>TRUE,VLOOKUP(AB23/'Live scenario'!$D$20,MAJORMINORPOF,2,TRUE),0)+IF(AC23<>TRUE,VLOOKUP(AC23/'Live scenario'!$D$21,MAJORMINORPOF,2,TRUE),0)) -> 0.017718892 | AY23: 0.004429723
D24: 2045 | E24: 0 | F24: 56.16999606 | G24: 20347.56523 | H24: 0 | I24: 0 | J24: 17.09893335 | K24: =(SUM(E24:I24,L24)) -> 20403.73523 | L24: 0 | N24: 2045 | O24: =IF($C$2=0.1,VLOOKUP($C$1,Load!$J:$AN,MATCH(Calcs2!$N24,Load!$J$2:$AN$2,0),FALSE),VLOOKUP($C$1,Load!$AP:$BT,MATCH(Calcs2!$N24,Load!$AP$2:$BT$2,0),FALSE)) -> 25.54000092 | P24: =VLOOKUP($C$1,Load!$J:$AN,MATCH(Calcs2!$N24,Load!$J$2:$AN$2,0),FALSE) -> 27.22999954 | Q24: 0.1895669181 | R24: 0.268281342 | S24: 35.85413125 | T24: 17.92706562 | U24: 18.246735 | V24: 0 | W24: 0 | X24: 0 | Y24: =(IF('Live scenario'!$C$36=TRUE,VLOOKUP(ZSS, Load!$A$3:$G$296,3,FALSE)*VLOOKUP(ZSS, Load!$A$3:$G$296,4,FALSE),0)+NN_LOAD_TRANSFER) -> 4.1 | Z24: 0.00226398302 | AA24: TRUE | AB24: 0.00226398302 | AC24: TRUE | AD24: 2 | AE24: 0.00226398302 | AF24: 1967 | AG24: 9999 | AH24: 1967 | AI24: 9999 | AJ24: =VLOOKUP(ZSS,Constants!$AT$37:$BO$178,2+Constants!$H$11,FALSE) -> TRUE | AK24: =VLOOKUP(ZSS,Constants!$AT$37:$BO$178,3+Constants!$H$11,FALSE) -> TRUE | AL24: =VLOOKUP(ZSS,Constants!$AT$37:$BO$178,4+Constants!$H$11,FALSE) -> 0.2 | AM24: =VLOOKUP(ZSS,Constants!$AT$37:$BO$178,5+Constants!$H$11,FALSE) -> TRUE | AN24: =VLOOKUP(ZSS,Constants!$AT$37:$BO$178,6+Constants!$H$11,FALSE) -> TRUE | AO24: =VLOOKUP(ZSS,Constants!$AT$37:$BO$178,7+Constants!$H$11,FALSE) -> TRUE | AP24: 0.001811186416 | AQ24: 0.000452796604 | AR24: 2.26398302e-05 | AS24: FALSE | AT24: 0.004075169436 | AU24: 0.0004560770002 | AV24: FALSE | AW24: FALSE | AX24: =(IF(Z24<>TRUE,VLOOKUP(Z24/'Live scenario'!$D$18,MAJORMINORPOF,2,TRUE),0)+IF(AA24<>TRUE,VLOOKUP(AA24/'Live scenario'!$D$19,MAJORMINORPOF,2,TRUE),0)+IF(AB24<>TRUE,VLOOKUP(AB24/'Live scenario'!$D$20,MAJORMINORPOF,2,TRUE),0)+IF(AC24<>TRUE,VLOOKUP(AC24/'Live scenario'!$D$21,MAJORMINORPOF,2,TRUE),0)) -> 0.01811186416 | AY24: 0.00452796604
D25: 2046 | E25: 0 | F25: 57.39969998 | G25: 20796.29931 | H25: 0 | I25: 0 | J25: 17.47327244 | K25: =(SUM(E25:I25,L25)) -> 20853.69901 | L25: 0 | N25: 2046 | O25: =IF($C$2=0.1,VLOOKUP($C$1,Load!$J:$AN,MATCH(Calcs2!$N25,Load!$J$2:$AN$2,0),FALSE),VLOOKUP($C$1,Load!$AP:$BT,MATCH(Calcs2!$N25,Load!$AP$2:$BT$2,0),FALSE)) -> 25.54000092 | P25: =VLOOKUP($C$1,Load!$J:$AN,MATCH(Calcs2!$N25,Load!$J$2:$AN$2,0),FALSE) -> 27.22999954 | Q25: 0.1895669181 | R25: 0.268281342 | S25: 35.85413125 | T25: 17.92706562 | U25: 18.246735 | V25: 0 | W25: 0 | X25: 0 | Y25: =(IF('Live scenario'!$C$36=TRUE,VLOOKUP(ZSS, Load!$A$3:$G$296,3,FALSE)*VLOOKUP(ZSS, Load!$A$3:$G$296,4,FALSE),0)+NN_LOAD_TRANSFER) -> 4.1 | Z25: 0.00231354736 | AA25: TRUE | AB25: 0.00231354736 | AC25: TRUE | AD25: 2 | AE25: 0.00231354736 | AF25: 1967 | AG25: 9999 | AH25: 1967 | AI25: 9999 | AJ25: =VLOOKUP(ZSS,Constants!$AT$37:$BO$178,2+Constants!$H$11,FALSE) -> TRUE | AK25: =VLOOKUP(ZSS,Constants!$AT$37:$BO$178,3+Constants!$H$11,FALSE) -> TRUE | AL25: =VLOOKUP(ZSS,Constants!$AT$37:$BO$178,4+Constants!$H$11,FALSE) -> 0.2 | AM25: =VLOOKUP(ZSS,Constants!$AT$37:$BO$178,5+Constants!$H$11,FALSE) -> TRUE | AN25: =VLOOKUP(ZSS,Constants!$AT$37:$BO$178,6+Constants!$H$11,FALSE) -> TRUE | AO25: =VLOOKUP(ZSS,Constants!$AT$37:$BO$178,7+Constants!$H$11,FALSE) -> TRUE | AP25: 0.001850837888 | AQ25: 0.000462709472 | AR25: 2.31354736e-05 | AS25: FALSE | AT25: 0.004164385248 | AU25: 0.0004661350729 | AV25: FALSE | AW25: FALSE | AX25: =(IF(Z25<>TRUE,VLOOKUP(Z25/'Live scenario'!$D$18,MAJORMINORPOF,2,TRUE),0)+IF(AA25<>TRUE,VLOOKUP(AA25/'Live scenario'!$D$19,MAJORMINORPOF,2,TRUE),0)+IF(AB25<>TRUE,VLOOKUP(AB25/'Live scenario'!$D$20,MAJORMINORPOF,2,TRUE),0)+IF(AC25<>TRUE,VLOOKUP(AC25/'Live scenario'!$D$21,MAJORMINORPOF,2,TRUE),0)) -> 0.01850837888 | AY25: 0.00462709472
D26: 2047 | E26: 0 | F26: 58.64034918 | G26: 21249.16962 | H26: 0 | I26: 0 | J26: 17.85094344 | K26: 21307.80997 | L26: 0 | N26: 2047 | O26: =IF($C$2=0.1,VLOOKUP($C$1,Load!$J:$AN,MATCH(Calcs2!$N26,Load!$J$2:$AN$2,0),FALSE),VLOOKUP($C$1,Load!$AP:$BT,MATCH(Calcs2!$N26,Load!$AP$2:$BT$2,0),FALSE)) -> 25.54000092 | P26: =VLOOKUP($C$1,Load!$J:$AN,MATCH(Calcs2!$N26,Load!$J$2:$AN$2,0),FALSE) -> 27.22999954 | Q26: 0.1895669181 | R26: 0.268281342 | S26: 35.85413125 | T26: 17.92706562 | U26: 18.246735 | V26: 0 | W26: 0 | X26: 0 | Y26: =(IF('Live scenario'!$C$36=TRUE,VLOOKUP(ZSS, Load!$A$3:$G$296,3,FALSE)*VLOOKUP(ZSS, Load!$A$3:$G$296,4,FALSE),0)+NN_LOAD_TRANSFER) -> 4.1 | Z26: 0.00236355286 | AA26: TRUE | AB26: 0.00236355286 | AC26: TRUE | AD26: 2 | AE26: 0.00236355286 | AF26: 1967 | AG26: 9999 | AH26: 1967 | AI26: 9999 | AJ26: =VLOOKUP(ZSS,Constants!$AT$37:$BO$178,2+Constants!$H$11,FALSE) -> TRUE | AK26: =VLOOKUP(ZSS,Constants!$AT$37:$BO$178,3+Constants!$H$11,FALSE) -> TRUE | AL26: =VLOOKUP(ZSS,Constants!$AT$37:$BO$178,4+Constants!$H$11,FALSE) -> 0.2 | AM26: =VLOOKUP(ZSS,Constants!$AT$37:$BO$178,5+Constants!$H$11,FALSE) -> TRUE | AN26: =VLOOKUP(ZSS,Constants!$AT$37:$BO$178,6+Constants!$H$11,FALSE) -> TRUE | AO26: =VLOOKUP(ZSS,Constants!$AT$37:$BO$178,7+Constants!$H$11,FALSE) -> TRUE | AP26: 0.001890842288 | AQ26: 0.000472710572 | AR26: 2.36355286e-05 | AS26: FALSE | AT26: 0.004254395148 | AU26: 0.0004762858566 | AV26: FALSE | AW26: FALSE | AX26: =(IF(Z26<>TRUE,VLOOKUP(Z26/'Live scenario'!$D$18,MAJORMINORPOF,2,TRUE),0)+IF(AA26<>TRUE,VLOOKUP(AA26/'Live scenario'!$D$19,MAJORMINORPOF,2,TRUE),0)+IF(AB26<>TRUE,VLOOKUP(AB26/'Live scenario'!$D$20,MAJORMINORPOF,2,TRUE),0)+IF(AC26<>TRUE,VLOOKUP(AC26/'Live scenario'!$D$21,MAJORMINORPOF,2,TRUE),0)) -> 0.01890842288 | AY26: 0.00472710572
D27: 2048 | E27: 0 | F27: 59.89190151 | G27: 21706.16454 | H27: =SUMIFS($W$39:$W$4500,$A$39:$A$4500,$D27) -> 0 | I27: 0 | J27: 18.23193349 | K27: =(SUM(E27:I27,L27)) -> 21766.05644 | L27: 0 | N27: 2048 | O27: =IF($C$2=0.1,VLOOKUP($C$1,Load!$J:$AN,MATCH(Calcs2!$N27,Load!$J$2:$AN$2,0),FALSE),VLOOKUP($C$1,Load!$AP:$BT,MATCH(Calcs2!$N27,Load!$AP$2:$BT$2,0),FALSE)) -> 25.54000092 | P27: =VLOOKUP($C$1,Load!$J:$AN,MATCH(Calcs2!$N27,Load!$J$2:$AN$2,0),FALSE) -> 27.22999954 | Q27: =O27/$O$4-1 -> 0.1895669181 | R27: =P27/($O$4)-1 -> 0.268281342 | S27: 35.85413125 | T27: 17.92706562 | U27: 18.246735 | V27: 0 | W27: 0 | X27: 1 | Y27: =(IF('Live scenario'!$C$36=TRUE,VLOOKUP(ZSS, Load!$A$3:$G$296,3,FALSE)*VLOOKUP(ZSS, Load!$A$3:$G$296,4,FALSE),0)+NN_LOAD_TRANSFER) -> 4.1 | Z27: 0.00241399782 | AA27: TRUE | AB27: 0.00241399782 | AC27: TRUE | AD27: =COUNTIF(Z27:AC27, "<>"&TRUE) -> 2 | AE27: =(Z27*AA27*AB27*AC27)^(1/AD27) -> 0.00241399782 | AF27: 1967 | AG27: 9999 | AH27: 1967 | AI27: 9999 | AJ27: =VLOOKUP(ZSS,Constants!$AT$37:$BO$178,2+Constants!$H$11,FALSE) -> TRUE | AK27: =VLOOKUP(ZSS,Constants!$AT$37:$BO$178,3+Constants!$H$11,FALSE) -> TRUE | AL27: =VLOOKUP(ZSS,Constants!$AT$37:$BO$178,4+Constants!$H$11,FALSE) -> 0.2 | AM27: =VLOOKUP(ZSS,Constants!$AT$37:$BO$178,5+Constants!$H$11,FALSE) -> TRUE | AN27: =VLOOKUP(ZSS,Constants!$AT$37:$BO$178,6+Constants!$H$11,FALSE) -> TRUE | AO27: =VLOOKUP(ZSS,Constants!$AT$37:$BO$178,7+Constants!$H$11,FALSE) -> TRUE | AP27: 0.001931198256 | AQ27: =IF(AD27=1,0,IF(AD27=2,MAX(AJ27:AO27)*AE27,IF(AD27=3,0.5*MAX(AJ27:AO27)*(1-$AH$1)*AE27, IF(AD27=4,0.33*MAX(AJ27:AO27)*$AH$1*(1-$AH$1)*AE27,FALSE)))) -> 0.000482799564 | AR27: =AQ27*$AH$1 -> 2.41399782e-05 | AS27: =IF(AD27=4,MAX(AJ27:AO27)*$AH$1*$AH$1*AE27,FALSE) -> FALSE | AT27: 0.004345196076 | AU27: 0.0004865290907 | AV27: FALSE | AW27: FALSE | AX27: =(IF(Z27<>TRUE,VLOOKUP(Z27/'Live scenario'!$D$18,MAJORMINORPOF,2,TRUE),0)+IF(AA27<>TRUE,VLOOKUP(AA27/'Live scenario'!$D$19,MAJORMINORPOF,2,TRUE),0)+IF(AB27<>TRUE,VLOOKUP(AB27/'Live scenario'!$D$20,MAJORMINORPOF,2,TRUE),0)+IF(AC27<>TRUE,VLOOKUP(AC27/'Live scenario'!$D$21,MAJORMINORPOF,2,TRUE),0)) -> 0.01931198256 | AY27: =SUM(Z27:AC27) -> 0.00482799564
D28: 2049 | E28: 0 | F28: 61.15431675 | G28: 22167.2732 | H28: 0 | I28: 0 | J28: 18.61623037 | K28: 22228.42751 | L28: 0 | N28: 2049 | O28: =IF($C$2=0.1,VLOOKUP($C$1,Load!$J:$AN,MATCH(Calcs2!$N28,Load!$J$2:$AN$2,0),FALSE),VLOOKUP($C$1,Load!$AP:$BT,MATCH(Calcs2!$N28,Load!$AP$2:$BT$2,0),FALSE)) -> 25.54000092 | P28: =VLOOKUP($C$1,Load!$J:$AN,MATCH(Calcs2!$N28,Load!$J$2:$AN$2,0),FALSE) -> 27.22999954 | Q28: =O28/$O$4-1 -> 0.1895669181 | R28: =P28/($O$4)-1 -> 0.268281342 | S28: 35.85413125 | T28: 17.92706562 | U28: 18.246735 | V28: 0 | W28: 0 | X28: 2 | Y28: =(IF('Live scenario'!$C$36=TRUE,VLOOKUP(ZSS, Load!$A$3:$G$296,3,FALSE)*VLOOKUP(ZSS, Load!$A$3:$G$296,4,FALSE),0)+NN_LOAD_TRANSFER) -> 4.1 | Z28: 0.00246488062 | AA28: TRUE | AB28: 0.00246488062 | AC28: TRUE | AD28: =COUNTIF(Z28:AC28, "<>"&TRUE) -> 2 | AE28: =(Z28*AA28*AB28*AC28)^(1/AD28) -> 0.00246488062 | AF28: 1967 | AG28: 9999 | AH28: 1967 | AI28: 9999 | AJ28: =VLOOKUP(ZSS,Constants!$AT$37:$BO$178,2+Constants!$H$11,FALSE) -> TRUE | AK28: =VLOOKUP(ZSS,Constants!$AT$37:$BO$178,3+Constants!$H$11,FALSE) -> TRUE | AL28: =VLOOKUP(ZSS,Constants!$AT$37:$BO$178,4+Constants!$H$11,FALSE) -> 0.2 | AM28: =VLOOKUP(ZSS,Constants!$AT$37:$BO$178,5+Constants!$H$11,FALSE) -> TRUE | AN28: =VLOOKUP(ZSS,Constants!$AT$37:$BO$178,6+Constants!$H$11,FALSE) -> TRUE | AO28: =VLOOKUP(ZSS,Constants!$AT$37:$BO$178,7+Constants!$H$11,FALSE) -> TRUE | AP28: 0.001971904496 | AQ28: =IF(AD28=1,0,IF(AD28=2,MAX(AJ28:AO28)*AE28,IF(AD28=3,0.5*MAX(AJ28:AO28)*(1-$AH$1)*AE28, IF(AD28=4,0.33*MAX(AJ28:AO28)*$AH$1*(1-$AH$1)*AE28,FALSE)))) -> 0.000492976124 | AR28: =AQ28*$AH$1 -> 2.46488062e-05 | AS28: =IF(AD28=4,MAX(AJ28:AO28)*$AH$1*$AH$1*AE28,FALSE) -> FALSE | AT28: 0.004436785116 | AU28: 0.0004968645313 | AV28: FALSE | AW28: FALSE | AX28: =(IF(Z28<>TRUE,VLOOKUP(Z28/'Live scenario'!$D$18,MAJORMINORPOF,2,TRUE),0)+IF(AA28<>TRUE,VLOOKUP(AA28/'Live scenario'!$D$19,MAJORMINORPOF,2,TRUE),0)+IF(AB28<>TRUE,VLOOKUP(AB28/'Live scenario'!$D$20,MAJORMINORPOF,2,TRUE),0)+IF(AC28<>TRUE,VLOOKUP(AC28/'Live scenario'!$D$21,MAJORMINORPOF,2,TRUE),0)) -> 0.01971904496 | AY28: =SUM(Z28:AC28) -> 0.00492976124
D29: 2050 | E29: 0 | F29: 62.42755472 | G29: 22632.48471 | H29: 0 | I29: 0 | J29: 19.00382183 | K29: 22694.91227 | L29: 0 | N29: 2050 | O29: =IF($C$2=0.1,VLOOKUP($C$1,Load!$J:$AN,MATCH(Calcs2!$N29,Load!$J$2:$AN$2,0),FALSE),VLOOKUP($C$1,Load!$AP:$BT,MATCH(Calcs2!$N29,Load!$AP$2:$BT$2,0),FALSE)) -> 25.54000092 | P29: =VLOOKUP($C$1,Load!$J:$AN,MATCH(Calcs2!$N29,Load!$J$2:$AN$2,0),FALSE) -> 27.22999954 | Q29: =O29/$O$4-1 -> 0.1895669181 | R29: =P29/($O$4)-1 -> 0.268281342 | S29: 35.85413125 | T29: 17.92706562 | U29: 18.246735 | V29: 0 | W29: 0 | X29: 3 | Y29: =(IF('Live scenario'!$C$36=TRUE,VLOOKUP(ZSS, Load!$A$3:$G$296,3,FALSE)*VLOOKUP(ZSS, Load!$A$3:$G$296,4,FALSE),0)+NN_LOAD_TRANSFER) -> 4.1 | Z29: 0.00251619964 | AA29: TRUE | AB29: 0.00251619964 | AC29: TRUE | AD29: =COUNTIF(Z29:AC29, "<>"&TRUE) -> 2 | AE29: =(Z29*AA29*AB29*AC29)^(1/AD29) -> 0.00251619964 | AF29: 1967 | AG29: 9999 | AH29: 1967 | AI29: 9999 | AJ29: =VLOOKUP(ZSS,Constants!$AT$37:$BO$178,2+Constants!$H$11,FALSE) -> TRUE | AK29: =VLOOKUP(ZSS,Constants!$AT$37:$BO$178,3+Constants!$H$11,FALSE) -> TRUE | AL29: =VLOOKUP(ZSS,Constants!$AT$37:$BO$178,4+Constants!$H$11,FALSE) -> 0.2 | AM29: =VLOOKUP(ZSS,Constants!$AT$37:$BO$178,5+Constants!$H$11,FALSE) -> TRUE | AN29: =VLOOKUP(ZSS,Constants!$AT$37:$BO$178,6+Constants!$H$11,FALSE) -> TRUE | AO29: =VLOOKUP(ZSS,Constants!$AT$37:$BO$178,7+Constants!$H$11,FALSE) -> TRUE | AP29: 0.002012959712 | AQ29: =IF(AD29=1,0,IF(AD29=2,MAX(AJ29:AO29)*AE29,IF(AD29=3,0.5*MAX(AJ29:AO29)*(1-$AH$1)*AE29, IF(AD29=4,0.33*MAX(AJ29:AO29)*$AH$1*(1-$AH$1)*AE29,FALSE)))) -> 0.000503239928 | AR29: =AQ29*$AH$1 -> 2.51619964e-05 | AS29: =IF(AD29=4,MAX(AJ29:AO29)*$AH$1*$AH$1*AE29,FALSE) -> FALSE | AT29: 0.004529159352 | AU29: 0.0005072919348 | AV29: FALSE | AW29: FALSE | AX29: =(IF(Z29<>TRUE,VLOOKUP(Z29/'Live scenario'!$D$18,MAJORMINORPOF,2,TRUE),0)+IF(AA29<>TRUE,VLOOKUP(AA29/'Live scenario'!$D$19,MAJORMINORPOF,2,TRUE),0)+IF(AB29<>TRUE,VLOOKUP(AB29/'Live scenario'!$D$20,MAJORMINORPOF,2,TRUE),0)+IF(AC29<>TRUE,VLOOKUP(AC29/'Live scenario'!$D$21,MAJORMINORPOF,2,TRUE),0)) -> 0.02012959712 | AY29: =SUM(Z29:AC29) -> 0.00503239928
D30: 2051 | E30: 0 | F30: 63.71157672 | G30: 23101.78877 | H30: 0 | I30: 0 | J30: 19.39469611 | K30: 23165.50035 | L30: 0 | N30: 2051 | O30: =IF($C$2=0.1,VLOOKUP($C$1,Load!$J:$AN,MATCH(Calcs2!$N30,Load!$J$2:$AN$2,0),FALSE),VLOOKUP($C$1,Load!$AP:$BT,MATCH(Calcs2!$N30,Load!$AP$2:$BT$2,0),FALSE)) -> 25.54000092 | P30: =VLOOKUP($C$1,Load!$J:$AN,MATCH(Calcs2!$N30,Load!$J$2:$AN$2,0),FALSE) -> 27.22999954 | Q30: =O30/$O$4-1 -> 0.1895669181 | R30: =P30/($O$4)-1 -> 0.268281342 | S30: 35.85413125 | T30: 17.92706562 | U30: 18.246735 | V30: 0 | W30: 0 | X30: 4 | Y30: =(IF('Live scenario'!$C$36=TRUE,VLOOKUP(ZSS, Load!$A$3:$G$296,3,FALSE)*VLOOKUP(ZSS, Load!$A$3:$G$296,4,FALSE),0)+NN_LOAD_TRANSFER) -> 4.1 | Z30: 0.00256795332 | AA30: TRUE | AB30: 0.00256795332 | AC30: TRUE | AD30: =COUNTIF(Z30:AC30, "<>"&TRUE) -> 2 | AE30: =(Z30*AA30*AB30*AC30)^(1/AD30) -> 0.00256795332 | AF30: 1967 | AG30: 9999 | AH30: 1967 | AI30: 9999 | AJ30: =VLOOKUP(ZSS,Constants!$AT$37:$BO$178,2+Constants!$H$11,FALSE) -> TRUE | AK30: =VLOOKUP(ZSS,Constants!$AT$37:$BO$178,3+Constants!$H$11,FALSE) -> TRUE | AL30: =VLOOKUP(ZSS,Constants!$AT$37:$BO$178,4+Constants!$H$11,FALSE) -> 0.2 | AM30: =VLOOKUP(ZSS,Constants!$AT$37:$BO$178,5+Constants!$H$11,FALSE) -> TRUE | AN30: =VLOOKUP(ZSS,Constants!$AT$37:$BO$178,6+Constants!$H$11,FALSE) -> TRUE | AO30: =VLOOKUP(ZSS,Constants!$AT$37:$BO$178,7+Constants!$H$11,FALSE) -> TRUE | AP30: 0.002054362656 | AQ30: =IF(AD30=1,0,IF(AD30=2,MAX(AJ30:AO30)*AE30,IF(AD30=3,0.5*MAX(AJ30:AO30)*(1-$AH$1)*AE30, IF(AD30=4,0.33*MAX(AJ30:AO30)*$AH$1*(1-$AH$1)*AE30,FALSE)))) -> 0.000513590664 | AR30: =AQ30*$AH$1 -> 2.56795332e-05 | AS30: =IF(AD30=4,MAX(AJ30:AO30)*$AH$1*$AH$1*AE30,FALSE) -> FALSE | AT30: 0.004622315976 | AU30: 0.0005178110699 | AV30: FALSE | AW30: FALSE | AX30: =(IF(Z30<>TRUE,VLOOKUP(Z30/'Live scenario'!$D$18,MAJORMINORPOF,2,TRUE),0)+IF(AA30<>TRUE,VLOOKUP(AA30/'Live scenario'!$D$19,MAJORMINORPOF,2,TRUE),0)+IF(AB30<>TRUE,VLOOKUP(AB30/'Live scenario'!$D$20,MAJORMINORPOF,2,TRUE),0)+IF(AC30<>TRUE,VLOOKUP(AC30/'Live scenario'!$D$21,MAJORMINORPOF,2,TRUE),0)) -> 0.02054362656 | AY30: =SUM(Z30:AC30) -> 0.00513590664
D31: 2052 | E31: 0 | F31: 65.00634404 | G31: 23575.17508 | H31: 0 | I31: 0 | J31: 19.78884141 | K31: 23640.18142 | L31: 0 | N31: 2052 | O31: =IF($C$2=0.1,VLOOKUP($C$1,Load!$J:$AN,MATCH(Calcs2!$N31,Load!$J$2:$AN$2,0),FALSE),VLOOKUP($C$1,Load!$AP:$BT,MATCH(Calcs2!$N31,Load!$AP$2:$BT$2,0),FALSE)) -> 25.54000092 | P31: =VLOOKUP($C$1,Load!$J:$AN,MATCH(Calcs2!$N31,Load!$J$2:$AN$2,0),FALSE) -> 27.22999954 | Q31: =O31/$O$4-1 -> 0.1895669181 | R31: =P31/($O$4)-1 -> 0.268281342 | S31: 35.85413125 | T31: 17.92706562 | U31: 18.246735 | V31: 0 | W31: 0 | X31: 5 | Y31: =(IF('Live scenario'!$C$36=TRUE,VLOOKUP(ZSS, Load!$A$3:$G$296,3,FALSE)*VLOOKUP(ZSS, Load!$A$3:$G$296,4,FALSE),0)+NN_LOAD_TRANSFER) -> 4.1 | Z31: 0.0026201401 | AA31: TRUE | AB31: 0.0026201401 | AC31: TRUE | AD31: =COUNTIF(Z31:AC31, "<>"&TRUE) -> 2 | AE31: =(Z31*AA31*AB31*AC31)^(1/AD31) -> 0.0026201401 | AF31: 1967 | AG31: 9999 | AH31: 1967 | AI31: 9999 | AJ31: =VLOOKUP(ZSS,Constants!$AT$37:$BO$178,2+Constants!$H$11,FALSE) -> TRUE | AK31: =VLOOKUP(ZSS,Constants!$AT$37:$BO$178,3+Constants!$H$11,FALSE) -> TRUE | AL31: =VLOOKUP(ZSS,Constants!$AT$37:$BO$178,4+Constants!$H$11,FALSE) -> 0.2 | AM31: =VLOOKUP(ZSS,Constants!$AT$37:$BO$178,5+Constants!$H$11,FALSE) -> TRUE | AN31: =VLOOKUP(ZSS,Constants!$AT$37:$BO$178,6+Constants!$H$11,FALSE) -> TRUE | AO31: =VLOOKUP(ZSS,Constants!$AT$37:$BO$178,7+Constants!$H$11,FALSE) -> TRUE | AP31: 0.00209611208 | AQ31: =IF(AD31=1,0,IF(AD31=2,MAX(AJ31:AO31)*AE31,IF(AD31=3,0.5*MAX(AJ31:AO31)*(1-$AH$1)*AE31, IF(AD31=4,0.33*MAX(AJ31:AO31)*$AH$1*(1-$AH$1)*AE31,FALSE)))) -> 0.00052402802 | AR31: =AQ31*$AH$1 -> 2.6201401e-05 | AS31: =IF(AD31=4,MAX(AJ31:AO31)*$AH$1*$AH$1*AE31,FALSE) -> FALSE | AT31: 0.00471625218 | AU31: 0.0005284217059 | AV31: FALSE | AW31: FALSE | AX31: =(IF(Z31<>TRUE,VLOOKUP(Z31/'Live scenario'!$D$18,MAJORMINORPOF,2,TRUE),0)+IF(AA31<>TRUE,VLOOKUP(AA31/'Live scenario'!$D$19,MAJORMINORPOF,2,TRUE),0)+IF(AB31<>TRUE,VLOOKUP(AB31/'Live scenario'!$D$20,MAJORMINORPOF,2,TRUE),0)+IF(AC31<>TRUE,VLOOKUP(AC31/'Live scenario'!$D$21,MAJORMINORPOF,2,TRUE),0)) -> 0.0209611208 | AY31: =SUM(Z31:AC31) -> 0.0052402802
A33: 0 | B33: 1 | C33: 2 | D33: 3 | E33: 4 | F33: 5 | G33: 6 | H33: 7 | I33: 8 | J33: 9 | K33: 10 | L33: 11 | M33: 12 | N33: 13 | O33: 14 | P33: 15 | Q33: 16 | R33: 17 | S33: 18 | T33: 19 | U33: 20 | V33: 21 | W33: 22 | X33: 23 | Y33: 24 | Z33: 25 | AA33: 26 | AB33: 27 | AC33: 28 | AD33: 29 | AE33: 30 | AF33: 31 | AG33: 32
D34: Probability of fault:
D35: PI Point: | E35: =C42-C43 -> 172 | G35: =VLOOKUP($C$1,Load!$R$22:$S$61,2,FALSE) -> 
E36: =C41-C42 -> 64
E37: Station Capacity | I37: MWh over Capacity (Inc Xfers | N37: Probability of Outage | S37: kWh at risk
A38: Year | B38: MVA | C38: Hours at or below MVA | D38: N rating (MVA) | E38: N-1 Rating | F38: N-2 | G38: N-3 | H38: N-4 | I38: MVA After Xfers | J38: N | K38: N-1 | L38: N-2 | M38: N-3 | N38: N-4 | O38: 1 Failure | P38: 2 Failures | Q38: 3 Failures | R38: 4 Failures | S38: Significant | T38: N | U38: N-1 | V38: N-2 | W38: N-3 | X38: N-4 | Y38: Significant | AB38: ZSS | AC38: =ZSS -> STL
